Workbook

Sheet Introduction
C4: Joint Monitoring Programme for Water Supply, Sanitation and Hygiene
C6: Estimates on household water, sanitation and hygiene by wealth quintile and sub-national region in
C7: =+Water!B5 -> Liberia
C9: Updated April 2021
C11: Follow the links below to find the following information:
C13: JMP Estimates
C14: WASH status and trends by wealth quintile (customized quintiles made without water and sanitation assets)
C15: Water
C16: Sanitation
C17: Hygiene
C19: Data inputs
C20: customized wealth quintiles and subnational data:
C21: =IF(INDIRECT(CONCATENATE("Water","!B105"))=0,"",INDIRECT(CONCATENATE("Water","!B105"))) -> DHS07
C22: =IF(INDIRECT(CONCATENATE("Water","!B106"))=0,"",INDIRECT(CONCATENATE("Water","!B106"))) -> MIS09
C23: =IF(INDIRECT(CONCATENATE("Water","!B107"))=0,"",INDIRECT(CONCATENATE("Water","!B107"))) -> MIS11
C24: =IF(INDIRECT(CONCATENATE("Water","!B108"))=0,"",INDIRECT(CONCATENATE("Water","!B108"))) -> DHS13
C25: =IF(INDIRECT(CONCATENATE("Water","!B109"))=0,"",INDIRECT(CONCATENATE("Water","!B109"))) -> MIS16
C26: =IF(INDIRECT(CONCATENATE("Water","!B110"))=0,"",INDIRECT(CONCATENATE("Water","!B110"))) -> DHS20
C27: =IF(INDIRECT(CONCATENATE("Water","!B111"))=0,"",INDIRECT(CONCATENATE("Water","!B111"))) -> 
C28: =IF(INDIRECT(CONCATENATE("Water","!B112"))=0,"",INDIRECT(CONCATENATE("Water","!B112"))) -> 
C29: =IF(INDIRECT(CONCATENATE("Water","!B113"))=0,"",INDIRECT(CONCATENATE("Water","!B113"))) -> 
C30: =IF(INDIRECT(CONCATENATE("Water","!B114"))=0,"",INDIRECT(CONCATENATE("Water","!B114"))) -> 
C31: =IF(INDIRECT(CONCATENATE("Water","!B115"))=0,"",INDIRECT(CONCATENATE("Water","!B115"))) -> 
C32: =IF(INDIRECT(CONCATENATE("Water","!B116"))=0,"",INDIRECT(CONCATENATE("Water","!B116"))) -> 
L55: =+IF(ISNUMBER(M48), "", "Insufficient data to estimate safely managed sanitation services at national level") -> Insufficient data to estimate safely managed sanitation services at national level

Sheet Water
A1: BGD
B4: Summary of trends in use of drinking water by wealth quintile (%)
B5: =IF(ISERROR(INDIRECT(CONCATENATE($B105,"!A2"))),"",INDIRECT(CONCATENATE($B105,"!A2"))) -> Liberia
B7: =B118 -> National use of drinking water sources, 2000–2020 | J7: =B218 -> Urban use of drinking water sources, 2000–2020 | R7: =B318 -> Rural use of drinking water sources, 2000–2020
B31: =IF(ISERROR(INDIRECT(CONCATENATE($B105,"!A2"))),"",INDIRECT(CONCATENATE($B105,"!A2"))) -> Liberia | F31: Poorest | J31: Poor | N31: Middle | R31: Rich | V31: Richest
F32: Basic | G32: Limited | H32: Unimproved | I32: Surface water | J32: Basic | K32: Limited | L32: Unimproved | M32: Surface water | N32: Basic | O32: Limited | P32: Unimproved | Q32: Surface water | R32: Basic | S32: Limited | T32: Unimproved | U32: Surface water | V32: Basic | W32: Limited | X32: Unimproved | Y32: Surface water
B33: NATIONAL | D33: Estimate | E33: =C99 -> 2000 | F33: =E99 -> 37.4993551 | G33: =F99 -> 2.164411032 | H33: 24.08393759 | I33: 36.25229628 | J33: =J99 -> 51.49841938 | K33: =K99 -> 3.012570418 | L33: 20.94768289 | M33: 24.54132732 | N33: =O99 -> 68.58881255 | O33: =P99 -> 6.207971368 | P33: 15.18919658 | Q33: 10.0140195 | R33: =T99 -> 75.17923749 | S33: =U99 -> 7.427176 | T33: 15.11608625 | U33: 2.277500255 | V33: =Y99 -> 84.3366468 | W33: =Z99 -> 6.592232517 | X33: 8.743824275 | Y33: 0.3272964079
E34: =C100 -> 2020 | F34: =E100 -> 58.32156388 | G34: 3.36624019 | H34: 10.89744466 | I34: 27.41475126 | J34: =J100 -> 76.42155958 | K34: 4.470531959 | L34: 6.576174349 | M34: 12.53173411 | N34: =O100 -> 84.74735417 | O34: 7.670480486 | P34: 4.43248107 | Q34: 3.149684271 | R34: =T100 -> 89.87554558 | S34: 8.879067112 | T34: 1.063804219 | U34: 0.181583088 | V34: =Y100 -> 91.09116764 | W34: 7.120204325 | X34: 1.231664423 | Y34: 0.5569636111
B36: URBAN | D36: Estimate | E36: =C199 -> 2000 | F36: =E199 -> 76.60160823 | G36: =F199 -> 7.901124416 | H36: 14.06191203 | I36: 1.435355325 | J36: =J199 -> 76.910713 | K36: =K199 -> 7.501928825 | L36: 14.83800433 | M36: 0.7493538442 | N36: =O199 -> 77.29354349 | O36: =P199 -> 8.536560032 | P36: 14.07551674 | Q36: 0.09437973432 | R36: =T199 -> 83.56599109 | S36: =U199 -> 7.787469887 | T36: 8.562136957 | U36: 0.08440206851 | V36: =Y199 -> 85.50834974 | W36: =Z199 -> 5.769949372 | X36: 8.516102316 | Y36: 0.2055985761
E37: =C200 -> 2020 | F37: =E200 -> 76.50557592 | G37: 7.891219099 | H37: 11.74881162 | I37: 3.854393362 | J37: =J200 -> 87.78466401 | K37: 8.56258219 | L37: 2.211965649 | M37: 1.440788155 | N37: =O200 -> 87.93688084 | O37: 9.712046161 | P37: 2.104828415 | Q37: 0.2462445793 | R37: =T200 -> 88.8343282 | S37: 8.278423398 | T37: 1.916660929 | U37: 0.9705874685 | V37: =Y200 -> 92.3618041 | W37: 6.232408124 | X37: 1.275945029 | Y37: 0.1298427458
B39: RURAL | D39: Estimate | E39: =C299 -> 2000 | F39: =E299 -> 39.13337977 | G39: =F299 -> 1.980202123 | H39: 23.08796004 | I39: 35.79845807 | J39: =J299 -> 35.50121783 | K39: =K299 -> 2.091099229 | L39: 26.80775906 | M39: 35.59992389 | N39: =O299 -> 48.66401573 | O39: =P299 -> 2.455889658 | P39: 20.86072577 | Q39: 28.01936884 | R39: =T299 -> 64.20704356 | S39: =U299 -> 3.659214255 | T39: 15.67788923 | U39: 16.45585296 | V39: =Y299 -> 77.39220881 | W39: =Z299 -> 5.36106446 | X39: 9.440664251 | Y39: 7.806062482
E40: =C300 -> 2020 | F40: =E300 -> 47.11122611 | G40: 2.383891974 | H40: 11.1431312 | I40: 39.36175072 | J40: =J300 -> 62.25832886 | K40: 3.667151479 | L40: 7.774653181 | M40: 26.29986648 | N40: =O300 -> 69.38252732 | O40: 3.501474935 | P40: 7.70673108 | Q40: 19.40926667 | R40: =T300 -> 74.85830486 | S40: 4.266238735 | T40: 7.450189897 | U40: 13.42526651 | V40: =Y300 -> 84.09833067 | W40: 5.82560672 | X40: 4.080654585 | Y40: 5.995408029
A97: NATIONAL | D97: Poorest | I97: Poor | N97: Middle | S97: Rich | X97: Richest
D98: Improved | E98: Basic | F98: Limited | G98: Unimproved | H98: Surface water | I98: Improved | J98: Basic | K98: Limited | L98: Unimproved | M98: Surface water | N98: Improved | O98: Basic | P98: Limited | Q98: Unimproved | R98: Surface water | S98: Improved | T98: Basic | U98: Limited | V98: Unimproved | W98: Surface water | X98: Improved | Y98: Basic | Z98: Limited | AA98: Unimproved | AB98: Surface water
A99: Forecast period: | C99: 2000 | D99: =IF((D101+H101)>100,D101*100/(D101+H101),D101) -> 39.66376613 | E99: =D99*AVERAGEIF(E105:E116,">0")/100 -> 37.4993551 | F99: =D99*(100-AVERAGEIF(E105:E116,">0"))/100 -> 2.164411032 | G99: =100-(E99+F99+H99) -> 24.08393759 | H99: =IF((D101+H101)>100,H101*100/(D101+H101),H101) -> 36.25229628 | I99: =IF((I101+M101)>100,I101*100/(I101+M101),I101) -> 54.51098979 | J99: =I99*AVERAGEIF(J105:J116,">0")/100 -> 51.49841938 | K99: =I99*(100-AVERAGEIF(J105:J116,">0"))/100 -> 3.012570418 | L99: =100-(J99+K99+M99) -> 20.94768289 | M99: =IF((I101+M101)>100,M101*100/(I101+M101),M101) -> 24.54132732 | N99: =IF((N101+R101)>100,N101*100/(N101+R101),N101) -> 74.79678392 | O99: =N99*AVERAGEIF(O105:O116,">0")/100 -> 68.58881255 | P99: =N99*(100-AVERAGEIF(O105:O116,">0"))/100 -> 6.207971368 | Q99: =100-(O99+P99+R99) -> 15.18919658 | R99: =IF((N101+R101)>100,R101*100/(N101+R101),R101) -> 10.0140195 | S99: =IF((S101+W101)>100,S101*100/(S101+W101),S101) -> 82.60641349 | T99: =S99*AVERAGEIF(T105:T116,">0")/100 -> 75.17923749 | U99: =S99*(100-AVERAGEIF(T105:T116,">0"))/100 -> 7.427176 | V99: =100-(T99+U99+W99) -> 15.11608625 | W99: =IF((S101+W101)>100,W101*100/(S101+W101),W101) -> 2.277500255 | X99: =IF((X101+AB101)>100,X101*100/(X101+AB101),X101) -> 90.92887932 | Y99: =X99*AVERAGEIF(Y105:Y116,">0")/100 -> 84.3366468 | Z99: =X99*(100-AVERAGEIF(Y105:Y116,">0"))/100 -> 6.592232517 | AA99: =100-(Y99+Z99+AB99) -> 8.743824275 | AB99: =IF((X101+AB101)>100,AB101*100/(X101+AB101),AB101) -> 0.3272964079
C100: 2020 | D100: =IF((D102+H102)>100,D102*100/(D102+H102),D102) -> 61.68780407 | E100: =D100*AVERAGEIF(E105:E116,">0")/100 -> 58.32156388 | F100: =D100*(100-AVERAGEIF(E105:E116,">0"))/100 -> 3.36624019 | G100: =100-(E100+F100+H100) -> 10.89744466 | H100: =IF((D102+H102)>100,H102*100/(D102+H102),H102) -> 27.41475126 | I100: =IF((I102+M102)>100,I102*100/(I102+M102),I102) -> 80.89209154 | J100: =I100*AVERAGEIF(J105:J116,">0")/100 -> 76.42155958 | K100: =I100*(100-AVERAGEIF(J105:J116,">0"))/100 -> 4.470531959 | L100: =100-(J100+K100+M100) -> 6.576174349 | M100: =IF((I102+M102)>100,M102*100/(I102+M102),M102) -> 12.53173411 | N100: =IF((N102+R102)>100,N102*100/(N102+R102),N102) -> 92.41783466 | O100: =N100*AVERAGEIF(O105:O116,">0")/100 -> 84.74735417 | P100: =N100*(100-AVERAGEIF(O105:O116,">0"))/100 -> 7.670480486 | Q100: =100-(O100+P100+R100) -> 4.43248107 | R100: =IF((N102+R102)>100,R102*100/(N102+R102),R102) -> 3.149684271 | S100: =IF((S102+W102)>100,S102*100/(S102+W102),S102) -> 98.75461269 | T100: =S100*AVERAGEIF(T105:T116,">0")/100 -> 89.87554558 | U100: =S100*(100-AVERAGEIF(T105:T116,">0"))/100 -> 8.879067112 | V100: =100-(T100+U100+W100) -> 1.063804219 | W100: =IF((S102+W102)>100,W102*100/(S102+W102),W102) -> 0.181583088 | X100: =IF((X102+AB102)>100,X102*100/(X102+AB102),X102) -> 98.21137197 | Y100: =X100*AVERAGEIF(Y105:Y116,">0")/100 -> 91.09116764 | Z100: =X100*(100-AVERAGEIF(Y105:Y116,">0"))/100 -> 7.120204325 | AA100: =100-(Y100+Z100+AB100) -> 1.231664423 | AB100: =IF((X102+AB102)>100,AB102*100/(X102+AB102),AB102) -> 0.5569636111
A101: Regression period: | C101: =MinRegYear(C99,C105:C116) -> 2005 | D101: =IF(MAX(C105:C116)-MIN(C105:C116)<5,AVERAGEIF(C105:C116,">0",D105:D116), IF(FORECAST($C101,D$105:D$116,$C$105:$C$116)<0,0, IF(FORECAST($C101,D$105:D$116,$C$105:$C$116)>100,100, FORECAST($C101,D$105:D$116,$C$105:$C$116)))) -> 39.66376613 | H101: =IF(MAX(C105:C116)-MIN(C105:C116)<5,AVERAGEIF(C105:C116,">0",H105:H116), IF(FORECAST($C101,H$105:H$116,$C$105:$C$116)<0,0, IF(FORECAST($C101,H$105:H$116,$C$105:$C$116)>100,100, FORECAST($C101,H$105:H$116,$C$105:$C$116)))) -> 36.25229628 | I101: =IF(MAX(C105:C116)-MIN(C105:C116)<5,AVERAGEIF(C105:C116,">0",I105:I116), IF(FORECAST($C101,I$105:I$116,$C$105:$C$116)<0,0, IF(FORECAST($C101,I$105:I$116,$C$105:$C$116)>100,100, FORECAST($C101,I$105:I$116,$C$105:$C$116)))) -> 54.51098979 | M101: =IF(MAX(C105:C116)-MIN(C105:C116)<5,AVERAGEIF(C105:C116,">0",M105:M116), IF(FORECAST($C101,M$105:M$116,$C$105:$C$116)<0,0, IF(FORECAST($C101,M$105:M$116,$C$105:$C$116)>100,100, FORECAST($C101,M$105:M$116,$C$105:$C$116)))) -> 24.54132732 | N101: =IF(MAX(C105:C116)-MIN(C105:C116)<5,AVERAGEIF(C105:C116,">0",N105:N116), IF(FORECAST($C101,N$105:N$116,$C$105:$C$116)<0,0, IF(FORECAST($C101,N$105:N$116,$C$105:$C$116)>100,100, FORECAST($C101,N$105:N$116,$C$105:$C$116)))) -> 74.79678392 | R101: =IF(MAX(C105:C116)-MIN(C105:C116)<5,AVERAGEIF(C105:C116,">0",R105:R116), IF(FORECAST($C101,R$105:R$116,$C$105:$C$116)<0,0, IF(FORECAST($C101,R$105:R$116,$C$105:$C$116)>100,100, FORECAST($C101,R$105:R$116,$C$105:$C$116)))) -> 10.0140195 | S101: =IF(MAX(C105:C116)-MIN(C105:C116)<5,AVERAGEIF(C105:C116,">0",S105:S116), IF(FORECAST($C101,S$105:S$116,$C$105:$C$116)<0,0, IF(FORECAST($C101,S$105:S$116,$C$105:$C$116)>100,100, FORECAST($C101,S$105:S$116,$C$105:$C$116)))) -> 82.60641349 | W101: =IF(MAX(C105:C116)-MIN(C105:C116)<5,AVERAGEIF(C105:C116,">0",W105:W116), IF(FORECAST($C101,W$105:W$116,$C$105:$C$116)<0,0, IF(FORECAST($C101,W$105:W$116,$C$105:$C$116)>100,100, FORECAST($C101,W$105:W$116,$C$105:$C$116)))) -> 2.277500255 | X101: =IF(MAX(C105:C116)-MIN(C105:C116)<5,AVERAGEIF(C105:C116,">0",X105:X116), IF(FORECAST($C101,X$105:X$116,$C$105:$C$116)<0,0, IF(FORECAST($C101,X$105:X$116,$C$105:$C$116)>100,100, FORECAST($C101,X$105:X$116,$C$105:$C$116)))) -> 90.92887932 | AB101: =IF(MAX(C105:C116)-MIN(C105:C116)<5,AVERAGEIF(C105:C116,">0",AB105:AB116), IF(FORECAST($C101,AB$105:AB$116,$C$105:$C$116)<0,0, IF(FORECAST($C101,AB$105:AB$116,$C$105:$C$116)>100,100, FORECAST($C101,AB$105:AB$116,$C$105:$C$116)))) -> 0.3272964079
C102: =MaxRegYear(C100,C105:C116) -> 2020 | D102: =IF(MAX(C105:C116)-MIN(C105:C116)<5,AVERAGEIF(C105:C116,">0",D105:D116), IF(FORECAST($C102,D$105:D$116,$C$105:$C$116)<0,0, IF(FORECAST($C102,D$105:D$116,$C$105:$C$116)>100,100, FORECAST($C102,D$105:D$116,$C$105:$C$116)))) -> 61.68780407 | H102: =IF(MAX(C105:C116)-MIN(C105:C116)<5,AVERAGEIF(C105:C116,">0",H105:H116), IF(FORECAST($C102,H$105:H$116,$C$105:$C$116)<0,0, IF(FORECAST($C102,H$105:H$116,$C$105:$C$116)>100,100, FORECAST($C102,H$105:H$116,$C$105:$C$116)))) -> 27.41475126 | I102: =IF(MAX(C105:C116)-MIN(C105:C116)<5,AVERAGEIF(C105:C116,">0",I105:I116), IF(FORECAST($C102,I$105:I$116,$C$105:$C$116)<0,0, IF(FORECAST($C102,I$105:I$116,$C$105:$C$116)>100,100, FORECAST($C102,I$105:I$116,$C$105:$C$116)))) -> 80.89209154 | M102: =IF(MAX(C105:C116)-MIN(C105:C116)<5,AVERAGEIF(C105:C116,">0",M105:M116), IF(FORECAST($C102,M$105:M$116,$C$105:$C$116)<0,0, IF(FORECAST($C102,M$105:M$116,$C$105:$C$116)>100,100, FORECAST($C102,M$105:M$116,$C$105:$C$116)))) -> 12.53173411 | N102: =IF(MAX(C105:C116)-MIN(C105:C116)<5,AVERAGEIF(C105:C116,">0",N105:N116), IF(FORECAST($C102,N$105:N$116,$C$105:$C$116)<0,0, IF(FORECAST($C102,N$105:N$116,$C$105:$C$116)>100,100, FORECAST($C102,N$105:N$116,$C$105:$C$116)))) -> 92.41783466 | R102: =IF(MAX(C105:C116)-MIN(C105:C116)<5,AVERAGEIF(C105:C116,">0",R105:R116), IF(FORECAST($C102,R$105:R$116,$C$105:$C$116)<0,0, IF(FORECAST($C102,R$105:R$116,$C$105:$C$116)>100,100, FORECAST($C102,R$105:R$116,$C$105:$C$116)))) -> 3.149684271 | S102: =IF(MAX(C105:C116)-MIN(C105:C116)<5,AVERAGEIF(C105:C116,">0",S105:S116), IF(FORECAST($C102,S$105:S$116,$C$105:$C$116)<0,0, IF(FORECAST($C102,S$105:S$116,$C$105:$C$116)>100,100, FORECAST($C102,S$105:S$116,$C$105:$C$116)))) -> 98.75461269 | W102: =IF(MAX(C105:C116)-MIN(C105:C116)<5,AVERAGEIF(C105:C116,">0",W105:W116), IF(FORECAST($C102,W$105:W$116,$C$105:$C$116)<0,0, IF(FORECAST($C102,W$105:W$116,$C$105:$C$116)>100,100, FORECAST($C102,W$105:W$116,$C$105:$C$116)))) -> 0.181583088 | X102: =IF(MAX(C105:C116)-MIN(C105:C116)<5,AVERAGEIF(C105:C116,">0",X105:X116), IF(FORECAST($C102,X$105:X$116,$C$105:$C$116)<0,0, IF(FORECAST($C102,X$105:X$116,$C$105:$C$116)>100,100, FORECAST($C102,X$105:X$116,$C$105:$C$116)))) -> 98.21137197 | AB102: =IF(MAX(C105:C116)-MIN(C105:C116)<5,AVERAGEIF(C105:C116,">0",AB105:AB116), IF(FORECAST($C102,AB$105:AB$116,$C$105:$C$116)<0,0, IF(FORECAST($C102,AB$105:AB$116,$C$105:$C$116)>100,100, FORECAST($C102,AB$105:AB$116,$C$105:$C$116)))) -> 0.5569636111
B104: Survey | C104: Year | D104: Improved | E104: % Improved < = 30min | H104: Surface water | I104: Improved | J104: % Improved < = 30min | M104: Surface water | N104: Improved | O104: % Improved < = 30min | R104: Surface water | S104: Improved | T104: % Improved < = 30min | W104: Surface water | X104: Improved | Y104: % Improved < = 30min | AB104: Surface water
B105: DHS07 | C105: 2007 | D105: =IF(ISERROR(INDIRECT(CONCATENATE($B105,"!C16"))),"",INDIRECT(CONCATENATE($B105,"!C16"))) -> 43.6 | E105: =IF(ISERROR(INDIRECT(CONCATENATE($B105,"!C23"))),"",INDIRECT(CONCATENATE($B105,"!C23"))) -> 98.1 | H105: =IF(ISERROR(INDIRECT(CONCATENATE($B105,"!C21"))),"",INDIRECT(CONCATENATE($B105,"!C21"))) -> 28.4 | I105: =IF(ISERROR(INDIRECT(CONCATENATE($B105,"!D16"))),"",INDIRECT(CONCATENATE($B105,"!D16"))) -> 53.4 | J105: =IF(ISERROR(INDIRECT(CONCATENATE($B105,"!D23"))),"",INDIRECT(CONCATENATE($B105,"!D23"))) -> 98.6 | M105: =IF(ISERROR(INDIRECT(CONCATENATE($B105,"!D21"))),"",INDIRECT(CONCATENATE($B105,"!D21"))) -> 21.1 | N105: =IF(ISERROR(INDIRECT(CONCATENATE($B105,"!E16"))),"",INDIRECT(CONCATENATE($B105,"!E16"))) -> 70.3 | O105: =IF(ISERROR(INDIRECT(CONCATENATE($B105,"!E23"))),"",INDIRECT(CONCATENATE($B105,"!E23"))) -> 97.5 | R105: =IF(ISERROR(INDIRECT(CONCATENATE($B105,"!E21"))),"",INDIRECT(CONCATENATE($B105,"!E21"))) -> 11.5 | S105: =IF(ISERROR(INDIRECT(CONCATENATE($B105,"!F16"))),"",INDIRECT(CONCATENATE($B105,"!F16"))) -> 81.6 | T105: =IF(ISERROR(INDIRECT(CONCATENATE($B105,"!F23"))),"",INDIRECT(CONCATENATE($B105,"!F23"))) -> 95.7 | W105: =IF(ISERROR(INDIRECT(CONCATENATE($B105,"!F21"))),"",INDIRECT(CONCATENATE($B105,"!F21"))) -> 3.1 | X105: =IF(ISERROR(INDIRECT(CONCATENATE($B105,"!G16"))),"",INDIRECT(CONCATENATE($B105,"!G16"))) -> 92.7 | Y105: =IF(ISERROR(INDIRECT(CONCATENATE($B105,"!G23"))),"",INDIRECT(CONCATENATE($B105,"!G23"))) -> 95.7 | AB105: =IF(ISERROR(INDIRECT(CONCATENATE($B105,"!G221"))),"",INDIRECT(CONCATENATE($B105,"!G21"))) -> 0.2
B106: MIS09 | C106: 2009 | D106: 44.48340945 | E106: N/A | H106: 32.80412994 | I106: 66.52632949 | J106: N/A | M106: 18.57181464 | N106: 85.45193499 | O106: N/A | R106: 8.019697569 | S106: 92.53779558 | T106: N/A | W106: 1.189177451 | X106: 95.65290514 | Y106: N/A | AB106: 0.2429523008
B107: MIS11 | C107: 2011 | D107: 49.2 | E107: 94.9 | H107: 38.6 | I107: 69.7 | J107: 96.9 | M107: 19.2 | N107: 85.7 | O107: 92.4 | R107: 1.5 | S107: 83.6 | T107: 91.9 | W107: 0.5 | X107: 87.5 | Y107: 92.6 | AB107: 0.4
B108: DHS13 | C108: 2013 | D108: 48.62578654 | E108: 90.87603852 | H108: 36.52594306 | I108: 59.53595894 | J108: 87.53033638 | M108: 27.46931178 | N108: 81.17546169 | O108: 84.86749198 | R108: 9.441825537 | S108: 93.13041194 | T108: 87.99240155 | W108: 0.9471470833 | X108: 95.8343748 | Y108: 91.29263505 | AB108: 0.9368947913
B109: MIS16 | C109: 2016 | D109: 58.7 | E109: 98.2 | H109: 32.5 | I109: 80.6 | J109: 97.6 | M109: 14.2 | N109: 90.2 | O109: 94.4 | R109: 5.2 | S109: 98.2 | T109: 94.5 | W109: 1.1 | X109: 98.5 | Y109: 94.4 | AB109: 0.6
B110: DHS20 | C110: 2020 | D110: 60.91378382 | E110: 90.63947437 | H110: 21.58189996 | I110: 78.20569569 | J110: 91.73697497 | M110: 9.877418325 | N110: 89.99119576 | O110: 89.33358893 | R110: 3.371965868 | S110: 96.09141764 | T110: 84.95239651 | W110: 0.4011976853 | X110: 97.71897342 | Y110: 89.7579766 | AB110: 0.2882441117
D111: =IF(ISERROR(INDIRECT(CONCATENATE($B111,"!C16"))),"",INDIRECT(CONCATENATE($B111,"!C16"))) ->  | E111: =IF(ISERROR(INDIRECT(CONCATENATE($B111,"!C23"))),"",INDIRECT(CONCATENATE($B111,"!C23"))) ->  | H111: =IF(ISERROR(INDIRECT(CONCATENATE($B111,"!C21"))),"",INDIRECT(CONCATENATE($B111,"!C21"))) ->  | I111: =IF(ISERROR(INDIRECT(CONCATENATE($B111,"!D16"))),"",INDIRECT(CONCATENATE($B111,"!D16"))) ->  | J111: =IF(ISERROR(INDIRECT(CONCATENATE($B111,"!D23"))),"",INDIRECT(CONCATENATE($B111,"!D23"))) ->  | M111: =IF(ISERROR(INDIRECT(CONCATENATE($B111,"!D21"))),"",INDIRECT(CONCATENATE($B111,"!D21"))) ->  | N111: =IF(ISERROR(INDIRECT(CONCATENATE($B111,"!E16"))),"",INDIRECT(CONCATENATE($B111,"!E16"))) ->  | O111: =IF(ISERROR(INDIRECT(CONCATENATE($B111,"!E23"))),"",INDIRECT(CONCATENATE($B111,"!E23"))) ->  | R111: =IF(ISERROR(INDIRECT(CONCATENATE($B111,"!E21"))),"",INDIRECT(CONCATENATE($B111,"!E21"))) ->  | S111: =IF(ISERROR(INDIRECT(CONCATENATE($B111,"!F16"))),"",INDIRECT(CONCATENATE($B111,"!F16"))) ->  | T111: =IF(ISERROR(INDIRECT(CONCATENATE($B111,"!F23"))),"",INDIRECT(CONCATENATE($B111,"!F23"))) ->  | W111: =IF(ISERROR(INDIRECT(CONCATENATE($B111,"!F21"))),"",INDIRECT(CONCATENATE($B111,"!F21"))) ->  | X111: =IF(ISERROR(INDIRECT(CONCATENATE($B111,"!G16"))),"",INDIRECT(CONCATENATE($B111,"!G16"))) ->  | Y111: =IF(ISERROR(INDIRECT(CONCATENATE($B111,"!G23"))),"",INDIRECT(CONCATENATE($B111,"!G23"))) ->  | AB111: =IF(ISERROR(INDIRECT(CONCATENATE($B111,"!G221"))),"",INDIRECT(CONCATENATE($B111,"!G21"))) -> 
D112: =IF(ISERROR(INDIRECT(CONCATENATE($B112,"!C16"))),"",INDIRECT(CONCATENATE($B112,"!C16"))) ->  | E112: =IF(ISERROR(INDIRECT(CONCATENATE($B112,"!C23"))),"",INDIRECT(CONCATENATE($B112,"!C23"))) ->  | H112: =IF(ISERROR(INDIRECT(CONCATENATE($B112,"!C21"))),"",INDIRECT(CONCATENATE($B112,"!C21"))) ->  | I112: =IF(ISERROR(INDIRECT(CONCATENATE($B112,"!D16"))),"",INDIRECT(CONCATENATE($B112,"!D16"))) ->  | J112: =IF(ISERROR(INDIRECT(CONCATENATE($B112,"!D23"))),"",INDIRECT(CONCATENATE($B112,"!D23"))) ->  | M112: =IF(ISERROR(INDIRECT(CONCATENATE($B112,"!D21"))),"",INDIRECT(CONCATENATE($B112,"!D21"))) ->  | N112: =IF(ISERROR(INDIRECT(CONCATENATE($B112,"!E16"))),"",INDIRECT(CONCATENATE($B112,"!E16"))) ->  | O112: =IF(ISERROR(INDIRECT(CONCATENATE($B112,"!E23"))),"",INDIRECT(CONCATENATE($B112,"!E23"))) ->  | R112: =IF(ISERROR(INDIRECT(CONCATENATE($B112,"!E21"))),"",INDIRECT(CONCATENATE($B112,"!E21"))) ->  | S112: =IF(ISERROR(INDIRECT(CONCATENATE($B112,"!F16"))),"",INDIRECT(CONCATENATE($B112,"!F16"))) ->  | T112: =IF(ISERROR(INDIRECT(CONCATENATE($B112,"!F23"))),"",INDIRECT(CONCATENATE($B112,"!F23"))) ->  | W112: =IF(ISERROR(INDIRECT(CONCATENATE($B112,"!F21"))),"",INDIRECT(CONCATENATE($B112,"!F21"))) ->  | X112: =IF(ISERROR(INDIRECT(CONCATENATE($B112,"!G16"))),"",INDIRECT(CONCATENATE($B112,"!G16"))) ->  | Y112: =IF(ISERROR(INDIRECT(CONCATENATE($B112,"!G23"))),"",INDIRECT(CONCATENATE($B112,"!G23"))) ->  | AB112: =IF(ISERROR(INDIRECT(CONCATENATE($B112,"!G221"))),"",INDIRECT(CONCATENATE($B112,"!G21"))) -> 
B118: =CONCATENATE("National use of drinking water sources, ",C99,"–",C100) -> National use of drinking water sources, 2000–2020 | S118: Data points used for regression
E153: =IF(ISERROR(INDIRECT(CONCATENATE($B153,"!M18"))),"",INDIRECT(CONCATENATE($B153,"!M18"))) ->  | F153: =IF(ISERROR(INDIRECT(CONCATENATE($B153,"!M19"))),"",INDIRECT(CONCATENATE($B153,"!M19"))) ->  | G153: =IF(ISERROR(INDIRECT(CONCATENATE($B153,"!M20"))),"",INDIRECT(CONCATENATE($B153,"!M20"))) ->  | H153: =IF(ISERROR(INDIRECT(CONCATENATE($B153,"!M21"))),"",INDIRECT(CONCATENATE($B153,"!M21"))) ->  | J153: =IF(ISERROR(INDIRECT(CONCATENATE($B153,"!N18"))),"",INDIRECT(CONCATENATE($B153,"!N18"))) ->  | K153: =IF(ISERROR(INDIRECT(CONCATENATE($B153,"!N19"))),"",INDIRECT(CONCATENATE($B153,"!N19"))) ->  | L153: =IF(ISERROR(INDIRECT(CONCATENATE($B153,"!N20"))),"",INDIRECT(CONCATENATE($B153,"!N20"))) ->  | M153: =IF(ISERROR(INDIRECT(CONCATENATE($B153,"!N21"))),"",INDIRECT(CONCATENATE($B153,"!N21"))) ->  | O153: =IF(ISERROR(INDIRECT(CONCATENATE($B153,"!O18"))),"",INDIRECT(CONCATENATE($B153,"!O18"))) ->  | P153: =IF(ISERROR(INDIRECT(CONCATENATE($B153,"!O19"))),"",INDIRECT(CONCATENATE($B153,"!O19"))) ->  | Q153: =IF(ISERROR(INDIRECT(CONCATENATE($B153,"!O20"))),"",INDIRECT(CONCATENATE($B153,"!O20"))) ->  | R153: =IF(ISERROR(INDIRECT(CONCATENATE($B153,"!O21"))),"",INDIRECT(CONCATENATE($B153,"!O21"))) ->  | T153: =IF(ISERROR(INDIRECT(CONCATENATE($B153,"!P18"))),"",INDIRECT(CONCATENATE($B153,"!P18"))) ->  | U153: =IF(ISERROR(INDIRECT(CONCATENATE($B153,"!P19"))),"",INDIRECT(CONCATENATE($B153,"!P19"))) ->  | V153: =IF(ISERROR(INDIRECT(CONCATENATE($B153,"!P20"))),"",INDIRECT(CONCATENATE($B153,"!P20"))) ->  | W153: =IF(ISERROR(INDIRECT(CONCATENATE($B153,"!P21"))),"",INDIRECT(CONCATENATE($B153,"!P21"))) ->  | Y153: =IF(ISERROR(INDIRECT(CONCATENATE($B153,"!Q18"))),"",INDIRECT(CONCATENATE($B153,"!Q18"))) ->  | Z153: =IF(ISERROR(INDIRECT(CONCATENATE($B153,"!Q19"))),"",INDIRECT(CONCATENATE($B153,"!Q19"))) ->  | AA153: =IF(ISERROR(INDIRECT(CONCATENATE($B153,"!Q20"))),"",INDIRECT(CONCATENATE($B153,"!Q20"))) ->  | AB153: =IF(ISERROR(INDIRECT(CONCATENATE($B153,"!Q21"))),"",INDIRECT(CONCATENATE($B153,"!Q1"))) -> 
A197: URBAN | D197: Poorest | I197: Poor | N197: Middle | S197: Rich | X197: Richest
D198: Improved | E198: Basic | F198: Limited | G198: Unimproved | H198: Surface water | I198: Improved | J198: Basic | K198: Limited | L198: Unimproved | M198: Surface water | N198: Improved | O198: Basic | P198: Limited | Q198: Unimproved | R198: Surface water | S198: Improved | T198: Basic | U198: Limited | V198: Unimproved | W198: Surface water | X198: Improved | Y198: Basic | Z198: Limited | AA198: Unimproved | AB198: Surface water
A199: Forecast period: | C199: 2000 | D199: =IF((D201+H201)>100,D201*100/(D201+H201),D201) -> 84.50273264 | E199: =D199*AVERAGEIF(E205:E216,">0")/100 -> 76.60160823 | F199: =D199*(100-AVERAGEIF(E205:E216,">0"))/100 -> 7.901124416 | G199: =100-(E199+F199+H199) -> 14.06191203 | H199: =IF((D201+H201)>100,H201*100/(D201+H201),H201) -> 1.435355325 | I199: =IF((I201+M201)>100,I201*100/(I201+M201),I201) -> 84.41264182 | J199: =I199*AVERAGEIF(J205:J216,">0")/100 -> 76.910713 | K199: =I199*(100-AVERAGEIF(J205:J216,">0"))/100 -> 7.501928825 | L199: =100-(J199+K199+M199) -> 14.83800433 | M199: =IF((I201+M201)>100,M201*100/(I201+M201),M201) -> 0.7493538442 | N199: =IF((N201+R201)>100,N201*100/(N201+R201),N201) -> 85.83010352 | O199: =N199*AVERAGEIF(O205:O216,">0")/100 -> 77.29354349 | P199: =N199*(100-AVERAGEIF(O205:O216,">0"))/100 -> 8.536560032 | Q199: =100-(O199+P199+R199) -> 14.07551674 | R199: =IF((N201+R201)>100,R201*100/(N201+R201),R201) -> 0.09437973432 | S199: =IF((S201+W201)>100,S201*100/(S201+W201),S201) -> 91.35346097 | T199: =S199*AVERAGEIF(T205:T216,">0")/100 -> 83.56599109 | U199: =S199*(100-AVERAGEIF(T205:T216,">0"))/100 -> 7.787469887 | V199: =100-(T199+U199+W199) -> 8.562136957 | W199: =IF((S201+W201)>100,W201*100/(S201+W201),W201) -> 0.08440206851 | X199: =IF((X201+AB201)>100,X201*100/(X201+AB201),X201) -> 91.27829911 | Y199: =X199*AVERAGEIF(Y205:Y216,">0")/100 -> 85.50834974 | Z199: =X199*(100-AVERAGEIF(Y205:Y216,">0"))/100 -> 5.769949372 | AA199: =100-(Y199+Z199+AB199) -> 8.516102316 | AB199: =IF((X201+AB201)>100,AB201*100/(X201+AB201),AB201) -> 0.2055985761
C200: 2020 | D200: =IF((D202+H202)>100,D202*100/(D202+H202),D202) -> 84.39679502 | E200: =D200*AVERAGEIF(E205:E216,">0")/100 -> 76.50557592 | F200: =D200*(100-AVERAGEIF(E205:E216,">0"))/100 -> 7.891219099 | G200: =100-(E200+F200+H200) -> 11.74881162 | H200: =IF((D202+H202)>100,H202*100/(D202+H202),H202) -> 3.854393362 | I200: =IF((I202+M202)>100,I202*100/(I202+M202),I202) -> 96.3472462 | J200: =I200*AVERAGEIF(J205:J216,">0")/100 -> 87.78466401 | K200: =I200*(100-AVERAGEIF(J205:J216,">0"))/100 -> 8.56258219 | L200: =100-(J200+K200+M200) -> 2.211965649 | M200: =IF((I202+M202)>100,M202*100/(I202+M202),M202) -> 1.440788155 | N200: =IF((N202+R202)>100,N202*100/(N202+R202),N202) -> 97.64892701 | O200: =N200*AVERAGEIF(O205:O216,">0")/100 -> 87.93688084 | P200: =N200*(100-AVERAGEIF(O205:O216,">0"))/100 -> 9.712046161 | Q200: =100-(O200+P200+R200) -> 2.104828415 | R200: =IF((N202+R202)>100,R202*100/(N202+R202),R202) -> 0.2462445793 | S200: =IF((S202+W202)>100,S202*100/(S202+W202),S202) -> 97.1127516 | T200: =S200*AVERAGEIF(T205:T216,">0")/100 -> 88.8343282 | U200: =S200*(100-AVERAGEIF(T205:T216,">0"))/100 -> 8.278423398 | V200: =100-(T200+U200+W200) -> 1.916660929 | W200: =IF((S202+W202)>100,W202*100/(S202+W202),W202) -> 0.9705874685 | X200: =IF((X202+AB202)>100,X202*100/(X202+AB202),X202) -> 98.59421223 | Y200: =X200*AVERAGEIF(Y205:Y216,">0")/100 -> 92.3618041 | Z200: =X200*(100-AVERAGEIF(Y205:Y216,">0"))/100 -> 6.232408124 | AA200: =100-(Y200+Z200+AB200) -> 1.275945029 | AB200: =IF((X202+AB202)>100,AB202*100/(X202+AB202),AB202) -> 0.1298427458
A201: Regression period: | C201: =MinRegYear(C199,C205:C216) -> 2005 | D201: =IF(MAX(C205:C216)-MIN(C205:C216)<5,AVERAGEIF(C205:C216,">0",D205:D216), IF(FORECAST($C201,D$205:D$216,$C$205:$C$216)<0,0, IF(FORECAST($C201,D$205:D$216,$C$205:$C$216)>100,100, FORECAST($C201,D$205:D$216,$C$205:$C$216)))) -> 84.50273264 | H201: =IF(MAX(C205:C216)-MIN(C205:C216)<5,AVERAGEIF(C205:C216,">0",H205:H216), IF(FORECAST($C201,H$205:H$216,$C$205:$C$216)<0,0, IF(FORECAST($C201,H$205:H$216,$C$205:$C$216)>100,100, FORECAST($C201,H$205:H$216,$C$205:$C$216)))) -> 1.435355325 | I201: =IF(MAX(C205:C216)-MIN(C205:C216)<5,AVERAGEIF(C205:C216,">0",I205:I216), IF(FORECAST($C201,I$205:I$216,$C$205:$C$216)<0,0, IF(FORECAST($C201,I$205:I$216,$C$205:$C$216)>100,100, FORECAST($C201,I$205:I$216,$C$205:$C$216)))) -> 84.41264182 | M201: =IF(MAX(C205:C216)-MIN(C205:C216)<5,AVERAGEIF(C205:C216,">0",M205:M216), IF(FORECAST($C201,M$205:M$216,$C$205:$C$216)<0,0, IF(FORECAST($C201,M$205:M$216,$C$205:$C$216)>100,100, FORECAST($C201,M$205:M$216,$C$205:$C$216)))) -> 0.7493538442 | N201: =IF(MAX(C205:C216)-MIN(C205:C216)<5,AVERAGEIF(C205:C216,">0",N205:N216), IF(FORECAST($C201,N$205:N$216,$C$205:$C$216)<0,0, IF(FORECAST($C201,N$205:N$216,$C$205:$C$216)>100,100, FORECAST($C201,N$205:N$216,$C$205:$C$216)))) -> 85.83010352 | R201: =IF(MAX(C205:C216)-MIN(C205:C216)<5,AVERAGEIF(C205:C216,">0",R205:R216), IF(FORECAST($C201,R$205:R$216,$C$205:$C$216)<0,0, IF(FORECAST($C201,R$205:R$216,$C$205:$C$216)>100,100, FORECAST($C201,R$205:R$216,$C$205:$C$216)))) -> 0.09437973432 | S201: =IF(MAX(C205:C216)-MIN(C205:C216)<5,AVERAGEIF(C205:C216,">0",S205:S216), IF(FORECAST($C201,S$205:S$216,$C$205:$C$216)<0,0, IF(FORECAST($C201,S$205:S$216,$C$205:$C$216)>100,100, FORECAST($C201,S$205:S$216,$C$205:$C$216)))) -> 91.35346097 | W201: =IF(MAX(C205:C216)-MIN(C205:C216)<5,AVERAGEIF(C205:C216,">0",W205:W216), IF(FORECAST($C201,W$205:W$216,$C$205:$C$216)<0,0, IF(FORECAST($C201,W$205:W$216,$C$205:$C$216)>100,100, FORECAST($C201,W$205:W$216,$C$205:$C$216)))) -> 0.08440206851 | X201: =IF(MAX(C205:C216)-MIN(C205:C216)<5,AVERAGEIF(C205:C216,">0",X205:X216), IF(FORECAST($C201,X$205:X$216,$C$205:$C$216)<0,0, IF(FORECAST($C201,X$205:X$216,$C$205:$C$216)>100,100, FORECAST($C201,X$205:X$216,$C$205:$C$216)))) -> 91.27829911 | AB201: =IF(MAX(C205:C216)-MIN(C205:C216)<5,AVERAGEIF(C205:C216,">0",AB205:AB216), IF(FORECAST($C201,AB$205:AB$216,$C$205:$C$216)<0,0, IF(FORECAST($C201,AB$205:AB$216,$C$205:$C$216)>100,100, FORECAST($C201,AB$205:AB$216,$C$205:$C$216)))) -> 0.2055985761
C202: =MaxRegYear(C200,C205:C216) -> 2020 | D202: =IF(MAX(C205:C216)-MIN(C205:C216)<5,AVERAGEIF(C205:C216,">0",D205:D216), IF(FORECAST($C202,D$205:D$216,$C$205:$C$216)<0,0, IF(FORECAST($C202,D$205:D$216,$C$205:$C$216)>100,100, FORECAST($C202,D$205:D$216,$C$205:$C$216)))) -> 84.39679502 | H202: =IF(MAX(C205:C216)-MIN(C205:C216)<5,AVERAGEIF(C205:C216,">0",H205:H216), IF(FORECAST($C202,H$205:H$216,$C$205:$C$216)<0,0, IF(FORECAST($C202,H$205:H$216,$C$205:$C$216)>100,100, FORECAST($C202,H$205:H$216,$C$205:$C$216)))) -> 3.854393362 | I202: =IF(MAX(C205:C216)-MIN(C205:C216)<5,AVERAGEIF(C205:C216,">0",I205:I216), IF(FORECAST($C202,I$205:I$216,$C$205:$C$216)<0,0, IF(FORECAST($C202,I$205:I$216,$C$205:$C$216)>100,100, FORECAST($C202,I$205:I$216,$C$205:$C$216)))) -> 96.3472462 | M202: =IF(MAX(C205:C216)-MIN(C205:C216)<5,AVERAGEIF(C205:C216,">0",M205:M216), IF(FORECAST($C202,M$205:M$216,$C$205:$C$216)<0,0, IF(FORECAST($C202,M$205:M$216,$C$205:$C$216)>100,100, FORECAST($C202,M$205:M$216,$C$205:$C$216)))) -> 1.440788155 | N202: =IF(MAX(C205:C216)-MIN(C205:C216)<5,AVERAGEIF(C205:C216,">0",N205:N216), IF(FORECAST($C202,N$205:N$216,$C$205:$C$216)<0,0, IF(FORECAST($C202,N$205:N$216,$C$205:$C$216)>100,100, FORECAST($C202,N$205:N$216,$C$205:$C$216)))) -> 97.64892701 | R202: =IF(MAX(C205:C216)-MIN(C205:C216)<5,AVERAGEIF(C205:C216,">0",R205:R216), IF(FORECAST($C202,R$205:R$216,$C$205:$C$216)<0,0, IF(FORECAST($C202,R$205:R$216,$C$205:$C$216)>100,100, FORECAST($C202,R$205:R$216,$C$205:$C$216)))) -> 0.2462445793 | S202: =IF(MAX(C205:C216)-MIN(C205:C216)<5,AVERAGEIF(C205:C216,">0",S205:S216), IF(FORECAST($C202,S$205:S$216,$C$205:$C$216)<0,0, IF(FORECAST($C202,S$205:S$216,$C$205:$C$216)>100,100, FORECAST($C202,S$205:S$216,$C$205:$C$216)))) -> 97.1127516 | W202: =IF(MAX(C205:C216)-MIN(C205:C216)<5,AVERAGEIF(C205:C216,">0",W205:W216), IF(FORECAST($C202,W$205:W$216,$C$205:$C$216)<0,0, IF(FORECAST($C202,W$205:W$216,$C$205:$C$216)>100,100, FORECAST($C202,W$205:W$216,$C$205:$C$216)))) -> 0.9705874685 | X202: =IF(MAX(C205:C216)-MIN(C205:C216)<5,AVERAGEIF(C205:C216,">0",X205:X216), IF(FORECAST($C202,X$205:X$216,$C$205:$C$216)<0,0, IF(FORECAST($C202,X$205:X$216,$C$205:$C$216)>100,100, FORECAST($C202,X$205:X$216,$C$205:$C$216)))) -> 98.59421223 | AB202: =IF(MAX(C205:C216)-MIN(C205:C216)<5,AVERAGEIF(C205:C216,">0",AB205:AB216), IF(FORECAST($C202,AB$205:AB$216,$C$205:$C$216)<0,0, IF(FORECAST($C202,AB$205:AB$216,$C$205:$C$216)>100,100, FORECAST($C202,AB$205:AB$216,$C$205:$C$216)))) -> 0.1298427458
B204: Survey | C204: Year | D204: Improved | E204: % Improved < = 30min | H204: Surface water | I204: Improved | J204: % Improved < = 30min | M204: Surface water | N204: Improved | O204: % Improved < = 30min | R204: Surface water | S204: Improved | T204: % Improved < = 30min | W204: Surface water | X204: Improved | Y204: % Improved < = 30min | AB204: Surface water
B205: DHS07 | C205: 2007 | D205: =IF(ISERROR(INDIRECT(CONCATENATE($B205,"!H16"))),"",INDIRECT(CONCATENATE($B205,"!H16"))) -> 82.6 | E205: =IF(ISERROR(INDIRECT(CONCATENATE($B205,"!H23"))),"",INDIRECT(CONCATENATE($B205,"!H23"))) -> 95 | H205: =IF(ISERROR(INDIRECT(CONCATENATE($B205,"!H21"))),"",INDIRECT(CONCATENATE($B205,"!H21"))) -> 1.1 | I205: =IF(ISERROR(INDIRECT(CONCATENATE($B205,"!I16"))),"",INDIRECT(CONCATENATE($B205,"!I16"))) -> 83.2 | J205: =IF(ISERROR(INDIRECT(CONCATENATE($B205,"!I23"))),"",INDIRECT(CONCATENATE($B205,"!I23"))) -> 96.6 | M205: =IF(ISERROR(INDIRECT(CONCATENATE($B205,"!I21"))),"",INDIRECT(CONCATENATE($B205,"!I21"))) -> 1 | N205: =IF(ISERROR(INDIRECT(CONCATENATE($B205,"!J16"))),"",INDIRECT(CONCATENATE($B205,"!J16"))) -> 90.6 | O205: =IF(ISERROR(INDIRECT(CONCATENATE($B205,"!J23"))),"",INDIRECT(CONCATENATE($B205,"!J23"))) -> 95.8 | R205: =IF(ISERROR(INDIRECT(CONCATENATE($B205,"!J21"))),"",INDIRECT(CONCATENATE($B205,"!J21"))) -> 0.2 | S205: =IF(ISERROR(INDIRECT(CONCATENATE($B205,"!K16"))),"",INDIRECT(CONCATENATE($B205,"!K16"))) -> 91.8 | T205: =IF(ISERROR(INDIRECT(CONCATENATE($B205,"!K23"))),"",INDIRECT(CONCATENATE($B205,"!K23"))) -> 94.9 | W205: =IF(ISERROR(INDIRECT(CONCATENATE($B205,"!K21"))),"",INDIRECT(CONCATENATE($B205,"!K21"))) -> 0 | X205: =IF(ISERROR(INDIRECT(CONCATENATE($B205,"!L16"))),"",INDIRECT(CONCATENATE($B205,"!L16"))) -> 96 | Y205: =IF(ISERROR(INDIRECT(CONCATENATE($B205,"!L23"))),"",INDIRECT(CONCATENATE($B205,"!L23"))) -> 95.8 | AB205: =IF(ISERROR(INDIRECT(CONCATENATE($B205,"!L221"))),"",INDIRECT(CONCATENATE($B205,"!L21"))) -> 0
B206: MIS09 | C206: 2009 | D206: 91.41608996 | E206: N/A | H206: 0.3816606495 | I206: 95.32452334 | J206: N/A | M206: 0.03739395021 | N206: 90.71637339 | O206: N/A | R206: 0 | S206: 96.66426358 | T206: N/A | W206: 0.2631810297 | X206: 94.12403358 | Y206: N/A | AB206: 0.2684163153
B207: MIS11 | C207: 2011 | D207: 85.3 | E207: 87.6 | H207: 0.5 | I207: 84.1 | J207: 90.9 | M207: 0 | N207: 81 | O207: 89.2 | R207: 0.1 | S207: 87.3 | T207: 93 | W207: 0.4 | X207: 85.4 | Y207: 92.8 | AB207: 0.2
B208: DHS13 | C208: 2013 | D208: 76.15160641 | E208: 86.29006291 | H208: 9.011666927 | I208: 89.21570125 | J208: 83.92808414 | M208: 3.183664961 | N208: 93.07698263 | O208: 88.3574234 | R208: 0.4172223803 | S208: 95.87868431 | T208: 89.73752972 | W208: 0.3503430944 | X208: 96.90453723 | Y208: 92.66378125 | AB208: 0.3946386878
B209: MIS16 | C209: 2016 | D209: 84.1 | E209: 92.9 | H209: 3.3 | I209: 95.2 | J209: 93.3 | M209: 1.9 | N209: 99.2 | O209: 94.9 | R209: 0 | S209: 98 | T209: 94.2 | W209: 2 | X209: 98.8 | Y209: 94.4 | AB209: 0.1
B210: DHS20 | C210: 2020 | D210: 87.12382411 | E210: 91.45923348 | H210: 1.737187685 | I210: 96.03507976 | J210: 90.83586539 | M210: 0.4954627058 | N210: 96.63165713 | O210: 82.01317118 | R210: 0.3147748836 | S210: 96.13964254 | T210: 85.53972888 | W210: 0.2105235136 | X210: 98.87669073 | Y210: 92.7298598 | AB210: 0.03821857401
B218: =CONCATENATE("Urban use of drinking water sources, ",C199,"–",C200) -> Urban use of drinking water sources, 2000–2020 | S218: Data points used for regression
E253: =IF(ISERROR(INDIRECT(CONCATENATE($B253,"!M18"))),"",INDIRECT(CONCATENATE($B253,"!M18"))) ->  | F253: =IF(ISERROR(INDIRECT(CONCATENATE($B253,"!M19"))),"",INDIRECT(CONCATENATE($B253,"!M19"))) ->  | G253: =IF(ISERROR(INDIRECT(CONCATENATE($B253,"!M20"))),"",INDIRECT(CONCATENATE($B253,"!M20"))) ->  | H253: =IF(ISERROR(INDIRECT(CONCATENATE($B253,"!M21"))),"",INDIRECT(CONCATENATE($B253,"!M21"))) ->  | J253: =IF(ISERROR(INDIRECT(CONCATENATE($B253,"!N18"))),"",INDIRECT(CONCATENATE($B253,"!N18"))) ->  | K253: =IF(ISERROR(INDIRECT(CONCATENATE($B253,"!N19"))),"",INDIRECT(CONCATENATE($B253,"!N19"))) ->  | L253: =IF(ISERROR(INDIRECT(CONCATENATE($B253,"!N20"))),"",INDIRECT(CONCATENATE($B253,"!N20"))) ->  | M253: =IF(ISERROR(INDIRECT(CONCATENATE($B253,"!N21"))),"",INDIRECT(CONCATENATE($B253,"!N21"))) ->  | O253: =IF(ISERROR(INDIRECT(CONCATENATE($B253,"!O18"))),"",INDIRECT(CONCATENATE($B253,"!O18"))) ->  | P253: =IF(ISERROR(INDIRECT(CONCATENATE($B253,"!O19"))),"",INDIRECT(CONCATENATE($B253,"!O19"))) ->  | Q253: =IF(ISERROR(INDIRECT(CONCATENATE($B253,"!O20"))),"",INDIRECT(CONCATENATE($B253,"!O20"))) ->  | R253: =IF(ISERROR(INDIRECT(CONCATENATE($B253,"!O21"))),"",INDIRECT(CONCATENATE($B253,"!O21"))) ->  | T253: =IF(ISERROR(INDIRECT(CONCATENATE($B253,"!P18"))),"",INDIRECT(CONCATENATE($B253,"!P18"))) ->  | U253: =IF(ISERROR(INDIRECT(CONCATENATE($B253,"!P19"))),"",INDIRECT(CONCATENATE($B253,"!P19"))) ->  | V253: =IF(ISERROR(INDIRECT(CONCATENATE($B253,"!P20"))),"",INDIRECT(CONCATENATE($B253,"!P20"))) ->  | W253: =IF(ISERROR(INDIRECT(CONCATENATE($B253,"!P21"))),"",INDIRECT(CONCATENATE($B253,"!P21"))) ->  | Y253: =IF(ISERROR(INDIRECT(CONCATENATE($B253,"!Q18"))),"",INDIRECT(CONCATENATE($B253,"!Q18"))) ->  | Z253: =IF(ISERROR(INDIRECT(CONCATENATE($B253,"!Q19"))),"",INDIRECT(CONCATENATE($B253,"!Q19"))) ->  | AA253: =IF(ISERROR(INDIRECT(CONCATENATE($B253,"!Q20"))),"",INDIRECT(CONCATENATE($B253,"!Q20"))) ->  | AB253: =IF(ISERROR(INDIRECT(CONCATENATE($B253,"!Q21"))),"",INDIRECT(CONCATENATE($B253,"!Q1"))) -> 
E254: =IF(ISERROR(INDIRECT(CONCATENATE($B254,"!M18"))),"",INDIRECT(CONCATENATE($B254,"!M18"))) ->  | F254: =IF(ISERROR(INDIRECT(CONCATENATE($B254,"!M19"))),"",INDIRECT(CONCATENATE($B254,"!M19"))) ->  | G254: =IF(ISERROR(INDIRECT(CONCATENATE($B254,"!M20"))),"",INDIRECT(CONCATENATE($B254,"!M20"))) ->  | H254: =IF(ISERROR(INDIRECT(CONCATENATE($B254,"!M21"))),"",INDIRECT(CONCATENATE($B254,"!M21"))) ->  | J254: =IF(ISERROR(INDIRECT(CONCATENATE($B254,"!N18"))),"",INDIRECT(CONCATENATE($B254,"!N18"))) ->  | K254: =IF(ISERROR(INDIRECT(CONCATENATE($B254,"!N19"))),"",INDIRECT(CONCATENATE($B254,"!N19"))) ->  | L254: =IF(ISERROR(INDIRECT(CONCATENATE($B254,"!N20"))),"",INDIRECT(CONCATENATE($B254,"!N20"))) ->  | M254: =IF(ISERROR(INDIRECT(CONCATENATE($B254,"!N21"))),"",INDIRECT(CONCATENATE($B254,"!N21"))) ->  | O254: =IF(ISERROR(INDIRECT(CONCATENATE($B254,"!O18"))),"",INDIRECT(CONCATENATE($B254,"!O18"))) ->  | P254: =IF(ISERROR(INDIRECT(CONCATENATE($B254,"!O19"))),"",INDIRECT(CONCATENATE($B254,"!O19"))) ->  | Q254: =IF(ISERROR(INDIRECT(CONCATENATE($B254,"!O20"))),"",INDIRECT(CONCATENATE($B254,"!O20"))) ->  | R254: =IF(ISERROR(INDIRECT(CONCATENATE($B254,"!O21"))),"",INDIRECT(CONCATENATE($B254,"!O21"))) ->  | T254: =IF(ISERROR(INDIRECT(CONCATENATE($B254,"!P18"))),"",INDIRECT(CONCATENATE($B254,"!P18"))) ->  | U254: =IF(ISERROR(INDIRECT(CONCATENATE($B254,"!P19"))),"",INDIRECT(CONCATENATE($B254,"!P19"))) ->  | V254: =IF(ISERROR(INDIRECT(CONCATENATE($B254,"!P20"))),"",INDIRECT(CONCATENATE($B254,"!P20"))) ->  | W254: =IF(ISERROR(INDIRECT(CONCATENATE($B254,"!P21"))),"",INDIRECT(CONCATENATE($B254,"!P21"))) ->  | Y254: =IF(ISERROR(INDIRECT(CONCATENATE($B254,"!Q18"))),"",INDIRECT(CONCATENATE($B254,"!Q18"))) ->  | Z254: =IF(ISERROR(INDIRECT(CONCATENATE($B254,"!Q19"))),"",INDIRECT(CONCATENATE($B254,"!Q19"))) ->  | AA254: =IF(ISERROR(INDIRECT(CONCATENATE($B254,"!Q20"))),"",INDIRECT(CONCATENATE($B254,"!Q20"))) ->  | AB254: =IF(ISERROR(INDIRECT(CONCATENATE($B254,"!Q21"))),"",INDIRECT(CONCATENATE($B254,"!Q1"))) -> 
E255: =IF(ISERROR(INDIRECT(CONCATENATE($B255,"!M18"))),"",INDIRECT(CONCATENATE($B255,"!M18"))) ->  | F255: =IF(ISERROR(INDIRECT(CONCATENATE($B255,"!M19"))),"",INDIRECT(CONCATENATE($B255,"!M19"))) ->  | G255: =IF(ISERROR(INDIRECT(CONCATENATE($B255,"!M20"))),"",INDIRECT(CONCATENATE($B255,"!M20"))) ->  | H255: =IF(ISERROR(INDIRECT(CONCATENATE($B255,"!M21"))),"",INDIRECT(CONCATENATE($B255,"!M21"))) ->  | J255: =IF(ISERROR(INDIRECT(CONCATENATE($B255,"!N18"))),"",INDIRECT(CONCATENATE($B255,"!N18"))) ->  | K255: =IF(ISERROR(INDIRECT(CONCATENATE($B255,"!N19"))),"",INDIRECT(CONCATENATE($B255,"!N19"))) ->  | L255: =IF(ISERROR(INDIRECT(CONCATENATE($B255,"!N20"))),"",INDIRECT(CONCATENATE($B255,"!N20"))) ->  | M255: =IF(ISERROR(INDIRECT(CONCATENATE($B255,"!N21"))),"",INDIRECT(CONCATENATE($B255,"!N21"))) ->  | O255: =IF(ISERROR(INDIRECT(CONCATENATE($B255,"!O18"))),"",INDIRECT(CONCATENATE($B255,"!O18"))) ->  | P255: =IF(ISERROR(INDIRECT(CONCATENATE($B255,"!O19"))),"",INDIRECT(CONCATENATE($B255,"!O19"))) ->  | Q255: =IF(ISERROR(INDIRECT(CONCATENATE($B255,"!O20"))),"",INDIRECT(CONCATENATE($B255,"!O20"))) ->  | R255: =IF(ISERROR(INDIRECT(CONCATENATE($B255,"!O21"))),"",INDIRECT(CONCATENATE($B255,"!O21"))) ->  | T255: =IF(ISERROR(INDIRECT(CONCATENATE($B255,"!P18"))),"",INDIRECT(CONCATENATE($B255,"!P18"))) ->  | U255: =IF(ISERROR(INDIRECT(CONCATENATE($B255,"!P19"))),"",INDIRECT(CONCATENATE($B255,"!P19"))) ->  | V255: =IF(ISERROR(INDIRECT(CONCATENATE($B255,"!P20"))),"",INDIRECT(CONCATENATE($B255,"!P20"))) ->  | W255: =IF(ISERROR(INDIRECT(CONCATENATE($B255,"!P21"))),"",INDIRECT(CONCATENATE($B255,"!P21"))) ->  | Y255: =IF(ISERROR(INDIRECT(CONCATENATE($B255,"!Q18"))),"",INDIRECT(CONCATENATE($B255,"!Q18"))) ->  | Z255: =IF(ISERROR(INDIRECT(CONCATENATE($B255,"!Q19"))),"",INDIRECT(CONCATENATE($B255,"!Q19"))) ->  | AA255: =IF(ISERROR(INDIRECT(CONCATENATE($B255,"!Q20"))),"",INDIRECT(CONCATENATE($B255,"!Q20"))) ->  | AB255: =IF(ISERROR(INDIRECT(CONCATENATE($B255,"!Q21"))),"",INDIRECT(CONCATENATE($B255,"!Q1"))) -> 
E256: =IF(ISERROR(INDIRECT(CONCATENATE($B256,"!M18"))),"",INDIRECT(CONCATENATE($B256,"!M18"))) ->  | F256: =IF(ISERROR(INDIRECT(CONCATENATE($B256,"!M19"))),"",INDIRECT(CONCATENATE($B256,"!M19"))) ->  | G256: =IF(ISERROR(INDIRECT(CONCATENATE($B256,"!M20"))),"",INDIRECT(CONCATENATE($B256,"!M20"))) ->  | H256: =IF(ISERROR(INDIRECT(CONCATENATE($B256,"!M21"))),"",INDIRECT(CONCATENATE($B256,"!M21"))) ->  | J256: =IF(ISERROR(INDIRECT(CONCATENATE($B256,"!N18"))),"",INDIRECT(CONCATENATE($B256,"!N18"))) ->  | K256: =IF(ISERROR(INDIRECT(CONCATENATE($B256,"!N19"))),"",INDIRECT(CONCATENATE($B256,"!N19"))) ->  | L256: =IF(ISERROR(INDIRECT(CONCATENATE($B256,"!N20"))),"",INDIRECT(CONCATENATE($B256,"!N20"))) ->  | M256: =IF(ISERROR(INDIRECT(CONCATENATE($B256,"!N21"))),"",INDIRECT(CONCATENATE($B256,"!N21"))) ->  | O256: =IF(ISERROR(INDIRECT(CONCATENATE($B256,"!O18"))),"",INDIRECT(CONCATENATE($B256,"!O18"))) ->  | P256: =IF(ISERROR(INDIRECT(CONCATENATE($B256,"!O19"))),"",INDIRECT(CONCATENATE($B256,"!O19"))) ->  | Q256: =IF(ISERROR(INDIRECT(CONCATENATE($B256,"!O20"))),"",INDIRECT(CONCATENATE($B256,"!O20"))) ->  | R256: =IF(ISERROR(INDIRECT(CONCATENATE($B256,"!O21"))),"",INDIRECT(CONCATENATE($B256,"!O21"))) ->  | T256: =IF(ISERROR(INDIRECT(CONCATENATE($B256,"!P18"))),"",INDIRECT(CONCATENATE($B256,"!P18"))) ->  | U256: =IF(ISERROR(INDIRECT(CONCATENATE($B256,"!P19"))),"",INDIRECT(CONCATENATE($B256,"!P19"))) ->  | V256: =IF(ISERROR(INDIRECT(CONCATENATE($B256,"!P20"))),"",INDIRECT(CONCATENATE($B256,"!P20"))) ->  | W256: =IF(ISERROR(INDIRECT(CONCATENATE($B256,"!P21"))),"",INDIRECT(CONCATENATE($B256,"!P21"))) ->  | Y256: =IF(ISERROR(INDIRECT(CONCATENATE($B256,"!Q18"))),"",INDIRECT(CONCATENATE($B256,"!Q18"))) ->  | Z256: =IF(ISERROR(INDIRECT(CONCATENATE($B256,"!Q19"))),"",INDIRECT(CONCATENATE($B256,"!Q19"))) ->  | AA256: =IF(ISERROR(INDIRECT(CONCATENATE($B256,"!Q20"))),"",INDIRECT(CONCATENATE($B256,"!Q20"))) ->  | AB256: =IF(ISERROR(INDIRECT(CONCATENATE($B256,"!Q21"))),"",INDIRECT(CONCATENATE($B256,"!Q1"))) -> 
E257: =IF(ISERROR(INDIRECT(CONCATENATE($B257,"!M18"))),"",INDIRECT(CONCATENATE($B257,"!M18"))) ->  | F257: =IF(ISERROR(INDIRECT(CONCATENATE($B257,"!M19"))),"",INDIRECT(CONCATENATE($B257,"!M19"))) ->  | G257: =IF(ISERROR(INDIRECT(CONCATENATE($B257,"!M20"))),"",INDIRECT(CONCATENATE($B257,"!M20"))) ->  | H257: =IF(ISERROR(INDIRECT(CONCATENATE($B257,"!M21"))),"",INDIRECT(CONCATENATE($B257,"!M21"))) ->  | J257: =IF(ISERROR(INDIRECT(CONCATENATE($B257,"!N18"))),"",INDIRECT(CONCATENATE($B257,"!N18"))) ->  | K257: =IF(ISERROR(INDIRECT(CONCATENATE($B257,"!N19"))),"",INDIRECT(CONCATENATE($B257,"!N19"))) ->  | L257: =IF(ISERROR(INDIRECT(CONCATENATE($B257,"!N20"))),"",INDIRECT(CONCATENATE($B257,"!N20"))) ->  | M257: =IF(ISERROR(INDIRECT(CONCATENATE($B257,"!N21"))),"",INDIRECT(CONCATENATE($B257,"!N21"))) ->  | O257: =IF(ISERROR(INDIRECT(CONCATENATE($B257,"!O18"))),"",INDIRECT(CONCATENATE($B257,"!O18"))) ->  | P257: =IF(ISERROR(INDIRECT(CONCATENATE($B257,"!O19"))),"",INDIRECT(CONCATENATE($B257,"!O19"))) ->  | Q257: =IF(ISERROR(INDIRECT(CONCATENATE($B257,"!O20"))),"",INDIRECT(CONCATENATE($B257,"!O20"))) ->  | R257: =IF(ISERROR(INDIRECT(CONCATENATE($B257,"!O21"))),"",INDIRECT(CONCATENATE($B257,"!O21"))) ->  | T257: =IF(ISERROR(INDIRECT(CONCATENATE($B257,"!P18"))),"",INDIRECT(CONCATENATE($B257,"!P18"))) ->  | U257: =IF(ISERROR(INDIRECT(CONCATENATE($B257,"!P19"))),"",INDIRECT(CONCATENATE($B257,"!P19"))) ->  | V257: =IF(ISERROR(INDIRECT(CONCATENATE($B257,"!P20"))),"",INDIRECT(CONCATENATE($B257,"!P20"))) ->  | W257: =IF(ISERROR(INDIRECT(CONCATENATE($B257,"!P21"))),"",INDIRECT(CONCATENATE($B257,"!P21"))) ->  | Y257: =IF(ISERROR(INDIRECT(CONCATENATE($B257,"!Q18"))),"",INDIRECT(CONCATENATE($B257,"!Q18"))) ->  | Z257: =IF(ISERROR(INDIRECT(CONCATENATE($B257,"!Q19"))),"",INDIRECT(CONCATENATE($B257,"!Q19"))) ->  | AA257: =IF(ISERROR(INDIRECT(CONCATENATE($B257,"!Q20"))),"",INDIRECT(CONCATENATE($B257,"!Q20"))) ->  | AB257: =IF(ISERROR(INDIRECT(CONCATENATE($B257,"!Q21"))),"",INDIRECT(CONCATENATE($B257,"!Q1"))) -> 
A297: RURAL | D297: Poorest | I297: Poor | N297: Middle | S297: Rich | X297: Richest
D298: Improved | E298: Basic | F298: Limited | G298: Unimproved | H298: Surface water | I298: Improved | J298: Basic | K298: Limited | L298: Unimproved | M298: Surface water | N298: Improved | O298: Basic | P298: Limited | Q298: Unimproved | R298: Surface water | S298: Improved | T298: Basic | U298: Limited | V298: Unimproved | W298: Surface water | X298: Improved | Y298: Basic | Z298: Limited | AA298: Unimproved | AB298: Surface water
A299: Forecast period: | C299: 2000 | D299: =IF((D301+H301)>100,D301*100/(D301+H301),D301) -> 41.11358189 | E299: =D299*AVERAGEIF(E305:E316,">0")/100 -> 39.13337977 | F299: =D299*(100-AVERAGEIF(E305:E316,">0"))/100 -> 1.980202123 | G299: =100-(E299+F299+H299) -> 23.08796004 | H299: =IF((D301+H301)>100,H301*100/(D301+H301),H301) -> 35.79845807 | I299: =IF((I301+M301)>100,I301*100/(I301+M301),I301) -> 37.59231706 | J299: =I299*AVERAGEIF(J305:J316,">0")/100 -> 35.50121783 | K299: =I299*(100-AVERAGEIF(J305:J316,">0"))/100 -> 2.091099229 | L299: =100-(J299+K299+M299) -> 26.80775906 | M299: =IF((I301+M301)>100,M301*100/(I301+M301),M301) -> 35.59992389 | N299: =IF((N301+R301)>100,N301*100/(N301+R301),N301) -> 51.11990539 | O299: =N299*AVERAGEIF(O305:O316,">0")/100 -> 48.66401573 | P299: =N299*(100-AVERAGEIF(O305:O316,">0"))/100 -> 2.455889658 | Q299: =100-(O299+P299+R299) -> 20.86072577 | R299: =IF((N301+R301)>100,R301*100/(N301+R301),R301) -> 28.01936884 | S299: =IF((S301+W301)>100,S301*100/(S301+W301),S301) -> 67.86625781 | T299: =S299*AVERAGEIF(T305:T316,">0")/100 -> 64.20704356 | U299: =S299*(100-AVERAGEIF(T305:T316,">0"))/100 -> 3.659214255 | V299: =100-(T299+U299+W299) -> 15.67788923 | W299: =IF((S301+W301)>100,W301*100/(S301+W301),W301) -> 16.45585296 | X299: =IF((X301+AB301)>100,X301*100/(X301+AB301),X301) -> 82.75327327 | Y299: =X299*AVERAGEIF(Y305:Y316,">0")/100 -> 77.39220881 | Z299: =X299*(100-AVERAGEIF(Y305:Y316,">0"))/100 -> 5.36106446 | AA299: =100-(Y299+Z299+AB299) -> 9.440664251 | AB299: =IF((X301+AB301)>100,AB301*100/(X301+AB301),AB301) -> 7.806062482
C300: 2020 | D300: =IF((D302+H302)>100,D302*100/(D302+H302),D302) -> 49.49511808 | E300: =D300*AVERAGEIF(E305:E316,">0")/100 -> 47.11122611 | F300: =D300*(100-AVERAGEIF(E305:E316,">0"))/100 -> 2.383891974 | G300: =100-(E300+F300+H300) -> 11.1431312 | H300: =IF((D302+H302)>100,H302*100/(D302+H302),H302) -> 39.36175072 | I300: =IF((I302+M302)>100,I302*100/(I302+M302),I302) -> 65.92548034 | J300: =I300*AVERAGEIF(J305:J316,">0")/100 -> 62.25832886 | K300: =I300*(100-AVERAGEIF(J305:J316,">0"))/100 -> 3.667151479 | L300: =100-(J300+K300+M300) -> 7.774653181 | M300: =IF((I302+M302)>100,M302*100/(I302+M302),M302) -> 26.29986648 | N300: =IF((N302+R302)>100,N302*100/(N302+R302),N302) -> 72.88400225 | O300: =N300*AVERAGEIF(O305:O316,">0")/100 -> 69.38252732 | P300: =N300*(100-AVERAGEIF(O305:O316,">0"))/100 -> 3.501474935 | Q300: =100-(O300+P300+R300) -> 7.70673108 | R300: =IF((N302+R302)>100,R302*100/(N302+R302),R302) -> 19.40926667 | S300: =IF((S302+W302)>100,S302*100/(S302+W302),S302) -> 79.1245436 | T300: =S300*AVERAGEIF(T305:T316,">0")/100 -> 74.85830486 | U300: =S300*(100-AVERAGEIF(T305:T316,">0"))/100 -> 4.266238735 | V300: =100-(T300+U300+W300) -> 7.450189897 | W300: =IF((S302+W302)>100,W302*100/(S302+W302),W302) -> 13.42526651 | X300: =IF((X302+AB302)>100,X302*100/(X302+AB302),X302) -> 89.92393739 | Y300: =X300*AVERAGEIF(Y305:Y316,">0")/100 -> 84.09833067 | Z300: =X300*(100-AVERAGEIF(Y305:Y316,">0"))/100 -> 5.82560672 | AA300: =100-(Y300+Z300+AB300) -> 4.080654585 | AB300: =IF((X302+AB302)>100,AB302*100/(X302+AB302),AB302) -> 5.995408029
A301: Regression period: | C301: =MinRegYear(C299,C305:C316) -> 2005 | D301: =IF(MAX(C305:C316)-MIN(C305:C316)<5,AVERAGEIF(C305:C316,">0",D305:D316), IF(FORECAST($C301,D$305:D$316,$C$305:$C$316)<0,0, IF(FORECAST($C301,D$305:D$316,$C$305:$C$316)>100,100, FORECAST($C301,D$305:D$316,$C$305:$C$316)))) -> 41.11358189 | H301: =IF(MAX(C305:C316)-MIN(C305:C316)<5,AVERAGEIF(C305:C316,">0",H305:H316), IF(FORECAST($C301,H$305:H$316,$C$305:$C$316)<0,0, IF(FORECAST($C301,H$305:H$316,$C$305:$C$316)>100,100, FORECAST($C301,H$305:H$316,$C$305:$C$316)))) -> 35.79845807 | I301: =IF(MAX(C305:C316)-MIN(C305:C316)<5,AVERAGEIF(C305:C316,">0",I305:I316), IF(FORECAST($C301,I$305:I$316,$C$305:$C$316)<0,0, IF(FORECAST($C301,I$305:I$316,$C$305:$C$316)>100,100, FORECAST($C301,I$305:I$316,$C$305:$C$316)))) -> 37.59231706 | M301: =IF(MAX(C305:C316)-MIN(C305:C316)<5,AVERAGEIF(C305:C316,">0",M305:M316), IF(FORECAST($C301,M$305:M$316,$C$305:$C$316)<0,0, IF(FORECAST($C301,M$305:M$316,$C$305:$C$316)>100,100, FORECAST($C301,M$305:M$316,$C$305:$C$316)))) -> 35.59992389 | N301: =IF(MAX(C305:C316)-MIN(C305:C316)<5,AVERAGEIF(C305:C316,">0",N305:N316), IF(FORECAST($C301,N$305:N$316,$C$305:$C$316)<0,0, IF(FORECAST($C301,N$305:N$316,$C$305:$C$316)>100,100, FORECAST($C301,N$305:N$316,$C$305:$C$316)))) -> 51.11990539 | R301: =IF(MAX(C305:C316)-MIN(C305:C316)<5,AVERAGEIF(C305:C316,">0",R305:R316), IF(FORECAST($C301,R$305:R$316,$C$305:$C$316)<0,0, IF(FORECAST($C301,R$305:R$316,$C$305:$C$316)>100,100, FORECAST($C301,R$305:R$316,$C$305:$C$316)))) -> 28.01936884 | S301: =IF(MAX(C305:C316)-MIN(C305:C316)<5,AVERAGEIF(C305:C316,">0",S305:S316), IF(FORECAST($C301,S$305:S$316,$C$305:$C$316)<0,0, IF(FORECAST($C301,S$305:S$316,$C$305:$C$316)>100,100, FORECAST($C301,S$305:S$316,$C$305:$C$316)))) -> 67.86625781 | W301: =IF(MAX(C305:C316)-MIN(C305:C316)<5,AVERAGEIF(C305:C316,">0",W305:W316), IF(FORECAST($C301,W$305:W$316,$C$305:$C$316)<0,0, IF(FORECAST($C301,W$305:W$316,$C$305:$C$316)>100,100, FORECAST($C301,W$305:W$316,$C$305:$C$316)))) -> 16.45585296 | X301: =IF(MAX(C305:C316)-MIN(C305:C316)<5,AVERAGEIF(C305:C316,">0",X305:X316), IF(FORECAST($C301,X$305:X$316,$C$305:$C$316)<0,0, IF(FORECAST($C301,X$305:X$316,$C$305:$C$316)>100,100, FORECAST($C301,X$305:X$316,$C$305:$C$316)))) -> 82.75327327 | AB301: =IF(MAX(C305:C316)-MIN(C305:C316)<5,AVERAGEIF(C305:C316,">0",AB305:AB316), IF(FORECAST($C301,AB$305:AB$316,$C$305:$C$316)<0,0, IF(FORECAST($C301,AB$305:AB$316,$C$305:$C$316)>100,100, FORECAST($C301,AB$305:AB$316,$C$305:$C$316)))) -> 7.806062482
C302: =MaxRegYear(C300,C305:C316) -> 2020 | D302: =IF(MAX(C305:C316)-MIN(C305:C316)<5,AVERAGEIF(C305:C316,">0",D305:D316), IF(FORECAST($C302,D$305:D$316,$C$305:$C$316)<0,0, IF(FORECAST($C302,D$305:D$316,$C$305:$C$316)>100,100, FORECAST($C302,D$305:D$316,$C$305:$C$316)))) -> 49.49511808 | H302: =IF(MAX(C305:C316)-MIN(C305:C316)<5,AVERAGEIF(C305:C316,">0",H305:H316), IF(FORECAST($C302,H$305:H$316,$C$305:$C$316)<0,0, IF(FORECAST($C302,H$305:H$316,$C$305:$C$316)>100,100, FORECAST($C302,H$305:H$316,$C$305:$C$316)))) -> 39.36175072 | I302: =IF(MAX(C305:C316)-MIN(C305:C316)<5,AVERAGEIF(C305:C316,">0",I305:I316), IF(FORECAST($C302,I$305:I$316,$C$305:$C$316)<0,0, IF(FORECAST($C302,I$305:I$316,$C$305:$C$316)>100,100, FORECAST($C302,I$305:I$316,$C$305:$C$316)))) -> 65.92548034 | M302: =IF(MAX(C305:C316)-MIN(C305:C316)<5,AVERAGEIF(C305:C316,">0",M305:M316), IF(FORECAST($C302,M$305:M$316,$C$305:$C$316)<0,0, IF(FORECAST($C302,M$305:M$316,$C$305:$C$316)>100,100, FORECAST($C302,M$305:M$316,$C$305:$C$316)))) -> 26.29986648 | N302: =IF(MAX(C305:C316)-MIN(C305:C316)<5,AVERAGEIF(C305:C316,">0",N305:N316), IF(FORECAST($C302,N$305:N$316,$C$305:$C$316)<0,0, IF(FORECAST($C302,N$305:N$316,$C$305:$C$316)>100,100, FORECAST($C302,N$305:N$316,$C$305:$C$316)))) -> 72.88400225 | R302: =IF(MAX(C305:C316)-MIN(C305:C316)<5,AVERAGEIF(C305:C316,">0",R305:R316), IF(FORECAST($C302,R$305:R$316,$C$305:$C$316)<0,0, IF(FORECAST($C302,R$305:R$316,$C$305:$C$316)>100,100, FORECAST($C302,R$305:R$316,$C$305:$C$316)))) -> 19.40926667 | S302: =IF(MAX(C305:C316)-MIN(C305:C316)<5,AVERAGEIF(C305:C316,">0",S305:S316), IF(FORECAST($C302,S$305:S$316,$C$305:$C$316)<0,0, IF(FORECAST($C302,S$305:S$316,$C$305:$C$316)>100,100, FORECAST($C302,S$305:S$316,$C$305:$C$316)))) -> 79.1245436 | W302: =IF(MAX(C305:C316)-MIN(C305:C316)<5,AVERAGEIF(C305:C316,">0",W305:W316), IF(FORECAST($C302,W$305:W$316,$C$305:$C$316)<0,0, IF(FORECAST($C302,W$305:W$316,$C$305:$C$316)>100,100, FORECAST($C302,W$305:W$316,$C$305:$C$316)))) -> 13.42526651 | X302: =IF(MAX(C305:C316)-MIN(C305:C316)<5,AVERAGEIF(C305:C316,">0",X305:X316), IF(FORECAST($C302,X$305:X$316,$C$305:$C$316)<0,0, IF(FORECAST($C302,X$305:X$316,$C$305:$C$316)>100,100, FORECAST($C302,X$305:X$316,$C$305:$C$316)))) -> 89.92393739 | AB302: =IF(MAX(C305:C316)-MIN(C305:C316)<5,AVERAGEIF(C305:C316,">0",AB305:AB316), IF(FORECAST($C302,AB$305:AB$316,$C$305:$C$316)<0,0, IF(FORECAST($C302,AB$305:AB$316,$C$305:$C$316)>100,100, FORECAST($C302,AB$305:AB$316,$C$305:$C$316)))) -> 5.995408029
B304: Survey | C304: Year | D304: Improved | E304: % Improved < = 30min | H304: Surface water | I304: Improved | J304: % Improved < = 30min | M304: Surface water | N304: Improved | O304: % Improved < = 30min | R304: Surface water | S304: Improved | T304: % Improved < = 30min | W304: Surface water | X304: Improved | Y304: % Improved < = 30min | AB304: Surface water
B305: DHS07 | C305: 2007 | D305: =IF(ISERROR(INDIRECT(CONCATENATE($B305,"!M16"))),"",INDIRECT(CONCATENATE($B305,"!M16"))) -> 43.1 | E305: =IF(ISERROR(INDIRECT(CONCATENATE($B305,"!M23"))),"",INDIRECT(CONCATENATE($B305,"!M23"))) -> 98.5 | H305: =IF(ISERROR(INDIRECT(CONCATENATE($B305,"!M21"))),"",INDIRECT(CONCATENATE($B305,"!M21"))) -> 29 | I305: =IF(ISERROR(INDIRECT(CONCATENATE($B305,"!N16"))),"",INDIRECT(CONCATENATE($B305,"!N16"))) -> 44.3 | J305: =IF(ISERROR(INDIRECT(CONCATENATE($B305,"!N23"))),"",INDIRECT(CONCATENATE($B305,"!N23"))) -> 98.1 | M305: =IF(ISERROR(INDIRECT(CONCATENATE($B305,"!N21"))),"",INDIRECT(CONCATENATE($B305,"!N21"))) -> 27.5 | N305: =IF(ISERROR(INDIRECT(CONCATENATE($B305,"!O16"))),"",INDIRECT(CONCATENATE($B305,"!O16"))) -> 53.2 | O305: =IF(ISERROR(INDIRECT(CONCATENATE($B305,"!O23"))),"",INDIRECT(CONCATENATE($B305,"!O23"))) -> 99.4 | R305: =IF(ISERROR(INDIRECT(CONCATENATE($B305,"!O21"))),"",INDIRECT(CONCATENATE($B305,"!O21"))) -> 21.2 | S305: =IF(ISERROR(INDIRECT(CONCATENATE($B305,"!P16"))),"",INDIRECT(CONCATENATE($B305,"!P16"))) -> 63.4 | T305: =IF(ISERROR(INDIRECT(CONCATENATE($B305,"!P23"))),"",INDIRECT(CONCATENATE($B305,"!P23"))) -> 98.4 | W305: =IF(ISERROR(INDIRECT(CONCATENATE($B305,"!P21"))),"",INDIRECT(CONCATENATE($B305,"!P21"))) -> 16.8 | X305: =IF(ISERROR(INDIRECT(CONCATENATE($B305,"!Q16"))),"",INDIRECT(CONCATENATE($B305,"!Q16"))) -> 76.2 | Y305: =IF(ISERROR(INDIRECT(CONCATENATE($B305,"!Q23"))),"",INDIRECT(CONCATENATE($B305,"!Q23"))) -> 96.4 | AB305: =IF(ISERROR(INDIRECT(CONCATENATE($B305,"!Q221"))),"",INDIRECT(CONCATENATE($B305,"!Q21"))) -> 6.8
B306: MIS09 | C306: 2009 | D306: 44.51515654 | E306: N/A | H306: 31.51641142 | I306: 41.47177167 | J306: N/A | M306: 33.35904199 | N306: 61.53356019 | O306: N/A | R306: 24.82597864 | S306: 78.18100612 | T306: N/A | W306: 12.78696005 | X306: 88.26820859 | Y306: N/A | AB306: 9.002654374
B307: MIS11 | C307: 2011 | D307: 44.2 | E307: 96.6 | H307: 45.5 | I307: 49.8 | J307: 94.2 | M307: 35.6 | N307: 62.4 | O307: 97.8 | R307: 24.2 | S307: 78.4 | T307: 97 | W307: 9.3 | X307: 95.5 | Y307: 98 | AB307: 2.4
B308: DHS13 | C308: 2013 | D308: 44.74216501 | E308: 91.59774809 | H308: 42.16620945 | I308: 46.12586198 | J308: 90.90143148 | M308: 38.60947598 | N308: 50.65959829 | O308: 90.70078384 | R308: 35.7412769 | S308: 61.72114442 | T308: 89.19562938 | W308: 26.69203027 | X308: 81.59652096 | Y308: 84.12282571 | AB308: 11.3997778
B309: MIS16 | C309: 2016 | D309: 43.3 | E309: 99.9 | H309: 50 | I309: 68.5 | J309: 99.5 | M309: 28.1 | N309: 72.4 | O309: 96.7 | R309: 21.9 | S309: 83.1 | T309: 98 | W309: 12.3 | X309: 89 | Y309: 99.1 | AB309: 6.9
B310: DHS20 | C310: 2020 | D310: 52.52754745 | E310: 89.32015991 | H310: 27.53555832 | I310: 62.2446361 | J310: 89.48571482 | M310: 21.9108493 | N310: 73.26950422 | O310: 91.37834171 | R310: 13.84464419 | S310: 76.92080609 | T310: 90.44536055 | W310: 11.56232897 | X310: 87.94494668 | Y310: 89.98531685 | AB310: 4.781269062
B318: =CONCATENATE("Rural use of drinking water sources, ",C299,"–",C300) -> Rural use of drinking water sources, 2000–2020 | S318: Data points used for regression

Sheet Sanitation
B4: Summary of trends in use of sanitation facilities by wealth quintile (%)
B5: =IF(ISERROR(INDIRECT(CONCATENATE($B105,"!A2"))),"",INDIRECT(CONCATENATE($B105,"!A2"))) -> Liberia
B7: =B118 -> National use of sanitation facilities, 2000–2020 | J7: =B218 -> Urban use of sanitation facilities, 2000–2020 | R7: =B318 -> Rural use of sanitation facilities, 2000–2020
B31: =IF(ISERROR(INDIRECT(CONCATENATE($B105,"!A2"))),"",INDIRECT(CONCATENATE($B105,"!A2"))) -> Liberia | F31: Poorest | J31: Poor | N31: Middle | R31: Rich | V31: Richest
F32: Basic | G32: Limited | H32: Unimproved | I32: Open defecation | J32: Basic | K32: Limited | L32: Unimproved | M32: Open defecation | N32: Basic | O32: Limited | P32: Unimproved | Q32: Open defecation | R32: Basic | S32: Limited | T32: Unimproved | U32: Open defecation | V32: Basic | W32: Limited | X32: Unimproved | Y32: Open defecation
B33: NATIONAL | D33: Estimate | E33: =C99 -> 2000 | F33: =E99 -> 1.495052442 | G33: =F99 -> 9.425900956 | H33: 6.590972709 | I33: 82.48807389 | J33: =J99 -> 3.456808267 | K33: =K99 -> 12.83336316 | L33: 11.82554625 | M33: 71.88428232 | N33: =O99 -> 5.668468478 | O33: =P99 -> 20.51894664 | P33: 15.57384146 | Q33: 58.23874342 | R33: =T99 -> 10.8396998 | S33: =U99 -> 26.01526899 | T33: 27.24781487 | U33: 35.89721634 | V33: =Y99 -> 41.23557076 | W33: =Z99 -> 22.22804962 | X33: 23.34312464 | Y33: 13.19325498
E34: =C100 -> 2020 | F34: =E100 -> 1.942155662 | G34: 12.24476573 | H34: 17.32011153 | I34: 68.49296707 | J34: =J100 -> 4.939618939 | K34: 18.33828168 | L34: 20.26733138 | M34: 56.454768 | N34: =O100 -> 10.05579566 | O34: 36.40036729 | P34: 24.63555365 | Q34: 28.9082834 | R34: =T100 -> 22.2790935 | S34: 53.46980277 | T34: 17.42241617 | U34: 6.828687563 | V34: =Y100 -> 58.80248472 | W34: 31.69750107 | X34: 6.904974664 | Y34: 2.595039547
B36: URBAN | D36: Estimate | E36: =C199 -> 2000 | F36: =E199 -> 5.359815339 | G36: =F199 -> 20.85868228 | H36: 28.07136797 | I36: 45.7101344 | J36: =J199 -> 8.335665214 | K36: =K199 -> 28.93923562 | L36: 26.93354475 | M36: 35.79155442 | N36: =O199 -> 12.88684973 | O36: =P199 -> 31.24943638 | P36: 29.19155194 | Q36: 26.67216195 | R36: =T199 -> 24.86397905 | S36: =U199 -> 30.82169711 | T36: 27.38617303 | U36: 16.92815081 | V36: =Y199 -> 59.7848332 | W36: =Z199 -> 17.03217651 | X36: 16.3861187 | Y36: 6.796871592
E37: =C200 -> 2020 | F37: =E200 -> 6.017381549 | G37: 23.41771907 | H37: 21.61283707 | I37: 48.95206232 | J37: =J200 -> 13.99436642 | K37: 48.58475681 | L37: 20.33696346 | M37: 17.0839133 | N37: =O200 -> 21.94998502 | O37: 53.22671364 | P37: 17.1867422 | Q37: 7.636559147 | R37: =T200 -> 37.06143465 | S37: 45.94181451 | T37: 13.20042645 | U37: 3.796324384 | V37: =Y200 -> 74.08600313 | W37: 21.10645485 | X37: 4.195266901 | Y37: 0.6122751228
B39: RURAL | D39: Estimate | E39: =C299 -> 2000 | F39: =E299 -> 1.444325321 | G39: =F299 -> 10.3978318 | H39: 4.884215123 | I39: 83.27362776 | J39: =J299 -> 1.483506252 | K39: =K299 -> 8.320543998 | L39: 7.586715572 | M39: 82.60923418 | N39: =O299 -> 3.094315872 | O39: =P299 -> 16.10241012 | P39: 10.68890603 | Q39: 70.11436798 | R39: =T299 -> 6.149856832 | S39: =U299 -> 17.53912595 | T39: 9.457856081 | U39: 66.85316113 | V39: =Y299 -> 14.63297353 | W39: =Z299 -> 25.05963343 | X39: 18.62761775 | Y39: 41.67977529
E40: =C300 -> 2020 | F40: =E300 -> 1.510501935 | G40: 10.87424337 | H40: 17.75579968 | I40: 69.85945501 | J40: =J300 -> 2.478931969 | K40: 13.90358988 | L40: 13.30054549 | M40: 70.31693266 | N40: =O300 -> 2.666517713 | O40: 13.87620514 | P40: 18.0338676 | Q40: 65.42340954 | R40: =T300 -> 6.094433796 | S40: 17.38106185 | T40: 22.44268673 | U40: 54.08181762 | V40: =Y300 -> 13.45311696 | W40: 23.03907532 | X40: 22.17702075 | Y40: 41.33078697
A97: NATIONAL | D97: Poorest | I97: Poor | N97: Middle | S97: Rich | X97: Richest
D98: Improved | E98: Basic | F98: Limited | G98: Unimproved | H98: Open defecation | I98: Improved | J98: Basic | K98: Limited | L98: Unimproved | M98: Open defecation | N98: Improved | O98: Basic | P98: Limited | Q98: Unimproved | R98: Open defecation | S98: Improved | T98: Basic | U98: Limited | V98: Unimproved | W98: Open defecation | X98: Improved | Y98: Basic | Z98: Limited | AA98: Unimproved | AB98: Open defecation
A99: Forecast period: | C99: 2000 | D99: =IF((D101+H101)>100,D101*100/(D101+H101),D101) -> 10.9209534 | E99: =D99*AVERAGEIF(E105:E116,">0")/100 -> 1.495052442 | F99: =D99*(100-AVERAGEIF(E105:E116,">0"))/100 -> 9.425900956 | G99: =100-(E99+F99+H99) -> 6.590972709 | H99: =IF((D101+H101)>100,H101*100/(D101+H101),H101) -> 82.48807389 | I99: =IF((I101+M101)>100,I101*100/(I101+M101),I101) -> 16.29017142 | J99: =I99*AVERAGEIF(J105:J116,">0")/100 -> 3.456808267 | K99: =I99*(100-AVERAGEIF(J105:J116,">0"))/100 -> 12.83336316 | L99: =100-(J99+K99+M99) -> 11.82554625 | M99: =IF((I101+M101)>100,M101*100/(I101+M101),M101) -> 71.88428232 | N99: =IF((N101+R101)>100,N101*100/(N101+R101),N101) -> 26.18741512 | O99: =N99*AVERAGEIF(O105:O116,">0")/100 -> 5.668468478 | P99: =N99*(100-AVERAGEIF(O105:O116,">0"))/100 -> 20.51894664 | Q99: =100-(O99+P99+R99) -> 15.57384146 | R99: =IF((N101+R101)>100,R101*100/(N101+R101),R101) -> 58.23874342 | S99: =IF((S101+W101)>100,S101*100/(S101+W101),S101) -> 36.85496879 | T99: =S99*AVERAGEIF(T105:T116,">0")/100 -> 10.8396998 | U99: =S99*(100-AVERAGEIF(T105:T116,">0"))/100 -> 26.01526899 | V99: =100-(T99+U99+W99) -> 27.24781487 | W99: =IF((S101+W101)>100,W101*100/(S101+W101),W101) -> 35.89721634 | X99: =IF((X101+AB101)>100,X101*100/(X101+AB101),X101) -> 63.46362038 | Y99: =X99*AVERAGEIF(Y105:Y116,">0")/100 -> 41.23557076 | Z99: =X99*(100-AVERAGEIF(Y105:Y116,">0"))/100 -> 22.22804962 | AA99: =100-(Y99+Z99+AB99) -> 23.34312464 | AB99: =IF((X101+AB101)>100,AB101*100/(X101+AB101),AB101) -> 13.19325498
C100: 2020 | D100: =IF((D102+H102)>100,D102*100/(D102+H102),D102) -> 14.1869214 | E100: =D100*AVERAGEIF(E105:E116,">0")/100 -> 1.942155662 | F100: =D100*(100-AVERAGEIF(E105:E116,">0"))/100 -> 12.24476573 | G100: =100-(E100+F100+H100) -> 17.32011153 | H100: =IF((D102+H102)>100,H102*100/(D102+H102),H102) -> 68.49296707 | I100: =IF((I102+M102)>100,I102*100/(I102+M102),I102) -> 23.27790062 | J100: =I100*AVERAGEIF(J105:J116,">0")/100 -> 4.939618939 | K100: =I100*(100-AVERAGEIF(J105:J116,">0"))/100 -> 18.33828168 | L100: =100-(J100+K100+M100) -> 20.26733138 | M100: =IF((I102+M102)>100,M102*100/(I102+M102),M102) -> 56.454768 | N100: =IF((N102+R102)>100,N102*100/(N102+R102),N102) -> 46.45616294 | O100: =N100*AVERAGEIF(O105:O116,">0")/100 -> 10.05579566 | P100: =N100*(100-AVERAGEIF(O105:O116,">0"))/100 -> 36.40036729 | Q100: =100-(O100+P100+R100) -> 24.63555365 | R100: =IF((N102+R102)>100,R102*100/(N102+R102),R102) -> 28.9082834 | S100: =IF((S102+W102)>100,S102*100/(S102+W102),S102) -> 75.74889627 | T100: =S100*AVERAGEIF(T105:T116,">0")/100 -> 22.2790935 | U100: =S100*(100-AVERAGEIF(T105:T116,">0"))/100 -> 53.46980277 | V100: =100-(T100+U100+W100) -> 17.42241617 | W100: =IF((S102+W102)>100,W102*100/(S102+W102),W102) -> 6.828687563 | X100: =IF((X102+AB102)>100,X102*100/(X102+AB102),X102) -> 90.49998579 | Y100: =X100*AVERAGEIF(Y105:Y116,">0")/100 -> 58.80248472 | Z100: =X100*(100-AVERAGEIF(Y105:Y116,">0"))/100 -> 31.69750107 | AA100: =100-(Y100+Z100+AB100) -> 6.904974664 | AB100: =IF((X102+AB102)>100,AB102*100/(X102+AB102),AB102) -> 2.595039547
A101: Regression period: | C101: =MinRegYear(C99,C105:C116) -> 2005 | D101: =IF(MAX(C105:C116)-MIN(C105:C116)<5,AVERAGEIF(C105:C116,">0",D105:D116), IF(FORECAST($C101,D$105:D$116,$C$105:$C$116)<0,0, IF(FORECAST($C101,D$105:D$116,$C$105:$C$116)>100,100, FORECAST($C101,D$105:D$116,$C$105:$C$116)))) -> 10.9209534 | H101: =IF(MAX(C105:C116)-MIN(C105:C116)<5,AVERAGEIF(C105:C116,">0",H105:H116), IF(FORECAST($C101,H$105:H$116,$C$105:$C$116)<0,0, IF(FORECAST($C101,H$105:H$116,$C$105:$C$116)>100,100, FORECAST($C101,H$105:H$116,$C$105:$C$116)))) -> 82.48807389 | I101: =IF(MAX(C105:C116)-MIN(C105:C116)<5,AVERAGEIF(C105:C116,">0",I105:I116), IF(FORECAST($C101,I$105:I$116,$C$105:$C$116)<0,0, IF(FORECAST($C101,I$105:I$116,$C$105:$C$116)>100,100, FORECAST($C101,I$105:I$116,$C$105:$C$116)))) -> 16.29017142 | M101: =IF(MAX(C105:C116)-MIN(C105:C116)<5,AVERAGEIF(C105:C116,">0",M105:M116), IF(FORECAST($C101,M$105:M$116,$C$105:$C$116)<0,0, IF(FORECAST($C101,M$105:M$116,$C$105:$C$116)>100,100, FORECAST($C101,M$105:M$116,$C$105:$C$116)))) -> 71.88428232 | N101: =IF(MAX(C105:C116)-MIN(C105:C116)<5,AVERAGEIF(C105:C116,">0",N105:N116), IF(FORECAST($C101,N$105:N$116,$C$105:$C$116)<0,0, IF(FORECAST($C101,N$105:N$116,$C$105:$C$116)>100,100, FORECAST($C101,N$105:N$116,$C$105:$C$116)))) -> 26.18741512 | R101: =IF(MAX(C105:C116)-MIN(C105:C116)<5,AVERAGEIF(C105:C116,">0",R105:R116), IF(FORECAST($C101,R$105:R$116,$C$105:$C$116)<0,0, IF(FORECAST($C101,R$105:R$116,$C$105:$C$116)>100,100, FORECAST($C101,R$105:R$116,$C$105:$C$116)))) -> 58.23874342 | S101: =IF(MAX(C105:C116)-MIN(C105:C116)<5,AVERAGEIF(C105:C116,">0",S105:S116), IF(FORECAST($C101,S$105:S$116,$C$105:$C$116)<0,0, IF(FORECAST($C101,S$105:S$116,$C$105:$C$116)>100,100, FORECAST($C101,S$105:S$116,$C$105:$C$116)))) -> 36.85496879 | W101: =IF(MAX(C105:C116)-MIN(C105:C116)<5,AVERAGEIF(C105:C116,">0",W105:W116), IF(FORECAST($C101,W$105:W$116,$C$105:$C$116)<0,0, IF(FORECAST($C101,W$105:W$116,$C$105:$C$116)>100,100, FORECAST($C101,W$105:W$116,$C$105:$C$116)))) -> 35.89721634 | X101: =IF(MAX(C105:C116)-MIN(C105:C116)<5,AVERAGEIF(C105:C116,">0",X105:X116), IF(FORECAST($C101,X$105:X$116,$C$105:$C$116)<0,0, IF(FORECAST($C101,X$105:X$116,$C$105:$C$116)>100,100, FORECAST($C101,X$105:X$116,$C$105:$C$116)))) -> 63.46362038 | AB101: =IF(MAX(C105:C116)-MIN(C105:C116)<5,AVERAGEIF(C105:C116,">0",AB105:AB116), IF(FORECAST($C101,AB$105:AB$116,$C$105:$C$116)<0,0, IF(FORECAST($C101,AB$105:AB$116,$C$105:$C$116)>100,100, FORECAST($C101,AB$105:AB$116,$C$105:$C$116)))) -> 13.19325498
C102: =MaxRegYear(C100,C105:C116) -> 2020 | D102: =IF(MAX(C105:C116)-MIN(C105:C116)<5,AVERAGEIF(C105:C116,">0",D105:D116), IF(FORECAST($C102,D$105:D$116,$C$105:$C$116)<0,0, IF(FORECAST($C102,D$105:D$116,$C$105:$C$116)>100,100, FORECAST($C102,D$105:D$116,$C$105:$C$116)))) -> 14.1869214 | H102: =IF(MAX(C105:C116)-MIN(C105:C116)<5,AVERAGEIF(C105:C116,">0",H105:H116), IF(FORECAST($C102,H$105:H$116,$C$105:$C$116)<0,0, IF(FORECAST($C102,H$105:H$116,$C$105:$C$116)>100,100, FORECAST($C102,H$105:H$116,$C$105:$C$116)))) -> 68.49296707 | I102: =IF(MAX(C105:C116)-MIN(C105:C116)<5,AVERAGEIF(C105:C116,">0",I105:I116), IF(FORECAST($C102,I$105:I$116,$C$105:$C$116)<0,0, IF(FORECAST($C102,I$105:I$116,$C$105:$C$116)>100,100, FORECAST($C102,I$105:I$116,$C$105:$C$116)))) -> 23.27790062 | M102: =IF(MAX(C105:C116)-MIN(C105:C116)<5,AVERAGEIF(C105:C116,">0",M105:M116), IF(FORECAST($C102,M$105:M$116,$C$105:$C$116)<0,0, IF(FORECAST($C102,M$105:M$116,$C$105:$C$116)>100,100, FORECAST($C102,M$105:M$116,$C$105:$C$116)))) -> 56.454768 | N102: =IF(MAX(C105:C116)-MIN(C105:C116)<5,AVERAGEIF(C105:C116,">0",N105:N116), IF(FORECAST($C102,N$105:N$116,$C$105:$C$116)<0,0, IF(FORECAST($C102,N$105:N$116,$C$105:$C$116)>100,100, FORECAST($C102,N$105:N$116,$C$105:$C$116)))) -> 46.45616294 | R102: =IF(MAX(C105:C116)-MIN(C105:C116)<5,AVERAGEIF(C105:C116,">0",R105:R116), IF(FORECAST($C102,R$105:R$116,$C$105:$C$116)<0,0, IF(FORECAST($C102,R$105:R$116,$C$105:$C$116)>100,100, FORECAST($C102,R$105:R$116,$C$105:$C$116)))) -> 28.9082834 | S102: =IF(MAX(C105:C116)-MIN(C105:C116)<5,AVERAGEIF(C105:C116,">0",S105:S116), IF(FORECAST($C102,S$105:S$116,$C$105:$C$116)<0,0, IF(FORECAST($C102,S$105:S$116,$C$105:$C$116)>100,100, FORECAST($C102,S$105:S$116,$C$105:$C$116)))) -> 75.74889627 | W102: =IF(MAX(C105:C116)-MIN(C105:C116)<5,AVERAGEIF(C105:C116,">0",W105:W116), IF(FORECAST($C102,W$105:W$116,$C$105:$C$116)<0,0, IF(FORECAST($C102,W$105:W$116,$C$105:$C$116)>100,100, FORECAST($C102,W$105:W$116,$C$105:$C$116)))) -> 6.828687563 | X102: =IF(MAX(C105:C116)-MIN(C105:C116)<5,AVERAGEIF(C105:C116,">0",X105:X116), IF(FORECAST($C102,X$105:X$116,$C$105:$C$116)<0,0, IF(FORECAST($C102,X$105:X$116,$C$105:$C$116)>100,100, FORECAST($C102,X$105:X$116,$C$105:$C$116)))) -> 90.49998579 | AB102: =IF(MAX(C105:C116)-MIN(C105:C116)<5,AVERAGEIF(C105:C116,">0",AB105:AB116), IF(FORECAST($C102,AB$105:AB$116,$C$105:$C$116)<0,0, IF(FORECAST($C102,AB$105:AB$116,$C$105:$C$116)>100,100, FORECAST($C102,AB$105:AB$116,$C$105:$C$116)))) -> 2.595039547
B104: Survey | C104: Year | D104: Improved | E104: Not shared | H104: Open defecation | I104: Improved | J104: Not shared | M104: Open defecation | N104: Improved | O104: Not shared | R104: Open defecation | S104: Improved | T104: Not shared | W104: Open defecation | X104: Improved | Y104: Not shared | AB104: Open defecation
B105: DHS07 | C105: 2007 | D105: =IF(ISERROR(INDIRECT(CONCATENATE($B105,"!C122"))),"",INDIRECT(CONCATENATE($B105,"!C122"))) -> 9.178021266 | E105: =IF(ISERROR(INDIRECT(CONCATENATE($B105,"!C129"))),"",INDIRECT(CONCATENATE($B105,"!C129"))) -> 5.07783498 | H105: =IF(ISERROR(INDIRECT(CONCATENATE($B105,"!C127"))),"",INDIRECT(CONCATENATE($B105,"!C127"))) -> 82.05414848 | I105: =IF(ISERROR(INDIRECT(CONCATENATE($B105,"!D122"))),"",INDIRECT(CONCATENATE($B105,"!D122"))) -> 11.54541404 | J105: =IF(ISERROR(INDIRECT(CONCATENATE($B105,"!D129"))),"",INDIRECT(CONCATENATE($B105,"!D129"))) -> 9.335225622 | M105: =IF(ISERROR(INDIRECT(CONCATENATE($B105,"!D127"))),"",INDIRECT(CONCATENATE($B105,"!D127"))) -> 73.83263342 | N105: =IF(ISERROR(INDIRECT(CONCATENATE($B105,"!E122"))),"",INDIRECT(CONCATENATE($B105,"!E122"))) -> 21.12154753 | O105: =IF(ISERROR(INDIRECT(CONCATENATE($B105,"!E129"))),"",INDIRECT(CONCATENATE($B105,"!E129"))) -> 13.79000492 | R105: =IF(ISERROR(INDIRECT(CONCATENATE($B105,"!E127"))),"",INDIRECT(CONCATENATE($B105,"!E127"))) -> 62.40944555 | S105: =IF(ISERROR(INDIRECT(CONCATENATE($B105,"!F122"))),"",INDIRECT(CONCATENATE($B105,"!F122"))) -> 34.10143536 | T105: =IF(ISERROR(INDIRECT(CONCATENATE($B105,"!F129"))),"",INDIRECT(CONCATENATE($B105,"!F129"))) -> 28.57579965 | W105: =IF(ISERROR(INDIRECT(CONCATENATE($B105,"!F127"))),"",INDIRECT(CONCATENATE($B105,"!F127"))) -> 40.8081077 | X105: =IF(ISERROR(INDIRECT(CONCATENATE($B105,"!G122"))),"",INDIRECT(CONCATENATE($B105,"!G122"))) -> 65.72661058 | Y105: =IF(ISERROR(INDIRECT(CONCATENATE($B105,"!G129"))),"",INDIRECT(CONCATENATE($B105,"!G129"))) -> 64.56608594 | AB105: =IF(ISERROR(INDIRECT(CONCATENATE($B105,"!G2127"))),"",INDIRECT(CONCATENATE($B105,"!G127"))) -> 14.49109521
B106: MIS09 | C106: 2009 | D106: 14.15310912 | E106: N/A | H106: 79.50037922 | I106: 32.62476077 | J106: N/A | M106: 60.10164299 | N106: 44.3654672 | O106: N/A | R106: 43.57456972 | S106: 56.03855317 | T106: N/A | W106: 24.29766491 | X106: 72.06429684 | Y106: N/A | AB106: 8.562742901
B107: MIS11 | C107: 2011 | D107: 10.45970802 | E107: 11.21869517 | H107: 73.08342255 | I107: 11.38775867 | J107: 16.66477804 | M107: 63.5902555 | N107: 28.72366413 | O107: 10.56709324 | R107: 39.19536809 | S107: 46.74936913 | T107: 17.19123533 | W107: 19.51276722 | X107: 71.10559249 | Y107: 55.15403868 | AB107: 8.18817398
B108: DHS13 | C108: 2013 | D108: 14.73458967 | E108: 16.66673856 | H108: 77.64918681 | I108: 18.47126469 | J108: 17.42240593 | M108: 73.6700942 | N108: 39.35692294 | O108: 20.69140068 | R108: 47.97180535 | S108: 59.84721026 | T108: 26.98910543 | W108: 18.39701572 | X108: 78.25020681 | Y108: 70.03912992 | AB108: 7.42010683
B109: MIS16 | C109: 2016 | D109: 14.25394041 | E109: 16.61777174 | H109: 69.49461095 | I109: 20.09155004 | J109: 30.26413639 | M109: 55.88726884 | N109: 39.5786345 | O109: 25.44061221 | R109: 36.32479124 | S109: 75.75426799 | T109: 27.26715424 | W109: 10.80344003 | X109: 90.32184262 | Y109: 66.30903337 | AB109: 3.506953043
B110: DHS20 | C110: 2020 | D110: 12.7619871 | E110: 18.86776559 | H110: 70.22836776 | I110: 25.04931653 | J110: 32.41449423 | M110: 56.90662173 | N110: 46.13574775 | O110: 37.73975483 | R110: 30.00973652 | S110: 67.91368778 | T110: 47.03557089 | W110: 12.42081421 | X110: 86.22469351 | Y110: 68.80736931 | AB110: 4.489263932
B118: =CONCATENATE("National use of sanitation facilities, ",C99,"–",C100) -> National use of sanitation facilities, 2000–2020 | S118: Data points used for regression
A197: URBAN | D197: Poorest | I197: Poor | N197: Middle | S197: Rich | X197: Richest
D198: Improved | E198: Basic | F198: Limited | G198: Unimproved | H198: Open defecation | I198: Improved | J198: Basic | K198: Limited | L198: Unimproved | M198: Open defecation | N198: Improved | O198: Basic | P198: Limited | Q198: Unimproved | R198: Open defecation | S198: Improved | T198: Basic | U198: Limited | V198: Unimproved | W198: Open defecation | X198: Improved | Y198: Basic | Z198: Limited | AA198: Unimproved | AB198: Open defecation
A199: Forecast period: | C199: 2000 | D199: =IF((D201+H201)>100,D201*100/(D201+H201),D201) -> 26.21849762 | E199: =D199*AVERAGEIF(E205:E216,">0")/100 -> 5.359815339 | F199: =D199*(100-AVERAGEIF(E205:E216,">0"))/100 -> 20.85868228 | G199: =100-(E199+F199+H199) -> 28.07136797 | H199: =IF((D201+H201)>100,H201*100/(D201+H201),H201) -> 45.7101344 | I199: =IF((I201+M201)>100,I201*100/(I201+M201),I201) -> 37.27490083 | J199: =I199*AVERAGEIF(J205:J216,">0")/100 -> 8.335665214 | K199: =I199*(100-AVERAGEIF(J205:J216,">0"))/100 -> 28.93923562 | L199: =100-(J199+K199+M199) -> 26.93354475 | M199: =IF((I201+M201)>100,M201*100/(I201+M201),M201) -> 35.79155442 | N199: =IF((N201+R201)>100,N201*100/(N201+R201),N201) -> 44.13628612 | O199: =N199*AVERAGEIF(O205:O216,">0")/100 -> 12.88684973 | P199: =N199*(100-AVERAGEIF(O205:O216,">0"))/100 -> 31.24943638 | Q199: =100-(O199+P199+R199) -> 29.19155194 | R199: =IF((N201+R201)>100,R201*100/(N201+R201),R201) -> 26.67216195 | S199: =IF((S201+W201)>100,S201*100/(S201+W201),S201) -> 55.68567616 | T199: =S199*AVERAGEIF(T205:T216,">0")/100 -> 24.86397905 | U199: =S199*(100-AVERAGEIF(T205:T216,">0"))/100 -> 30.82169711 | V199: =100-(T199+U199+W199) -> 27.38617303 | W199: =IF((S201+W201)>100,W201*100/(S201+W201),W201) -> 16.92815081 | X199: =IF((X201+AB201)>100,X201*100/(X201+AB201),X201) -> 76.81700971 | Y199: =X199*AVERAGEIF(Y205:Y216,">0")/100 -> 59.7848332 | Z199: =X199*(100-AVERAGEIF(Y205:Y216,">0"))/100 -> 17.03217651 | AA199: =100-(Y199+Z199+AB199) -> 16.3861187 | AB199: =IF((X201+AB201)>100,AB201*100/(X201+AB201),AB201) -> 6.796871592
C200: 2020 | D200: =IF((D202+H202)>100,D202*100/(D202+H202),D202) -> 29.43510062 | E200: =D200*AVERAGEIF(E205:E216,">0")/100 -> 6.017381549 | F200: =D200*(100-AVERAGEIF(E205:E216,">0"))/100 -> 23.41771907 | G200: =100-(E200+F200+H200) -> 21.61283707 | H200: =IF((D202+H202)>100,H202*100/(D202+H202),H202) -> 48.95206232 | I200: =IF((I202+M202)>100,I202*100/(I202+M202),I202) -> 62.57912324 | J200: =I200*AVERAGEIF(J205:J216,">0")/100 -> 13.99436642 | K200: =I200*(100-AVERAGEIF(J205:J216,">0"))/100 -> 48.58475681 | L200: =100-(J200+K200+M200) -> 20.33696346 | M200: =IF((I202+M202)>100,M202*100/(I202+M202),M202) -> 17.0839133 | N200: =IF((N202+R202)>100,N202*100/(N202+R202),N202) -> 75.17669866 | O200: =N200*AVERAGEIF(O205:O216,">0")/100 -> 21.94998502 | P200: =N200*(100-AVERAGEIF(O205:O216,">0"))/100 -> 53.22671364 | Q200: =100-(O200+P200+R200) -> 17.1867422 | R200: =IF((N202+R202)>100,R202*100/(N202+R202),R202) -> 7.636559147 | S200: =IF((S202+W202)>100,S202*100/(S202+W202),S202) -> 83.00324916 | T200: =S200*AVERAGEIF(T205:T216,">0")/100 -> 37.06143465 | U200: =S200*(100-AVERAGEIF(T205:T216,">0"))/100 -> 45.94181451 | V200: =100-(T200+U200+W200) -> 13.20042645 | W200: =IF((S202+W202)>100,W202*100/(S202+W202),W202) -> 3.796324384 | X200: =IF((X202+AB202)>100,X202*100/(X202+AB202),X202) -> 95.19245798 | Y200: =X200*AVERAGEIF(Y205:Y216,">0")/100 -> 74.08600313 | Z200: =X200*(100-AVERAGEIF(Y205:Y216,">0"))/100 -> 21.10645485 | AA200: =100-(Y200+Z200+AB200) -> 4.195266901 | AB200: =IF((X202+AB202)>100,AB202*100/(X202+AB202),AB202) -> 0.6122751228
A201: Regression period: | C201: =MinRegYear(C199,C205:C216) -> 2005 | D201: =IF(MAX(C205:C216)-MIN(C205:C216)<5,AVERAGEIF(C205:C216,">0",D205:D216), IF(FORECAST($C201,D$205:D$216,$C$205:$C$216)<0,0, IF(FORECAST($C201,D$205:D$216,$C$205:$C$216)>100,100, FORECAST($C201,D$205:D$216,$C$205:$C$216)))) -> 26.21849762 | H201: =IF(MAX(C205:C216)-MIN(C205:C216)<5,AVERAGEIF(C205:C216,">0",H205:H216), IF(FORECAST($C201,H$205:H$216,$C$205:$C$216)<0,0, IF(FORECAST($C201,H$205:H$216,$C$205:$C$216)>100,100, FORECAST($C201,H$205:H$216,$C$205:$C$216)))) -> 45.7101344 | I201: =IF(MAX(C205:C216)-MIN(C205:C216)<5,AVERAGEIF(C205:C216,">0",I205:I216), IF(FORECAST($C201,I$205:I$216,$C$205:$C$216)<0,0, IF(FORECAST($C201,I$205:I$216,$C$205:$C$216)>100,100, FORECAST($C201,I$205:I$216,$C$205:$C$216)))) -> 37.27490083 | M201: =IF(MAX(C205:C216)-MIN(C205:C216)<5,AVERAGEIF(C205:C216,">0",M205:M216), IF(FORECAST($C201,M$205:M$216,$C$205:$C$216)<0,0, IF(FORECAST($C201,M$205:M$216,$C$205:$C$216)>100,100, FORECAST($C201,M$205:M$216,$C$205:$C$216)))) -> 35.79155442 | N201: =IF(MAX(C205:C216)-MIN(C205:C216)<5,AVERAGEIF(C205:C216,">0",N205:N216), IF(FORECAST($C201,N$205:N$216,$C$205:$C$216)<0,0, IF(FORECAST($C201,N$205:N$216,$C$205:$C$216)>100,100, FORECAST($C201,N$205:N$216,$C$205:$C$216)))) -> 44.13628612 | R201: =IF(MAX(C205:C216)-MIN(C205:C216)<5,AVERAGEIF(C205:C216,">0",R205:R216), IF(FORECAST($C201,R$205:R$216,$C$205:$C$216)<0,0, IF(FORECAST($C201,R$205:R$216,$C$205:$C$216)>100,100, FORECAST($C201,R$205:R$216,$C$205:$C$216)))) -> 26.67216195 | S201: =IF(MAX(C205:C216)-MIN(C205:C216)<5,AVERAGEIF(C205:C216,">0",S205:S216), IF(FORECAST($C201,S$205:S$216,$C$205:$C$216)<0,0, IF(FORECAST($C201,S$205:S$216,$C$205:$C$216)>100,100, FORECAST($C201,S$205:S$216,$C$205:$C$216)))) -> 55.68567616 | W201: =IF(MAX(C205:C216)-MIN(C205:C216)<5,AVERAGEIF(C205:C216,">0",W205:W216), IF(FORECAST($C201,W$205:W$216,$C$205:$C$216)<0,0, IF(FORECAST($C201,W$205:W$216,$C$205:$C$216)>100,100, FORECAST($C201,W$205:W$216,$C$205:$C$216)))) -> 16.92815081 | X201: =IF(MAX(C205:C216)-MIN(C205:C216)<5,AVERAGEIF(C205:C216,">0",X205:X216), IF(FORECAST($C201,X$205:X$216,$C$205:$C$216)<0,0, IF(FORECAST($C201,X$205:X$216,$C$205:$C$216)>100,100, FORECAST($C201,X$205:X$216,$C$205:$C$216)))) -> 76.81700971 | AB201: =IF(MAX(C205:C216)-MIN(C205:C216)<5,AVERAGEIF(C205:C216,">0",AB205:AB216), IF(FORECAST($C201,AB$205:AB$216,$C$205:$C$216)<0,0, IF(FORECAST($C201,AB$205:AB$216,$C$205:$C$216)>100,100, FORECAST($C201,AB$205:AB$216,$C$205:$C$216)))) -> 6.796871592
C202: =MaxRegYear(C200,C205:C216) -> 2020 | D202: =IF(MAX(C205:C216)-MIN(C205:C216)<5,AVERAGEIF(C205:C216,">0",D205:D216), IF(FORECAST($C202,D$205:D$216,$C$205:$C$216)<0,0, IF(FORECAST($C202,D$205:D$216,$C$205:$C$216)>100,100, FORECAST($C202,D$205:D$216,$C$205:$C$216)))) -> 29.43510062 | H202: =IF(MAX(C205:C216)-MIN(C205:C216)<5,AVERAGEIF(C205:C216,">0",H205:H216), IF(FORECAST($C202,H$205:H$216,$C$205:$C$216)<0,0, IF(FORECAST($C202,H$205:H$216,$C$205:$C$216)>100,100, FORECAST($C202,H$205:H$216,$C$205:$C$216)))) -> 48.95206232 | I202: =IF(MAX(C205:C216)-MIN(C205:C216)<5,AVERAGEIF(C205:C216,">0",I205:I216), IF(FORECAST($C202,I$205:I$216,$C$205:$C$216)<0,0, IF(FORECAST($C202,I$205:I$216,$C$205:$C$216)>100,100, FORECAST($C202,I$205:I$216,$C$205:$C$216)))) -> 62.57912324 | M202: =IF(MAX(C205:C216)-MIN(C205:C216)<5,AVERAGEIF(C205:C216,">0",M205:M216), IF(FORECAST($C202,M$205:M$216,$C$205:$C$216)<0,0, IF(FORECAST($C202,M$205:M$216,$C$205:$C$216)>100,100, FORECAST($C202,M$205:M$216,$C$205:$C$216)))) -> 17.0839133 | N202: =IF(MAX(C205:C216)-MIN(C205:C216)<5,AVERAGEIF(C205:C216,">0",N205:N216), IF(FORECAST($C202,N$205:N$216,$C$205:$C$216)<0,0, IF(FORECAST($C202,N$205:N$216,$C$205:$C$216)>100,100, FORECAST($C202,N$205:N$216,$C$205:$C$216)))) -> 75.17669866 | R202: =IF(MAX(C205:C216)-MIN(C205:C216)<5,AVERAGEIF(C205:C216,">0",R205:R216), IF(FORECAST($C202,R$205:R$216,$C$205:$C$216)<0,0, IF(FORECAST($C202,R$205:R$216,$C$205:$C$216)>100,100, FORECAST($C202,R$205:R$216,$C$205:$C$216)))) -> 7.636559147 | S202: =IF(MAX(C205:C216)-MIN(C205:C216)<5,AVERAGEIF(C205:C216,">0",S205:S216), IF(FORECAST($C202,S$205:S$216,$C$205:$C$216)<0,0, IF(FORECAST($C202,S$205:S$216,$C$205:$C$216)>100,100, FORECAST($C202,S$205:S$216,$C$205:$C$216)))) -> 83.00324916 | W202: =IF(MAX(C205:C216)-MIN(C205:C216)<5,AVERAGEIF(C205:C216,">0",W205:W216), IF(FORECAST($C202,W$205:W$216,$C$205:$C$216)<0,0, IF(FORECAST($C202,W$205:W$216,$C$205:$C$216)>100,100, FORECAST($C202,W$205:W$216,$C$205:$C$216)))) -> 3.796324384 | X202: =IF(MAX(C205:C216)-MIN(C205:C216)<5,AVERAGEIF(C205:C216,">0",X205:X216), IF(FORECAST($C202,X$205:X$216,$C$205:$C$216)<0,0, IF(FORECAST($C202,X$205:X$216,$C$205:$C$216)>100,100, FORECAST($C202,X$205:X$216,$C$205:$C$216)))) -> 95.19245798 | AB202: =IF(MAX(C205:C216)-MIN(C205:C216)<5,AVERAGEIF(C205:C216,">0",AB205:AB216), IF(FORECAST($C202,AB$205:AB$216,$C$205:$C$216)<0,0, IF(FORECAST($C202,AB$205:AB$216,$C$205:$C$216)>100,100, FORECAST($C202,AB$205:AB$216,$C$205:$C$216)))) -> 0.6122751228
B204: Survey | C204: Year | D204: Improved | E204: Not shared | H204: Open defecation | I204: Improved | J204: Not shared | M204: Open defecation | N204: Improved | O204: Not shared | R204: Open defecation | S204: Improved | T204: Not shared | W204: Open defecation | X204: Improved | Y204: Not shared | AB204: Open defecation
B205: DHS07 | C205: 2007 | D205: =IF(ISERROR(INDIRECT(CONCATENATE($B205,"!H122"))),"",INDIRECT(CONCATENATE($B205,"!H122"))) -> 21.51182759 | E205: =IF(ISERROR(INDIRECT(CONCATENATE($B205,"!H129"))),"",INDIRECT(CONCATENATE($B205,"!H129"))) -> 11.15217905 | H205: =IF(ISERROR(INDIRECT(CONCATENATE($B205,"!H127"))),"",INDIRECT(CONCATENATE($B205,"!H127"))) -> 49.8204378 | I205: =IF(ISERROR(INDIRECT(CONCATENATE($B205,"!I122"))),"",INDIRECT(CONCATENATE($B205,"!I122"))) -> 33.18455495 | J205: =IF(ISERROR(INDIRECT(CONCATENATE($B205,"!I129"))),"",INDIRECT(CONCATENATE($B205,"!I129"))) -> 21.45810135 | M205: =IF(ISERROR(INDIRECT(CONCATENATE($B205,"!I127"))),"",INDIRECT(CONCATENATE($B205,"!I127"))) -> 38.28696514 | N205: =IF(ISERROR(INDIRECT(CONCATENATE($B205,"!J122"))),"",INDIRECT(CONCATENATE($B205,"!J122"))) -> 42.87043669 | O205: =IF(ISERROR(INDIRECT(CONCATENATE($B205,"!J129"))),"",INDIRECT(CONCATENATE($B205,"!J129"))) -> 32.57806239 | R205: =IF(ISERROR(INDIRECT(CONCATENATE($B205,"!J127"))),"",INDIRECT(CONCATENATE($B205,"!J127"))) -> 27.54669229 | S205: =IF(ISERROR(INDIRECT(CONCATENATE($B205,"!K122"))),"",INDIRECT(CONCATENATE($B205,"!K122"))) -> 60.72527614 | T205: =IF(ISERROR(INDIRECT(CONCATENATE($B205,"!K129"))),"",INDIRECT(CONCATENATE($B205,"!K129"))) -> 52.77652015 | W205: =IF(ISERROR(INDIRECT(CONCATENATE($B205,"!K127"))),"",INDIRECT(CONCATENATE($B205,"!K127"))) -> 18.71678261 | X205: =IF(ISERROR(INDIRECT(CONCATENATE($B205,"!L122"))),"",INDIRECT(CONCATENATE($B205,"!L122"))) -> 76.69894239 | Y205: =IF(ISERROR(INDIRECT(CONCATENATE($B205,"!L129"))),"",INDIRECT(CONCATENATE($B205,"!L129"))) -> 80.16848066 | AB205: =IF(ISERROR(INDIRECT(CONCATENATE($B205,"!L2127"))),"",INDIRECT(CONCATENATE($B205,"!L127"))) -> 7.038153548
B206: MIS09 | C206: 2009 | D206: 42.17265859 | E206: N/A | H206: 34.93824058 | I206: 55.01110398 | J206: N/A | M206: 25.49112965 | N206: 57.6645837 | O206: N/A | R206: 20.65709115 | S206: 63.3791072 | T206: N/A | W206: 12.33742322 | X206: 81.4616563 | Y206: N/A | AB206: 4.844950667
B207: MIS11 | C207: 2011 | D207: 21.26025875 | E207: 8.351790613 | H207: 41.5475167 | I207: 44.04909267 | J207: 12.31954907 | M207: 22.48712854 | N207: 52.96700231 | O207: 18.90808529 | R207: 16.41974434 | S207: 62.3449676 | T207: 28.87111031 | W207: 9.622904986 | X207: 85.47335233 | Y207: 72.27264738 | AB207: 4.827466994
B208: DHS13 | C208: 2013 | D208: 25.07137082 | E208: 16.37735999 | H208: 63.51953155 | I208: 49.8228467 | J208: 20.72445171 | M208: 32.26229174 | N208: 61.14175439 | O208: 22.77032651 | R208: 16.92874271 | S208: 66.32169692 | T208: 45.40023068 | W208: 9.986779378 | X208: 88.70388822 | Y208: 82.18816919 | AB208: 1.481925113
B209: MIS16 | C209: 2016 | D209: 22.81339312 | E209: 34.91686149 | H209: 52.27699875 | I209: 59.06222637 | J209: 24.78839 | M209: 22.27694543 | N209: 77.30300426 | O209: 26.43193248 | R209: 9.424055843 | S209: 86.53920467 | T209: 44.53603086 | W209: 3.298316099 | X209: 92.75081559 | Y209: 74.45177978 | AB209: 2.023644307
B210: DHS20 | C210: 2020 | D210: 34.34572606 | E210: 31.41619614 | H210: 42.0999933 | I210: 60.1191957 | J210: 32.52288669 | M210: 16.57476658 | N210: 68.06153378 | O210: 45.30087864 | R210: 10.68079676 | S210: 78.57769497 | T210: 51.66902294 | W210: 7.335764186 | X210: 92.16477811 | Y210: 80.05691094 | AB210: 1.598993083
B218: =CONCATENATE("Urban use of sanitation facilities, ",C199,"–",C200) -> Urban use of sanitation facilities, 2000–2020 | S218: Data points used for regression
A297: RURAL | D297: Poorest | I297: Poor | N297: Middle | S297: Rich | X297: Richest
D298: Improved | E298: Basic | F298: Limited | G298: Unimproved | H298: Open defecation | I298: Improved | J298: Basic | K298: Limited | L298: Unimproved | M298: Open defecation | N298: Improved | O298: Basic | P298: Limited | Q298: Unimproved | R298: Open defecation | S298: Improved | T298: Basic | U298: Limited | V298: Unimproved | W298: Open defecation | X298: Improved | Y298: Basic | Z298: Limited | AA298: Unimproved | AB298: Open defecation
A299: Forecast period: | C299: 2000 | D299: =IF((D301+H301)>100,D301*100/(D301+H301),D301) -> 11.84215712 | E299: =D299*AVERAGEIF(E305:E316,">0")/100 -> 1.444325321 | F299: =D299*(100-AVERAGEIF(E305:E316,">0"))/100 -> 10.3978318 | G299: =100-(E299+F299+H299) -> 4.884215123 | H299: =IF((D301+H301)>100,H301*100/(D301+H301),H301) -> 83.27362776 | I299: =IF((I301+M301)>100,I301*100/(I301+M301),I301) -> 9.80405025 | J299: =I299*AVERAGEIF(J305:J316,">0")/100 -> 1.483506252 | K299: =I299*(100-AVERAGEIF(J305:J316,">0"))/100 -> 8.320543998 | L299: =100-(J299+K299+M299) -> 7.586715572 | M299: =IF((I301+M301)>100,M301*100/(I301+M301),M301) -> 82.60923418 | N299: =IF((N301+R301)>100,N301*100/(N301+R301),N301) -> 19.19672599 | O299: =N299*AVERAGEIF(O305:O316,">0")/100 -> 3.094315872 | P299: =N299*(100-AVERAGEIF(O305:O316,">0"))/100 -> 16.10241012 | Q299: =100-(O299+P299+R299) -> 10.68890603 | R299: =IF((N301+R301)>100,R301*100/(N301+R301),R301) -> 70.11436798 | S299: =IF((S301+W301)>100,S301*100/(S301+W301),S301) -> 23.68898279 | T299: =S299*AVERAGEIF(T305:T316,">0")/100 -> 6.149856832 | U299: =S299*(100-AVERAGEIF(T305:T316,">0"))/100 -> 17.53912595 | V299: =100-(T299+U299+W299) -> 9.457856081 | W299: =IF((S301+W301)>100,W301*100/(S301+W301),W301) -> 66.85316113 | X299: =IF((X301+AB301)>100,X301*100/(X301+AB301),X301) -> 39.69260696 | Y299: =X299*AVERAGEIF(Y305:Y316,">0")/100 -> 14.63297353 | Z299: =X299*(100-AVERAGEIF(Y305:Y316,">0"))/100 -> 25.05963343 | AA299: =100-(Y299+Z299+AB299) -> 18.62761775 | AB299: =IF((X301+AB301)>100,AB301*100/(X301+AB301),AB301) -> 41.67977529
C300: 2020 | D300: =IF((D302+H302)>100,D302*100/(D302+H302),D302) -> 12.38474531 | E300: =D300*AVERAGEIF(E305:E316,">0")/100 -> 1.510501935 | F300: =D300*(100-AVERAGEIF(E305:E316,">0"))/100 -> 10.87424337 | G300: =100-(E300+F300+H300) -> 17.75579968 | H300: =IF((D302+H302)>100,H302*100/(D302+H302),H302) -> 69.85945501 | I300: =IF((I302+M302)>100,I302*100/(I302+M302),I302) -> 16.38252185 | J300: =I300*AVERAGEIF(J305:J316,">0")/100 -> 2.478931969 | K300: =I300*(100-AVERAGEIF(J305:J316,">0"))/100 -> 13.90358988 | L300: =100-(J300+K300+M300) -> 13.30054549 | M300: =IF((I302+M302)>100,M302*100/(I302+M302),M302) -> 70.31693266 | N300: =IF((N302+R302)>100,N302*100/(N302+R302),N302) -> 16.54272286 | O300: =N300*AVERAGEIF(O305:O316,">0")/100 -> 2.666517713 | P300: =N300*(100-AVERAGEIF(O305:O316,">0"))/100 -> 13.87620514 | Q300: =100-(O300+P300+R300) -> 18.0338676 | R300: =IF((N302+R302)>100,R302*100/(N302+R302),R302) -> 65.42340954 | S300: =IF((S302+W302)>100,S302*100/(S302+W302),S302) -> 23.47549564 | T300: =S300*AVERAGEIF(T305:T316,">0")/100 -> 6.094433796 | U300: =S300*(100-AVERAGEIF(T305:T316,">0"))/100 -> 17.38106185 | V300: =100-(T300+U300+W300) -> 22.44268673 | W300: =IF((S302+W302)>100,W302*100/(S302+W302),W302) -> 54.08181762 | X300: =IF((X302+AB302)>100,X302*100/(X302+AB302),X302) -> 36.49219228 | Y300: =X300*AVERAGEIF(Y305:Y316,">0")/100 -> 13.45311696 | Z300: =X300*(100-AVERAGEIF(Y305:Y316,">0"))/100 -> 23.03907532 | AA300: =100-(Y300+Z300+AB300) -> 22.17702075 | AB300: =IF((X302+AB302)>100,AB302*100/(X302+AB302),AB302) -> 41.33078697
A301: Regression period: | C301: =MinRegYear(C299,C305:C316) -> 2005 | D301: =IF(MAX(C305:C316)-MIN(C305:C316)<5,AVERAGEIF(C305:C316,">0",D305:D316), IF(FORECAST($C301,D$305:D$316,$C$305:$C$316)<0,0, IF(FORECAST($C301,D$305:D$316,$C$305:$C$316)>100,100, FORECAST($C301,D$305:D$316,$C$305:$C$316)))) -> 11.84215712 | H301: =IF(MAX(C305:C316)-MIN(C305:C316)<5,AVERAGEIF(C305:C316,">0",H305:H316), IF(FORECAST($C301,H$305:H$316,$C$305:$C$316)<0,0, IF(FORECAST($C301,H$305:H$316,$C$305:$C$316)>100,100, FORECAST($C301,H$305:H$316,$C$305:$C$316)))) -> 83.27362776 | I301: =IF(MAX(C305:C316)-MIN(C305:C316)<5,AVERAGEIF(C305:C316,">0",I305:I316), IF(FORECAST($C301,I$305:I$316,$C$305:$C$316)<0,0, IF(FORECAST($C301,I$305:I$316,$C$305:$C$316)>100,100, FORECAST($C301,I$305:I$316,$C$305:$C$316)))) -> 9.80405025 | M301: =IF(MAX(C305:C316)-MIN(C305:C316)<5,AVERAGEIF(C305:C316,">0",M305:M316), IF(FORECAST($C301,M$305:M$316,$C$305:$C$316)<0,0, IF(FORECAST($C301,M$305:M$316,$C$305:$C$316)>100,100, FORECAST($C301,M$305:M$316,$C$305:$C$316)))) -> 82.60923418 | N301: =IF(MAX(C305:C316)-MIN(C305:C316)<5,AVERAGEIF(C305:C316,">0",N305:N316), IF(FORECAST($C301,N$305:N$316,$C$305:$C$316)<0,0, IF(FORECAST($C301,N$305:N$316,$C$305:$C$316)>100,100, FORECAST($C301,N$305:N$316,$C$305:$C$316)))) -> 19.19672599 | R301: =IF(MAX(C305:C316)-MIN(C305:C316)<5,AVERAGEIF(C305:C316,">0",R305:R316), IF(FORECAST($C301,R$305:R$316,$C$305:$C$316)<0,0, IF(FORECAST($C301,R$305:R$316,$C$305:$C$316)>100,100, FORECAST($C301,R$305:R$316,$C$305:$C$316)))) -> 70.11436798 | S301: =IF(MAX(C305:C316)-MIN(C305:C316)<5,AVERAGEIF(C305:C316,">0",S305:S316), IF(FORECAST($C301,S$305:S$316,$C$305:$C$316)<0,0, IF(FORECAST($C301,S$305:S$316,$C$305:$C$316)>100,100, FORECAST($C301,S$305:S$316,$C$305:$C$316)))) -> 23.68898279 | W301: =IF(MAX(C305:C316)-MIN(C305:C316)<5,AVERAGEIF(C305:C316,">0",W305:W316), IF(FORECAST($C301,W$305:W$316,$C$305:$C$316)<0,0, IF(FORECAST($C301,W$305:W$316,$C$305:$C$316)>100,100, FORECAST($C301,W$305:W$316,$C$305:$C$316)))) -> 66.85316113 | X301: =IF(MAX(C305:C316)-MIN(C305:C316)<5,AVERAGEIF(C305:C316,">0",X305:X316), IF(FORECAST($C301,X$305:X$316,$C$305:$C$316)<0,0, IF(FORECAST($C301,X$305:X$316,$C$305:$C$316)>100,100, FORECAST($C301,X$305:X$316,$C$305:$C$316)))) -> 39.69260696 | AB301: =IF(MAX(C305:C316)-MIN(C305:C316)<5,AVERAGEIF(C305:C316,">0",AB305:AB316), IF(FORECAST($C301,AB$305:AB$316,$C$305:$C$316)<0,0, IF(FORECAST($C301,AB$305:AB$316,$C$305:$C$316)>100,100, FORECAST($C301,AB$305:AB$316,$C$305:$C$316)))) -> 41.67977529
C302: =MaxRegYear(C300,C305:C316) -> 2020 | D302: =IF(MAX(C305:C316)-MIN(C305:C316)<5,AVERAGEIF(C305:C316,">0",D305:D316), IF(FORECAST($C302,D$305:D$316,$C$305:$C$316)<0,0, IF(FORECAST($C302,D$305:D$316,$C$305:$C$316)>100,100, FORECAST($C302,D$305:D$316,$C$305:$C$316)))) -> 12.38474531 | H302: =IF(MAX(C305:C316)-MIN(C305:C316)<5,AVERAGEIF(C305:C316,">0",H305:H316), IF(FORECAST($C302,H$305:H$316,$C$305:$C$316)<0,0, IF(FORECAST($C302,H$305:H$316,$C$305:$C$316)>100,100, FORECAST($C302,H$305:H$316,$C$305:$C$316)))) -> 69.85945501 | I302: =IF(MAX(C305:C316)-MIN(C305:C316)<5,AVERAGEIF(C305:C316,">0",I305:I316), IF(FORECAST($C302,I$305:I$316,$C$305:$C$316)<0,0, IF(FORECAST($C302,I$305:I$316,$C$305:$C$316)>100,100, FORECAST($C302,I$305:I$316,$C$305:$C$316)))) -> 16.38252185 | M302: =IF(MAX(C305:C316)-MIN(C305:C316)<5,AVERAGEIF(C305:C316,">0",M305:M316), IF(FORECAST($C302,M$305:M$316,$C$305:$C$316)<0,0, IF(FORECAST($C302,M$305:M$316,$C$305:$C$316)>100,100, FORECAST($C302,M$305:M$316,$C$305:$C$316)))) -> 70.31693266 | N302: =IF(MAX(C305:C316)-MIN(C305:C316)<5,AVERAGEIF(C305:C316,">0",N305:N316), IF(FORECAST($C302,N$305:N$316,$C$305:$C$316)<0,0, IF(FORECAST($C302,N$305:N$316,$C$305:$C$316)>100,100, FORECAST($C302,N$305:N$316,$C$305:$C$316)))) -> 16.54272286 | R302: =IF(MAX(C305:C316)-MIN(C305:C316)<5,AVERAGEIF(C305:C316,">0",R305:R316), IF(FORECAST($C302,R$305:R$316,$C$305:$C$316)<0,0, IF(FORECAST($C302,R$305:R$316,$C$305:$C$316)>100,100, FORECAST($C302,R$305:R$316,$C$305:$C$316)))) -> 65.42340954 | S302: =IF(MAX(C305:C316)-MIN(C305:C316)<5,AVERAGEIF(C305:C316,">0",S305:S316), IF(FORECAST($C302,S$305:S$316,$C$305:$C$316)<0,0, IF(FORECAST($C302,S$305:S$316,$C$305:$C$316)>100,100, FORECAST($C302,S$305:S$316,$C$305:$C$316)))) -> 23.47549564 | W302: =IF(MAX(C305:C316)-MIN(C305:C316)<5,AVERAGEIF(C305:C316,">0",W305:W316), IF(FORECAST($C302,W$305:W$316,$C$305:$C$316)<0,0, IF(FORECAST($C302,W$305:W$316,$C$305:$C$316)>100,100, FORECAST($C302,W$305:W$316,$C$305:$C$316)))) -> 54.08181762 | X302: =IF(MAX(C305:C316)-MIN(C305:C316)<5,AVERAGEIF(C305:C316,">0",X305:X316), IF(FORECAST($C302,X$305:X$316,$C$305:$C$316)<0,0, IF(FORECAST($C302,X$305:X$316,$C$305:$C$316)>100,100, FORECAST($C302,X$305:X$316,$C$305:$C$316)))) -> 36.49219228 | AB302: =IF(MAX(C305:C316)-MIN(C305:C316)<5,AVERAGEIF(C305:C316,">0",AB305:AB316), IF(FORECAST($C302,AB$305:AB$316,$C$305:$C$316)<0,0, IF(FORECAST($C302,AB$305:AB$316,$C$305:$C$316)>100,100, FORECAST($C302,AB$305:AB$316,$C$305:$C$316)))) -> 41.33078697
B304: Survey | C304: Year | D304: Improved | E304: Not shared | H304: Open defecation | I304: Improved | J304: Not shared | M304: Open defecation | N304: Improved | O304: Not shared | R304: Open defecation | S304: Improved | T304: Not shared | W304: Open defecation | X304: Improved | Y304: Not shared | AB304: Open defecation
B305: DHS07 | C305: 2007 | D305: =IF(ISERROR(INDIRECT(CONCATENATE($B305,"!M122"))),"",INDIRECT(CONCATENATE($B305,"!M122"))) -> 9.402146413 | E305: =IF(ISERROR(INDIRECT(CONCATENATE($B305,"!M129"))),"",INDIRECT(CONCATENATE($B305,"!M129"))) -> 4.2763858 | H305: =IF(ISERROR(INDIRECT(CONCATENATE($B305,"!M127"))),"",INDIRECT(CONCATENATE($B305,"!M127"))) -> 84.20806702 | I305: =IF(ISERROR(INDIRECT(CONCATENATE($B305,"!N122"))),"",INDIRECT(CONCATENATE($B305,"!N122"))) -> 8.420201588 | J305: =IF(ISERROR(INDIRECT(CONCATENATE($B305,"!N129"))),"",INDIRECT(CONCATENATE($B305,"!N129"))) -> 8.892629428 | M305: =IF(ISERROR(INDIRECT(CONCATENATE($B305,"!N127"))),"",INDIRECT(CONCATENATE($B305,"!N127"))) -> 81.30878404 | N305: =IF(ISERROR(INDIRECT(CONCATENATE($B305,"!O122"))),"",INDIRECT(CONCATENATE($B305,"!O122"))) -> 12.61392661 | O305: =IF(ISERROR(INDIRECT(CONCATENATE($B305,"!O129"))),"",INDIRECT(CONCATENATE($B305,"!O129"))) -> 8.288277018 | R305: =IF(ISERROR(INDIRECT(CONCATENATE($B305,"!O127"))),"",INDIRECT(CONCATENATE($B305,"!O127"))) -> 73.06075043 | S305: =IF(ISERROR(INDIRECT(CONCATENATE($B305,"!P122"))),"",INDIRECT(CONCATENATE($B305,"!P122"))) -> 18.94821304 | T305: =IF(ISERROR(INDIRECT(CONCATENATE($B305,"!P129"))),"",INDIRECT(CONCATENATE($B305,"!P129"))) -> 17.68165954 | W305: =IF(ISERROR(INDIRECT(CONCATENATE($B305,"!P127"))),"",INDIRECT(CONCATENATE($B305,"!P127"))) -> 68.74667467 | X305: =IF(ISERROR(INDIRECT(CONCATENATE($B305,"!Q122"))),"",INDIRECT(CONCATENATE($B305,"!Q122"))) -> 36.64637467 | Y305: =IF(ISERROR(INDIRECT(CONCATENATE($B305,"!Q129"))),"",INDIRECT(CONCATENATE($B305,"!Q129"))) -> 40.88324758 | AB305: =IF(ISERROR(INDIRECT(CONCATENATE($B305,"!Q2127"))),"",INDIRECT(CONCATENATE($B305,"!Q127"))) -> 45.18185057
B306: MIS09 | C306: 2009 | D306: 13.93964289 | E306: N/A | H306: 79.4369547 | I306: 15.26445417 | J306: N/A | M306: 80.93595837 | N306: 32.23848514 | O306: N/A | R306: 61.30613529 | S306: 36.63508713 | T306: N/A | W306: 59.51063021 | X306: 53.21212313 | Y306: N/A | AB306: 34.39579084
B307: MIS11 | C307: 2011 | D307: 12.33875004 | E307: 11.99225593 | H307: 73.79251746 | I307: 7.878740665 | J307: 11.18541541 | M307: 73.85400065 | N307: 11.52457104 | O307: 8.668036307 | R307: 67.27621891 | S307: 15.85243506 | T307: 22.94503045 | W307: 57.21579603 | X307: 26.35562013 | Y307: 15.82835689 | AB307: 36.39778999
B308: DHS13 | C308: 2013 | D308: 12.94308622 | E308: 14.40507509 | H308: 79.78311158 | I308: 15.18842673 | J308: 18.64771397 | M308: 78.21266858 | N308: 16.30665419 | O308: 15.37149412 | R308: 76.17503298 | S308: 21.43095395 | T308: 19.92398903 | W308: 70.46073086 | X308: 41.71395194 | Y308: 32.48242205 | AB308: 49.88933729
B309: MIS16 | C309: 2016 | D309: 12.98580864 | E309: 7.829538325 | H309: 68.14887427 | I309: 18.75436266 | J309: 19.57959301 | M309: 72.93921185 | N309: 17.13768225 | O309: 17.44864657 | R309: 63.02802502 | S309: 24.2814617 | T309: 27.86926142 | W309: 48.58234418 | X309: 26.93684431 | Y309: 42.23918294 | AB309: 46.54383156
B310: DHS20 | C310: 2020 | D310: 11.10744564 | E310: 22.47910249 | H310: 73.13544508 | I310: 13.49209527 | J310: 17.35247399 | M310: 70.70839026 | N310: 17.22009377 | O310: 30.81843162 | R310: 65.45443935 | S310: 24.33105194 | T310: 41.38421552 | W310: 57.43733741 | X310: 43.47612257 | Y310: 52.89549368 | AB310: 36.59982064
B318: =CONCATENATE("Rural use of sanitation facilities, ",C299,"–",C300) -> Rural use of sanitation facilities, 2000–2020 | S318: Data points used for regression

Sheet Hygiene
B4: Access to hygiene facilities by wealth quintile (%)
B5: =IF(ISERROR(INDIRECT(CONCATENATE($E$32,"!A2"))),"",INDIRECT(CONCATENATE($E$32,"!A2"))) -> Liberia
B7: =CONCATENATE("National ",IF(ISERROR(INDIRECT(CONCATENATE($E$32,"!A2"))),"",INDIRECT(CONCATENATE($E$32,"!A210")))) -> National Access to hygiene facilities | K7: =CONCATENATE("Urban ",IF(ISERROR(INDIRECT(CONCATENATE($E$32,"!A2"))),"",INDIRECT(CONCATENATE($E$32,"!A210")))) -> Urban Access to hygiene facilities | S7: =CONCATENATE("Rural ",IF(ISERROR(INDIRECT(CONCATENATE($E$32,"!A2"))),"",INDIRECT(CONCATENATE($E$32,"!A210")))) -> Rural Access to hygiene facilities
E32: =INDEX(B88:B100,A88) -> DHS20 | G32: =IF(ISERROR(INDIRECT(CONCATENATE($E$32,"!A2"))),"",INDIRECT(CONCATENATE($E$32,"!A2"))) -> Liberia | K32: Poorest | N32: Poor | Q32: Middle | T32: Rich | W32: Richest
K33: Basic | L33: Limited | M33: No facility | N33: Basic | O33: Limited | P33: No facility | Q33: Basic | R33: Limited | S33: No facility | T33: Basic | U33: Limited | V33: No facility | W33: Basic | X33: Limited | Y33: No facility
B34: >>> Select Survey : | G34: NATIONAL | J34: =IF(ISERROR(INDIRECT(CONCATENATE(#REF!,"!A2"))),"",INDIRECT(CONCATENATE(#REF!,"!A210"))) ->  | K34: =IF(ISERROR(INDIRECT(CONCATENATE($E$32,"!C222"))),"",INDIRECT(CONCATENATE($E$32,"!C222"))) -> 0.5953944444 | L34: =IF(ISERROR(INDIRECT(CONCATENATE($E$32,"!C223"))),"",INDIRECT(CONCATENATE($E$32,"!C223"))) -> 11.84010865 | M34: =IF(ISERROR(INDIRECT(CONCATENATE($E$32,"!C224"))),"",INDIRECT(CONCATENATE($E$32,"!C224"))) -> 87.56449691 | N34: =IF(ISERROR(INDIRECT(CONCATENATE($E$32,"!D222"))),"",INDIRECT(CONCATENATE($E$32,"!D222"))) -> 0.6970303368 | O34: =IF(ISERROR(INDIRECT(CONCATENATE($E$32,"!D223"))),"",INDIRECT(CONCATENATE($E$32,"!D223"))) -> 11.05782789 | P34: =IF(ISERROR(INDIRECT(CONCATENATE($E$32,"!D224"))),"",INDIRECT(CONCATENATE($E$32,"!D224"))) -> 88.24514177 | Q34: =IF(ISERROR(INDIRECT(CONCATENATE($E$32,"!E222"))),"",INDIRECT(CONCATENATE($E$32,"!E222"))) -> 0.9095425494 | R34: =IF(ISERROR(INDIRECT(CONCATENATE($E$32,"!E223"))),"",INDIRECT(CONCATENATE($E$32,"!E223"))) -> 18.0069452 | S34: =IF(ISERROR(INDIRECT(CONCATENATE($E$32,"!E224"))),"",INDIRECT(CONCATENATE($E$32,"!E224"))) -> 81.08351225 | T34: =IF(ISERROR(INDIRECT(CONCATENATE($E$32,"!F222"))),"",INDIRECT(CONCATENATE($E$32,"!F222"))) -> 2.665017665 | U34: =IF(ISERROR(INDIRECT(CONCATENATE($E$32,"!F223"))),"",INDIRECT(CONCATENATE($E$32,"!F223"))) -> 26.36659205 | V34: =IF(ISERROR(INDIRECT(CONCATENATE($E$32,"!F224"))),"",INDIRECT(CONCATENATE($E$32,"!F224"))) -> 70.96839028 | W34: =IF(ISERROR(INDIRECT(CONCATENATE($E$32,"!G222"))),"",INDIRECT(CONCATENATE($E$32,"!G222"))) -> 10.45431673 | X34: =IF(ISERROR(INDIRECT(CONCATENATE($E$32,"!G223"))),"",INDIRECT(CONCATENATE($E$32,"!G223"))) -> 26.86019037 | Y34: =IF(ISERROR(INDIRECT(CONCATENATE($E$32,"!G224"))),"",INDIRECT(CONCATENATE($E$32,"!G224"))) -> 62.6854929
G37: URBAN | J37: =IF(ISERROR(INDIRECT(CONCATENATE(#REF!,"!A2"))),"",INDIRECT(CONCATENATE(#REF!,"!A210"))) ->  | K37: =IF(ISERROR(INDIRECT(CONCATENATE($E$32,"!H222"))),"",INDIRECT(CONCATENATE($E$32,"!H222"))) -> 0.5304759135 | L37: =IF(ISERROR(INDIRECT(CONCATENATE($E$32,"!H223"))),"",INDIRECT(CONCATENATE($E$32,"!H223"))) -> 14.78839338 | M37: =IF(ISERROR(INDIRECT(CONCATENATE($E$32,"!H224"))),"",INDIRECT(CONCATENATE($E$32,"!H224"))) -> 84.6811307 | N37: =IF(ISERROR(INDIRECT(CONCATENATE($E$32,"!I222"))),"",INDIRECT(CONCATENATE($E$32,"!I222"))) -> 0.9660411299 | O37: =IF(ISERROR(INDIRECT(CONCATENATE($E$32,"!I223"))),"",INDIRECT(CONCATENATE($E$32,"!I223"))) -> 21.82224342 | P37: =IF(ISERROR(INDIRECT(CONCATENATE($E$32,"!I224"))),"",INDIRECT(CONCATENATE($E$32,"!I224"))) -> 77.21171545 | Q37: =IF(ISERROR(INDIRECT(CONCATENATE($E$32,"!J222"))),"",INDIRECT(CONCATENATE($E$32,"!J222"))) -> 2.487128809 | R37: =IF(ISERROR(INDIRECT(CONCATENATE($E$32,"!J223"))),"",INDIRECT(CONCATENATE($E$32,"!J223"))) -> 28.01200571 | S37: =IF(ISERROR(INDIRECT(CONCATENATE($E$32,"!J224"))),"",INDIRECT(CONCATENATE($E$32,"!J224"))) -> 69.50086548 | T37: =IF(ISERROR(INDIRECT(CONCATENATE($E$32,"!K222"))),"",INDIRECT(CONCATENATE($E$32,"!K222"))) -> 2.703754557 | U37: =IF(ISERROR(INDIRECT(CONCATENATE($E$32,"!K223"))),"",INDIRECT(CONCATENATE($E$32,"!K223"))) -> 25.1180326 | V37: =IF(ISERROR(INDIRECT(CONCATENATE($E$32,"!K224"))),"",INDIRECT(CONCATENATE($E$32,"!K224"))) -> 72.17821284 | W37: =IF(ISERROR(INDIRECT(CONCATENATE($E$32,"!L222"))),"",INDIRECT(CONCATENATE($E$32,"!L222"))) -> 16.75541618 | X37: =IF(ISERROR(INDIRECT(CONCATENATE($E$32,"!L223"))),"",INDIRECT(CONCATENATE($E$32,"!L223"))) -> 27.94322976 | Y37: =IF(ISERROR(INDIRECT(CONCATENATE($E$32,"!L224"))),"",INDIRECT(CONCATENATE($E$32,"!L224"))) -> 55.30135406
G40: RURAL | J40: =IF(ISERROR(INDIRECT(CONCATENATE(#REF!,"!A2"))),"",INDIRECT(CONCATENATE(#REF!,"!A210"))) ->  | K40: =IF(ISERROR(INDIRECT(CONCATENATE($E$32,"!M222"))),"",INDIRECT(CONCATENATE($E$32,"!M222"))) -> 0.4443840441 | L40: =IF(ISERROR(INDIRECT(CONCATENATE($E$32,"!M223"))),"",INDIRECT(CONCATENATE($E$32,"!M223"))) -> 13.09332498 | M40: =IF(ISERROR(INDIRECT(CONCATENATE($E$32,"!M224"))),"",INDIRECT(CONCATENATE($E$32,"!M224"))) -> 86.46229097 | N40: =IF(ISERROR(INDIRECT(CONCATENATE($E$32,"!N222"))),"",INDIRECT(CONCATENATE($E$32,"!N222"))) -> 0.8295085759 | O40: =IF(ISERROR(INDIRECT(CONCATENATE($E$32,"!N223"))),"",INDIRECT(CONCATENATE($E$32,"!N223"))) -> 10.76355362 | P40: =IF(ISERROR(INDIRECT(CONCATENATE($E$32,"!N224"))),"",INDIRECT(CONCATENATE($E$32,"!N224"))) -> 88.40693781 | Q40: =IF(ISERROR(INDIRECT(CONCATENATE($E$32,"!O222"))),"",INDIRECT(CONCATENATE($E$32,"!O222"))) -> 0.3829851825 | R40: =IF(ISERROR(INDIRECT(CONCATENATE($E$32,"!O223"))),"",INDIRECT(CONCATENATE($E$32,"!O223"))) -> 9.781265988 | S40: =IF(ISERROR(INDIRECT(CONCATENATE($E$32,"!O224"))),"",INDIRECT(CONCATENATE($E$32,"!O224"))) -> 89.83574883 | T40: =IF(ISERROR(INDIRECT(CONCATENATE($E$32,"!P222"))),"",INDIRECT(CONCATENATE($E$32,"!P222"))) -> 1.008609127 | U40: =IF(ISERROR(INDIRECT(CONCATENATE($E$32,"!P223"))),"",INDIRECT(CONCATENATE($E$32,"!P223"))) -> 10.21979672 | V40: =IF(ISERROR(INDIRECT(CONCATENATE($E$32,"!P224"))),"",INDIRECT(CONCATENATE($E$32,"!P224"))) -> 88.77159416 | W40: =IF(ISERROR(INDIRECT(CONCATENATE($E$32,"!Q222"))),"",INDIRECT(CONCATENATE($E$32,"!Q222"))) -> 1.7570492 | X40: =IF(ISERROR(INDIRECT(CONCATENATE($E$32,"!Q223"))),"",INDIRECT(CONCATENATE($E$32,"!Q223"))) -> 18.82988231 | Y40: =IF(ISERROR(INDIRECT(CONCATENATE($E$32,"!Q224"))),"",INDIRECT(CONCATENATE($E$32,"!Q224"))) -> 79.41306849
A88: 6 | B88: DHS07
B89: MIS09
B90: MIS11
B91: DHS13
B92: MIS16
B93: DHS20
B94: Template

Sheet DHS07
A2: =A1026 -> Liberia
A3: =A1034 -> 2007
A4: Use of drinking water sources
A5: by wealth quintile and sub-national region
A6: Notes:
A7: WHO/UNICEF JMP customised wealth index excludes water,
A8: sanitation and hygiene assets.
A9: Survey used for analysis: | B9: =A1025 -> DHS07
A10: =B1028 -> 
A11: =B1027 -> 
A14: Use of drinking water sources | C14: NATIONAL wealth index quintile | H14: URBAN wealth index quintile | M14: RURAL wealth index quintile | R14: SUB-REGIONS: | BA14: Raw numbers of respondents: | BB14: Use of drinking water sources | BC14: NATIONAL wealth index quintile | BH14: URBAN wealth index quintile | BM14: RURAL wealth index quintile | BR14: SUB-REGIONS:
A15: Weighted percentage (used in graphs) | C15: Poorest | D15: Poor | E15: Middle | F15: Rich | G15: Richest | H15: Poorest | I15: Poor | J15: Middle | K15: Rich | L15: Richest | M15: Poorest | N15: Poor | O15: Middle | P15: Rich | Q15: Richest | R15: Monrovia | S15: North Central | T15: North Western | U15: South Central | V15: South Eastern A | W15: South Eastern B | BA15: Water data, raw numbers (weighted) | BC15: Poorest | BD15: Poor | BE15: Middle | BF15: Rich | BG15: Richest | BH15: Poorest | BI15: Poor | BJ15: Middle | BK15: Rich | BL15: Richest | BM15: Poorest | BN15: Poor | BO15: Middle | BP15: Rich | BQ15: Richest | BR15: Monrovia | BS15: North Central | BT15: North Western | BU15: South Central | BV15: South Eastern A | BW15: South Eastern B
A16: Water | B16: Improved | C16: 43.6 | D16: 53.4 | E16: 70.3 | F16: 81.6 | G16: 92.7 | H16: 82.6 | I16: 83.2 | J16: 90.6 | K16: 91.8 | L16: 96 | M16: 43.1 | N16: 44.3 | O16: 53.2 | P16: 63.4 | Q16: 76.2 | R16: 90.7 | S16: 60.9 | T16: 72.1 | U16: 51.6 | V16: 58.6 | W16: 56.8 | BA16: Water | BB16: Improved | BC16: N/A | BD16: N/A | BE16: N/A | BF16: N/A | BG16: N/A | BH16: N/A | BI16: N/A | BJ16: N/A | BK16: N/A | BL16: N/A | BM16: N/A | BN16: N/A | BO16: N/A | BP16: N/A | BQ16: N/A | BR16: N/A | BS16: N/A | BT16: N/A | BU16: N/A | BV16: N/A | BW16: N/A
B17: Not Improved | C17: 56.4 | D17: 46.6 | E17: 29.7 | F17: 18.4 | G17: 7.3 | H17: 17.4 | I17: 16.8 | J17: 9.4 | K17: 8.2 | L17: 4 | M17: 56.9 | N17: 55.7 | O17: 46.8 | P17: 36.6 | Q17: 23.8 | R17: 9.3 | S17: 39.1 | T17: 27.9 | U17: 48.4 | V17: 41.4 | W17: 43.2 | BB17: Not Improved | BC17: N/A | BD17: N/A | BE17: N/A | BF17: N/A | BG17: N/A | BH17: N/A | BI17: N/A | BJ17: N/A | BK17: N/A | BL17: N/A | BM17: N/A | BN17: N/A | BO17: N/A | BP17: N/A | BQ17: N/A | BR17: N/A | BS17: N/A | BT17: N/A | BU17: N/A | BV17: N/A | BW17: N/A
A18: Water ladder | B18: Basic | C18: 42.7 | D18: 52.5 | E18: 68.2 | F18: 78 | G18: 88.6 | H18: 78.3 | I18: 80.3 | J18: 86.8 | K18: 87.1 | L18: 91.9 | M18: 42.4 | N18: 43.4 | O18: 52.7 | P18: 62.1 | Q18: 73.3 | R18: 86.6 | S18: 59.8 | T18: 71.5 | U18: 48.5 | V18: 56.6 | W18: 54.9 | BA18: Water ladder | BB18: Basic | BC18: N/A | BD18: N/A | BE18: N/A | BF18: N/A | BG18: N/A | BH18: N/A | BI18: N/A | BJ18: N/A | BK18: N/A | BL18: N/A | BM18: N/A | BN18: N/A | BO18: N/A | BP18: N/A | BQ18: N/A | BR18: N/A | BS18: N/A | BT18: N/A | BU18: N/A | BV18: N/A | BW18: N/A
B19: Limited | C19: 0.8 | D19: 0.7 | E19: 1.8 | F19: 3.5 | G19: 4 | H19: 4.2 | I19: 2.9 | J19: 3.8 | K19: 4.7 | L19: 4 | M19: 0.7 | N19: 0.9 | O19: 0.3 | P19: 1 | Q19: 2.7 | R19: 4.1 | S19: 0.8 | T19: 0.3 | U19: 3.1 | V19: 2 | W19: 2 | BB19: Limited | BC19: N/A | BD19: N/A | BE19: N/A | BF19: N/A | BG19: N/A | BH19: N/A | BI19: N/A | BJ19: N/A | BK19: N/A | BL19: N/A | BM19: N/A | BN19: N/A | BO19: N/A | BP19: N/A | BQ19: N/A | BR19: N/A | BS19: N/A | BT19: N/A | BU19: N/A | BV19: N/A | BW19: N/A
B20: Unimproved | C20: 28.1 | D20: 25.7 | E20: 18.5 | F20: 15.4 | G20: 7.2 | H20: 16.4 | I20: 15.8 | J20: 9.2 | K20: 8.2 | L20: 4 | M20: 28 | N20: 28.3 | O20: 25.8 | P20: 20.2 | Q20: 17.1 | R20: 9.2 | S20: 22.6 | T20: 11.8 | U20: 35 | V20: 21.4 | W20: 11.5 | BB20: Unimproved | BC20: N/A | BD20: N/A | BE20: N/A | BF20: N/A | BG20: N/A | BH20: N/A | BI20: N/A | BJ20: N/A | BK20: N/A | BL20: N/A | BM20: N/A | BN20: N/A | BO20: N/A | BP20: N/A | BQ20: N/A | BR20: N/A | BS20: N/A | BT20: N/A | BU20: N/A | BV20: N/A | BW20: N/A
B21: Surface water | C21: 28.4 | D21: 21.1 | E21: 11.5 | F21: 3.1 | G21: 0.2 | H21: 1.1 | I21: 1 | J21: 0.2 | K21: 0 | L21: 0 | M21: 29 | N21: 27.5 | O21: 21.2 | P21: 16.8 | Q21: 6.8 | R21: 0.1 | S21: 16.8 | T21: 16.4 | U21: 13.4 | V21: 20 | W21: 31.7 | BB21: Surface water | BC21: N/A | BD21: N/A | BE21: N/A | BF21: N/A | BG21: N/A | BH21: N/A | BI21: N/A | BJ21: N/A | BK21: N/A | BL21: N/A | BM21: N/A | BN21: N/A | BO21: N/A | BP21: N/A | BQ21: N/A | BR21: N/A | BS21: N/A | BT21: N/A | BU21: N/A | BV21: N/A | BW21: N/A
A22: Improved water point at more than 30 minutes | B22: Yes | C22: 1.9 | D22: 1.4 | E22: 2.5 | F22: 4.3 | G22: 4.3 | H22: 5 | I22: 3.4 | J22: 4.2 | K22: 5.1 | L22: 4.2 | M22: 1.5 | N22: 1.9 | O22: 0.6 | P22: 1.6 | Q22: 3.6 | R22: 4.5 | S22: 1.3 | T22: 0.4 | U22: 6 | V22: 3.4 | W22: 3.4 | BA22: Improved water point at more than 30 minutes | BB22: Yes | BC22: N/A | BD22: N/A | BE22: N/A | BF22: N/A | BG22: N/A | BH22: N/A | BI22: N/A | BJ22: N/A | BK22: N/A | BL22: N/A | BM22: N/A | BN22: N/A | BO22: N/A | BP22: N/A | BQ22: N/A | BR22: N/A | BS22: N/A | BT22: N/A | BU22: N/A | BV22: N/A | BW22: N/A
B23: No | C23: 98.1 | D23: 98.6 | E23: 97.5 | F23: 95.7 | G23: 95.7 | H23: 95 | I23: 96.6 | J23: 95.8 | K23: 94.9 | L23: 95.8 | M23: 98.5 | N23: 98.1 | O23: 99.4 | P23: 98.4 | Q23: 96.4 | R23: 95.5 | S23: 98.7 | T23: 99.6 | U23: 94 | V23: 96.6 | W23: 96.6 | BB23: No | BC23: N/A | BD23: N/A | BE23: N/A | BF23: N/A | BG23: N/A | BH23: N/A | BI23: N/A | BJ23: N/A | BK23: N/A | BL23: N/A | BM23: N/A | BN23: N/A | BO23: N/A | BP23: N/A | BQ23: N/A | BR23: N/A | BS23: N/A | BT23: N/A | BU23: N/A | BV23: N/A | BW23: N/A
A24: Manually calculated ratios | B24: Improved wells
B25: Improved springs
B26: Other
C27: NATIONAL wealth index quintile | H27: URBAN wealth index quintile | M27: RURAL wealth index quintile | R27: SUB-REGIONS: | BA27: Raw numbers of respondents: | BB27: Use of drinking water sources | BC27: NATIONAL wealth index quintile | BH27: URBAN wealth index quintile | BM27: RURAL wealth index quintile | BR27: SUB-REGIONS:
A28: Percentage based on weighted population | C28: Poorest | D28: Poor | E28: Middle | F28: Rich | G28: Richest | H28: Poorest | I28: Poor | J28: Middle | K28: Rich | L28: Richest | M28: Poorest | N28: Poor | O28: Middle | P28: Rich | Q28: Richest | R28: Monrovia | S28: North Central | T28: North Western | U28: South Central | V28: South Eastern A | W28: South Eastern B | BA28: Water data, raw numbers (weighted) | BC28: Poorest | BD28: Poor | BE28: Middle | BF28: Rich | BG28: Richest | BH28: Poorest | BI28: Poor | BJ28: Middle | BK28: Rich | BL28: Richest | BM28: Poorest | BN28: Poor | BO28: Middle | BP28: Rich | BQ28: Richest | BR28: Monrovia | BS28: North Central | BT28: North Western | BU28: South Central | BV28: South Eastern A | BW28: South Eastern B
A29: Piped water | B29: Yes | C29: 0.5 | D29: 0.8 | E29: 3.7 | F29: 14.3 | G29: 17.9 | H29: 11.6 | I29: 22.2 | J29: 23.1 | K29: 17.6 | L29: 22.2 | M29: 0.1 | N29: 0.7 | O29: 0.3 | P29: 0 | Q29: 0.7 | R29: 24.7 | S29: 0.1 | T29: 0.1 | U29: 3 | V29: 0.8 | W29: 0.3 | BA29: Piped water | BB29: Yes | BC29: N/A | BD29: N/A | BE29: N/A | BF29: N/A | BG29: N/A | BH29: N/A | BI29: N/A | BJ29: N/A | BK29: N/A | BL29: N/A | BM29: N/A | BN29: N/A | BO29: N/A | BP29: N/A | BQ29: N/A | BR29: N/A | BS29: N/A | BT29: N/A | BU29: N/A | BV29: N/A | BW29: N/A
B30: No | C30: 99.5 | D30: 99.2 | E30: 96.3 | F30: 85.7 | G30: 82.1 | H30: 88.4 | I30: 77.8 | J30: 76.9 | K30: 82.4 | L30: 77.8 | M30: 99.9 | N30: 99.3 | O30: 99.7 | P30: 100 | Q30: 99.3 | R30: 75.3 | S30: 99.9 | T30: 99.9 | U30: 97 | V30: 99.2 | W30: 99.7 | BB30: No | BC30: N/A | BD30: N/A | BE30: N/A | BF30: N/A | BG30: N/A | BH30: N/A | BI30: N/A | BJ30: N/A | BK30: N/A | BL30: N/A | BM30: N/A | BN30: N/A | BO30: N/A | BP30: N/A | BQ30: N/A | BR30: N/A | BS30: N/A | BT30: N/A | BU30: N/A | BV30: N/A | BW30: N/A
A31: Piped water on premises | B31: Yes | C31: 0 | D31: 0.5 | E31: 0.9 | F31: 6.4 | G31: 6.7 | H31: 3.5 | I31: 10.5 | J31: 9.1 | K31: 6 | L31: 8.8 | M31: 0 | N31: 0 | O31: 0.1 | P31: 0 | Q31: 0.4 | R31: 9.2 | S31: 0.1 | T31: 0 | U31: 2 | V31: 0.2 | W31: 0 | BA31: Piped water on premises | BB31: Yes | BC31: N/A | BD31: N/A | BE31: N/A | BF31: N/A | BG31: N/A | BH31: N/A | BI31: N/A | BJ31: N/A | BK31: N/A | BL31: N/A | BM31: N/A | BN31: N/A | BO31: N/A | BP31: N/A | BQ31: N/A | BR31: N/A | BS31: N/A | BT31: N/A | BU31: N/A | BV31: N/A | BW31: N/A
B32: No | C32: 100 | D32: 99.5 | E32: 99.1 | F32: 93.6 | G32: 93.3 | H32: 96.5 | I32: 89.5 | J32: 90.9 | K32: 94 | L32: 91.2 | M32: 100 | N32: 100 | O32: 99.9 | P32: 100 | Q32: 99.6 | R32: 90.8 | S32: 99.9 | T32: 100 | U32: 98 | V32: 99.8 | W32: 100 | BB32: No | BC32: N/A | BD32: N/A | BE32: N/A | BF32: N/A | BG32: N/A | BH32: N/A | BI32: N/A | BJ32: N/A | BK32: N/A | BL32: N/A | BM32: N/A | BN32: N/A | BO32: N/A | BP32: N/A | BQ32: N/A | BR32: N/A | BS32: N/A | BT32: N/A | BU32: N/A | BV32: N/A | BW32: N/A
A33: Piped water into dwelling | B33: Yes | C33: N/A | D33: N/A | E33: N/A | F33: N/A | G33: N/A | H33: N/A | I33: N/A | J33: N/A | K33: N/A | L33: N/A | M33: N/A | N33: N/A | O33: N/A | P33: N/A | Q33: N/A | R33: N/A | S33: N/A | T33: N/A | U33: N/A | V33: N/A | W33: N/A | BA33: Piped water into dwelling | BB33: Yes | BC33: N/A | BD33: N/A | BE33: N/A | BF33: N/A | BG33: N/A | BH33: N/A | BI33: N/A | BJ33: N/A | BK33: N/A | BL33: N/A | BM33: N/A | BN33: N/A | BO33: N/A | BP33: N/A | BQ33: N/A | BR33: N/A | BS33: N/A | BT33: N/A | BU33: N/A | BV33: N/A | BW33: N/A
B34: No | C34: N/A | D34: N/A | E34: N/A | F34: N/A | G34: N/A | H34: N/A | I34: N/A | J34: N/A | K34: N/A | L34: N/A | M34: N/A | N34: N/A | O34: N/A | P34: N/A | Q34: N/A | R34: N/A | S34: N/A | T34: N/A | U34: N/A | V34: N/A | W34: N/A | BB34: No | BC34: N/A | BD34: N/A | BE34: N/A | BF34: N/A | BG34: N/A | BH34: N/A | BI34: N/A | BJ34: N/A | BK34: N/A | BL34: N/A | BM34: N/A | BN34: N/A | BO34: N/A | BP34: N/A | BQ34: N/A | BR34: N/A | BS34: N/A | BT34: N/A | BU34: N/A | BV34: N/A | BW34: N/A
A35: Water source on premises | B35: Yes | C35: 5.7 | D35: 8.3 | E35: 9.2 | F35: 17 | G35: 16 | H35: 11.4 | I35: 21.9 | J35: 16.2 | K35: 13.5 | L35: 18 | M35: 4.8 | N35: 6.2 | O35: 9.3 | P35: 7.6 | Q35: 13.6 | R35: 16.7 | S35: 8 | T35: 11.6 | U35: 15.7 | V35: 4.8 | W35: 2.8 | BA35: Water source on premises | BB35: Yes | BC35: N/A | BD35: N/A | BE35: N/A | BF35: N/A | BG35: N/A | BH35: N/A | BI35: N/A | BJ35: N/A | BK35: N/A | BL35: N/A | BM35: N/A | BN35: N/A | BO35: N/A | BP35: N/A | BQ35: N/A | BR35: N/A | BS35: N/A | BT35: N/A | BU35: N/A | BV35: N/A | BW35: N/A
B36: No | C36: 94.3 | D36: 91.7 | E36: 90.8 | F36: 83 | G36: 84 | H36: 88.6 | I36: 78.1 | J36: 83.8 | K36: 86.5 | L36: 82 | M36: 95.2 | N36: 93.8 | O36: 90.7 | P36: 92.4 | Q36: 86.4 | R36: 83.3 | S36: 92 | T36: 88.4 | U36: 84.3 | V36: 95.2 | W36: 97.2 | BB36: No | BC36: N/A | BD36: N/A | BE36: N/A | BF36: N/A | BG36: N/A | BH36: N/A | BI36: N/A | BJ36: N/A | BK36: N/A | BL36: N/A | BM36: N/A | BN36: N/A | BO36: N/A | BP36: N/A | BQ36: N/A | BR36: N/A | BS36: N/A | BT36: N/A | BU36: N/A | BV36: N/A | BW36: N/A
A37: Improved Water source on premises | B37: Yes | C37: 4.5 | D37: 7.2 | E37: 7.6 | F37: 15 | G37: 15.4 | H37: 8 | I37: 19.3 | J37: 15.6 | K37: 13 | L37: 17.5 | M37: 3.9 | N37: 5.2 | O37: 8.2 | P37: 6.5 | Q37: 11.8 | R37: 16.3 | S37: 7.3 | T37: 10.4 | U37: 10.4 | V37: 3.9 | W37: 2.3 | BA37: Improved water source on premises | BB37: Yes | BC37: N/A | BD37: N/A | BE37: N/A | BF37: N/A | BG37: N/A | BH37: N/A | BI37: N/A | BJ37: N/A | BK37: N/A | BL37: N/A | BM37: N/A | BN37: N/A | BO37: N/A | BP37: N/A | BQ37: N/A | BR37: N/A | BS37: N/A | BT37: N/A | BU37: N/A | BV37: N/A | BW37: N/A
B38: No | C38: 95.5 | D38: 92.8 | E38: 92.4 | F38: 85 | G38: 84.6 | H38: 92 | I38: 80.7 | J38: 84.4 | K38: 87 | L38: 82.5 | M38: 96.1 | N38: 94.8 | O38: 91.8 | P38: 93.5 | Q38: 88.2 | R38: 83.7 | S38: 92.7 | T38: 89.6 | U38: 89.6 | V38: 96.1 | W38: 97.7 | BB38: No | BC38: N/A | BD38: N/A | BE38: N/A | BF38: N/A | BG38: N/A | BH38: N/A | BI38: N/A | BJ38: N/A | BK38: N/A | BL38: N/A | BM38: N/A | BN38: N/A | BO38: N/A | BP38: N/A | BQ38: N/A | BR38: N/A | BS38: N/A | BT38: N/A | BU38: N/A | BV38: N/A | BW38: N/A
A39: Piped water on premises available when needed | B39: Yes | C39: N/A | D39: N/A | E39: N/A | F39: N/A | G39: N/A | H39: N/A | I39: N/A | J39: N/A | K39: N/A | L39: N/A | M39: N/A | N39: N/A | O39: N/A | P39: N/A | Q39: N/A | R39: N/A | S39: N/A | T39: N/A | U39: N/A | V39: N/A | W39: N/A | BA39: Piped water on premises available when needed | BB39: Yes | BC39: N/A | BD39: N/A | BE39: N/A | BF39: N/A | BG39: N/A | BH39: N/A | BI39: N/A | BJ39: N/A | BK39: N/A | BL39: N/A | BM39: N/A | BN39: N/A | BO39: N/A | BP39: N/A | BQ39: N/A | BR39: N/A | BS39: N/A | BT39: N/A | BU39: N/A | BV39: N/A | BW39: N/A
B40: No | C40: N/A | D40: N/A | E40: N/A | F40: N/A | G40: N/A | H40: N/A | I40: N/A | J40: N/A | K40: N/A | L40: N/A | M40: N/A | N40: N/A | O40: N/A | P40: N/A | Q40: N/A | R40: N/A | S40: N/A | T40: N/A | U40: N/A | V40: N/A | W40: N/A | BB40: No | BC40: N/A | BD40: N/A | BE40: N/A | BF40: N/A | BG40: N/A | BH40: N/A | BI40: N/A | BJ40: N/A | BK40: N/A | BL40: N/A | BM40: N/A | BN40: N/A | BO40: N/A | BP40: N/A | BQ40: N/A | BR40: N/A | BS40: N/A | BT40: N/A | BU40: N/A | BV40: N/A | BW40: N/A
A41: Water point at more than 30 minutes | B41: Yes | C41: 2.4 | D41: 1.9 | E41: 2.5 | F41: 4.6 | G41: 4.3 | H41: 5.8 | I41: 4.1 | J41: 4.9 | K41: 4.9 | L41: 4 | M41: 1.3 | N41: 3.2 | O41: 1.5 | P41: 1.3 | Q41: 3.5 | R41: 4.9 | S41: 1.7 | T41: 1.3 | U41: 4.1 | V41: 3.3 | W41: 3.2 | BA41: Water point at more than 30 minutes | BB41: Yes | BC41: N/A | BD41: N/A | BE41: N/A | BF41: N/A | BG41: N/A | BH41: N/A | BI41: N/A | BJ41: N/A | BK41: N/A | BL41: N/A | BM41: N/A | BN41: N/A | BO41: N/A | BP41: N/A | BQ41: N/A | BR41: N/A | BS41: N/A | BT41: N/A | BU41: N/A | BV41: N/A | BW41: N/A
B42: No | C42: 97.6 | D42: 98.1 | E42: 97.5 | F42: 95.4 | G42: 95.7 | H42: 94.2 | I42: 95.9 | J42: 95.1 | K42: 95.1 | L42: 96 | M42: 98.7 | N42: 96.8 | O42: 98.5 | P42: 98.7 | Q42: 96.5 | R42: 95.1 | S42: 98.3 | T42: 98.7 | U42: 95.9 | V42: 96.7 | W42: 96.8 | BB42: No | BC42: N/A | BD42: N/A | BE42: N/A | BF42: N/A | BG42: N/A | BH42: N/A | BI42: N/A | BJ42: N/A | BK42: N/A | BL42: N/A | BM42: N/A | BN42: N/A | BO42: N/A | BP42: N/A | BQ42: N/A | BR42: N/A | BS42: N/A | BT42: N/A | BU42: N/A | BV42: N/A | BW42: N/A
A43: Water source available when needed | B43: Yes | C43: N/A | D43: N/A | E43: N/A | F43: N/A | G43: N/A | H43: N/A | I43: N/A | J43: N/A | K43: N/A | L43: N/A | M43: N/A | N43: N/A | O43: N/A | P43: N/A | Q43: N/A | R43: N/A | S43: N/A | T43: N/A | U43: N/A | V43: N/A | W43: N/A | BA43: Water source available when needed | BB43: Yes | BC43: N/A | BD43: N/A | BE43: N/A | BF43: N/A | BG43: N/A | BH43: N/A | BI43: N/A | BJ43: N/A | BK43: N/A | BL43: N/A | BM43: N/A | BN43: N/A | BO43: N/A | BP43: N/A | BQ43: N/A | BR43: N/A | BS43: N/A | BT43: N/A | BU43: N/A | BV43: N/A | BW43: N/A
B44: No | C44: N/A | D44: N/A | E44: N/A | F44: N/A | G44: N/A | H44: N/A | I44: N/A | J44: N/A | K44: N/A | L44: N/A | M44: N/A | N44: N/A | O44: N/A | P44: N/A | Q44: N/A | R44: N/A | S44: N/A | T44: N/A | U44: N/A | V44: N/A | W44: N/A | BB44: No | BC44: N/A | BD44: N/A | BE44: N/A | BF44: N/A | BG44: N/A | BH44: N/A | BI44: N/A | BJ44: N/A | BK44: N/A | BL44: N/A | BM44: N/A | BN44: N/A | BO44: N/A | BP44: N/A | BQ44: N/A | BR44: N/A | BS44: N/A | BT44: N/A | BU44: N/A | BV44: N/A | BW44: N/A
A45: Improved water source available when needed | B45: Yes | C45: N/A | D45: N/A | E45: N/A | F45: N/A | G45: N/A | H45: N/A | I45: N/A | J45: N/A | K45: N/A | L45: N/A | M45: N/A | N45: N/A | O45: N/A | P45: N/A | Q45: N/A | R45: N/A | S45: N/A | T45: N/A | U45: N/A | V45: N/A | W45: N/A | BA45: Improved water source available when needed | BB45: Yes | BC45: N/A | BD45: N/A | BE45: N/A | BF45: N/A | BG45: N/A | BH45: N/A | BI45: N/A | BJ45: N/A | BK45: N/A | BL45: N/A | BM45: N/A | BN45: N/A | BO45: N/A | BP45: N/A | BQ45: N/A | BR45: N/A | BS45: N/A | BT45: N/A | BU45: N/A | BV45: N/A | BW45: N/A
B46: No | C46: N/A | D46: N/A | E46: N/A | F46: N/A | G46: N/A | H46: N/A | I46: N/A | J46: N/A | K46: N/A | L46: N/A | M46: N/A | N46: N/A | O46: N/A | P46: N/A | Q46: N/A | R46: N/A | S46: N/A | T46: N/A | U46: N/A | V46: N/A | W46: N/A | BB46: No | BC46: N/A | BD46: N/A | BE46: N/A | BF46: N/A | BG46: N/A | BH46: N/A | BI46: N/A | BJ46: N/A | BK46: N/A | BL46: N/A | BM46: N/A | BN46: N/A | BO46: N/A | BP46: N/A | BQ46: N/A | BR46: N/A | BS46: N/A | BT46: N/A | BU46: N/A | BV46: N/A | BW46: N/A
A47: Microbiological quality at point of collection | B47: Not contaminated (No E. coli in 100 mL) | C47: N/A | D47: N/A | E47: N/A | F47: N/A | G47: N/A | H47: N/A | I47: N/A | J47: N/A | K47: N/A | L47: N/A | M47: N/A | N47: N/A | O47: N/A | P47: N/A | Q47: N/A | R47: N/A | S47: N/A | T47: N/A | U47: N/A | V47: N/A | W47: N/A | BA47: Microbiological quality at point of collection | BB47: Not contaminated (No E. coli in 100 mL) | BC47: N/A | BD47: N/A | BE47: N/A | BF47: N/A | BG47: N/A | BH47: N/A | BI47: N/A | BJ47: N/A | BK47: N/A | BL47: N/A | BM47: N/A | BN47: N/A | BO47: N/A | BP47: N/A | BQ47: N/A | BR47: N/A | BS47: N/A | BT47: N/A | BU47: N/A | BV47: N/A | BW47: N/A
B48: Contaminated (E. coli detected in 100 mL) | C48: N/A | D48: N/A | E48: N/A | F48: N/A | G48: N/A | H48: N/A | I48: N/A | J48: N/A | K48: N/A | L48: N/A | M48: N/A | N48: N/A | O48: N/A | P48: N/A | Q48: N/A | R48: N/A | S48: N/A | T48: N/A | U48: N/A | V48: N/A | W48: N/A | BB48: Contaminated (E. coli detected in 100 mL) | BC48: N/A | BD48: N/A | BE48: N/A | BF48: N/A | BG48: N/A | BH48: N/A | BI48: N/A | BJ48: N/A | BK48: N/A | BL48: N/A | BM48: N/A | BN48: N/A | BO48: N/A | BP48: N/A | BQ48: N/A | BR48: N/A | BS48: N/A | BT48: N/A | BU48: N/A | BV48: N/A | BW48: N/A
B49: Highly contaminated (>100 CFU/100 mL) | C49: N/A | D49: N/A | E49: N/A | F49: N/A | G49: N/A | H49: N/A | I49: N/A | J49: N/A | K49: N/A | L49: N/A | M49: N/A | N49: N/A | O49: N/A | P49: N/A | Q49: N/A | R49: N/A | S49: N/A | T49: N/A | U49: N/A | V49: N/A | W49: N/A | BB49: Highly contaminated (>100 CFU/100 mL) | BC49: N/A | BD49: N/A | BE49: N/A | BF49: N/A | BG49: N/A | BH49: N/A | BI49: N/A | BJ49: N/A | BK49: N/A | BL49: N/A | BM49: N/A | BN49: N/A | BO49: N/A | BP49: N/A | BQ49: N/A | BR49: N/A | BS49: N/A | BT49: N/A | BU49: N/A | BV49: N/A | BW49: N/A
A50: Microbiological quality of improved water sources at point of collection | B50: Not contaminated (No E. coli in 100 mL) | C50: N/A | D50: N/A | E50: N/A | F50: N/A | G50: N/A | H50: N/A | I50: N/A | J50: N/A | K50: N/A | L50: N/A | M50: N/A | N50: N/A | O50: N/A | P50: N/A | Q50: N/A | R50: N/A | S50: N/A | T50: N/A | U50: N/A | V50: N/A | W50: N/A | BA50: Microbiological quality of improved water sources at point of collection | BB50: Not contaminated (No E. coli in 100 mL) | BC50: N/A | BD50: N/A | BE50: N/A | BF50: N/A | BG50: N/A | BH50: N/A | BI50: N/A | BJ50: N/A | BK50: N/A | BL50: N/A | BM50: N/A | BN50: N/A | BO50: N/A | BP50: N/A | BQ50: N/A | BR50: N/A | BS50: N/A | BT50: N/A | BU50: N/A | BV50: N/A | BW50: N/A
B51: Contaminated (E. coli detected in 100 mL) | C51: N/A | D51: N/A | E51: N/A | F51: N/A | G51: N/A | H51: N/A | I51: N/A | J51: N/A | K51: N/A | L51: N/A | M51: N/A | N51: N/A | O51: N/A | P51: N/A | Q51: N/A | R51: N/A | S51: N/A | T51: N/A | U51: N/A | V51: N/A | W51: N/A | BB51: Contaminated (E. coli detected in 100 mL) | BC51: N/A | BD51: N/A | BE51: N/A | BF51: N/A | BG51: N/A | BH51: N/A | BI51: N/A | BJ51: N/A | BK51: N/A | BL51: N/A | BM51: N/A | BN51: N/A | BO51: N/A | BP51: N/A | BQ51: N/A | BR51: N/A | BS51: N/A | BT51: N/A | BU51: N/A | BV51: N/A | BW51: N/A
B52: Highly contaminated (>100 CFU/100 mL) | C52: N/A | D52: N/A | E52: N/A | F52: N/A | G52: N/A | H52: N/A | I52: N/A | J52: N/A | K52: N/A | L52: N/A | M52: N/A | N52: N/A | O52: N/A | P52: N/A | Q52: N/A | R52: N/A | S52: N/A | T52: N/A | U52: N/A | V52: N/A | W52: N/A | BB52: Highly contaminated (>100 CFU/100 mL) | BC52: N/A | BD52: N/A | BE52: N/A | BF52: N/A | BG52: N/A | BH52: N/A | BI52: N/A | BJ52: N/A | BK52: N/A | BL52: N/A | BM52: N/A | BN52: N/A | BO52: N/A | BP52: N/A | BQ52: N/A | BR52: N/A | BS52: N/A | BT52: N/A | BU52: N/A | BV52: N/A | BW52: N/A
A53: Microbiological quality of piped on premises at point of collection | B53: Not contaminated (No E. coli in 100 mL) | C53: N/A | D53: N/A | E53: N/A | F53: N/A | G53: N/A | H53: N/A | I53: N/A | J53: N/A | K53: N/A | L53: N/A | M53: N/A | N53: N/A | O53: N/A | P53: N/A | Q53: N/A | R53: N/A | S53: N/A | T53: N/A | U53: N/A | V53: N/A | W53: N/A | BA53: Microbiological quality of piped on premises at point of collection | BB53: Not contaminated (No E. coli in 100 mL) | BC53: N/A | BD53: N/A | BE53: N/A | BF53: N/A | BG53: N/A | BH53: N/A | BI53: N/A | BJ53: N/A | BK53: N/A | BL53: N/A | BM53: N/A | BN53: N/A | BO53: N/A | BP53: N/A | BQ53: N/A | BR53: N/A | BS53: N/A | BT53: N/A | BU53: N/A | BV53: N/A | BW53: N/A
B54: Contaminated (E. coli detected in 100 mL) | C54: N/A | D54: N/A | E54: N/A | F54: N/A | G54: N/A | H54: N/A | I54: N/A | J54: N/A | K54: N/A | L54: N/A | M54: N/A | N54: N/A | O54: N/A | P54: N/A | Q54: N/A | R54: N/A | S54: N/A | T54: N/A | U54: N/A | V54: N/A | W54: N/A | BB54: Contaminated (E. coli detected in 100 mL) | BC54: N/A | BD54: N/A | BE54: N/A | BF54: N/A | BG54: N/A | BH54: N/A | BI54: N/A | BJ54: N/A | BK54: N/A | BL54: N/A | BM54: N/A | BN54: N/A | BO54: N/A | BP54: N/A | BQ54: N/A | BR54: N/A | BS54: N/A | BT54: N/A | BU54: N/A | BV54: N/A | BW54: N/A
B55: Highly contaminated (>100 CFU/100 mL) | C55: N/A | D55: N/A | E55: N/A | F55: N/A | G55: N/A | H55: N/A | I55: N/A | J55: N/A | K55: N/A | L55: N/A | M55: N/A | N55: N/A | O55: N/A | P55: N/A | Q55: N/A | R55: N/A | S55: N/A | T55: N/A | U55: N/A | V55: N/A | W55: N/A | BB55: Highly contaminated (>100 CFU/100 mL) | BC55: N/A | BD55: N/A | BE55: N/A | BF55: N/A | BG55: N/A | BH55: N/A | BI55: N/A | BJ55: N/A | BK55: N/A | BL55: N/A | BM55: N/A | BN55: N/A | BO55: N/A | BP55: N/A | BQ55: N/A | BR55: N/A | BS55: N/A | BT55: N/A | BU55: N/A | BV55: N/A | BW55: N/A
C56: NATIONAL wealth index quintile | H56: URBAN wealth index quintile | M56: RURAL wealth index quintile | R56: SUB-REGIONS: | BA56: Raw numbers of respondents: | BB56: Use of drinking water sources | BC56: NATIONAL wealth index quintile | BH56: URBAN wealth index quintile | BM56: RURAL wealth index quintile | BR56: SUB-REGIONS:
A57: Percentage based on weighted population | C57: Poorest | D57: Poor | E57: Middle | F57: Rich | G57: Richest | H57: Poorest | I57: Poor | J57: Middle | K57: Rich | L57: Richest | M57: Poorest | N57: Poor | O57: Middle | P57: Rich | Q57: Richest | R57: Monrovia | S57: North Central | T57: North Western | U57: South Central | V57: South Eastern A | W57: South Eastern B | BA57: Water data, raw numbers (weighted) | BC57: Poorest | BD57: Poor | BE57: Middle | BF57: Rich | BG57: Richest | BH57: Poorest | BI57: Poor | BJ57: Middle | BK57: Rich | BL57: Richest | BM57: Poorest | BN57: Poor | BO57: Middle | BP57: Rich | BQ57: Richest | BR57: Monrovia | BS57: North Central | BT57: North Western | BU57: South Central | BV57: South Eastern A | BW57: South Eastern B
A58: Source of drinking water | B58: Piped into dwelling | C58: 0 | D58: 0.01315954403 | E58: 0.01183277836 | F58: 0.8644675401 | G58: 2.389306457 | H58: 0.03160105385 | I58: 1.322252215 | J58: 2.159523077 | K58: 1.343710722 | L58: 3.431544092 | M58: 0 | N58: 0 | O58: 0.02094574728 | P58: 0 | Q58: 0.2690891147 | R58: 2.152625056 | S58: 0 | T58: 0 | U58: 0.3302293195 | V58: 0.1177183401 | W58: 0
B59: Piped to yard/plot | C59: 0 | D59: 0.4593159964 | E59: 0.8894805804 | F59: 5.495451965 | G59: 4.232032271 | H59: 3.514607334 | I59: 9.134267861 | J59: 6.896056868 | K59: 4.629379533 | L59: 5.219649389 | M59: 0 | N59: 0 | O59: 0.0511767702 | P59: 0 | Q59: 0.1025640275 | R59: 6.973879223 | S59: 0.07234237244 | T59: 0 | U59: 1.646188249 | V59: 0.09585236445 | W59: 0
B60: Public tap/standpipe | C60: 0.5297623361 | D60: 0.323915988 | E60: 2.76763197 | F60: 7.960755766 | G60: 11.21115114 | H60: 8.00381825 | I60: 11.72495635 | J60: 14.0155074 | K60: 11.63461249 | L60: 13.38736855 | M60: 0.1376836799 | N60: 0.6619673092 | O60: 0.1803933259 | P60: 0.01582169791 | Q60: 0.3424770551 | R60: 15.55839945 | S60: 0 | T60: 0.1474730406 | U60: 1.052565711 | V60: 0.5691820624 | W60: 0.3180829259
B61: Tube well or borehole | C61: 1.822620206 | D61: 1.977981218 | E61: 3.631602311 | F61: 4.487491827 | G61: 3.174644854 | H61: 5.166762661 | I61: 5.355266869 | J61: 4.190286177 | K61: 3.869160594 | L61: 1.252286739 | M61: 2.108963451 | N61: 0.9964564858 | O61: 1.733318148 | P61: 3.856030269 | Q61: 3.58343036 | R61: 3.162255213 | S61: 3.941904026 | T61: 1.009608669 | U61: 3.074551128 | V61: 2.039320807 | W61: 0.7700633061
B62: Protected well | C62: 38.61659692 | D62: 47.49894918 | E62: 60.97130595 | F62: 59.71303527 | G62: 65.40847776 | H62: 62.61230251 | I62: 52.23700944 | J62: 58.03861864 | K62: 62.93218674 | L62: 65.09809551 | M62: 38.54757877 | N62: 38.49424604 | O62: 48.55145245 | P62: 58.29720987 | Q62: 71.24197331 | R62: 55.6921276 | S62: 54.82539344 | T62: 68.73343562 | U62: 45.06135444 | V62: 49.2740798 | W62: 55.88137974
B63: Unprotected well | C63: 12.73051253 | D63: 14.80881149 | E63: 13.97880742 | F63: 11.13268718 | G63: 4.169608582 | H63: 12.56973424 | I63: 10.33577325 | J63: 4.62001675 | K63: 3.515673809 | L63: 2.657759227 | M63: 10.54136821 | N63: 15.99173701 | O63: 14.59950244 | P63: 15.06904156 | Q63: 14.40414665 | R63: 4.540824966 | S63: 15.7607437 | T63: 5.600284165 | U63: 21.88583638 | V63: 4.181612873 | W63: 7.216333885
B64: Protected spring | C64: 2.627477642 | D64: 2.996106116 | E64: 0.9345413373 | F64: 0.1446703595 | G64: 0.1215064415 | H64: 0 | I64: 0.06178128825 | J64: 0.06377303179 | K64: 0.3254324264 | L64: 0 | M64: 2.258921105 | N64: 4.009724444 | O64: 2.697781949 | P64: 1.493693228 | Q64: 0.156763396 | R64: 0.08722215176 | S64: 1.961381586 | T64: 2.19026659 | U64: 0.3189106775 | V64: 6.166640685 | W64: 0
B65: Unprotected spring | C65: 15.18765985 | D65: 10.52524046 | E65: 3.283490552 | F65: 1.299271096 | G65: 0.1393658057 | H65: 0.8447603591 | I65: 0.5366454619 | J65: 0.1550330169 | K65: 0.2714613627 | L65: 0 | M65: 17.34521963 | N65: 12.10564107 | O65: 11.03005464 | P65: 4.595959911 | Q65: 2.412695415 | R65: 0.03733181958 | S65: 6.597063213 | T65: 5.131656797 | U65: 12.99646659 | V65: 16.74883495 | W65: 3.896095694
B66: River/dam/lake/ponds/stream/canal/irirgation channel | C66: 28.38637393 | D66: 21.0878544 | E66: 11.36760226 | F66: 3.112463614 | G66: 0.1654602914 | H66: 1.067659658 | I66: 1.019538255 | J66: 0.2230775965 | K66: 0 | L66: 0 | M66: 28.99808969 | N66: 27.43319431 | O66: 21.09997499 | P66: 16.67224346 | Q66: 6.751476928 | R66: 0.05792900714 | S66: 16.72885052 | T66: 16.26707764 | U66: 13.44596886 | V66: 20.02326362 | W66: 31.80961607
B67: Rainwater | C67: 0.02688391841 | D67: 0.1325721501 | E67: 0 | F67: 0 | G67: 0 | H67: 0 | I67: 0 | J67: 0 | K67: 0 | L67: 0 | M67: 0.04295729707 | N67: 0.2111126784 | O67: 0 | P67: 0 | Q67: 0 | R67: 0 | S67: 0 | T67: 0 | U67: 0 | V67: 0.4755635162 | W67: 0
B68: Tanker truck | C68: 0 | D68: 0.02832342612 | E68: 0.6657262372 | F68: 1.536320994 | G68: 4.380137427 | H68: 1.853443856 | I68: 2.508909534 | J68: 2.543755158 | K68: 4.693511516 | L68: 6.084797482 | M68: 0 | N68: 0 | O68: 0 | P68: 0 | Q68: 0 | R68: 4.727055271 | S68: 0 | T68: 0 | U68: 0 | V68: 0 | W68: 0.07950196918
B69: Cart with small tank | C69: 0 | D69: 0.06182231466 | E69: 0.4574940378 | F69: 1.378414187 | G69: 1.320998208 | H69: 1.386663656 | I69: 0.893031067 | J69: 2.742075749 | K69: 2.222532228 | L69: 0.4695641797 | M69: 0 | N69: 0 | O69: 0 | P69: 0 | Q69: 0.5433294634 | R69: 2.061938469 | S69: 0.1123211364 | T69: 0 | U69: 0.1879286406 | V69: 0 | W69: 0.02418439101
B70: Bottled water | C70: 0 | D70: 0 | E70: 0 | F70: 0 | G70: 0.4405020636 | H70: 0 | I70: 0 | J70: 0 | K70: 0.1489739768 | L70: 1.027325093 | M70: 0 | N70: 0 | O70: 0 | P70: 0 | Q70: 0 | R70: 0.3162098845 | S70: 0 | T70: 0 | U70: 0 | V70: 0 | W70: 0
B71: Other | C71: 0.07211265671 | D71: 0.08594771141 | E71: 1.04048457 | F71: 2.8749702 | G71: 2.846808689 | H71: 2.948646424 | I71: 4.870568417 | J71: 4.352276534 | K71: 4.413364599 | L71: 1.371609738 | M71: 0.01921817503 | N71: 0.09592064563 | O71: 0.03539953779 | P71: 0 | Q71: 0.1920542789 | R71: 4.632201891 | S71: 0 | T71: 0.9201974828 | U71: 0 | V71: 0.3079309819 | W71: 0.004742012651
A108: =A1026 -> Liberia
A109: =A1034 -> 2007
A110: Use of sanitation facilities
A111: by wealth quintile and sub-national region
A112: Notes:
A113: WHO/UNICEF JMP customised wealth index excludes water,
A114: sanitation and hygiene assets.
A115: Survey used for analysis: | B115: =A1025 -> DHS07
A116: =B1030 -> 
A117: =B1029 -> 
A120: Use of sanitation facilities | C120: NATIONAL wealth index quintile | H120: URBAN wealth index quintile | M120: RURAL wealth index quintile | R120: SUB-REGIONS: | BA120: Raw numbers of respondents: | BB120: Use of sanitation facilities | BC120: NATIONAL wealth index quintile | BH120: URBAN wealth index quintile | BM120: RURAL wealth index quintile | BR120: SUB-REGIONS:
A121: Weighted percentage (used in graphs) | C121: Poorest | D121: Poor | E121: Middle | F121: Rich | G121: Richest | H121: Poorest | I121: Poor | J121: Middle | K121: Rich | L121: Richest | M121: Poorest | N121: Poor | O121: Middle | P121: Rich | Q121: Richest | R121: Monrovia | S121: North Central | T121: North Western | U121: South Central | V121: South Eastern A | W121: South Eastern B | BA121: Sanitation data, raw numbers (weighted) | BC121: Poorest | BD121: Poor | BE121: Middle | BF121: Rich | BG121: Richest | BH121: Poorest | BI121: Poor | BJ121: Middle | BK121: Rich | BL121: Richest | BM121: Poorest | BN121: Poor | BO121: Middle | BP121: Rich | BQ121: Richest | BR121: Monrovia | BS121: North Central | BT121: North Western | BU121: South Central | BV121: South Eastern A | BW121: South Eastern B
A122: Sanitation | B122: Improved | C122: 9.178021266 | D122: 11.54541404 | E122: 21.12154753 | F122: 34.10143536 | G122: 65.72661058 | H122: 21.51182759 | I122: 33.18455495 | J122: 42.87043669 | K122: 60.72527614 | L122: 76.69894239 | M122: 9.402146413 | N122: 8.420201588 | O122: 12.61392661 | P122: 18.94821304 | Q122: 36.64637467 | R122: 53.17622357 | S122: 17.28683715 | T122: 29.84014987 | U122: 22.9059208 | V122: 11.46834655 | W122: 11.74266252 | BA122: Sanitation | BB122: Improved | BC122: 636.66212 | BD122: 799.85943 | BE122: 1463.58091 | BF122: 2365.86812 | BG122: 4553.14672 | BH122: 557.65511 | BI122: 860.09479 | BJ122: 1106.80061 | BK122: 1570.64626 | BL122: 1990.56779 | BM122: 408.01908 | BN122: 365.87716 | BO122: 548.29933 | BP122: 824.07344 | BQ122: 1587.08373 | BR122: 5131.68991 | BS122: 2155.81587 | BT122: 822.52059 | BU122: 1163.10417 | BV122: 266.34736 | BW122: 279.6394
B123: Not Improved | C123: 90.82197873 | D123: 88.45458596 | E123: 78.87845247 | F123: 65.89856464 | G123: 34.27338942 | H123: 78.48817241 | I123: 66.81544505 | J123: 57.12956331 | K123: 39.27472386 | L123: 23.30105761 | M123: 90.59785359 | N123: 91.57979841 | O123: 87.38607339 | P123: 81.05178696 | Q123: 63.35362533 | R123: 46.82377643 | S123: 82.71316285 | T123: 70.15985013 | U123: 77.0940792 | V123: 88.53165345 | W123: 88.25733748 | BB123: Not Improved | BC123: 6300.15031 | BD123: 6128.0812 | BE123: 5465.74521 | BF123: 4571.86953 | BG123: 2374.25556 | BH123: 2034.6635 | BI123: 1731.75793 | BJ123: 1474.93332 | BK123: 1015.83232 | BL123: 604.73239 | BM123: 3931.61851 | BN123: 3979.35325 | BO123: 3798.47822 | BP123: 3525.00918 | BQ123: 2743.72319 | BR123: 4518.65674 | BS123: 10315.03609 | BT123: 1933.90186 | BU123: 3914.64049 | BV123: 2056.10914 | BW123: 2101.75749
A124: Sanitation ladder | B124: Basic | C124: =C122*C129/100 -> 0.4660447743 | D124: =D122*D129/100 -> 1.077790449 | E124: =E122*E129/100 -> 2.912662444 | F124: 9.744757846 | G124: 42.43709988 | H124: 2.39903753 | I124: 7.120775432 | J124: 13.96635761 | K124: 32.0486876 | L124: 61.4883768 | M124: 0.4020720541 | N124: 0.7487773243 | O124: 1.04547718 | P124: 3.350358518 | Q124: 14.98222808 | R124: 27.75903546 | S124: 5.139975625 | T124: 1.897496518 | U124: 8.894839549 | V124: 2.471133201 | W124: 1.530549156 | BA124: Sanitation ladder | BB124: Basic | BC124: 32.30472 | BD124: 72.71813 | BE124: 201.26394 | BF124: 669.32464 | BG124: 2900.46341 | BH124: 61.68207 | BI124: 182.99333 | BJ124: 359.11323 | BK124: 821.93459 | BL124: 1576.60733 | BM124: 17.44847 | BN124: 32.5361 | BO124: 43.71277 | BP124: 145.70986 | BQ124: 634.33709 | BR124: 2659.66046 | BS124: 625.49142 | BT124: 52.30302 | BU124: 446.39832 | BV124: 55.77317 | BW124: 36.44845
B125: Limited | C125: =C122*C128/100 -> 8.711976492 | D125: =D122*D128/100 -> 10.46762359 | E125: =E122*E128/100 -> 18.20888509 | F125: 24.35667751 | G125: 23.28951071 | H125: 19.11279006 | I125: 26.06377951 | J125: 28.90407908 | K125: 28.67658854 | L125: 15.2105656 | M125: 9.000074359 | N125: 7.671424264 | O125: 11.56844943 | P125: 15.59785452 | Q125: 21.66414658 | R125: 25.41718811 | S125: 12.14686153 | T125: 27.94265335 | U125: 14.01108125 | V125: 8.997213354 | W125: 10.21211336 | BB125: Limited | BC125: 603.8861 | BD125: 706.24676 | BE125: 1258.22749 | BF125: 1672.95326 | BG125: 1591.77639 | BH125: 491.41226 | BI125: 669.80034 | BJ125: 743.20288 | BK125: 735.45227 | BL125: 390.01012 | BM125: 390.57061 | BN125: 333.34106 | BO125: 483.69202 | BP125: 678.36358 | BQ125: 917.24486 | BR125: 2435.28239 | BS125: 1478.16998 | BT125: 770.21757 | BU125: 703.16312 | BV125: 203.06599 | BW125: 243.19095
B126: Unimproved | C126: =100-C124-C125-C127 -> 8.767830253 | D126: =100-D124-D125-D127 -> 14.62195254 | E126: =100-E124-E125-E127 -> 16.46900692 | F126: 25.09045694 | G126: 19.78229421 | H126: 28.66773461 | I126: 28.52847992 | J126: 29.58287102 | K126: 20.55794125 | L126: 16.26290406 | M126: 6.389786572 | N126: 10.27101437 | O126: 14.32532296 | P126: 12.30511229 | Q126: 18.17177476 | R126: 21.58064011 | S126: 12.65134906 | T126: 18.69633699 | U126: 12.19539634 | V126: 13.8354233 | W126: 30.81607157 | BB126: Unimproved | BC126: 608.59466 | BD126: 1028.42718 | BE126: 1143.74342 | BF126: 1750.3368 | BG126: 1379.22518 | BH126: 745.43122 | BI126: 742.21156 | BJ126: 764.98635 | BK126: 534.20848 | BL126: 423.75684 | BM126: 277.29358 | BN126: 446.29924 | BO126: 637.95563 | BP126: 535.1595 | BQ126: 803.02484 | BR126: 2091.88269 | BS126: 1614.27138 | BT126: 515.35003 | BU126: 628.04014 | BV126: 326.93003 | BW126: 733.85297
B127: Open defecation | C127: 82.05414848 | D127: 73.83263342 | E127: 62.40944555 | F127: 40.8081077 | G127: 14.49109521 | H127: 49.8204378 | I127: 38.28696514 | J127: 27.54669229 | K127: 18.71678261 | L127: 7.038153548 | M127: 84.20806702 | N127: 81.30878404 | O127: 73.06075043 | P127: 68.74667467 | Q127: 45.18185057 | R127: 25.24313632 | S127: 70.06181379 | T127: 51.46351315 | U127: 64.89868286 | V127: 74.69623015 | W127: 57.44126591 | BB127: Open defecation | BC127: 5691.55565 | BD127: 5099.65402 | BE127: 4322.00179 | BF127: 2821.53273 | BG127: 995.03038 | BH127: 1289.23228 | BI127: 989.54637 | BJ127: 709.94697 | BK127: 481.62384 | BL127: 180.97555 | BM127: 3654.32493 | BN127: 3533.05401 | BO127: 3160.52259 | BP127: 2989.84968 | BQ127: 1940.69835 | BR127: 2426.77405 | BS127: 8700.76471 | BT127: 1418.55183 | BU127: 3286.60035 | BV127: 1729.17911 | BW127: 1367.90452
A128: Shared among Improved Sanitation | B128: Yes | C128: 94.92216502 | D128: 90.66477438 | E128: 86.20999508 | F128: 71.42420035 | G128: 35.43391406 | H128: 88.84782095 | I128: 78.54189865 | J128: 67.42193761 | K128: 47.22347985 | L128: 19.83151934 | M128: 95.7236142 | N128: 91.10737057 | O128: 91.71172298 | P128: 82.31834046 | Q128: 59.11675242 | R128: 47.79803153 | S128: 70.26653529 | T128: 93.6411294 | U128: 61.16794593 | V128: 78.4525765 | W128: 86.96591038 | BA128: Shared among improved sanitation facilities | BB128: Yes | BC128: N/A | BD128: N/A | BE128: N/A | BF128: N/A | BG128: N/A | BH128: N/A | BI128: N/A | BJ128: N/A | BK128: N/A | BL128: N/A | BM128: N/A | BN128: N/A | BO128: N/A | BP128: N/A | BQ128: N/A | BR128: N/A | BS128: N/A | BT128: N/A | BU128: N/A | BV128: N/A | BW128: N/A
B129: No | C129: 5.07783498 | D129: 9.335225622 | E129: 13.79000492 | F129: 28.57579965 | G129: 64.56608594 | H129: 11.15217905 | I129: 21.45810135 | J129: 32.57806239 | K129: 52.77652015 | L129: 80.16848066 | M129: 4.2763858 | N129: 8.892629428 | O129: 8.288277018 | P129: 17.68165954 | Q129: 40.88324758 | R129: 52.20196847 | S129: 29.73346471 | T129: 6.358870603 | U129: 38.83205407 | V129: 21.5474235 | W129: 13.03408962 | BB129: No | BC129: N/A | BD129: N/A | BE129: N/A | BF129: N/A | BG129: N/A | BH129: N/A | BI129: N/A | BJ129: N/A | BK129: N/A | BL129: N/A | BM129: N/A | BN129: N/A | BO129: N/A | BP129: N/A | BQ129: N/A | BR129: N/A | BS129: N/A | BT129: N/A | BU129: N/A | BV129: N/A | BW129: N/A
A130: Manually calculated ratios | B130: Improved latrines
B131: Other
B132: Other
C133: NATIONAL wealth index quintile | H133: URBAN wealth index quintile | M133: RURAL wealth index quintile | R133: SUB-REGIONS: | BA133: Raw numbers of respondents: | BB133: Use of sanitation facilities | BC133: NATIONAL wealth index quintile | BH133: URBAN wealth index quintile | BM133: RURAL wealth index quintile | BR133: SUB-REGIONS:
A134: Percentage based on weighted population | C134: Poorest | D134: Poor | E134: Middle | F134: Rich | G134: Richest | H134: Poorest | I134: Poor | J134: Middle | K134: Rich | L134: Richest | M134: Poorest | N134: Poor | O134: Middle | P134: Rich | Q134: Richest | R134: Monrovia | S134: North Central | T134: North Western | U134: South Central | V134: South Eastern A | W134: South Eastern B | BA134: Sanitation data, raw numbers (weighted) | BC134: Poorest | BD134: Poor | BE134: Middle | BF134: Rich | BG134: Richest | BH134: Poorest | BI134: Poor | BJ134: Middle | BK134: Rich | BL134: Richest | BM134: Poorest | BN134: Poor | BO134: Middle | BP134: Rich | BQ134: Richest | BR134: Monrovia | BS134: North Central | BT134: North Western | BU134: South Central | BV134: South Eastern A | BW134: South Eastern B
A135: Sanitation type | B135: Sewer connection | C135: 0 | D135: 0.1484163989 | E135: 0.5814578402 | F135: 3.662037437 | G135: 11.59324517 | H135: 1.950890982 | I135: 3.850505827 | J135: 5.323044269 | K135: 9.440298554 | L135: 16.95918389 | M135: 0 | N135: 0 | O135: 0 | P135: 0 | Q135: 3.131840613 | R135: 9.899493196 | S135: 0.3918490906 | T135: 0.1367841856 | U135: 1.70834565 | V135: 0.3080733697 | W135: 0.2466455728 | BA135: Sanitation type | BB135: Sewer connection | BC135: N/A | BD135: N/A | BE135: N/A | BF135: N/A | BG135: N/A | BH135: N/A | BI135: N/A | BJ135: N/A | BK135: N/A | BL135: N/A | BM135: N/A | BN135: N/A | BO135: N/A | BP135: N/A | BQ135: N/A | BR135: N/A | BS135: N/A | BT135: N/A | BU135: N/A | BV135: N/A | BW135: N/A
B136: Septic tank connection | C136: 0.1468074869 | D136: 0 | E136: 1.15775616 | F136: 8.325322304 | G136: 33.90920629 | H136: 3.303653713 | I136: 9.255686411 | J136: 14.06548118 | K136: 28.85994053 | L136: 47.47774494 | M136: 0 | N136: 0 | O136: 0 | P136: 0.04945939611 | Q136: 8.025273729 | R136: 25.63771696 | S136: 1.931415358 | T136: 0.364424546 | U136: 4.728110925 | V136: 0.5520680366 | W136: 1.641224953 | BB136: Septic tank connection | BC136: N/A | BD136: N/A | BE136: N/A | BF136: N/A | BG136: N/A | BH136: N/A | BI136: N/A | BJ136: N/A | BK136: N/A | BL136: N/A | BM136: N/A | BN136: N/A | BO136: N/A | BP136: N/A | BQ136: N/A | BR136: N/A | BS136: N/A | BT136: N/A | BU136: N/A | BV136: N/A | BW136: N/A
B137: Improved latrines | C137: 9.031213779 | D137: 11.39699764 | E137: 19.38233353 | F137: 22.11407562 | G137: 20.22415912 | H137: 16.2572829 | I137: 20.07836271 | J137: 23.48191124 | K137: 22.42503706 | L137: 12.26201356 | M137: 9.402146413 | N137: 8.420201588 | O137: 12.61392661 | P137: 18.89875364 | Q137: 25.48926032 | R137: 17.63901341 | S137: 14.96357271 | T137: 29.33894113 | U137: 16.46946422 | V137: 10.60820515 | W137: 9.854791991 | BB137: Improved latrines | BC137: N/A | BD137: N/A | BE137: N/A | BF137: N/A | BG137: N/A | BH137: N/A | BI137: N/A | BJ137: N/A | BK137: N/A | BL137: N/A | BM137: N/A | BN137: N/A | BO137: N/A | BP137: N/A | BQ137: N/A | BR137: N/A | BS137: N/A | BT137: N/A | BU137: N/A | BV137: N/A | BW137: N/A
B138: Unimproved facilities | C138: 8.773405165 | D138: 14.84463039 | E138: 16.5058391 | F138: 25.22921575 | G138: 19.90970243 | H138: 28.7553859 | I138: 28.63633239 | J138: 29.63071992 | K138: 20.65389152 | L138: 16.32785461 | M138: 6.389786572 | N138: 10.27101437 | O138: 14.67651893 | P138: 12.30511229 | Q138: 18.54215288 | R138: 21.67676215 | S138: 12.94435525 | T138: 18.69633699 | U138: 12.36848605 | V138: 14.0769065 | W138: 30.81607157 | BB138: Unimproved facilities | BC138: N/A | BD138: N/A | BE138: N/A | BF138: N/A | BG138: N/A | BH138: N/A | BI138: N/A | BJ138: N/A | BK138: N/A | BL138: N/A | BM138: N/A | BN138: N/A | BO138: N/A | BP138: N/A | BQ138: N/A | BR138: N/A | BS138: N/A | BT138: N/A | BU138: N/A | BV138: N/A | BW138: N/A
B139: Open defecation | C139: 82.04857357 | D139: 73.60995557 | E139: 62.37261337 | F139: 40.66934889 | G139: 14.36368699 | H139: 49.73278651 | I139: 38.17911266 | J139: 27.49884338 | K139: 18.62083234 | L139: 6.973203 | M139: 84.20806702 | N139: 81.30878404 | O139: 72.70955446 | P139: 68.74667467 | Q139: 44.81147245 | R139: 25.14701428 | S139: 69.7688076 | T139: 51.46351315 | U139: 64.72559315 | V139: 74.45474695 | W139: 57.44126591 | BB139: Open defecation | BC139: N/A | BD139: N/A | BE139: N/A | BF139: N/A | BG139: N/A | BH139: N/A | BI139: N/A | BJ139: N/A | BK139: N/A | BL139: N/A | BM139: N/A | BN139: N/A | BO139: N/A | BP139: N/A | BQ139: N/A | BR139: N/A | BS139: N/A | BT139: N/A | BU139: N/A | BV139: N/A | BW139: N/A
A140: Septic tank emptying practices | B140: Not emptied/treated and disposed in situ | C140: N/A | D140: N/A | E140: N/A | F140: N/A | G140: N/A | H140: N/A | I140: N/A | J140: N/A | K140: N/A | L140: N/A | M140: N/A | N140: N/A | O140: N/A | P140: N/A | Q140: N/A | R140: N/A | S140: N/A | T140: N/A | U140: N/A | V140: N/A | W140: N/A | BA140: Septic tank emptying practices | BB140: Not emptied/treated and disposed in situ | BC140: N/A | BD140: N/A | BE140: N/A | BF140: N/A | BG140: N/A | BH140: N/A | BI140: N/A | BJ140: N/A | BK140: N/A | BL140: N/A | BM140: N/A | BN140: N/A | BO140: N/A | BP140: N/A | BQ140: N/A | BR140: N/A | BS140: N/A | BT140: N/A | BU140: N/A | BV140: N/A | BW140: N/A
B141: Emptied and buried on site | C141: N/A | D141: N/A | E141: N/A | F141: N/A | G141: N/A | H141: N/A | I141: N/A | J141: N/A | K141: N/A | L141: N/A | M141: N/A | N141: N/A | O141: N/A | P141: N/A | Q141: N/A | R141: N/A | S141: N/A | T141: N/A | U141: N/A | V141: N/A | W141: N/A | BB141: Emptied and buried on site | BC141: N/A | BD141: N/A | BE141: N/A | BF141: N/A | BG141: N/A | BH141: N/A | BI141: N/A | BJ141: N/A | BK141: N/A | BL141: N/A | BM141: N/A | BN141: N/A | BO141: N/A | BP141: N/A | BQ141: N/A | BR141: N/A | BS141: N/A | BT141: N/A | BU141: N/A | BV141: N/A | BW141: N/A
B142: Emptied and discharged locally | C142: N/A | D142: N/A | E142: N/A | F142: N/A | G142: N/A | H142: N/A | I142: N/A | J142: N/A | K142: N/A | L142: N/A | M142: N/A | N142: N/A | O142: N/A | P142: N/A | Q142: N/A | R142: N/A | S142: N/A | T142: N/A | U142: N/A | V142: N/A | W142: N/A | BB142: Emptied and discharged locally | BC142: N/A | BD142: N/A | BE142: N/A | BF142: N/A | BG142: N/A | BH142: N/A | BI142: N/A | BJ142: N/A | BK142: N/A | BL142: N/A | BM142: N/A | BN142: N/A | BO142: N/A | BP142: N/A | BQ142: N/A | BR142: N/A | BS142: N/A | BT142: N/A | BU142: N/A | BV142: N/A | BW142: N/A
B143: Emptied and removed offsite | C143: N/A | D143: N/A | E143: N/A | F143: N/A | G143: N/A | H143: N/A | I143: N/A | J143: N/A | K143: N/A | L143: N/A | M143: N/A | N143: N/A | O143: N/A | P143: N/A | Q143: N/A | R143: N/A | S143: N/A | T143: N/A | U143: N/A | V143: N/A | W143: N/A | BB143: Emptied and removed offsite | BC143: N/A | BD143: N/A | BE143: N/A | BF143: N/A | BG143: N/A | BH143: N/A | BI143: N/A | BJ143: N/A | BK143: N/A | BL143: N/A | BM143: N/A | BN143: N/A | BO143: N/A | BP143: N/A | BQ143: N/A | BR143: N/A | BS143: N/A | BT143: N/A | BU143: N/A | BV143: N/A | BW143: N/A
A144: Latrine emptying practices | B144: Not emptied/treated and disposed in situ | C144: N/A | D144: N/A | E144: N/A | F144: N/A | G144: N/A | H144: N/A | I144: N/A | J144: N/A | K144: N/A | L144: N/A | M144: N/A | N144: N/A | O144: N/A | P144: N/A | Q144: N/A | R144: N/A | S144: N/A | T144: N/A | U144: N/A | V144: N/A | W144: N/A | BA144: Latrine emptying practices | BB144: Not emptied/treated and disposed in situ | BC144: N/A | BD144: N/A | BE144: N/A | BF144: N/A | BG144: N/A | BH144: N/A | BI144: N/A | BJ144: N/A | BK144: N/A | BL144: N/A | BM144: N/A | BN144: N/A | BO144: N/A | BP144: N/A | BQ144: N/A | BR144: N/A | BS144: N/A | BT144: N/A | BU144: N/A | BV144: N/A | BW144: N/A
B145: Emptied and buried on site | C145: N/A | D145: N/A | E145: N/A | F145: N/A | G145: N/A | H145: N/A | I145: N/A | J145: N/A | K145: N/A | L145: N/A | M145: N/A | N145: N/A | O145: N/A | P145: N/A | Q145: N/A | R145: N/A | S145: N/A | T145: N/A | U145: N/A | V145: N/A | W145: N/A | BB145: Emptied and buried on site | BC145: N/A | BD145: N/A | BE145: N/A | BF145: N/A | BG145: N/A | BH145: N/A | BI145: N/A | BJ145: N/A | BK145: N/A | BL145: N/A | BM145: N/A | BN145: N/A | BO145: N/A | BP145: N/A | BQ145: N/A | BR145: N/A | BS145: N/A | BT145: N/A | BU145: N/A | BV145: N/A | BW145: N/A
B146: Emptied and discharged locally | C146: N/A | D146: N/A | E146: N/A | F146: N/A | G146: N/A | H146: N/A | I146: N/A | J146: N/A | K146: N/A | L146: N/A | M146: N/A | N146: N/A | O146: N/A | P146: N/A | Q146: N/A | R146: N/A | S146: N/A | T146: N/A | U146: N/A | V146: N/A | W146: N/A | BB146: Emptied and discharged locally | BC146: N/A | BD146: N/A | BE146: N/A | BF146: N/A | BG146: N/A | BH146: N/A | BI146: N/A | BJ146: N/A | BK146: N/A | BL146: N/A | BM146: N/A | BN146: N/A | BO146: N/A | BP146: N/A | BQ146: N/A | BR146: N/A | BS146: N/A | BT146: N/A | BU146: N/A | BV146: N/A | BW146: N/A
B147: Emptied and removed offsite | C147: N/A | D147: N/A | E147: N/A | F147: N/A | G147: N/A | H147: N/A | I147: N/A | J147: N/A | K147: N/A | L147: N/A | M147: N/A | N147: N/A | O147: N/A | P147: N/A | Q147: N/A | R147: N/A | S147: N/A | T147: N/A | U147: N/A | V147: N/A | W147: N/A | BB147: Emptied and removed offsite | BC147: N/A | BD147: N/A | BE147: N/A | BF147: N/A | BG147: N/A | BH147: N/A | BI147: N/A | BJ147: N/A | BK147: N/A | BL147: N/A | BM147: N/A | BN147: N/A | BO147: N/A | BP147: N/A | BQ147: N/A | BR147: N/A | BS147: N/A | BT147: N/A | BU147: N/A | BV147: N/A | BW147: N/A
A148: Shared among improved sanitation facilities | B148: Yes | C148: 8.705527302 | D148: 10.19418032 | E148: 18.15800654 | F148: 24.11381555 | G148: 22.9779696 | H148: 18.95647619 | I148: 25.8425309 | J148: 28.78696644 | K148: 28.4345007 | L148: 15.02755338 | M148: 9.000074359 | N148: 7.671424264 | O148: 11.12760003 | P148: 15.59785452 | Q148: 21.17953714 | R148: 25.23518044 | S148: 11.85299918 | T148: 27.94265335 | U148: 13.8479417 | V148: 8.743586371 | W148: 10.21211336 | BA148: Shared among improved sanitation facilities | BB148: Yes | BC148: N/A | BD148: N/A | BE148: N/A | BF148: N/A | BG148: N/A | BH148: N/A | BI148: N/A | BJ148: N/A | BK148: N/A | BL148: N/A | BM148: N/A | BN148: N/A | BO148: N/A | BP148: N/A | BQ148: N/A | BR148: N/A | BS148: N/A | BT148: N/A | BU148: N/A | BV148: N/A | BW148: N/A
B149: No | C149: 0.4656997767 | D149: 1.049635583 | E149: 2.904523997 | F149: 9.647592252 | G149: 41.86942367 | H149: 2.379417012 | I149: 7.06032903 | J149: 13.90976916 | K149: 31.77813249 | L149: 60.74855395 | M149: 0.4020720541 | N149: 0.7487773243 | O149: 1.005636233 | P149: 3.350358518 | Q149: 14.64708775 | R149: 27.56025826 | S149: 5.015627016 | T149: 1.897496518 | U149: 8.791271517 | V149: 2.401473182 | W149: 1.530549156 | BB149: No | BC149: N/A | BD149: N/A | BE149: N/A | BF149: N/A | BG149: N/A | BH149: N/A | BI149: N/A | BJ149: N/A | BK149: N/A | BL149: N/A | BM149: N/A | BN149: N/A | BO149: N/A | BP149: N/A | BQ149: N/A | BR149: N/A | BS149: N/A | BT149: N/A | BU149: N/A | BV149: N/A | BW149: N/A
B150: DK/missing | C150: 90.82877292 | D150: 88.7561841 | E150: 78.93746946 | F150: 66.2385922 | G150: 35.15260673 | H150: 78.6641068 | I150: 67.09714007 | J150: 57.3032644 | K150: 39.78736681 | L150: 24.22389267 | M150: 90.59785359 | N150: 91.57979841 | O150: 87.86676374 | P150: 81.05178696 | Q150: 64.17337511 | R150: 47.2045613 | S150: 83.13137381 | T150: 70.15985013 | U150: 77.36078679 | V150: 88.85494045 | W150: 88.25733748 | BB150: DK/missing | BC150: N/A | BD150: N/A | BE150: N/A | BF150: N/A | BG150: N/A | BH150: N/A | BI150: N/A | BJ150: N/A | BK150: N/A | BL150: N/A | BM150: N/A | BN150: N/A | BO150: N/A | BP150: N/A | BQ150: N/A | BR150: N/A | BS150: N/A | BT150: N/A | BU150: N/A | BV150: N/A | BW150: N/A
A151: Shared among all sanitation facilities | B151: Yes | C151: 86.46822144 | D151: 78.13376372 | E151: 83.41424444 | F151: 74.10185157 | G151: 46.13638181 | H151: 83.32805855 | I151: 81.55869943 | J151: 75.23541942 | K151: 56.49184703 | L151: 29.81731624 | M151: 87.27851752 | N151: 82.41057854 | O151: 79.97310966 | P151: 78.71070208 | Q151: 61.5640569 | R151: 59.20836166 | S151: 66.37465353 | T151: 91.22474638 | U151: 66.97074062 | V151: 76.13791586 | W151: 80.5377706 | BA151: Shared among all sanitation facilities | BB151: Yes | BC151: N/A | BD151: N/A | BE151: N/A | BF151: N/A | BG151: N/A | BH151: N/A | BI151: N/A | BJ151: N/A | BK151: N/A | BL151: N/A | BM151: N/A | BN151: N/A | BO151: N/A | BP151: N/A | BQ151: N/A | BR151: N/A | BS151: N/A | BT151: N/A | BU151: N/A | BV151: N/A | BW151: N/A
B152: No | C152: 12.47328844 | D152: 16.75019542 | E152: 15.13392582 | F152: 24.6692135 | G152: 52.37664854 | H152: 13.85153661 | I152: 17.26623376 | J152: 24.20256042 | K152: 42.66418594 | L152: 68.78695803 | M152: 12.08549978 | N152: 15.20056234 | O152: 15.94665197 | P152: 18.66604189 | Q152: 36.00975917 | R152: 39.58855691 | S152: 30.58932761 | T152: 8.768139329 | U152: 31.51759391 | V152: 21.24346084 | W152: 15.58496686 | BB152: No | BC152: N/A | BD152: N/A | BE152: N/A | BF152: N/A | BG152: N/A | BH152: N/A | BI152: N/A | BJ152: N/A | BK152: N/A | BL152: N/A | BM152: N/A | BN152: N/A | BO152: N/A | BP152: N/A | BQ152: N/A | BR152: N/A | BS152: N/A | BT152: N/A | BU152: N/A | BV152: N/A | BW152: N/A
A153: Type of toilet facility | B153: Flush - to piped sewer system | C153: 0 | D153: 0.1492667046 | E153: 0.5825585719 | F153: 3.668125942 | G153: 11.61430724 | H153: 1.967575574 | I153: 3.865893224 | J153: 5.32551794 | K153: 9.440298554 | L153: 17.04167418 | M153: 0 | N153: 0 | O153: 0 | P153: 0 | Q153: 3.131840613 | R153: 9.933246979 | S153: 0.3930912681 | T153: 0.1367841856 | U153: 1.709439251 | V153: 0.3081059732 | W153: 0.246779341 | BA153: Type of toilet facility | BB153: Flush - to piped sewer system | BC153: 0 | BD153: 10.2822 | BE153: 40.29111 | BF153: 254.06255 | BG153: 803.11073 | BH153: 50.57331 | BI153: 99.79944 | BJ153: 137.42684 | BK153: 244.1713 | BL153: 440.14173 | BM153: 0 | BN153: 0 | BO153: 0 | BP153: 0 | BQ153: 135.63397 | BR153: 955.33541 | BS153: 48.86692 | BT153: 3.77035 | BU153: 86.74543 | BV153: 7.15487 | BW153: 5.87361
B154: Flush - to septic tank | C154: 0.1468148822 | D154: 0 | E154: 1.159947856 | F154: 8.339163989 | G154: 33.97081097 | H154: 3.331907528 | I154: 9.292674001 | J154: 14.07201755 | K154: 28.85994053 | L154: 47.70867898 | M154: 0 | N154: 0 | O154: 0 | P154: 0.04970654575 | Q154: 8.025273729 | R154: 25.72513254 | S154: 1.937538023 | T154: 0.364424546 | U154: 4.731137635 | V154: 0.552126462 | W154: 1.642115071 | BB154: Flush - to septic tank | BC154: 10.18376 | BD154: 0 | BE154: 80.2247 | BF154: 577.58902 | BG154: 2349.02713 | BH154: 85.64123 | BI154: 239.89376 | BJ154: 363.1333 | BK154: 746.45618 | BL154: 1232.19 | BM154: 0 | BN154: 0 | BO154: 0 | BP154: 2.15103 | BQ154: 347.55911 | BR154: 2474.12856 | BS154: 240.86395 | BT154: 10.04508 | BU154: 240.0814 | BV154: 12.82154 | BW154: 39.08408
B155: Flush - to pit latrine | C155: 0 | D155: 0.0979491071 | E155: 0.228854194 | F155: 1.338358177 | G155: 2.987123756 | H155: 0.6157983978 | I155: 1.698963855 | J155: 1.911953342 | K155: 2.90354502 | L155: 3.936850155 | M155: 0 | N155: 0 | O155: 0.1555471169 | P155: 0 | Q155: 0.6760035841 | R155: 2.653885127 | S155: 0.3952451611 | T155: 0.2117774073 | U155: 0.1407312116 | V155: 0.1927202352 | W155: 0 | BB155: Flush - to pit latrine | BC155: 0 | BD155: 6.7472 | BE155: 15.82809 | BF155: 92.69766 | BG155: 206.55482 | BH155: 15.82809 | BI155: 43.85937 | BJ155: 49.33862 | BK155: 75.09957 | BL155: 101.67851 | BM155: 0 | BN155: 0 | BO155: 6.7472 | BP155: 0 | BQ155: 29.27641 | BR155: 255.23884 | BS155: 49.13468 | BT155: 5.83748 | BU155: 7.1414 | BV155: 4.47537 | BW155: 0
B156: Flush - to somewhere else | C156: 0 | D156: 0 | E156: 0.02731053039 | F156: 1.132630007 | G156: 1.049003924 | H156: 0.07348688071 | I156: 0.6527934346 | J156: 3.130161321 | K156: 0.5573268656 | L156: 0.9220762425 | M156: 0 | N156: 0 | O156: 0 | P156: 0 | Q156: 0.3493219688 | R156: 1.432233262 | S156: 0 | T156: 0 | U156: 0.2981273288 | V156: 0 | W156: 0 | BB156: Flush - to somewhere else | BC156: 0 | BD156: 0 | BE156: 1.88886 | BF156: 78.44847 | BG156: 72.53694 | BH156: 1.88886 | BI156: 16.8521 | BJ156: 80.7749 | BK156: 14.41514 | BL156: 23.81481 | BM156: 0 | BN156: 0 | BO156: 0 | BP156: 0 | BQ156: 15.12846 | BR156: 137.74581 | BS156: 0 | BT156: 0 | BU156: 15.12846 | BV156: 0 | BW156: 0
B157: Flush - don't know where | C157: 0.4130195744 | D157: 0.07295780006 | E157: 0.2100910908 | F157: 0.1498916702 | G157: 0.2705121269 | H157: 0.05867481141 | I157: 0 | J157: 0.2380944511 | K157: 0 | L157: 0 | M157: 0.6602063671 | N157: 0.02755849258 | O157: 0.08825371603 | P157: 0 | Q157: 0.8304560943 | R157: 0 | S157: 0 | T157: 1.830896059 | U157: 0.5286258752 | V157: 0 | W157: 0 | BB157: Flush - don't know where | BC157: 28.64895 | BD157: 5.02568 | BE157: 14.53039 | BF157: 10.38183 | BG157: 18.70548 | BH157: 1.50814 | BI157: 0 | BJ157: 6.14411 | BK157: 0 | BL157: 0 | BM157: 28.64895 | BN157: 1.19748 | BO157: 3.8282 | BP157: 0 | BQ157: 35.96545 | BR157: 0 | BS157: 0 | BT157: 50.46723 | BU157: 26.8251 | BV157: 0 | BW157: 0
B158: Pit latrine - ventilated improved pit (VIP) | C158: 3.412665211 | D158: 4.002613931 | E158: 8.467023505 | F158: 8.435104025 | G158: 7.961581646 | H158: 6.958720041 | I158: 6.896813517 | J158: 8.121540375 | K158: 10.93499023 | L158: 3.994916061 | M158: 2.984691751 | N158: 3.412365422 | O158: 4.792556242 | P158: 8.510967207 | Q158: 9.843831828 | R158: 7.689137864 | S158: 4.941539864 | T158: 5.503476073 | U158: 11.00014242 | V158: 2.930778797 | W158: 4.244752473 | BB158: Pit latrine - ventilated improved pit (VIP) | BC158: 236.71826 | BD158: 275.71907 | BE158: 585.5991 | BF158: 584.23404 | BG158: 550.53061 | BH158: 178.86251 | BI158: 178.04375 | BJ158: 209.57917 | BK158: 282.83118 | BL158: 103.1782 | BM158: 129.51751 | BN158: 148.27514 | BO158: 207.88772 | BP158: 368.30855 | BQ158: 426.31735 | BR158: 739.507 | BS158: 614.30475 | BT158: 151.69905 | BU158: 558.20181 | BV158: 68.05886 | BW158: 101.02961
B159: Pit latrine - with slab | C159: 5.07202056 | D159: 7.233884306 | E159: 10.03826041 | F159: 11.75421719 | G159: 8.72843326 | H159: 7.542883668 | I159: 10.85384433 | J159: 12.66021597 | K159: 8.270448542 | L159: 3.867726215 | M159: 5.618862602 | N159: 4.961483274 | O159: 7.603905547 | P159: 10.30423975 | Q159: 14.13896882 | R159: 6.974061985 | S159: 9.674222812 | T159: 21.77095242 | U159: 4.090201695 | V159: 6.466107378 | W159: 5.498918023 | BB159: Pit latrine - with slab | BC159: 351.81883 | BD159: 498.30433 | BE159: 694.26951 | BF159: 814.12319 | BG159: 603.55717 | BH159: 193.87748 | BI159: 280.19594 | BJ159: 326.70127 | BK159: 213.91338 | BL159: 99.89322 | BM159: 243.82454 | BN159: 215.58788 | BO159: 329.83621 | BP159: 445.91167 | BQ159: 612.33144 | BR159: 670.73419 | BS159: 1202.64557 | BT159: 600.09942 | BU159: 207.55713 | BV159: 150.15664 | BW159: 130.88008
B160: Pit latrine - without slab / open pit | C160: 5.192805317 | D160: 9.199343643 | E160: 11.27427872 | F160: 16.42693335 | G160: 9.729557694 | H160: 15.0684093 | I160: 17.50209269 | J160: 15.2822888 | K160: 9.945372523 | L160: 6.831261474 | M160: 4.209488351 | N160: 5.618970848 | O160: 9.529506788 | P160: 9.99368909 | Q160: 14.87878822 | R160: 9.213361562 | S160: 10.1739194 | T160: 12.20179222 | U160: 8.693335294 | V160: 9.828205773 | W160: 17.96657304 | BB160: Pit latrine - without slab / open pit | BC160: 360.19702 | BD160: 633.69451 | BE160: 779.75542 | BF160: 1137.76589 | BG160: 672.78332 | BH160: 387.3088 | BI160: 451.82289 | BJ160: 394.36477 | BK160: 257.23493 | BL160: 176.43356 | BM160: 182.66625 | BN160: 244.15723 | BO160: 413.36342 | BP160: 432.47272 | BQ160: 644.37159 | BR160: 886.10004 | BS160: 1264.76507 | BT160: 336.33294 | BU160: 441.14297 | BV160: 228.23165 | BW160: 427.62349
B161: No facility/ bush/ field | C161: 82.05270672 | D161: 74.03168096 | E161: 62.49068816 | F161: 40.73696577 | G161: 14.38978227 | H161: 50.15811588 | I161: 38.3316841 | J161: 27.51162237 | K161: 18.62083234 | L161: 7.007120994 | M161: 84.21281011 | N161: 81.30878404 | O161: 72.86136126 | P161: 69.09020326 | Q161: 44.81147245 | R161: 25.23275673 | S161: 69.98997754 | T161: 51.46351315 | U161: 64.76702739 | V161: 74.46262651 | W161: 57.47241917 | BB161: No facility/ bush/ field | BC161: 5691.55565 | BD161: 5099.65402 | BE161: 4322.00179 | BF161: 2821.53273 | BG161: 995.03038 | BH161: 1289.23228 | BI161: 989.54637 | BJ161: 709.94697 | BK161: 481.62384 | BL161: 180.97555 | BM161: 3654.32493 | BN161: 3533.05401 | BO161: 3160.52259 | BP161: 2989.84968 | BQ161: 1940.69835 | BR161: 2426.77405 | BS161: 8700.76471 | BT161: 1418.55183 | BU161: 3286.60035 | BV161: 1729.17911 | BW161: 1367.90452
B162: Composting toilet | C162: 0.1339633757 | D162: 0.05488805378 | E162: 0.4747961575 | F162: 0.4732714239 | G162: 0.3132506447 | H162: 1.220243029 | I162: 0.7089781938 | J162: 0.5610193822 | K162: 0.316053265 | L162: 0.5221641523 | M162: 0.138915276 | N162: 0.01879440036 | O162: 0 | P162: 0.1779841563 | Q162: 0 | R162: 0.3820712555 | S162: 0 | T162: 0.02183917781 | U162: 0.7203059868 | V162: 1.019721406 | W162: 0.1164662395 | BB162: Composting toilet | BC162: 9.29232 | BD162: 3.78095 | BE162: 32.83801 | BF162: 32.77983 | BG162: 21.66078 | BH162: 31.36435 | BI162: 18.30253 | BJ162: 14.4773 | BK162: 8.17465 | BL162: 13.48613 | BM162: 6.02808 | BN162: 0.81666 | BO162: 0 | BP162: 7.70219 | BQ162: 0 | BR162: 36.74591 | BS162: 0 | BT162: 0.60198 | BU162: 36.5519 | BV162: 23.68008 | BW162: 2.77202
B163: Bucket toilet | C163: 0.1030295987 | D163: 0.1239944936 | E163: 0.2782005629 | F163: 0.4882196884 | G163: 0.6569472589 | H163: 0.3674192304 | I163: 0.6664918664 | J163: 1.230047774 | K163: 1.171263904 | L163: 0 | M163: 0 | N163: 0.1264766073 | O163: 0.1933307823 | P163: 0.2681292207 | Q163: 0 | R163: 0.8479918956 | S163: 0.04295977277 | T163: 0.01516857476 | U163: 0.1049122865 | V163: 0.7920491316 | W163: 0.1319033668 | BB163: Bucket toilet | BC163: 7.14661 | BD163: 8.54133 | BE163: 19.241 | BF163: 33.81518 | BG163: 45.42685 | BH163: 9.44391 | BI163: 17.20573 | BJ163: 31.74181 | BK163: 30.29449 | BL163: 0 | BM163: 0 | BN163: 5.4957 | BO163: 8.38615 | BP163: 11.60318 | BQ163: 0 | BR163: 81.55608 | BS163: 5.34052 | BT163: 0.41811 | BU163: 5.32377 | BV163: 18.39305 | BW163: 3.13944
B164: Hanging toilet/latrine | C164: 3.287033026 | D164: 4.39358681 | E164: 4.305691648 | F164: 5.236437473 | G164: 6.647029557 | H164: 11.22345451 | I164: 6.578083939 | J164: 5.887283679 | K164: 7.288838247 | L164: 7.891839203 | M164: 2.116502847 | N164: 4.22324233 | O164: 4.091767054 | P164: 1.436781751 | Q164: 3.075120236 | R164: 7.410136056 | S164: 2.404232487 | T164: 4.542846471 | U164: 3.090748392 | V164: 3.020606562 | W164: 12.05853501 | BB164: Hanging toilet/latrine | BC164: 228.00383 | BD164: 302.65114 | BE164: 297.79168 | BF164: 362.68729 | BG164: 459.63144 | BH164: 288.48053 | BI164: 169.81563 | BJ164: 151.9234 | BK164: 188.52424 | BL164: 203.8255 | BM164: 91.84338 | BN164: 183.50961 | BO164: 177.48944 | BP164: 62.17613 | BQ164: 133.17752 | BR164: 712.67385 | BS164: 298.88081 | BT164: 125.22004 | BU164: 156.83991 | BV164: 70.14485 | BW164: 287.00592
B165: OTHER | C165: 0.1859417398 | D165: 0.6398341926 | E165: 0.4622986034 | F165: 1.820681289 | G165: 1.681659658 | H165: 1.413311147 | I165: 2.951686856 | J165: 4.068237051 | K165: 1.691089976 | L165: 0.2756923485 | M165: 0.05852269892 | N165: 0.3023245895 | O165: 0.6837714965 | P165: 0.1682990252 | Q165: 0.23892245 | R165: 2.505984739 | S165: 0.04727367234 | T165: 1.936529722 | U165: 0.1252652428 | V165: 0.4269517761 | W165: 0.621538274 | BB165: OTHER | BC165: 12.89778 | BD165: 44.07482 | BE165: 31.97365 | BF165: 126.10443 | BG165: 116.28407 | BH165: 36.32685 | BI165: 76.19887 | BJ165: 104.98227 | BK165: 43.73968 | BL165: 7.12041 | BM165: 2.53953 | BN165: 13.1367 | BO165: 29.6601 | BP165: 7.28307 | BQ165: 10.34727 | BR165: 241.01444 | BS165: 5.8768 | BT165: 53.37894 | BU165: 6.35658 | BV165: 9.91472 | BW165: 14.79327
BB166: Total | BC166: 6936.46301 | BD166: 6888.47525 | BE166: 6916.23331 | BF166: 6926.22211 | BG166: 6914.83972 | BH166: 2570.33634 | BI166: 2581.53638 | BJ166: 2580.53473 | BK166: 2586.47858 | BL166: 2582.73762 | BM166: 4339.39317 | BN166: 4345.23041 | BO166: 4337.72103 | BP166: 4327.45822 | BQ166: 4330.80692 | BR166: 9617.55418 | BS166: 12431.44378 | BT166: 2756.42245 | BU166: 5074.49621 | BV166: 2322.21074 | BW166: 2380.10604
A208: =A1026 -> Liberia
A209: =A1034 -> 2007
A210: Access to hygiene facilities
A211: by wealth quintile and sub-national region
A212: Notes:
A213: WHO/UNICEF JMP customised wealth index excludes water,
A214: sanitation and hygiene assets.
A215: Survey used for analysis: | B215: =A1025 -> DHS07
A220: Access to handwashing | C220: NATIONAL wealth index quintile | H220: URBAN wealth index quintile | M220: RURAL wealth index quintile | R220: SUB-REGIONS: | BA220: Raw numbers of respondents: | BB220: Access to handwashing | BC220: NATIONAL wealth index quintile | BH220: URBAN wealth index quintile | BM220: RURAL wealth index quintile | BR220: SUB-REGIONS:
A221: Weighted percentage (used in graphs) | C221: Poorest | D221: Poor | E221: Middle | F221: Rich | G221: Richest | H221: Poorest | I221: Poor | J221: Middle | K221: Rich | L221: Richest | M221: Poorest | N221: Poor | O221: Middle | P221: Rich | Q221: Richest | R221: Monrovia | S221: North Central | T221: North Western | U221: South Central | V221: South Eastern A | W221: South Eastern B | BA221: Hygiene data, raw numbers (weighted) | BC221: Poorest | BD221: Poor | BE221: Middle | BF221: Rich | BG221: Richest | BH221: Poorest | BI221: Poor | BJ221: Middle | BK221: Rich | BL221: Richest | BM221: Poorest | BN221: Poor | BO221: Middle | BP221: Rich | BQ221: Richest | BR221: Monrovia | BS221: North Central | BT221: North Western | BU221: South Central | BV221: South Eastern A | BW221: South Eastern B
A222: Hygiene ladder | B222: Basic | C222: N/A | D222: N/A | E222: N/A | F222: N/A | G222: N/A | H222: N/A | I222: N/A | J222: N/A | K222: N/A | L222: N/A | M222: N/A | N222: N/A | O222: N/A | P222: N/A | Q222: N/A | R222: N/A | S222: N/A | T222: N/A | U222: N/A | V222: N/A | W222: N/A | BA222: Hygiene ladder | BB222: Basic | BC222: N/A | BD222: N/A | BE222: N/A | BF222: N/A | BG222: N/A | BH222: N/A | BI222: N/A | BJ222: N/A | BK222: N/A | BL222: N/A | BM222: N/A | BN222: N/A | BO222: N/A | BP222: N/A | BQ222: N/A | BR222: N/A | BS222: N/A | BT222: N/A | BU222: N/A | BV222: N/A | BW222: N/A
B223: Limited | C223: N/A | D223: N/A | E223: N/A | F223: N/A | G223: N/A | H223: N/A | I223: N/A | J223: N/A | K223: N/A | L223: N/A | M223: N/A | N223: N/A | O223: N/A | P223: N/A | Q223: N/A | R223: N/A | S223: N/A | T223: N/A | U223: N/A | V223: N/A | W223: N/A | BB223: Limited | BC223: N/A | BD223: N/A | BE223: N/A | BF223: N/A | BG223: N/A | BH223: N/A | BI223: N/A | BJ223: N/A | BK223: N/A | BL223: N/A | BM223: N/A | BN223: N/A | BO223: N/A | BP223: N/A | BQ223: N/A | BR223: N/A | BS223: N/A | BT223: N/A | BU223: N/A | BV223: N/A | BW223: N/A
B224: No facility | C224: N/A | D224: N/A | E224: N/A | F224: N/A | G224: N/A | H224: N/A | I224: N/A | J224: N/A | K224: N/A | L224: N/A | M224: N/A | N224: N/A | O224: N/A | P224: N/A | Q224: N/A | R224: N/A | S224: N/A | T224: N/A | U224: N/A | V224: N/A | W224: N/A | BB224: No facility | BC224: N/A | BD224: N/A | BE224: N/A | BF224: N/A | BG224: N/A | BH224: N/A | BI224: N/A | BJ224: N/A | BK224: N/A | BL224: N/A | BM224: N/A | BN224: N/A | BO224: N/A | BP224: N/A | BQ224: N/A | BR224: N/A | BS224: N/A | BT224: N/A | BU224: N/A | BV224: N/A | BW224: N/A
BA225: Observed handwashing place | BB225: Fixed | BC225: N/A | BD225: N/A | BE225: N/A | BF225: N/A | BG225: N/A | BH225: N/A | BI225: N/A | BJ225: N/A | BK225: N/A | BL225: N/A | BM225: N/A | BN225: N/A | BO225: N/A | BP225: N/A | BQ225: N/A | BR225: N/A | BS225: N/A | BT225: N/A | BU225: N/A | BV225: N/A | BW225: N/A
BB226: Mobile | BC226: N/A | BD226: N/A | BE226: N/A | BF226: N/A | BG226: N/A | BH226: N/A | BI226: N/A | BJ226: N/A | BK226: N/A | BL226: N/A | BM226: N/A | BN226: N/A | BO226: N/A | BP226: N/A | BQ226: N/A | BR226: N/A | BS226: N/A | BT226: N/A | BU226: N/A | BV226: N/A | BW226: N/A
BA227: Water / Soap | BB227: Water and soap | BC227: N/A | BD227: N/A | BE227: N/A | BF227: N/A | BG227: N/A | BH227: N/A | BI227: N/A | BJ227: N/A | BK227: N/A | BL227: N/A | BM227: N/A | BN227: N/A | BO227: N/A | BP227: N/A | BQ227: N/A | BR227: N/A | BS227: N/A | BT227: N/A | BU227: N/A | BV227: N/A | BW227: N/A
BB228: Water only | BC228: N/A | BD228: N/A | BE228: N/A | BF228: N/A | BG228: N/A | BH228: N/A | BI228: N/A | BJ228: N/A | BK228: N/A | BL228: N/A | BM228: N/A | BN228: N/A | BO228: N/A | BP228: N/A | BQ228: N/A | BR228: N/A | BS228: N/A | BT228: N/A | BU228: N/A | BV228: N/A | BW228: N/A
BB229: Soap only | BC229: N/A | BD229: N/A | BE229: N/A | BF229: N/A | BG229: N/A | BH229: N/A | BI229: N/A | BJ229: N/A | BK229: N/A | BL229: N/A | BM229: N/A | BN229: N/A | BO229: N/A | BP229: N/A | BQ229: N/A | BR229: N/A | BS229: N/A | BT229: N/A | BU229: N/A | BV229: N/A | BW229: N/A
BB230: Neither | BC230: N/A | BD230: N/A | BE230: N/A | BF230: N/A | BG230: N/A | BH230: N/A | BI230: N/A | BJ230: N/A | BK230: N/A | BL230: N/A | BM230: N/A | BN230: N/A | BO230: N/A | BP230: N/A | BQ230: N/A | BR230: N/A | BS230: N/A | BT230: N/A | BU230: N/A | BV230: N/A | BW230: N/A
BA259: Raw numbers of respondents: | BB259: Menstrual health and hygiene | BC259: NATIONAL wealth index quintile | BH259: URBAN wealth index quintile | BM259: RURAL wealth index quintile | BR259: SUB-REGIONS:
BA260: MHH data, raw numbers (weighted) | BC260: Poorest | BD260: Poor | BE260: Middle | BF260: Rich | BG260: Richest | BH260: Poorest | BI260: Poor | BJ260: Middle | BK260: Rich | BL260: Richest | BM260: Poorest | BN260: Poor | BO260: Middle | BP260: Rich | BQ260: Richest | BR260: Monrovia | BS260: North Central | BT260: North Western | BU260: South Central | BV260: South Eastern A | BW260: South Eastern B
BA261: Private place to wash and change | BB261: Yes | BC261: N/A | BD261: N/A | BE261: N/A | BF261: N/A | BG261: N/A | BH261: N/A | BI261: N/A | BJ261: N/A | BK261: N/A | BL261: N/A | BM261: N/A | BN261: N/A | BO261: N/A | BP261: N/A | BQ261: N/A | BR261: N/A | BS261: N/A | BT261: N/A | BU261: N/A | BV261: N/A | BW261: N/A
BB262: No | BC262: N/A | BD262: N/A | BE262: N/A | BF262: N/A | BG262: N/A | BH262: N/A | BI262: N/A | BJ262: N/A | BK262: N/A | BL262: N/A | BM262: N/A | BN262: N/A | BO262: N/A | BP262: N/A | BQ262: N/A | BR262: N/A | BS262: N/A | BT262: N/A | BU262: N/A | BV262: N/A | BW262: N/A
BB263: DK/not sure/missing | BC263: N/A | BD263: N/A | BE263: N/A | BF263: N/A | BG263: N/A | BH263: N/A | BI263: N/A | BJ263: N/A | BK263: N/A | BL263: N/A | BM263: N/A | BN263: N/A | BO263: N/A | BP263: N/A | BQ263: N/A | BR263: N/A | BS263: N/A | BT263: N/A | BU263: N/A | BV263: N/A | BW263: N/A
BA264: Use of menstrual materials | BB264: Materials reusable | BC264: N/A | BD264: N/A | BE264: N/A | BF264: N/A | BG264: N/A | BH264: N/A | BI264: N/A | BJ264: N/A | BK264: N/A | BL264: N/A | BM264: N/A | BN264: N/A | BO264: N/A | BP264: N/A | BQ264: N/A | BR264: N/A | BS264: N/A | BT264: N/A | BU264: N/A | BV264: N/A | BW264: N/A
BB265: Materials not reusable | BC265: N/A | BD265: N/A | BE265: N/A | BF265: N/A | BG265: N/A | BH265: N/A | BI265: N/A | BJ265: N/A | BK265: N/A | BL265: N/A | BM265: N/A | BN265: N/A | BO265: N/A | BP265: N/A | BQ265: N/A | BR265: N/A | BS265: N/A | BT265: N/A | BU265: N/A | BV265: N/A | BW265: N/A
BB266: No materials used | BC266: N/A | BD266: N/A | BE266: N/A | BF266: N/A | BG266: N/A | BH266: N/A | BI266: N/A | BJ266: N/A | BK266: N/A | BL266: N/A | BM266: N/A | BN266: N/A | BO266: N/A | BP266: N/A | BQ266: N/A | BR266: N/A | BS266: N/A | BT266: N/A | BU266: N/A | BV266: N/A | BW266: N/A
BB267: DK/not sure/missing | BC267: N/A | BD267: N/A | BE267: N/A | BF267: N/A | BG267: N/A | BH267: N/A | BI267: N/A | BJ267: N/A | BK267: N/A | BL267: N/A | BM267: N/A | BN267: N/A | BO267: N/A | BP267: N/A | BQ267: N/A | BR267: N/A | BS267: N/A | BT267: N/A | BU267: N/A | BV267: N/A | BW267: N/A
BA268: Use of menstrual materials with private place to wash and change | BB268: Materials reusable | BC268: N/A | BD268: N/A | BE268: N/A | BF268: N/A | BG268: N/A | BH268: N/A | BI268: N/A | BJ268: N/A | BK268: N/A | BL268: N/A | BM268: N/A | BN268: N/A | BO268: N/A | BP268: N/A | BQ268: N/A | BR268: N/A | BS268: N/A | BT268: N/A | BU268: N/A | BV268: N/A | BW268: N/A
BB269: Materials not reusable | BC269: N/A | BD269: N/A | BE269: N/A | BF269: N/A | BG269: N/A | BH269: N/A | BI269: N/A | BJ269: N/A | BK269: N/A | BL269: N/A | BM269: N/A | BN269: N/A | BO269: N/A | BP269: N/A | BQ269: N/A | BR269: N/A | BS269: N/A | BT269: N/A | BU269: N/A | BV269: N/A | BW269: N/A
BB270: No materials used | BC270: N/A | BD270: N/A | BE270: N/A | BF270: N/A | BG270: N/A | BH270: N/A | BI270: N/A | BJ270: N/A | BK270: N/A | BL270: N/A | BM270: N/A | BN270: N/A | BO270: N/A | BP270: N/A | BQ270: N/A | BR270: N/A | BS270: N/A | BT270: N/A | BU270: N/A | BV270: N/A | BW270: N/A
BA271: Awareness of menstruation before menarche | BB271: Yes | BC271: N/A | BD271: N/A | BE271: N/A | BF271: N/A | BG271: N/A | BH271: N/A | BI271: N/A | BJ271: N/A | BK271: N/A | BL271: N/A | BM271: N/A | BN271: N/A | BO271: N/A | BP271: N/A | BQ271: N/A | BR271: N/A | BS271: N/A | BT271: N/A | BU271: N/A | BV271: N/A | BW271: N/A
BB272: No | BC272: N/A | BD272: N/A | BE272: N/A | BF272: N/A | BG272: N/A | BH272: N/A | BI272: N/A | BJ272: N/A | BK272: N/A | BL272: N/A | BM272: N/A | BN272: N/A | BO272: N/A | BP272: N/A | BQ272: N/A | BR272: N/A | BS272: N/A | BT272: N/A | BU272: N/A | BV272: N/A | BW272: N/A
BB273: DK/not sure/missing | BC273: N/A | BD273: N/A | BE273: N/A | BF273: N/A | BG273: N/A | BH273: N/A | BI273: N/A | BJ273: N/A | BK273: N/A | BL273: N/A | BM273: N/A | BN273: N/A | BO273: N/A | BP273: N/A | BQ273: N/A | BR273: N/A | BS273: N/A | BT273: N/A | BU273: N/A | BV273: N/A | BW273: N/A
BA274: Participation in (all) activities during menstruation | BB274: Yes | BC274: N/A | BD274: N/A | BE274: N/A | BF274: N/A | BG274: N/A | BH274: N/A | BI274: N/A | BJ274: N/A | BK274: N/A | BL274: N/A | BM274: N/A | BN274: N/A | BO274: N/A | BP274: N/A | BQ274: N/A | BR274: N/A | BS274: N/A | BT274: N/A | BU274: N/A | BV274: N/A | BW274: N/A
BB275: No | BC275: N/A | BD275: N/A | BE275: N/A | BF275: N/A | BG275: N/A | BH275: N/A | BI275: N/A | BJ275: N/A | BK275: N/A | BL275: N/A | BM275: N/A | BN275: N/A | BO275: N/A | BP275: N/A | BQ275: N/A | BR275: N/A | BS275: N/A | BT275: N/A | BU275: N/A | BV275: N/A | BW275: N/A
BB276: DK/not sure/missing/no such activity | BC276: N/A | BD276: N/A | BE276: N/A | BF276: N/A | BG276: N/A | BH276: N/A | BI276: N/A | BJ276: N/A | BK276: N/A | BL276: N/A | BM276: N/A | BN276: N/A | BO276: N/A | BP276: N/A | BQ276: N/A | BR276: N/A | BS276: N/A | BT276: N/A | BU276: N/A | BV276: N/A | BW276: N/A
BA277: Participation in specific activities during menstruation | BB277: Did not go to school (amongst those usually attending school) | BC277: N/A | BD277: N/A | BE277: N/A | BF277: N/A | BG277: N/A | BH277: N/A | BI277: N/A | BJ277: N/A | BK277: N/A | BL277: N/A | BM277: N/A | BN277: N/A | BO277: N/A | BP277: N/A | BQ277: N/A | BR277: N/A | BS277: N/A | BT277: N/A | BU277: N/A | BV277: N/A | BW277: N/A
BB278: Did not go to work (amongst those who usually work) | BC278: N/A | BD278: N/A | BE278: N/A | BF278: N/A | BG278: N/A | BH278: N/A | BI278: N/A | BJ278: N/A | BK278: N/A | BL278: N/A | BM278: N/A | BN278: N/A | BO278: N/A | BP278: N/A | BQ278: N/A | BR278: N/A | BS278: N/A | BT278: N/A | BU278: N/A | BV278: N/A | BW278: N/A
BB279: Did not participate in social activities | BC279: N/A | BD279: N/A | BE279: N/A | BF279: N/A | BG279: N/A | BH279: N/A | BI279: N/A | BJ279: N/A | BK279: N/A | BL279: N/A | BM279: N/A | BN279: N/A | BO279: N/A | BP279: N/A | BQ279: N/A | BR279: N/A | BS279: N/A | BT279: N/A | BU279: N/A | BV279: N/A | BW279: N/A
BB280: Did not cook food | BC280: N/A | BD280: N/A | BE280: N/A | BF280: N/A | BG280: N/A | BH280: N/A | BI280: N/A | BJ280: N/A | BK280: N/A | BL280: N/A | BM280: N/A | BN280: N/A | BO280: N/A | BP280: N/A | BQ280: N/A | BR280: N/A | BS280: N/A | BT280: N/A | BU280: N/A | BV280: N/A | BW280: N/A
BB281: Did not eat with others | BC281: N/A | BD281: N/A | BE281: N/A | BF281: N/A | BG281: N/A | BH281: N/A | BI281: N/A | BJ281: N/A | BK281: N/A | BL281: N/A | BM281: N/A | BN281: N/A | BO281: N/A | BP281: N/A | BQ281: N/A | BR281: N/A | BS281: N/A | BT281: N/A | BU281: N/A | BV281: N/A | BW281: N/A
BB282: Did not bathe in regular place | BC282: N/A | BD282: N/A | BE282: N/A | BF282: N/A | BG282: N/A | BH282: N/A | BI282: N/A | BJ282: N/A | BK282: N/A | BL282: N/A | BM282: N/A | BN282: N/A | BO282: N/A | BP282: N/A | BQ282: N/A | BR282: N/A | BS282: N/A | BT282: N/A | BU282: N/A | BV282: N/A | BW282: N/A
BB283: Did not participate in other activities | BC283: N/A | BD283: N/A | BE283: N/A | BF283: N/A | BG283: N/A | BH283: N/A | BI283: N/A | BJ283: N/A | BK283: N/A | BL283: N/A | BM283: N/A | BN283: N/A | BO283: N/A | BP283: N/A | BQ283: N/A | BR283: N/A | BS283: N/A | BT283: N/A | BU283: N/A | BV283: N/A | BW283: N/A
BB284: DK/not sure/missing/no such activity | BC284: N/A | BD284: N/A | BE284: N/A | BF284: N/A | BG284: N/A | BH284: N/A | BI284: N/A | BJ284: N/A | BK284: N/A | BL284: N/A | BM284: N/A | BN284: N/A | BO284: N/A | BP284: N/A | BQ284: N/A | BR284: N/A | BS284: N/A | BT284: N/A | BU284: N/A | BV284: N/A | BW284: N/A
BA339: Raw numbers of respondents: | BB339: Basic water, sanitation and hygiene | BC339: NATIONAL wealth index quintile | BH339: URBAN wealth index quintile | BM339: RURAL wealth index quintile | BR339: SUB-REGIONS:
BA340: WatSan data, raw numbers (weighted) | BC340: Poorest | BD340: Poor | BE340: Middle | BF340: Rich | BG340: Richest | BH340: Poorest | BI340: Poor | BJ340: Middle | BK340: Rich | BL340: Richest | BM340: Poorest | BN340: Poor | BO340: Middle | BP340: Rich | BQ340: Richest | BR340: Monrovia | BS340: North Central | BT340: North Western | BU340: South Central | BV340: South Eastern A | BW340: South Eastern B
BA341: Use of Basic Water Sanitation and Hygiene | BB341: Yes | BC341: N/A | BD341: N/A | BE341: N/A | BF341: N/A | BG341: N/A | BH341: N/A | BI341: N/A | BJ341: N/A | BK341: N/A | BL341: N/A | BM341: N/A | BN341: N/A | BO341: N/A | BP341: N/A | BQ341: N/A | BR341: N/A | BS341: N/A | BT341: N/A | BU341: N/A | BV341: N/A | BW341: N/A
BB342: No | BC342: N/A | BD342: N/A | BE342: N/A | BF342: N/A | BG342: N/A | BH342: N/A | BI342: N/A | BJ342: N/A | BK342: N/A | BL342: N/A | BM342: N/A | BN342: N/A | BO342: N/A | BP342: N/A | BQ342: N/A | BR342: N/A | BS342: N/A | BT342: N/A | BU342: N/A | BV342: N/A | BW342: N/A
BA343: Use of Basic Water and Sanitation | BB343: Yes | BC343: N/A | BD343: N/A | BE343: N/A | BF343: N/A | BG343: N/A | BH343: N/A | BI343: N/A | BJ343: N/A | BK343: N/A | BL343: N/A | BM343: N/A | BN343: N/A | BO343: N/A | BP343: N/A | BQ343: N/A | BR343: N/A | BS343: N/A | BT343: N/A | BU343: N/A | BV343: N/A | BW343: N/A
BB344: No | BC344: N/A | BD344: N/A | BE344: N/A | BF344: N/A | BG344: N/A | BH344: N/A | BI344: N/A | BJ344: N/A | BK344: N/A | BL344: N/A | BM344: N/A | BN344: N/A | BO344: N/A | BP344: N/A | BQ344: N/A | BR344: N/A | BS344: N/A | BT344: N/A | BU344: N/A | BV344: N/A | BW344: N/A
BA345: Use of Basic Water and Hygiene | BB345: Yes | BC345: N/A | BD345: N/A | BE345: N/A | BF345: N/A | BG345: N/A | BH345: N/A | BI345: N/A | BJ345: N/A | BK345: N/A | BL345: N/A | BM345: N/A | BN345: N/A | BO345: N/A | BP345: N/A | BQ345: N/A | BR345: N/A | BS345: N/A | BT345: N/A | BU345: N/A | BV345: N/A | BW345: N/A
BB346: No | BC346: N/A | BD346: N/A | BE346: N/A | BF346: N/A | BG346: N/A | BH346: N/A | BI346: N/A | BJ346: N/A | BK346: N/A | BL346: N/A | BM346: N/A | BN346: N/A | BO346: N/A | BP346: N/A | BQ346: N/A | BR346: N/A | BS346: N/A | BT346: N/A | BU346: N/A | BV346: N/A | BW346: N/A
BA347: Use of Basic Sanitation and Hygiene | BB347: Yes | BC347: N/A | BD347: N/A | BE347: N/A | BF347: N/A | BG347: N/A | BH347: N/A | BI347: N/A | BJ347: N/A | BK347: N/A | BL347: N/A | BM347: N/A | BN347: N/A | BO347: N/A | BP347: N/A | BQ347: N/A | BR347: N/A | BS347: N/A | BT347: N/A | BU347: N/A | BV347: N/A | BW347: N/A
BB348: No | BC348: N/A | BD348: N/A | BE348: N/A | BF348: N/A | BG348: N/A | BH348: N/A | BI348: N/A | BJ348: N/A | BK348: N/A | BL348: N/A | BM348: N/A | BN348: N/A | BO348: N/A | BP348: N/A | BQ348: N/A | BR348: N/A | BS348: N/A | BT348: N/A | BU348: N/A | BV348: N/A | BW348: N/A
BA349: Use of Basic Water | BB349: Yes | BC349: N/A | BD349: N/A | BE349: N/A | BF349: N/A | BG349: N/A | BH349: N/A | BI349: N/A | BJ349: N/A | BK349: N/A | BL349: N/A | BM349: N/A | BN349: N/A | BO349: N/A | BP349: N/A | BQ349: N/A | BR349: N/A | BS349: N/A | BT349: N/A | BU349: N/A | BV349: N/A | BW349: N/A
BB350: No | BC350: N/A | BD350: N/A | BE350: N/A | BF350: N/A | BG350: N/A | BH350: N/A | BI350: N/A | BJ350: N/A | BK350: N/A | BL350: N/A | BM350: N/A | BN350: N/A | BO350: N/A | BP350: N/A | BQ350: N/A | BR350: N/A | BS350: N/A | BT350: N/A | BU350: N/A | BV350: N/A | BW350: N/A
BA351: Use of Basic Sanitation | BB351: Yes | BC351: N/A | BD351: N/A | BE351: N/A | BF351: N/A | BG351: N/A | BH351: N/A | BI351: N/A | BJ351: N/A | BK351: N/A | BL351: N/A | BM351: N/A | BN351: N/A | BO351: N/A | BP351: N/A | BQ351: N/A | BR351: N/A | BS351: N/A | BT351: N/A | BU351: N/A | BV351: N/A | BW351: N/A
BB352: No | BC352: N/A | BD352: N/A | BE352: N/A | BF352: N/A | BG352: N/A | BH352: N/A | BI352: N/A | BJ352: N/A | BK352: N/A | BL352: N/A | BM352: N/A | BN352: N/A | BO352: N/A | BP352: N/A | BQ352: N/A | BR352: N/A | BS352: N/A | BT352: N/A | BU352: N/A | BV352: N/A | BW352: N/A
BA353: Access to Basic Hygiene | BB353: Yes | BC353: N/A | BD353: N/A | BE353: N/A | BF353: N/A | BG353: N/A | BH353: N/A | BI353: N/A | BJ353: N/A | BK353: N/A | BL353: N/A | BM353: N/A | BN353: N/A | BO353: N/A | BP353: N/A | BQ353: N/A | BR353: N/A | BS353: N/A | BT353: N/A | BU353: N/A | BV353: N/A | BW353: N/A
BB354: No | BC354: N/A | BD354: N/A | BE354: N/A | BF354: N/A | BG354: N/A | BH354: N/A | BI354: N/A | BJ354: N/A | BK354: N/A | BL354: N/A | BM354: N/A | BN354: N/A | BO354: N/A | BP354: N/A | BQ354: N/A | BR354: N/A | BS354: N/A | BT354: N/A | BU354: N/A | BV354: N/A | BW354: N/A
C399: INITIAL (national) Wealth Index | H399: URBAN Wealth Index | M399: RURAL Wealth Index
C400: Component Matrix | H400: Component Matrix | M400: Component Matrix
E401: Component | J401: Component | O401: Component
B402: Note: The INITIAL (national) Wealth Index is based on the first component of the Principal Component Analysis (PCA) which has been obtained at national level. The final national-level (NATIONAL) Wealth Index is based on the URBAN and RURAL specific wealth indexes. Regression procedures are used to establish the relationships between the two sets of scores (urban and rural) and the initial (national) wealth factors. This allows best use of the available information for each area and a better precision of the FINAL (NATIONAL) Wealth Index. For dependency reasons, all WASH variables (contained in the generic MICS and DHS scripts) have been excluded from the sets of asset variables used in the PCAs. The PCA can extracts as many components as there are asset variables in the input. Only the first of the components is used to represent the Wealth Index. The scores represent the weights of the asset variables on the Wealth Index (correlations between the variables and the component). The communalities are the proportion of each variable's variance that can be explained by the component. Proportion of explained variance is the part of the model's total variance that is explained by the component. For more information on the procedure used: The DHS Wealth Index, DHS Comparative Reports No. 6, Shea Oscar Rutstein, Kiersten Johnson, ORC Macro International Inc., 2004. The DHS Wealth Index: Approaches for Rural and Urban Areas, Shea O. Rutstein, ORC Macro International Inc., 2008. MICS Methodological Paper No. 4, Review of options for reporting water, sanitation and hygiene coverage by wealth quintile, UNICEF, 2016. | E402: 1 | J402: 1 | O402: 1
C403: if floors are made of earth | E403: -0.7995324423 | H403: if floors are made of earth | J403: -0.6731063695 | M403: if floors are made of earth | O403: -0.7713169488
C404: if walls are made of mud and sticks | E404: -0.77145949 | H404: if walls are made of cement blocks | J404: 0.6323069561 | M404: if walls are made of mud and sticks | O404: -0.7340414926
C405: Has a mobile telephone | E405: 0.7087664799 | H405: Has a mobile telephone | J405: 0.6237504059 | M405: if floors are made of cement (+6 other) | O405: 0.7259673981
C406: if floors are made of cement (+6 other) | E406: 0.7024153906 | H406: if walls are made of mud and sticks | J406: -0.6142519838 | M406: if roof is made of natural materials | O406: -0.5857460755
C407: if walls are made of cement blocks | E407: 0.6952938734 | H407: Generator | J407: 0.6120069404 | M407: Has a mobile telephone | O407: 0.557461724
C408: if roof is made of natural materials | E408: -0.6385814191 | H408: Has television | J408: 0.6104772975 | M408: if walls are made of cement blocks | O408: 0.5495113706
C409: Mattress (not made of straw or grass) | E409: 0.6178867394 | H409: Cupboard | J409: 0.5616753081 | M409: Mattress (not made of straw or grass) | O409: 0.5078601888
C410: Generator | E410: 0.5837199162 | H410: Mattress (not made of straw or grass) | J410: 0.5279490519 | M410: Table | O410: 0.4717169593
C411: Has television | E411: 0.5698188052 | H411: Chairs | J411: 0.5236329533 | M411: Has television | O411: 0.4705759967
C412: Table | E412: 0.5564797135 | H412: Table | J412: 0.5140205199 | M412: Has a watch | O412: 0.4379228443
... 178 more rows

Sheet MIS09
A2: =A1026 -> Liberia
A3: =A1034 -> 2009
A4: Use of drinking water sources
A5: by wealth quintile and sub-national region
A6: Notes:
A7: WHO/UNICEF JMP customised wealth index excludes water,
A8: sanitation and hygiene assets.
A9: Survey used for analysis: | B9: =A1025 -> MIS09
A10: =B1028 -> 
A11: =B1027 -> Time to improved source based on: | B11: MIS11
A14: Use of drinking water sources | C14: NATIONAL wealth index quintile | H14: URBAN wealth index quintile | M14: RURAL wealth index quintile | R14: SUB-REGIONS: | BA14: Raw numbers of respondents: | BB14: Use of drinking water sources | BC14: NATIONAL wealth index quintile | BH14: URBAN wealth index quintile | BM14: RURAL wealth index quintile | BR14: SUB-REGIONS:
A15: Weighted percentage (used in graphs) | C15: Poorest | D15: Poor | E15: Middle | F15: Rich | G15: Richest | H15: Poorest | I15: Poor | J15: Middle | K15: Rich | L15: Richest | M15: Poorest | N15: Poor | O15: Middle | P15: Rich | Q15: Richest | R15: Monrovia | S15: North Central | T15: North Western | U15: South Central | V15: South Eastern A | W15: South Eastern B | BA15: Water data, raw numbers (weighted) | BC15: Poorest | BD15: Poor | BE15: Middle | BF15: Rich | BG15: Richest | BH15: Poorest | BI15: Poor | BJ15: Middle | BK15: Rich | BL15: Richest | BM15: Poorest | BN15: Poor | BO15: Middle | BP15: Rich | BQ15: Richest | BR15: Monrovia | BS15: North Central | BT15: North Western | BU15: South Central | BV15: South Eastern A | BW15: South Eastern B
A16: Water | B16: Improved | C16: 44.48340945 | D16: 66.52632949 | E16: 85.45193499 | F16: 92.53779558 | G16: 95.65290514 | H16: 91.41608996 | I16: 95.32452334 | J16: 90.71637339 | K16: 96.66426358 | L16: 94.12403358 | M16: 44.51515654 | N16: 41.47177167 | O16: 61.53356019 | P16: 78.18100612 | Q16: 88.26820859 | R16: 97.50950061 | S16: 79.03708902 | T16: 67.00151058 | U16: 67.18719053 | V16: 45.68168385 | W16: 63.23618853 | BA16: Water | BB16: Improved | BC16: N/A | BD16: N/A | BE16: N/A | BF16: N/A | BG16: N/A | BH16: N/A | BI16: N/A | BJ16: N/A | BK16: N/A | BL16: N/A | BM16: N/A | BN16: N/A | BO16: N/A | BP16: N/A | BQ16: N/A | BR16: N/A | BS16: N/A | BT16: N/A | BU16: N/A | BV16: N/A | BW16: N/A
B17: Not Improved | C17: 55.51659055 | D17: 33.47367051 | E17: 14.54806501 | F17: 7.462204419 | G17: 4.347094858 | H17: 8.583910041 | I17: 4.675476656 | J17: 9.283626605 | K17: 3.335736419 | L17: 5.875966422 | M17: 55.48484346 | N17: 58.52822833 | O17: 38.46643981 | P17: 21.81899388 | Q17: 11.73179141 | R17: 2.490499394 | S17: 20.96291098 | T17: 32.99848942 | U17: 32.81280947 | V17: 54.31831615 | W17: 36.76381147 | BB17: Not Improved | BC17: N/A | BD17: N/A | BE17: N/A | BF17: N/A | BG17: N/A | BH17: N/A | BI17: N/A | BJ17: N/A | BK17: N/A | BL17: N/A | BM17: N/A | BN17: N/A | BO17: N/A | BP17: N/A | BQ17: N/A | BR17: N/A | BS17: N/A | BT17: N/A | BU17: N/A | BV17: N/A | BW17: N/A
A18: Water ladder | B18: Basic | C18: =C16*'MIS11'!C23/100 -> 42.21475557 | D18: =D16*'MIS11'!D23/100 -> 64.46401328 | E18: =E16*'MIS11'!E23/100 -> 78.95758793 | F18: =F16*'MIS11'!F23/100 -> 85.04223414 | G18: =G16*'MIS11'!G23/100 -> 88.57459016 | H18: =H16*'MIS11'!H23/100 -> 80.0804948 | I18: =I16*'MIS11'!I23/100 -> 86.64999172 | J18: =J16*'MIS11'!J23/100 -> 80.91900507 | K18: =K16*'MIS11'!K23/100 -> 89.89776513 | L18: =L16*'MIS11'!L23/100 -> 87.34710316 | M18: =M16*'MIS11'!M23/100 -> 43.00164122 | N18: =N16*'MIS11'!N23/100 -> 39.06640891 | O18: =O16*'MIS11'!O23/100 -> 60.17982187 | P18: =P16*'MIS11'!P23/100 -> 75.83557593 | Q18: =Q16*'MIS11'!Q23/100 -> 86.50284442 | R18: =R16*'MIS11'!R23/100 -> 86.19839854 | S18: =S16*'MIS11'!S23/100 -> 77.21923597 | T18: =T16*'MIS11'!T23/100 -> 64.32145015 | U18: =U16*'MIS11'!U23/100 -> 65.17157482 | V18: =V16*'MIS11'!V23/100 -> 41.89010409 | W18: =W16*'MIS11'!W23/100 -> 56.7860973 | BA18: Water ladder | BB18: Basic | BC18: N/A | BD18: N/A | BE18: N/A | BF18: N/A | BG18: N/A | BH18: N/A | BI18: N/A | BJ18: N/A | BK18: N/A | BL18: N/A | BM18: N/A | BN18: N/A | BO18: N/A | BP18: N/A | BQ18: N/A | BR18: N/A | BS18: N/A | BT18: N/A | BU18: N/A | BV18: N/A | BW18: N/A
B19: Limited | C19: =C16*'MIS11'!C22/100 -> 2.268653882 | D19: =D16*'MIS11'!D22/100 -> 2.062316214 | E19: =E16*'MIS11'!E22/100 -> 6.494347059 | F19: =F16*'MIS11'!F22/100 -> 7.495561442 | G19: =G16*'MIS11'!G22/100 -> 7.07831498 | H19: =H16*'MIS11'!H22/100 -> 11.33559515 | I19: =I16*'MIS11'!I22/100 -> 8.674531624 | J19: =J16*'MIS11'!J22/100 -> 9.797368327 | K19: =K16*'MIS11'!K22/100 -> 6.766498451 | L19: =L16*'MIS11'!L22/100 -> 6.776930418 | M19: =M16*'MIS11'!M22/100 -> 1.513515322 | N19: =N16*'MIS11'!N22/100 -> 2.405362757 | O19: =O16*'MIS11'!O22/100 -> 1.353738324 | P19: =P16*'MIS11'!P22/100 -> 2.345430183 | Q19: =Q16*'MIS11'!Q22/100 -> 1.765364172 | R19: =R16*'MIS11'!R22/100 -> 11.31110207 | S19: =S16*'MIS11'!S22/100 -> 1.817853048 | T19: =T16*'MIS11'!T22/100 -> 2.680060423 | U19: =U16*'MIS11'!U22/100 -> 2.015615716 | V19: =V16*'MIS11'!V22/100 -> 3.791579759 | W19: =W16*'MIS11'!W22/100 -> 6.45009123 | BB19: Limited | BC19: N/A | BD19: N/A | BE19: N/A | BF19: N/A | BG19: N/A | BH19: N/A | BI19: N/A | BJ19: N/A | BK19: N/A | BL19: N/A | BM19: N/A | BN19: N/A | BO19: N/A | BP19: N/A | BQ19: N/A | BR19: N/A | BS19: N/A | BT19: N/A | BU19: N/A | BV19: N/A | BW19: N/A
B20: Unimproved | C20: =100-(C18+C19+C21) -> 22.71246062 | D20: =100-(D18+D19+D21) -> 14.90185587 | E20: 6.528367438 | F20: 6.273026969 | G20: 4.104142557 | H20: 8.202249392 | I20: 4.638082706 | J20: 9.283626605 | K20: 3.072555389 | L20: 5.607550106 | M20: 23.96843204 | N20: 25.16918634 | O20: 13.64046117 | P20: 9.032033838 | Q20: 2.729137034 | R20: 2.388496044 | S20: 14.09287594 | T20: 23.71250463 | U20: 8.884311798 | V20: 20.7192206 | W20: 3.93657008 | BB20: Unimproved | BC20: N/A | BD20: N/A | BE20: N/A | BF20: N/A | BG20: N/A | BH20: N/A | BI20: N/A | BJ20: N/A | BK20: N/A | BL20: N/A | BM20: N/A | BN20: N/A | BO20: N/A | BP20: N/A | BQ20: N/A | BR20: N/A | BS20: N/A | BT20: N/A | BU20: N/A | BV20: N/A | BW20: N/A
B21: Surface water | C21: =C66 -> 32.80412994 | D21: 18.57181464 | E21: 8.019697569 | F21: 1.189177451 | G21: 0.2429523008 | H21: 0.3816606495 | I21: 0.03739395021 | J21: 0 | K21: 0.2631810297 | L21: 0.2684163153 | M21: 31.51641142 | N21: 33.35904199 | O21: 24.82597864 | P21: 12.78696005 | Q21: 9.002654374 | R21: 0.10200335 | S21: 6.870035041 | T21: 9.285984796 | U21: 23.92849767 | V21: 33.59909555 | W21: 32.82724139 | BB21: Surface water | BC21: N/A | BD21: N/A | BE21: N/A | BF21: N/A | BG21: N/A | BH21: N/A | BI21: N/A | BJ21: N/A | BK21: N/A | BL21: N/A | BM21: N/A | BN21: N/A | BO21: N/A | BP21: N/A | BQ21: N/A | BR21: N/A | BS21: N/A | BT21: N/A | BU21: N/A | BV21: N/A | BW21: N/A
A22: Improved water point at more than 30 minutes | B22: Yes | C22: N/A | D22: N/A | E22: N/A | F22: N/A | G22: N/A | H22: N/A | I22: N/A | J22: N/A | K22: N/A | L22: N/A | M22: N/A | N22: N/A | O22: N/A | P22: N/A | Q22: N/A | R22: N/A | S22: N/A | T22: N/A | U22: N/A | V22: N/A | W22: N/A | BA22: Improved water point at more than 30 minutes | BB22: Yes | BC22: N/A | BD22: N/A | BE22: N/A | BF22: N/A | BG22: N/A | BH22: N/A | BI22: N/A | BJ22: N/A | BK22: N/A | BL22: N/A | BM22: N/A | BN22: N/A | BO22: N/A | BP22: N/A | BQ22: N/A | BR22: N/A | BS22: N/A | BT22: N/A | BU22: N/A | BV22: N/A | BW22: N/A
B23: No | C23: N/A | D23: N/A | E23: N/A | F23: N/A | G23: N/A | H23: N/A | I23: N/A | J23: N/A | K23: N/A | L23: N/A | M23: N/A | N23: N/A | O23: N/A | P23: N/A | Q23: N/A | R23: N/A | S23: N/A | T23: N/A | U23: N/A | V23: N/A | W23: N/A | BB23: No | BC23: N/A | BD23: N/A | BE23: N/A | BF23: N/A | BG23: N/A | BH23: N/A | BI23: N/A | BJ23: N/A | BK23: N/A | BL23: N/A | BM23: N/A | BN23: N/A | BO23: N/A | BP23: N/A | BQ23: N/A | BR23: N/A | BS23: N/A | BT23: N/A | BU23: N/A | BV23: N/A | BW23: N/A
A24: Manually calculated ratios | B24: Improved wells
B25: Improved springs
B26: Other
C27: NATIONAL wealth index quintile | H27: URBAN wealth index quintile | M27: RURAL wealth index quintile | R27: SUB-REGIONS: | BA27: Raw numbers of respondents: | BB27: Use of drinking water sources | BC27: NATIONAL wealth index quintile | BH27: URBAN wealth index quintile | BM27: RURAL wealth index quintile | BR27: SUB-REGIONS:
A28: Percentage based on weighted population | C28: Poorest | D28: Poor | E28: Middle | F28: Rich | G28: Richest | H28: Poorest | I28: Poor | J28: Middle | K28: Rich | L28: Richest | M28: Poorest | N28: Poor | O28: Middle | P28: Rich | Q28: Richest | R28: Monrovia | S28: North Central | T28: North Western | U28: South Central | V28: South Eastern A | W28: South Eastern B | BA28: Water data, raw numbers (weighted) | BC28: Poorest | BD28: Poor | BE28: Middle | BF28: Rich | BG28: Richest | BH28: Poorest | BI28: Poor | BJ28: Middle | BK28: Rich | BL28: Richest | BM28: Poorest | BN28: Poor | BO28: Middle | BP28: Rich | BQ28: Richest | BR28: Monrovia | BS28: North Central | BT28: North Western | BU28: South Central | BV28: South Eastern A | BW28: South Eastern B
A29: Piped water | B29: Yes | C29: 0 | D29: 0 | E29: 3.087377489 | F29: 12.79527906 | G29: 25.97348971 | H29: 4.029564365 | I29: 15.37941021 | J29: 15.72595102 | K29: 21.305672 | L29: 32.07134427 | M29: 0 | N29: 0 | O29: 0 | P29: 0 | Q29: 2.411641851 | R29: 33.79558995 | S29: 0 | T29: 0 | U29: 1.359522664 | V29: 0 | W29: 0.1482541225 | BA29: Piped water | BB29: Yes | BC29: N/A | BD29: N/A | BE29: N/A | BF29: N/A | BG29: N/A | BH29: N/A | BI29: N/A | BJ29: N/A | BK29: N/A | BL29: N/A | BM29: N/A | BN29: N/A | BO29: N/A | BP29: N/A | BQ29: N/A | BR29: N/A | BS29: N/A | BT29: N/A | BU29: N/A | BV29: N/A | BW29: N/A
B30: No | C30: 100 | D30: 100 | E30: 96.91262251 | F30: 87.20472094 | G30: 74.02651029 | H30: 95.97043564 | I30: 84.62058979 | J30: 84.27404898 | K30: 78.694328 | L30: 67.92865573 | M30: 100 | N30: 100 | O30: 100 | P30: 100 | Q30: 97.58835815 | R30: 66.20441005 | S30: 100 | T30: 100 | U30: 98.64047734 | V30: 100 | W30: 99.85174588 | BB30: No | BC30: N/A | BD30: N/A | BE30: N/A | BF30: N/A | BG30: N/A | BH30: N/A | BI30: N/A | BJ30: N/A | BK30: N/A | BL30: N/A | BM30: N/A | BN30: N/A | BO30: N/A | BP30: N/A | BQ30: N/A | BR30: N/A | BS30: N/A | BT30: N/A | BU30: N/A | BV30: N/A | BW30: N/A
A31: Piped water on premises | B31: Yes | C31: 0 | D31: 0 | E31: 1.819067807 | F31: 7.679921414 | G31: 14.94743067 | H31: 2.7777515 | I31: 7.958953477 | J31: 10.26739653 | K31: 9.170292178 | L31: 20.3303348 | M31: 0 | N31: 0 | O31: 0 | P31: 0 | Q31: 2.411641851 | R31: 19.26988742 | S31: 0 | T31: 0 | U31: 1.359522664 | V31: 0 | W31: 0.1482541225 | BA31: Piped water on premises | BB31: Yes | BC31: N/A | BD31: N/A | BE31: N/A | BF31: N/A | BG31: N/A | BH31: N/A | BI31: N/A | BJ31: N/A | BK31: N/A | BL31: N/A | BM31: N/A | BN31: N/A | BO31: N/A | BP31: N/A | BQ31: N/A | BR31: N/A | BS31: N/A | BT31: N/A | BU31: N/A | BV31: N/A | BW31: N/A
B32: No | C32: 100 | D32: 100 | E32: 98.18093219 | F32: 92.32007859 | G32: 85.05256933 | H32: 97.2222485 | I32: 92.04104652 | J32: 89.73260347 | K32: 90.82970782 | L32: 79.6696652 | M32: 100 | N32: 100 | O32: 100 | P32: 100 | Q32: 97.58835815 | R32: 80.73011258 | S32: 100 | T32: 100 | U32: 98.64047734 | V32: 100 | W32: 99.85174588 | BB32: No | BC32: N/A | BD32: N/A | BE32: N/A | BF32: N/A | BG32: N/A | BH32: N/A | BI32: N/A | BJ32: N/A | BK32: N/A | BL32: N/A | BM32: N/A | BN32: N/A | BO32: N/A | BP32: N/A | BQ32: N/A | BR32: N/A | BS32: N/A | BT32: N/A | BU32: N/A | BV32: N/A | BW32: N/A
A33: Piped water into dwelling | B33: Yes | C33: N/A | D33: N/A | E33: N/A | F33: N/A | G33: N/A | H33: N/A | I33: N/A | J33: N/A | K33: N/A | L33: N/A | M33: N/A | N33: N/A | O33: N/A | P33: N/A | Q33: N/A | R33: N/A | S33: N/A | T33: N/A | U33: N/A | V33: N/A | W33: N/A | BA33: Piped water into dwelling | BB33: Yes | BC33: N/A | BD33: N/A | BE33: N/A | BF33: N/A | BG33: N/A | BH33: N/A | BI33: N/A | BJ33: N/A | BK33: N/A | BL33: N/A | BM33: N/A | BN33: N/A | BO33: N/A | BP33: N/A | BQ33: N/A | BR33: N/A | BS33: N/A | BT33: N/A | BU33: N/A | BV33: N/A | BW33: N/A
B34: No | C34: N/A | D34: N/A | E34: N/A | F34: N/A | G34: N/A | H34: N/A | I34: N/A | J34: N/A | K34: N/A | L34: N/A | M34: N/A | N34: N/A | O34: N/A | P34: N/A | Q34: N/A | R34: N/A | S34: N/A | T34: N/A | U34: N/A | V34: N/A | W34: N/A | BB34: No | BC34: N/A | BD34: N/A | BE34: N/A | BF34: N/A | BG34: N/A | BH34: N/A | BI34: N/A | BJ34: N/A | BK34: N/A | BL34: N/A | BM34: N/A | BN34: N/A | BO34: N/A | BP34: N/A | BQ34: N/A | BR34: N/A | BS34: N/A | BT34: N/A | BU34: N/A | BV34: N/A | BW34: N/A
A35: Water source on premises | B35: Yes | C35: N/A | D35: N/A | E35: N/A | F35: N/A | G35: N/A | H35: N/A | I35: N/A | J35: N/A | K35: N/A | L35: N/A | M35: N/A | N35: N/A | O35: N/A | P35: N/A | Q35: N/A | R35: N/A | S35: N/A | T35: N/A | U35: N/A | V35: N/A | W35: N/A | BA35: Water source on premises | BB35: Yes | BC35: N/A | BD35: N/A | BE35: N/A | BF35: N/A | BG35: N/A | BH35: N/A | BI35: N/A | BJ35: N/A | BK35: N/A | BL35: N/A | BM35: N/A | BN35: N/A | BO35: N/A | BP35: N/A | BQ35: N/A | BR35: N/A | BS35: N/A | BT35: N/A | BU35: N/A | BV35: N/A | BW35: N/A
B36: No | C36: N/A | D36: N/A | E36: N/A | F36: N/A | G36: N/A | H36: N/A | I36: N/A | J36: N/A | K36: N/A | L36: N/A | M36: N/A | N36: N/A | O36: N/A | P36: N/A | Q36: N/A | R36: N/A | S36: N/A | T36: N/A | U36: N/A | V36: N/A | W36: N/A | BB36: No | BC36: N/A | BD36: N/A | BE36: N/A | BF36: N/A | BG36: N/A | BH36: N/A | BI36: N/A | BJ36: N/A | BK36: N/A | BL36: N/A | BM36: N/A | BN36: N/A | BO36: N/A | BP36: N/A | BQ36: N/A | BR36: N/A | BS36: N/A | BT36: N/A | BU36: N/A | BV36: N/A | BW36: N/A
A37: Improved Water source on premises | B37: Yes | C37: N/A | D37: N/A | E37: N/A | F37: N/A | G37: N/A | H37: N/A | I37: N/A | J37: N/A | K37: N/A | L37: N/A | M37: N/A | N37: N/A | O37: N/A | P37: N/A | Q37: N/A | R37: N/A | S37: N/A | T37: N/A | U37: N/A | V37: N/A | W37: N/A | BA37: Improved water source on premises | BB37: Yes | BC37: N/A | BD37: N/A | BE37: N/A | BF37: N/A | BG37: N/A | BH37: N/A | BI37: N/A | BJ37: N/A | BK37: N/A | BL37: N/A | BM37: N/A | BN37: N/A | BO37: N/A | BP37: N/A | BQ37: N/A | BR37: N/A | BS37: N/A | BT37: N/A | BU37: N/A | BV37: N/A | BW37: N/A
B38: No | C38: N/A | D38: N/A | E38: N/A | F38: N/A | G38: N/A | H38: N/A | I38: N/A | J38: N/A | K38: N/A | L38: N/A | M38: N/A | N38: N/A | O38: N/A | P38: N/A | Q38: N/A | R38: N/A | S38: N/A | T38: N/A | U38: N/A | V38: N/A | W38: N/A | BB38: No | BC38: N/A | BD38: N/A | BE38: N/A | BF38: N/A | BG38: N/A | BH38: N/A | BI38: N/A | BJ38: N/A | BK38: N/A | BL38: N/A | BM38: N/A | BN38: N/A | BO38: N/A | BP38: N/A | BQ38: N/A | BR38: N/A | BS38: N/A | BT38: N/A | BU38: N/A | BV38: N/A | BW38: N/A
A39: Piped water on premises available when needed | B39: Yes | C39: N/A | D39: N/A | E39: N/A | F39: N/A | G39: N/A | H39: N/A | I39: N/A | J39: N/A | K39: N/A | L39: N/A | M39: N/A | N39: N/A | O39: N/A | P39: N/A | Q39: N/A | R39: N/A | S39: N/A | T39: N/A | U39: N/A | V39: N/A | W39: N/A | BA39: Piped water on premises available when needed | BB39: Yes | BC39: N/A | BD39: N/A | BE39: N/A | BF39: N/A | BG39: N/A | BH39: N/A | BI39: N/A | BJ39: N/A | BK39: N/A | BL39: N/A | BM39: N/A | BN39: N/A | BO39: N/A | BP39: N/A | BQ39: N/A | BR39: N/A | BS39: N/A | BT39: N/A | BU39: N/A | BV39: N/A | BW39: N/A
B40: No | C40: N/A | D40: N/A | E40: N/A | F40: N/A | G40: N/A | H40: N/A | I40: N/A | J40: N/A | K40: N/A | L40: N/A | M40: N/A | N40: N/A | O40: N/A | P40: N/A | Q40: N/A | R40: N/A | S40: N/A | T40: N/A | U40: N/A | V40: N/A | W40: N/A | BB40: No | BC40: N/A | BD40: N/A | BE40: N/A | BF40: N/A | BG40: N/A | BH40: N/A | BI40: N/A | BJ40: N/A | BK40: N/A | BL40: N/A | BM40: N/A | BN40: N/A | BO40: N/A | BP40: N/A | BQ40: N/A | BR40: N/A | BS40: N/A | BT40: N/A | BU40: N/A | BV40: N/A | BW40: N/A
A41: Water point at more than 30 minutes | B41: Yes | C41: N/A | D41: N/A | E41: N/A | F41: N/A | G41: N/A | H41: N/A | I41: N/A | J41: N/A | K41: N/A | L41: N/A | M41: N/A | N41: N/A | O41: N/A | P41: N/A | Q41: N/A | R41: N/A | S41: N/A | T41: N/A | U41: N/A | V41: N/A | W41: N/A | BA41: Water point at more than 30 minutes | BB41: Yes | BC41: N/A | BD41: N/A | BE41: N/A | BF41: N/A | BG41: N/A | BH41: N/A | BI41: N/A | BJ41: N/A | BK41: N/A | BL41: N/A | BM41: N/A | BN41: N/A | BO41: N/A | BP41: N/A | BQ41: N/A | BR41: N/A | BS41: N/A | BT41: N/A | BU41: N/A | BV41: N/A | BW41: N/A
B42: No | C42: N/A | D42: N/A | E42: N/A | F42: N/A | G42: N/A | H42: N/A | I42: N/A | J42: N/A | K42: N/A | L42: N/A | M42: N/A | N42: N/A | O42: N/A | P42: N/A | Q42: N/A | R42: N/A | S42: N/A | T42: N/A | U42: N/A | V42: N/A | W42: N/A | BB42: No | BC42: N/A | BD42: N/A | BE42: N/A | BF42: N/A | BG42: N/A | BH42: N/A | BI42: N/A | BJ42: N/A | BK42: N/A | BL42: N/A | BM42: N/A | BN42: N/A | BO42: N/A | BP42: N/A | BQ42: N/A | BR42: N/A | BS42: N/A | BT42: N/A | BU42: N/A | BV42: N/A | BW42: N/A
A43: Water source available when needed | B43: Yes | C43: N/A | D43: N/A | E43: N/A | F43: N/A | G43: N/A | H43: N/A | I43: N/A | J43: N/A | K43: N/A | L43: N/A | M43: N/A | N43: N/A | O43: N/A | P43: N/A | Q43: N/A | R43: N/A | S43: N/A | T43: N/A | U43: N/A | V43: N/A | W43: N/A | BA43: Water source available when needed | BB43: Yes | BC43: N/A | BD43: N/A | BE43: N/A | BF43: N/A | BG43: N/A | BH43: N/A | BI43: N/A | BJ43: N/A | BK43: N/A | BL43: N/A | BM43: N/A | BN43: N/A | BO43: N/A | BP43: N/A | BQ43: N/A | BR43: N/A | BS43: N/A | BT43: N/A | BU43: N/A | BV43: N/A | BW43: N/A
B44: No | C44: N/A | D44: N/A | E44: N/A | F44: N/A | G44: N/A | H44: N/A | I44: N/A | J44: N/A | K44: N/A | L44: N/A | M44: N/A | N44: N/A | O44: N/A | P44: N/A | Q44: N/A | R44: N/A | S44: N/A | T44: N/A | U44: N/A | V44: N/A | W44: N/A | BB44: No | BC44: N/A | BD44: N/A | BE44: N/A | BF44: N/A | BG44: N/A | BH44: N/A | BI44: N/A | BJ44: N/A | BK44: N/A | BL44: N/A | BM44: N/A | BN44: N/A | BO44: N/A | BP44: N/A | BQ44: N/A | BR44: N/A | BS44: N/A | BT44: N/A | BU44: N/A | BV44: N/A | BW44: N/A
A45: Improved water source available when needed | B45: Yes | C45: N/A | D45: N/A | E45: N/A | F45: N/A | G45: N/A | H45: N/A | I45: N/A | J45: N/A | K45: N/A | L45: N/A | M45: N/A | N45: N/A | O45: N/A | P45: N/A | Q45: N/A | R45: N/A | S45: N/A | T45: N/A | U45: N/A | V45: N/A | W45: N/A | BA45: Improved water source available when needed | BB45: Yes | BC45: N/A | BD45: N/A | BE45: N/A | BF45: N/A | BG45: N/A | BH45: N/A | BI45: N/A | BJ45: N/A | BK45: N/A | BL45: N/A | BM45: N/A | BN45: N/A | BO45: N/A | BP45: N/A | BQ45: N/A | BR45: N/A | BS45: N/A | BT45: N/A | BU45: N/A | BV45: N/A | BW45: N/A
B46: No | C46: N/A | D46: N/A | E46: N/A | F46: N/A | G46: N/A | H46: N/A | I46: N/A | J46: N/A | K46: N/A | L46: N/A | M46: N/A | N46: N/A | O46: N/A | P46: N/A | Q46: N/A | R46: N/A | S46: N/A | T46: N/A | U46: N/A | V46: N/A | W46: N/A | BB46: No | BC46: N/A | BD46: N/A | BE46: N/A | BF46: N/A | BG46: N/A | BH46: N/A | BI46: N/A | BJ46: N/A | BK46: N/A | BL46: N/A | BM46: N/A | BN46: N/A | BO46: N/A | BP46: N/A | BQ46: N/A | BR46: N/A | BS46: N/A | BT46: N/A | BU46: N/A | BV46: N/A | BW46: N/A
A47: Microbiological quality at point of collection | B47: Not contaminated (No E. coli in 100 mL) | C47: N/A | D47: N/A | E47: N/A | F47: N/A | G47: N/A | H47: N/A | I47: N/A | J47: N/A | K47: N/A | L47: N/A | M47: N/A | N47: N/A | O47: N/A | P47: N/A | Q47: N/A | R47: N/A | S47: N/A | T47: N/A | U47: N/A | V47: N/A | W47: N/A | BA47: Microbiological quality at point of collection | BB47: Not contaminated (No E. coli in 100 mL) | BC47: N/A | BD47: N/A | BE47: N/A | BF47: N/A | BG47: N/A | BH47: N/A | BI47: N/A | BJ47: N/A | BK47: N/A | BL47: N/A | BM47: N/A | BN47: N/A | BO47: N/A | BP47: N/A | BQ47: N/A | BR47: N/A | BS47: N/A | BT47: N/A | BU47: N/A | BV47: N/A | BW47: N/A
B48: Contaminated (E. coli detected in 100 mL) | C48: N/A | D48: N/A | E48: N/A | F48: N/A | G48: N/A | H48: N/A | I48: N/A | J48: N/A | K48: N/A | L48: N/A | M48: N/A | N48: N/A | O48: N/A | P48: N/A | Q48: N/A | R48: N/A | S48: N/A | T48: N/A | U48: N/A | V48: N/A | W48: N/A | BB48: Contaminated (E. coli detected in 100 mL) | BC48: N/A | BD48: N/A | BE48: N/A | BF48: N/A | BG48: N/A | BH48: N/A | BI48: N/A | BJ48: N/A | BK48: N/A | BL48: N/A | BM48: N/A | BN48: N/A | BO48: N/A | BP48: N/A | BQ48: N/A | BR48: N/A | BS48: N/A | BT48: N/A | BU48: N/A | BV48: N/A | BW48: N/A
B49: Highly contaminated (>100 CFU/100 mL) | C49: N/A | D49: N/A | E49: N/A | F49: N/A | G49: N/A | H49: N/A | I49: N/A | J49: N/A | K49: N/A | L49: N/A | M49: N/A | N49: N/A | O49: N/A | P49: N/A | Q49: N/A | R49: N/A | S49: N/A | T49: N/A | U49: N/A | V49: N/A | W49: N/A | BB49: Highly contaminated (>100 CFU/100 mL) | BC49: N/A | BD49: N/A | BE49: N/A | BF49: N/A | BG49: N/A | BH49: N/A | BI49: N/A | BJ49: N/A | BK49: N/A | BL49: N/A | BM49: N/A | BN49: N/A | BO49: N/A | BP49: N/A | BQ49: N/A | BR49: N/A | BS49: N/A | BT49: N/A | BU49: N/A | BV49: N/A | BW49: N/A
A50: Microbiological quality of improved water sources at point of collection | B50: Not contaminated (No E. coli in 100 mL) | C50: N/A | D50: N/A | E50: N/A | F50: N/A | G50: N/A | H50: N/A | I50: N/A | J50: N/A | K50: N/A | L50: N/A | M50: N/A | N50: N/A | O50: N/A | P50: N/A | Q50: N/A | R50: N/A | S50: N/A | T50: N/A | U50: N/A | V50: N/A | W50: N/A | BA50: Microbiological quality of improved water sources at point of collection | BB50: Not contaminated (No E. coli in 100 mL) | BC50: N/A | BD50: N/A | BE50: N/A | BF50: N/A | BG50: N/A | BH50: N/A | BI50: N/A | BJ50: N/A | BK50: N/A | BL50: N/A | BM50: N/A | BN50: N/A | BO50: N/A | BP50: N/A | BQ50: N/A | BR50: N/A | BS50: N/A | BT50: N/A | BU50: N/A | BV50: N/A | BW50: N/A
B51: Contaminated (E. coli detected in 100 mL) | C51: N/A | D51: N/A | E51: N/A | F51: N/A | G51: N/A | H51: N/A | I51: N/A | J51: N/A | K51: N/A | L51: N/A | M51: N/A | N51: N/A | O51: N/A | P51: N/A | Q51: N/A | R51: N/A | S51: N/A | T51: N/A | U51: N/A | V51: N/A | W51: N/A | BB51: Contaminated (E. coli detected in 100 mL) | BC51: N/A | BD51: N/A | BE51: N/A | BF51: N/A | BG51: N/A | BH51: N/A | BI51: N/A | BJ51: N/A | BK51: N/A | BL51: N/A | BM51: N/A | BN51: N/A | BO51: N/A | BP51: N/A | BQ51: N/A | BR51: N/A | BS51: N/A | BT51: N/A | BU51: N/A | BV51: N/A | BW51: N/A
B52: Highly contaminated (>100 CFU/100 mL) | C52: N/A | D52: N/A | E52: N/A | F52: N/A | G52: N/A | H52: N/A | I52: N/A | J52: N/A | K52: N/A | L52: N/A | M52: N/A | N52: N/A | O52: N/A | P52: N/A | Q52: N/A | R52: N/A | S52: N/A | T52: N/A | U52: N/A | V52: N/A | W52: N/A | BB52: Highly contaminated (>100 CFU/100 mL) | BC52: N/A | BD52: N/A | BE52: N/A | BF52: N/A | BG52: N/A | BH52: N/A | BI52: N/A | BJ52: N/A | BK52: N/A | BL52: N/A | BM52: N/A | BN52: N/A | BO52: N/A | BP52: N/A | BQ52: N/A | BR52: N/A | BS52: N/A | BT52: N/A | BU52: N/A | BV52: N/A | BW52: N/A
A53: Microbiological quality of piped on premises at point of collection | B53: Not contaminated (No E. coli in 100 mL) | C53: N/A | D53: N/A | E53: N/A | F53: N/A | G53: N/A | H53: N/A | I53: N/A | J53: N/A | K53: N/A | L53: N/A | M53: N/A | N53: N/A | O53: N/A | P53: N/A | Q53: N/A | R53: N/A | S53: N/A | T53: N/A | U53: N/A | V53: N/A | W53: N/A | BA53: Microbiological quality of piped on premises at point of collection | BB53: Not contaminated (No E. coli in 100 mL) | BC53: N/A | BD53: N/A | BE53: N/A | BF53: N/A | BG53: N/A | BH53: N/A | BI53: N/A | BJ53: N/A | BK53: N/A | BL53: N/A | BM53: N/A | BN53: N/A | BO53: N/A | BP53: N/A | BQ53: N/A | BR53: N/A | BS53: N/A | BT53: N/A | BU53: N/A | BV53: N/A | BW53: N/A
B54: Contaminated (E. coli detected in 100 mL) | C54: N/A | D54: N/A | E54: N/A | F54: N/A | G54: N/A | H54: N/A | I54: N/A | J54: N/A | K54: N/A | L54: N/A | M54: N/A | N54: N/A | O54: N/A | P54: N/A | Q54: N/A | R54: N/A | S54: N/A | T54: N/A | U54: N/A | V54: N/A | W54: N/A | BB54: Contaminated (E. coli detected in 100 mL) | BC54: N/A | BD54: N/A | BE54: N/A | BF54: N/A | BG54: N/A | BH54: N/A | BI54: N/A | BJ54: N/A | BK54: N/A | BL54: N/A | BM54: N/A | BN54: N/A | BO54: N/A | BP54: N/A | BQ54: N/A | BR54: N/A | BS54: N/A | BT54: N/A | BU54: N/A | BV54: N/A | BW54: N/A
B55: Highly contaminated (>100 CFU/100 mL) | C55: N/A | D55: N/A | E55: N/A | F55: N/A | G55: N/A | H55: N/A | I55: N/A | J55: N/A | K55: N/A | L55: N/A | M55: N/A | N55: N/A | O55: N/A | P55: N/A | Q55: N/A | R55: N/A | S55: N/A | T55: N/A | U55: N/A | V55: N/A | W55: N/A | BB55: Highly contaminated (>100 CFU/100 mL) | BC55: N/A | BD55: N/A | BE55: N/A | BF55: N/A | BG55: N/A | BH55: N/A | BI55: N/A | BJ55: N/A | BK55: N/A | BL55: N/A | BM55: N/A | BN55: N/A | BO55: N/A | BP55: N/A | BQ55: N/A | BR55: N/A | BS55: N/A | BT55: N/A | BU55: N/A | BV55: N/A | BW55: N/A
C56: NATIONAL wealth index quintile | H56: URBAN wealth index quintile | M56: RURAL wealth index quintile | R56: SUB-REGIONS: | BA56: Raw numbers of respondents: | BB56: Use of drinking water sources | BC56: NATIONAL wealth index quintile | BH56: URBAN wealth index quintile | BM56: RURAL wealth index quintile | BR56: SUB-REGIONS:
A57: Percentage based on weighted population | C57: Poorest | D57: Poor | E57: Middle | F57: Rich | G57: Richest | H57: Poorest | I57: Poor | J57: Middle | K57: Rich | L57: Richest | M57: Poorest | N57: Poor | O57: Middle | P57: Rich | Q57: Richest | R57: Monrovia | S57: North Central | T57: North Western | U57: South Central | V57: South Eastern A | W57: South Eastern B | BA57: Water data, raw numbers (weighted) | BC57: Poorest | BD57: Poor | BE57: Middle | BF57: Rich | BG57: Richest | BH57: Poorest | BI57: Poor | BJ57: Middle | BK57: Rich | BL57: Richest | BM57: Poorest | BN57: Poor | BO57: Middle | BP57: Rich | BQ57: Richest | BR57: Monrovia | BS57: North Central | BT57: North Western | BU57: South Central | BV57: South Eastern A | BW57: South Eastern B
A58: Source of drinking water | B58: Piped into dwelling | C58: 0 | D58: 0 | E58: 0.2299477244 | F58: 2.127890134 | G58: 6.006947046 | H58: 0.4188626781 | I58: 3.435975702 | J58: 1.269001068 | K58: 1.708179243 | L58: 8.595464555 | M58: 0 | N58: 0 | O58: 0 | P58: 0 | Q58: 2.411641851 | R58: 5.841234516 | S58: 0 | T58: 0 | U58: 1.363780842 | V58: 0 | W58: 0.1482541225
B59: Piped to yard/plot | C59: 0 | D59: 0 | E59: 1.591671413 | F59: 5.55203128 | G59: 8.985294307 | H59: 2.358888822 | I59: 4.522977775 | J59: 8.998395459 | K59: 7.462112935 | L59: 11.86854444 | M59: 0 | N59: 0 | O59: 0 | P59: 0 | Q59: 0 | R59: 13.42865291 | S59: 0 | T59: 0 | U59: 0 | V59: 0 | W59: 0
B60: Public tap/standpipe | C60: 0 | D60: 0 | E60: 1.270088547 | F60: 5.115357647 | G60: 11.05911389 | H60: 1.251812864 | I60: 7.420456734 | J60: 5.458554494 | K60: 12.13537983 | L60: 11.8182079 | M60: 0 | N60: 0 | O60: 0 | P60: 0 | Q60: 0 | R60: 14.52570253 | S60: 0 | T60: 0 | U60: 0 | V60: 0 | W60: 0
B61: Tube well or borehole | C61: 0.7860767613 | D61: 2.007481492 | E61: 2.780967739 | F61: 2.631680134 | G61: 3.354296156 | H61: 2.776966675 | I61: 5.001858573 | J61: 3.818524707 | K61: 4.144157396 | L61: 2.281358601 | M61: 0.9695166874 | N61: 0.3613801189 | O61: 1.75496236 | P61: 2.212581302 | Q61: 0.7896476165 | R61: 2.180748338 | S61: 0.817004276 | T61: 0 | U61: 6.490107888 | V61: 0 | W61: 4.275498475
B62: Protected well | C62: 42.95121966 | D62: 64.3057443 | E62: 79.20433893 | F62: 74.88779758 | G62: 59.81222917 | H62: 84.35822848 | I62: 74.88842309 | J62: 66.49462281 | K62: 62.89411828 | L62: 53.79686747 | M62: 42.85961479 | N62: 40.41980728 | O62: 59.56723599 | P62: 75.9893947 | Q62: 84.27971628 | R62: 54.08253794 | S62: 78.12062383 | T62: 65.99480348 | U62: 59.32538181 | V62: 44.60479429 | W62: 58.0131904
B63: Unprotected well | C63: 7.22116881 | D63: 6.321798331 | E63: 4.760907016 | F63: 5.992522883 | G63: 3.592236281 | H63: 7.272123951 | I63: 4.069946489 | J63: 9.137131032 | K63: 2.979692281 | L63: 4.72041694 | M63: 6.349620742 | N63: 8.209345194 | O63: 5.470395263 | P63: 5.895087897 | Q63: 1.715080525 | R63: 2.388496044 | S63: 6.69965573 | T63: 7.756293217 | U63: 6.543878402 | V63: 8.394145004 | W63: 2.234362207
B64: Protected spring | C64: 0.7294020459 | D64: 0.2131037035 | E64: 0.3134887864 | F64: 0.04513059064 | G64: 0.01595353269 | H64: 0 | I64: 0 | J64: 0 | K64: 0 | L64: 0.03499007727 | M64: 0.7023617406 | N64: 0.6429065627 | O64: 0.2113618405 | P64: 0.1818714492 | Q64: 0.6642708416 | R64: 0 | S64: 0.09946091319 | T64: 1.044081321 | U64: 0.122565614 | V64: 1.250487938 | W64: 0.6227965259
B65: Unprotected spring | C65: 15.48237159 | D65: 8.580057535 | E65: 1.647609965 | F65: 0.2805040859 | G65: 0.2251498397 | H65: 0.9301254405 | I65: 0.5681362168 | J65: 0.1464955735 | K65: 0.09286310809 | L65: 0.2682572591 | M65: 17.60247462 | N65: 16.95984115 | O65: 8.170065905 | P65: 2.934104602 | Q65: 1.014056508 | R65: 0 | S65: 7.393220206 | T65: 15.91883718 | U65: 2.129995541 | V65: 12.15147722 | W65: 1.702207873
B66: River/dam/lake/ponds/stream/canal/irirgation channel | C66: 32.80412994 | D66: 18.57181464 | E66: 8.019697569 | F66: 1.189177451 | G66: 0.2429523008 | H66: 0.3816606495 | I66: 0.03739395021 | J66: 0 | K66: 0.2631810297 | L66: 0.2684163153 | M66: 31.51641142 | N66: 33.35904199 | O66: 24.82597864 | P66: 12.78696005 | Q66: 9.002654374 | R66: 0.10200335 | S66: 6.870035041 | T66: 9.285984796 | U66: 23.92849767 | V66: 33.59909555 | W66: 32.82724139
B67: Tanker truck | C67: 0 | D67: 0 | E67: 0 | F67: 0.5665407542 | G67: 0.3810725542 | H67: 0 | I67: 0 | J67: 1.230976049 | K67: 0.5008869342 | L67: 0.3325066601 | M67: 0 | N67: 0 | O67: 0 | P67: 0 | Q67: 0 | R67: 0.766411948 | S67: 0 | T67: 0 | U67: 0 | V67: 0 | W67: 0.08836816303
B68: Cart with small tank | C68: 0 | D68: 0 | E68: 0 | F68: 0.03899413628 | G68: 0.9693967175 | H68: 0 | I68: 0 | J68: 0.08472620454 | K68: 1.522670322 | L68: 0.5961821445 | M68: 0 | N68: 0 | O68: 0 | P68: 0 | Q68: 0 | R68: 0.8403355637 | S68: 0 | T68: 0 | U68: 0 | V68: 0 | W68: 0
B69: Bottled water | C69: 0.02563119407 | D69: 0 | E69: 0.1812823095 | F69: 1.572373321 | G69: 5.355358198 | H69: 0.2513304408 | I69: 0.0548314676 | J69: 3.361572605 | K69: 6.296758647 | L69: 5.418787635 | M69: 0 | N69: 0.04767770702 | O69: 0 | P69: 0 | Q69: 0.1229320088 | R69: 5.843876864 | S69: 0 | T69: 0 | U69: 0.09579223575 | V69: 0 | W69: 0.0880808477
A108: =A1026 -> Liberia
A109: =A1034 -> 2009
A110: Use of sanitation facilities
A111: by wealth quintile and sub-national region
A112: Notes:
A113: WHO/UNICEF JMP customised wealth index excludes water,
A114: sanitation and hygiene assets.
A115: Survey used for analysis: | B115: =A1025 -> MIS09
A116: =B1030 -> 
A117: =B1029 -> Ratio of Shared improved based on: | B117: MIS11
A120: Use of sanitation facilities | C120: NATIONAL wealth index quintile | H120: URBAN wealth index quintile | M120: RURAL wealth index quintile | R120: SUB-REGIONS: | BA120: Raw numbers of respondents: | BB120: Use of sanitation facilities | BC120: NATIONAL wealth index quintile | BH120: URBAN wealth index quintile | BM120: RURAL wealth index quintile | BR120: SUB-REGIONS:
A121: Weighted percentage (used in graphs) | C121: Poorest | D121: Poor | E121: Middle | F121: Rich | G121: Richest | H121: Poorest | I121: Poor | J121: Middle | K121: Rich | L121: Richest | M121: Poorest | N121: Poor | O121: Middle | P121: Rich | Q121: Richest | R121: Monrovia | S121: North Central | T121: North Western | U121: South Central | V121: South Eastern A | W121: South Eastern B | BA121: Sanitation data, raw numbers (weighted) | BC121: Poorest | BD121: Poor | BE121: Middle | BF121: Rich | BG121: Richest | BH121: Poorest | BI121: Poor | BJ121: Middle | BK121: Rich | BL121: Richest | BM121: Poorest | BN121: Poor | BO121: Middle | BP121: Rich | BQ121: Richest | BR121: Monrovia | BS121: North Central | BT121: North Western | BU121: South Central | BV121: South Eastern A | BW121: South Eastern B
A122: Sanitation | B122: Improved | C122: 14.15310912 | D122: 32.62476077 | E122: 44.3654672 | F122: 56.03855317 | G122: 72.06429684 | H122: 42.17265859 | I122: 55.01110398 | J122: 57.6645837 | K122: 63.3791072 | L122: 81.4616563 | M122: 13.93964289 | N122: 15.26445417 | O122: 32.23848514 | P122: 36.63508713 | Q122: 53.21212313 | R122: 60.69938142 | S122: 43.77088718 | T122: 36.4604096 | U122: 36.9341969 | V122: 23.61269279 | W122: 32.68667974 | BA122: Sanitation | BB122: Improved | BC122: 663.372124 | BD122: 1530.3524 | BE122: 2088.465321 | BF122: 2614.046952 | BG122: 3385.735725 | BH122: 906.940452 | BI122: 1181.850281 | BJ122: 1237.990136 | BK122: 1360.070391 | BL122: 1751.234376 | BM122: 357.067946 | BN122: 384.550199 | BO122: 819.761286 | BP122: 933.380336 | BQ122: 1349.127119 | BR122: 3411.328879 | BS122: 3738.006486 | BT122: 614.570645 | BU122: 1661.105839 | BV122: 411.225974 | BW122: 445.734699
B123: Not Improved | C123: 85.84689088 | D123: 67.37523923 | E123: 55.6345328 | F123: 43.96144683 | G123: 27.93570316 | H123: 57.82734141 | I123: 44.98889602 | J123: 42.3354163 | K123: 36.6208928 | L123: 18.5383437 | M123: 86.06035711 | N123: 84.73554583 | O123: 67.76151486 | P123: 63.36491287 | Q123: 46.78787687 | R123: 39.30061858 | S123: 56.22911282 | T123: 63.5395904 | U123: 63.0658031 | V123: 76.38730721 | W123: 67.31332026 | BB123: Not Improved | BC123: 4023.740215 | BD123: 3160.417322 | BE123: 2618.946666 | BF123: 2050.682603 | BG123: 1312.479443 | BH123: 1243.600876 | BI123: 966.534673 | BJ123: 908.891115 | BK123: 785.858214 | BL123: 398.53087 | BM123: 2204.460701 | BN123: 2134.702666 | BO123: 1723.042082 | BP123: 1614.396697 | BQ123: 1186.248355 | BR123: 2208.710072 | BS123: 4801.931192 | BT123: 1071.012846 | BU123: 2836.367989 | BV123: 1330.320311 | BW123: 917.923839
A124: Sanitation ladder | B124: Basic | C124: =C122*'MIS11'!C129/100 -> 1.587794169 | D124: =D122*'MIS11'!D129/100 -> 5.436843969 | E124: =E122*'MIS11'!E129/100 -> 4.688140285 | F124: =F122*'MIS11'!F129/100 -> 9.633719552 | G124: =G122*'MIS11'!G129/100 -> 39.74637016 | H124: =H122*'MIS11'!H129/100 -> 3.522172141 | I124: =I122*'MIS11'!I129/100 -> 6.777119952 | J124: =J122*'MIS11'!J129/100 -> 10.90326867 | K124: =K122*'MIS11'!K129/100 -> 18.29825195 | L124: =L122*'MIS11'!L129/100 -> 58.87449561 | M124: =M122*'MIS11'!M129/100 -> 1.671677651 | N124: =N122*'MIS11'!N129/100 -> 1.707392608 | O124: =O122*'MIS11'!O129/100 -> 2.794443597 | P124: =P122*'MIS11'!P129/100 -> 8.405931898 | Q124: =Q122*'MIS11'!Q129/100 -> 8.422604756 | R124: =R122*'MIS11'!R129/100 -> 23.68571937 | S124: =S122*'MIS11'!S129/100 -> 11.00328942 | T124: =T122*'MIS11'!T129/100 -> 6.062054014 | U124: =U122*'MIS11'!U129/100 -> 8.644100873 | V124: =V122*'MIS11'!V129/100 -> 5.33366404 | W124: =W122*'MIS11'!W129/100 -> 7.49449135 | BA124: Sanitation ladder | BB124: Basic | BC124: 5.964964 | BD124: 0 | BE124: 9.472359 | BF124: 115.16615 | BG124: 405.37684 | BH124: 8.670678 | BI124: 33.170245 | BJ124: 92.980968 | BK124: 164.89466 | BL124: 233.206296 | BM124: 0 | BN124: 3.057466 | BO124: 0 | BP124: 0 | BQ124: 0 | BR124: 521.727929 | BS124: 0 | BT124: 0 | BU124: 0 | BV124: 2.330934 | BW124: 11.92145
B125: Limited | C125: =C122*'MIS11'!C128/100 -> 12.56531495 | D125: =D122*'MIS11'!D128/100 -> 27.1879168 | E125: =E122*'MIS11'!E128/100 -> 39.67732691 | F125: =F122*'MIS11'!F128/100 -> 46.40483362 | G125: =G122*'MIS11'!G128/100 -> 32.31792669 | H125: =H122*'MIS11'!H128/100 -> 38.65048644 | I125: =I122*'MIS11'!I128/100 -> 48.23398403 | J125: =J122*'MIS11'!J128/100 -> 46.76131504 | K125: =K122*'MIS11'!K128/100 -> 45.08085525 | L125: =L122*'MIS11'!L128/100 -> 22.5871607 | M125: =M122*'MIS11'!M128/100 -> 12.26796524 | N125: =N122*'MIS11'!N128/100 -> 13.55706156 | O125: =O122*'MIS11'!O128/100 -> 29.44404155 | P125: =P122*'MIS11'!P128/100 -> 28.22915524 | Q125: =Q122*'MIS11'!Q128/100 -> 44.78951837 | R125: =R122*'MIS11'!R128/100 -> 37.01366205 | S125: =S122*'MIS11'!S128/100 -> 32.76759775 | T125: =T122*'MIS11'!T128/100 -> 30.39835559 | U125: =U122*'MIS11'!U128/100 -> 28.29009602 | V125: =V122*'MIS11'!V128/100 -> 18.27902875 | W125: =W122*'MIS11'!W128/100 -> 25.19218839 | BB125: Limited | BC125: 0 | BD125: 0 | BE125: 41.965484 | BF125: 155.23742 | BG125: 1522.279101 | BH125: 2.765595 | BI125: 60.07932 | BJ125: 104.520878 | BK125: 403.659288 | BL125: 1043.143381 | BM125: 0 | BN125: 0 | BO125: 0 | BP125: 0 | BQ125: 105.313543 | BR125: 1268.445036 | BS125: 61.091683 | BT125: 8.882737 | BU125: 341.721011 | BV125: 10.827913 | BW125: 28.513625
B126: Unimproved | C126: =100-(C124+C125+C127) -> 6.346511658 | D126: =100-(D124+D125+D127) -> 7.273596237 | E126: 12.05996308 | F126: 19.66378192 | G126: 19.37296026 | H126: 22.88910083 | I126: 19.49776637 | J126: 21.67832514 | K126: 24.28346958 | L126: 13.69339303 | M126: 6.623402405 | N126: 3.799587462 | O126: 6.455379565 | P126: 3.85428266 | Q126: 12.39208603 | R126: 24.80481638 | S126: 4.772137507 | T126: 7.149775887 | U126: 14.5003932 | V126: 11.39015657 | W126: 18.70271134 | BB126: Unimproved | BC126: 0 | BD126: 0 | BE126: 76.969577 | BF126: 121.500057 | BG126: 197.570412 | BH126: 63.472951 | BI126: 34.72564 | BJ126: 100.271043 | BK126: 143.450502 | BL126: 54.11991 | BM126: 0 | BN126: 0 | BO126: 0 | BP126: 0 | BQ126: 0 | BR126: 311.830441 | BS126: 50.995896 | BT126: 0.401683 | BU126: 29.751773 | BV126: 2.438704 | BW126: 0.621549
B127: Open defecation | C127: =C161 -> 79.50037922 | D127: =D161 -> 60.10164299 | E127: 43.57456972 | F127: 24.29766491 | G127: 8.562742901 | H127: 34.93824058 | I127: 25.49112965 | J127: 20.65709115 | K127: 12.33742322 | L127: 4.844950667 | M127: 79.4369547 | N127: 80.93595837 | O127: 61.30613529 | P127: 59.51063021 | Q127: 34.39579084 | R127: 14.4958022 | S127: 51.45697532 | T127: 56.38981451 | U127: 48.56540991 | V127: 64.99715064 | W127: 48.61060893 | BB127: Open defecation | BC127: 0 | BD127: 0 | BE127: 5.80905 | BF127: 58.908575 | BG127: 50.201068 | BH127: 5.80905 | BI127: 12.610822 | BJ127: 49.768948 | BK127: 31.802801 | BL127: 14.927072 | BM127: 0 | BN127: 0 | BO127: 0 | BP127: 0 | BQ127: 0 | BR127: 110.498121 | BS127: 4.420572 | BT127: 0 | BU127: 0 | BV127: 0 | BW127: 0
A128: Shared among Improved Sanitation | B128: Yes | C128: N/A | D128: N/A | E128: N/A | F128: N/A | G128: N/A | H128: N/A | I128: N/A | J128: N/A | K128: N/A | L128: N/A | M128: N/A | N128: N/A | O128: N/A | P128: N/A | Q128: N/A | R128: N/A | S128: N/A | T128: N/A | U128: N/A | V128: N/A | W128: N/A | BA128: Shared among improved sanitation facilities | BB128: Yes | BC128: N/A | BD128: N/A | BE128: N/A | BF128: N/A | BG128: N/A | BH128: N/A | BI128: N/A | BJ128: N/A | BK128: N/A | BL128: N/A | BM128: N/A | BN128: N/A | BO128: N/A | BP128: N/A | BQ128: N/A | BR128: N/A | BS128: N/A | BT128: N/A | BU128: N/A | BV128: N/A | BW128: N/A
B129: No | C129: N/A | D129: N/A | E129: N/A | F129: N/A | G129: N/A | H129: N/A | I129: N/A | J129: N/A | K129: N/A | L129: N/A | M129: N/A | N129: N/A | O129: N/A | P129: N/A | Q129: N/A | R129: N/A | S129: N/A | T129: N/A | U129: N/A | V129: N/A | W129: N/A | BB129: No | BC129: N/A | BD129: N/A | BE129: N/A | BF129: N/A | BG129: N/A | BH129: N/A | BI129: N/A | BJ129: N/A | BK129: N/A | BL129: N/A | BM129: N/A | BN129: N/A | BO129: N/A | BP129: N/A | BQ129: N/A | BR129: N/A | BS129: N/A | BT129: N/A | BU129: N/A | BV129: N/A | BW129: N/A
A130: Manually calculated ratios | B130: Improved latrines
B131: Other
B132: Other
C133: NATIONAL wealth index quintile | H133: URBAN wealth index quintile | M133: RURAL wealth index quintile | R133: SUB-REGIONS: | BA133: Raw numbers of respondents: | BB133: Use of sanitation facilities | BC133: NATIONAL wealth index quintile | BH133: URBAN wealth index quintile | BM133: RURAL wealth index quintile | BR133: SUB-REGIONS:
A134: Percentage based on weighted population | C134: Poorest | D134: Poor | E134: Middle | F134: Rich | G134: Richest | H134: Poorest | I134: Poor | J134: Middle | K134: Rich | L134: Richest | M134: Poorest | N134: Poor | O134: Middle | P134: Rich | Q134: Richest | R134: Monrovia | S134: North Central | T134: North Western | U134: South Central | V134: South Eastern A | W134: South Eastern B | BA134: Sanitation data, raw numbers (weighted) | BC134: Poorest | BD134: Poor | BE134: Middle | BF134: Rich | BG134: Richest | BH134: Poorest | BI134: Poor | BJ134: Middle | BK134: Rich | BL134: Richest | BM134: Poorest | BN134: Poor | BO134: Middle | BP134: Rich | BQ134: Richest | BR134: Monrovia | BS134: North Central | BT134: North Western | BU134: South Central | BV134: South Eastern A | BW134: South Eastern B
A135: Sanitation type | B135: Sewer connection | C135: 0.1272630901 | D135: 0 | E135: 0.201222222 | F135: 2.468870888 | G135: 8.628315765 | H135: 0.4031858345 | I135: 1.543961893 | J135: 4.330978621 | K135: 7.684070179 | L135: 10.84798893 | M135: 0 | N135: 0.1213639981 | O135: 0 | P135: 0 | Q135: 0 | R135: 9.283350766 | S135: 0 | T135: 0 | U135: 0 | V135: 0.1338427821 | W135: 0.8742254507 | BA135: Sanitation type | BB135: Sewer connection | BC135: N/A | BD135: N/A | BE135: N/A | BF135: N/A | BG135: N/A | BH135: N/A | BI135: N/A | BJ135: N/A | BK135: N/A | BL135: N/A | BM135: N/A | BN135: N/A | BO135: N/A | BP135: N/A | BQ135: N/A | BR135: N/A | BS135: N/A | BT135: N/A | BU135: N/A | BV135: N/A | BW135: N/A
B136: Septic tank connection | C136: 0 | D136: 0 | E136: 0.8914767629 | F136: 3.327897538 | G136: 32.40122145 | H136: 0.1285999466 | I136: 2.796487654 | J136: 4.868498337 | K136: 18.81047147 | L136: 48.52359498 | M136: 0 | N136: 0 | O136: 0 | P136: 0 | Q136: 4.153765155 | R136: 22.57003994 | S136: 0.7153645062 | T136: 0.5269829141 | U136: 7.598065582 | V136: 0.621741328 | W136: 2.090965165 | BB136: Septic tank connection | BC136: N/A | BD136: N/A | BE136: N/A | BF136: N/A | BG136: N/A | BH136: N/A | BI136: N/A | BJ136: N/A | BK136: N/A | BL136: N/A | BM136: N/A | BN136: N/A | BO136: N/A | BP136: N/A | BQ136: N/A | BR136: N/A | BS136: N/A | BT136: N/A | BU136: N/A | BV136: N/A | BW136: N/A
B137: Improved latrines | C137: 14.02584603 | D137: 32.62476077 | E137: 43.27276821 | F137: 50.24178475 | G137: 31.03475962 | H137: 41.6408728 | I137: 50.67065444 | J137: 48.46510675 | K137: 36.88456555 | L137: 22.09007239 | M137: 13.93964289 | N137: 15.14309017 | O137: 32.23848514 | P137: 36.63508713 | Q137: 49.05835797 | R137: 28.84599072 | S137: 43.05552267 | T137: 35.93342669 | U137: 29.33613131 | V137: 22.85710868 | W137: 29.72148912 | BB137: Improved latrines | BC137: N/A | BD137: N/A | BE137: N/A | BF137: N/A | BG137: N/A | BH137: N/A | BI137: N/A | BJ137: N/A | BK137: N/A | BL137: N/A | BM137: N/A | BN137: N/A | BO137: N/A | BP137: N/A | BQ137: N/A | BR137: N/A | BS137: N/A | BT137: N/A | BU137: N/A | BV137: N/A | BW137: N/A
B138: Unimproved facilities | C138: 6.346511658 | D138: 7.273596237 | E138: 12.08352967 | F138: 19.66378192 | G138: 19.39855365 | H138: 22.88910083 | I138: 19.49776637 | J138: 21.67832514 | K138: 24.28346958 | L138: 13.72504103 | M138: 6.623402405 | N138: 3.799587462 | O138: 6.455379565 | P138: 3.913750054 | Q138: 12.39208603 | R138: 24.80481638 | S138: 4.772137507 | T138: 7.149775887 | U138: 14.65203059 | V138: 11.48517439 | W138: 18.70271134 | BB138: Unimproved facilities | BC138: N/A | BD138: N/A | BE138: N/A | BF138: N/A | BG138: N/A | BH138: N/A | BI138: N/A | BJ138: N/A | BK138: N/A | BL138: N/A | BM138: N/A | BN138: N/A | BO138: N/A | BP138: N/A | BQ138: N/A | BR138: N/A | BS138: N/A | BT138: N/A | BU138: N/A | BV138: N/A | BW138: N/A
B139: Open defecation | C139: 79.50037922 | D139: 60.10164299 | E139: 43.55100313 | F139: 24.29766491 | G139: 8.537149506 | H139: 34.93824058 | I139: 25.49112965 | J139: 20.65709115 | K139: 12.33742322 | L139: 4.813302671 | M139: 79.4369547 | N139: 80.93595837 | O139: 61.30613529 | P139: 59.45116281 | Q139: 34.39579084 | R139: 14.4958022 | S139: 51.45697532 | T139: 56.38981451 | U139: 48.41377251 | V139: 64.90213282 | W139: 48.61060893 | BB139: Open defecation | BC139: N/A | BD139: N/A | BE139: N/A | BF139: N/A | BG139: N/A | BH139: N/A | BI139: N/A | BJ139: N/A | BK139: N/A | BL139: N/A | BM139: N/A | BN139: N/A | BO139: N/A | BP139: N/A | BQ139: N/A | BR139: N/A | BS139: N/A | BT139: N/A | BU139: N/A | BV139: N/A | BW139: N/A
A140: Septic tank emptying practices | B140: Not emptied/treated and disposed in situ | C140: N/A | D140: N/A | E140: N/A | F140: N/A | G140: N/A | H140: N/A | I140: N/A | J140: N/A | K140: N/A | L140: N/A | M140: N/A | N140: N/A | O140: N/A | P140: N/A | Q140: N/A | R140: N/A | S140: N/A | T140: N/A | U140: N/A | V140: N/A | W140: N/A | BA140: Septic tank emptying practices | BB140: Not emptied/treated and disposed in situ | BC140: N/A | BD140: N/A | BE140: N/A | BF140: N/A | BG140: N/A | BH140: N/A | BI140: N/A | BJ140: N/A | BK140: N/A | BL140: N/A | BM140: N/A | BN140: N/A | BO140: N/A | BP140: N/A | BQ140: N/A | BR140: N/A | BS140: N/A | BT140: N/A | BU140: N/A | BV140: N/A | BW140: N/A
B141: Emptied and buried on site | C141: N/A | D141: N/A | E141: N/A | F141: N/A | G141: N/A | H141: N/A | I141: N/A | J141: N/A | K141: N/A | L141: N/A | M141: N/A | N141: N/A | O141: N/A | P141: N/A | Q141: N/A | R141: N/A | S141: N/A | T141: N/A | U141: N/A | V141: N/A | W141: N/A | BB141: Emptied and buried on site | BC141: N/A | BD141: N/A | BE141: N/A | BF141: N/A | BG141: N/A | BH141: N/A | BI141: N/A | BJ141: N/A | BK141: N/A | BL141: N/A | BM141: N/A | BN141: N/A | BO141: N/A | BP141: N/A | BQ141: N/A | BR141: N/A | BS141: N/A | BT141: N/A | BU141: N/A | BV141: N/A | BW141: N/A
B142: Emptied and discharged locally | C142: N/A | D142: N/A | E142: N/A | F142: N/A | G142: N/A | H142: N/A | I142: N/A | J142: N/A | K142: N/A | L142: N/A | M142: N/A | N142: N/A | O142: N/A | P142: N/A | Q142: N/A | R142: N/A | S142: N/A | T142: N/A | U142: N/A | V142: N/A | W142: N/A | BB142: Emptied and discharged locally | BC142: N/A | BD142: N/A | BE142: N/A | BF142: N/A | BG142: N/A | BH142: N/A | BI142: N/A | BJ142: N/A | BK142: N/A | BL142: N/A | BM142: N/A | BN142: N/A | BO142: N/A | BP142: N/A | BQ142: N/A | BR142: N/A | BS142: N/A | BT142: N/A | BU142: N/A | BV142: N/A | BW142: N/A
B143: Emptied and removed offsite | C143: N/A | D143: N/A | E143: N/A | F143: N/A | G143: N/A | H143: N/A | I143: N/A | J143: N/A | K143: N/A | L143: N/A | M143: N/A | N143: N/A | O143: N/A | P143: N/A | Q143: N/A | R143: N/A | S143: N/A | T143: N/A | U143: N/A | V143: N/A | W143: N/A | BB143: Emptied and removed offsite | BC143: N/A | BD143: N/A | BE143: N/A | BF143: N/A | BG143: N/A | BH143: N/A | BI143: N/A | BJ143: N/A | BK143: N/A | BL143: N/A | BM143: N/A | BN143: N/A | BO143: N/A | BP143: N/A | BQ143: N/A | BR143: N/A | BS143: N/A | BT143: N/A | BU143: N/A | BV143: N/A | BW143: N/A
A144: Latrine emptying practices | B144: Not emptied/treated and disposed in situ | C144: N/A | D144: N/A | E144: N/A | F144: N/A | G144: N/A | H144: N/A | I144: N/A | J144: N/A | K144: N/A | L144: N/A | M144: N/A | N144: N/A | O144: N/A | P144: N/A | Q144: N/A | R144: N/A | S144: N/A | T144: N/A | U144: N/A | V144: N/A | W144: N/A | BA144: Latrine emptying practices | BB144: Not emptied/treated and disposed in situ | BC144: N/A | BD144: N/A | BE144: N/A | BF144: N/A | BG144: N/A | BH144: N/A | BI144: N/A | BJ144: N/A | BK144: N/A | BL144: N/A | BM144: N/A | BN144: N/A | BO144: N/A | BP144: N/A | BQ144: N/A | BR144: N/A | BS144: N/A | BT144: N/A | BU144: N/A | BV144: N/A | BW144: N/A
B145: Emptied and buried on site | C145: N/A | D145: N/A | E145: N/A | F145: N/A | G145: N/A | H145: N/A | I145: N/A | J145: N/A | K145: N/A | L145: N/A | M145: N/A | N145: N/A | O145: N/A | P145: N/A | Q145: N/A | R145: N/A | S145: N/A | T145: N/A | U145: N/A | V145: N/A | W145: N/A | BB145: Emptied and buried on site | BC145: N/A | BD145: N/A | BE145: N/A | BF145: N/A | BG145: N/A | BH145: N/A | BI145: N/A | BJ145: N/A | BK145: N/A | BL145: N/A | BM145: N/A | BN145: N/A | BO145: N/A | BP145: N/A | BQ145: N/A | BR145: N/A | BS145: N/A | BT145: N/A | BU145: N/A | BV145: N/A | BW145: N/A
B146: Emptied and discharged locally | C146: N/A | D146: N/A | E146: N/A | F146: N/A | G146: N/A | H146: N/A | I146: N/A | J146: N/A | K146: N/A | L146: N/A | M146: N/A | N146: N/A | O146: N/A | P146: N/A | Q146: N/A | R146: N/A | S146: N/A | T146: N/A | U146: N/A | V146: N/A | W146: N/A | BB146: Emptied and discharged locally | BC146: N/A | BD146: N/A | BE146: N/A | BF146: N/A | BG146: N/A | BH146: N/A | BI146: N/A | BJ146: N/A | BK146: N/A | BL146: N/A | BM146: N/A | BN146: N/A | BO146: N/A | BP146: N/A | BQ146: N/A | BR146: N/A | BS146: N/A | BT146: N/A | BU146: N/A | BV146: N/A | BW146: N/A
B147: Emptied and removed offsite | C147: N/A | D147: N/A | E147: N/A | F147: N/A | G147: N/A | H147: N/A | I147: N/A | J147: N/A | K147: N/A | L147: N/A | M147: N/A | N147: N/A | O147: N/A | P147: N/A | Q147: N/A | R147: N/A | S147: N/A | T147: N/A | U147: N/A | V147: N/A | W147: N/A | BB147: Emptied and removed offsite | BC147: N/A | BD147: N/A | BE147: N/A | BF147: N/A | BG147: N/A | BH147: N/A | BI147: N/A | BJ147: N/A | BK147: N/A | BL147: N/A | BM147: N/A | BN147: N/A | BO147: N/A | BP147: N/A | BQ147: N/A | BR147: N/A | BS147: N/A | BT147: N/A | BU147: N/A | BV147: N/A | BW147: N/A
A148: Shared among improved sanitation facilities | B148: Yes | C148: N/A | D148: N/A | E148: N/A | F148: N/A | G148: N/A | H148: N/A | I148: N/A | J148: N/A | K148: N/A | L148: N/A | M148: N/A | N148: N/A | O148: N/A | P148: N/A | Q148: N/A | R148: N/A | S148: N/A | T148: N/A | U148: N/A | V148: N/A | W148: N/A | BA148: Shared among improved sanitation facilities | BB148: Yes | BC148: N/A | BD148: N/A | BE148: N/A | BF148: N/A | BG148: N/A | BH148: N/A | BI148: N/A | BJ148: N/A | BK148: N/A | BL148: N/A | BM148: N/A | BN148: N/A | BO148: N/A | BP148: N/A | BQ148: N/A | BR148: N/A | BS148: N/A | BT148: N/A | BU148: N/A | BV148: N/A | BW148: N/A
B149: No | C149: N/A | D149: N/A | E149: N/A | F149: N/A | G149: N/A | H149: N/A | I149: N/A | J149: N/A | K149: N/A | L149: N/A | M149: N/A | N149: N/A | O149: N/A | P149: N/A | Q149: N/A | R149: N/A | S149: N/A | T149: N/A | U149: N/A | V149: N/A | W149: N/A | BB149: No | BC149: N/A | BD149: N/A | BE149: N/A | BF149: N/A | BG149: N/A | BH149: N/A | BI149: N/A | BJ149: N/A | BK149: N/A | BL149: N/A | BM149: N/A | BN149: N/A | BO149: N/A | BP149: N/A | BQ149: N/A | BR149: N/A | BS149: N/A | BT149: N/A | BU149: N/A | BV149: N/A | BW149: N/A
B150: DK/missing | C150: N/A | D150: N/A | E150: N/A | F150: N/A | G150: N/A | H150: N/A | I150: N/A | J150: N/A | K150: N/A | L150: N/A | M150: N/A | N150: N/A | O150: N/A | P150: N/A | Q150: N/A | R150: N/A | S150: N/A | T150: N/A | U150: N/A | V150: N/A | W150: N/A | BB150: DK/missing | BC150: N/A | BD150: N/A | BE150: N/A | BF150: N/A | BG150: N/A | BH150: N/A | BI150: N/A | BJ150: N/A | BK150: N/A | BL150: N/A | BM150: N/A | BN150: N/A | BO150: N/A | BP150: N/A | BQ150: N/A | BR150: N/A | BS150: N/A | BT150: N/A | BU150: N/A | BV150: N/A | BW150: N/A
A151: Shared among all sanitation facilities | B151: Yes | C151: N/A | D151: N/A | E151: N/A | F151: N/A | G151: N/A | H151: N/A | I151: N/A | J151: N/A | K151: N/A | L151: N/A | M151: N/A | N151: N/A | O151: N/A | P151: N/A | Q151: N/A | R151: N/A | S151: N/A | T151: N/A | U151: N/A | V151: N/A | W151: N/A | BA151: Shared among all sanitation facilities | BB151: Yes | BC151: N/A | BD151: N/A | BE151: N/A | BF151: N/A | BG151: N/A | BH151: N/A | BI151: N/A | BJ151: N/A | BK151: N/A | BL151: N/A | BM151: N/A | BN151: N/A | BO151: N/A | BP151: N/A | BQ151: N/A | BR151: N/A | BS151: N/A | BT151: N/A | BU151: N/A | BV151: N/A | BW151: N/A
B152: No | C152: N/A | D152: N/A | E152: N/A | F152: N/A | G152: N/A | H152: N/A | I152: N/A | J152: N/A | K152: N/A | L152: N/A | M152: N/A | N152: N/A | O152: N/A | P152: N/A | Q152: N/A | R152: N/A | S152: N/A | T152: N/A | U152: N/A | V152: N/A | W152: N/A | BB152: No | BC152: N/A | BD152: N/A | BE152: N/A | BF152: N/A | BG152: N/A | BH152: N/A | BI152: N/A | BJ152: N/A | BK152: N/A | BL152: N/A | BM152: N/A | BN152: N/A | BO152: N/A | BP152: N/A | BQ152: N/A | BR152: N/A | BS152: N/A | BT152: N/A | BU152: N/A | BV152: N/A | BW152: N/A
A153: Type of toilet facility | B153: Flush - to piped sewer system | C153: 0.1272630901 | D153: 0 | E153: 0.2013311086 | F153: 2.468870888 | G153: 8.654182466 | H153: 0.4031858345 | I153: 1.543961893 | J153: 4.330978621 | K153: 7.684070179 | L153: 10.91931566 | M153: 0 | N153: 0.1213639981 | O153: 0 | P153: 0 | Q153: 0 | R153: 9.283350766 | S153: 0 | T153: 0 | U153: 0 | V153: 0.1340387302 | W153: 0.8742254507 | BA153: Shared among improved sanitation facilities | BB153: Yes | BC153: N/A | BD153: N/A | BE153: N/A | BF153: N/A | BG153: N/A | BH153: N/A | BI153: N/A | BJ153: N/A | BK153: N/A | BL153: N/A | BM153: N/A | BN153: N/A | BO153: N/A | BP153: N/A | BQ153: N/A | BR153: N/A | BS153: N/A | BT153: N/A | BU153: N/A | BV153: N/A | BW153: N/A
B154: Flush - to septic tank | C154: 0 | D154: 0 | E154: 0.8919591643 | F154: 3.327897538 | G154: 32.4983566 | H154: 0.1285999466 | I154: 2.796487654 | J154: 4.868498337 | K154: 18.81047147 | L154: 48.84264297 | M154: 0 | N154: 0 | O154: 0 | P154: 0 | Q154: 4.153765155 | R154: 22.57003994 | S154: 0.7153645062 | T154: 0.5269829141 | U154: 7.62186358 | V154: 0.6226515678 | W154: 2.090965165 | BB154: No | BC154: N/A | BD154: N/A | BE154: N/A | BF154: N/A | BG154: N/A | BH154: N/A | BI154: N/A | BJ154: N/A | BK154: N/A | BL154: N/A | BM154: N/A | BN154: N/A | BO154: N/A | BP154: N/A | BQ154: N/A | BR154: N/A | BS154: N/A | BT154: N/A | BU154: N/A | BV154: N/A | BW154: N/A
B155: Flush - to pit latrine | C155: 0 | D155: 0 | E155: 1.635956816 | F155: 2.60465383 | G155: 4.217829502 | H155: 2.951487152 | I155: 1.616360231 | J155: 4.670544445 | K155: 6.684775144 | L155: 2.534032703 | M155: 0 | N155: 0 | O155: 0 | P155: 0 | Q155: 0 | R155: 5.548545904 | S155: 0.5971459971 | T155: 0.02383050155 | U155: 0.6635938317 | V155: 0.1402359687 | W155: 0.04557951882
B156: Flush - to somewhere else | C156: 0 | D156: 0 | E156: 0.1234689771 | F156: 1.262850811 | G156: 1.071716881 | H156: 0.2701203611 | I156: 0.5869907987 | J156: 2.318197524 | K156: 1.482006481 | L156: 0.6989237161 | M156: 0 | N156: 0 | O156: 0 | P156: 0 | Q156: 0 | R156: 1.96614511 | S156: 0.05176351593 | T156: 0 | U156: 0 | V156: 0 | W156: 0
B157: Flush - don't know where | C157: 0 | D157: 0 | E157: 0 | F157: 0 | G157: 0.212882038 | H157: 0 | I157: 0 | J157: 0 | K157: 0.4197590721 | L157: 0.04513844563 | M157: 0 | N157: 0 | O157: 0 | P157: 0 | Q157: 0 | R157: 0.1602787824 | S157: 0 | T157: 0 | U157: 0 | V157: 0 | W157: 0.07069453042
B158: Pit latrine - ventilated improved pit (VIP) | C158: 6.570625829 | D158: 9.665549385 | E158: 10.20445347 | F158: 9.123047349 | G158: 7.845952292 | H158: 9.791185282 | I158: 8.107462011 | J158: 12.44958252 | K158: 8.525957274 | L158: 6.357268909 | M158: 6.103242304 | N158: 6.578037493 | O158: 8.44786092 | P158: 9.901902554 | Q158: 10.84268444 | R158: 7.579947607 | S158: 6.6014141 | T158: 15.48487218 | U158: 7.636341443 | V158: 8.456058289 | W158: 21.58652337
B159: Pit latrine - with slab | C159: 7.032383057 | D159: 22.43311662 | E159: 32.0939728 | F159: 40.0824848 | G159: 21.68459524 | H159: 30.67867106 | I159: 42.20702176 | J159: 34.21464362 | K159: 26.907706 | L159: 15.18857888 | M159: 7.405930292 | N159: 8.216051111 | O159: 23.32662354 | P159: 26.22222274 | Q159: 36.17721455 | R159: 20.86372558 | S159: 36.45410857 | T159: 20.44855451 | U159: 17.70572358 | V159: 14.33145299 | W159: 7.621429273
B160: Pit latrine - without slab / open pit | C160: 4.96940818 | D160: 6.392072192 | E160: 8.365964469 | F160: 9.599170385 | G160: 7.765302082 | H160: 15.852763 | I160: 12.83787207 | J160: 5.79917841 | K160: 8.230693817 | L160: 5.063573485 | M160: 5.377053743 | N160: 2.395879859 | O160: 5.602718354 | P160: 3.253045029 | Q160: 11.38009226 | R160: 6.803850282 | S160: 3.744762726 | T160: 6.768021911 | U160: 12.38720153 | V160: 8.270133945 | W160: 16.31146044
B161: No facility / bush / field | C161: 79.50037922 | D161: 60.10164299 | E161: 43.57456972 | F161: 24.29766491 | G161: 8.562742901 | H161: 34.93824058 | I161: 25.49112965 | J161: 20.65709115 | K161: 12.33742322 | L161: 4.844950667 | M161: 79.4369547 | N161: 80.93595837 | O161: 61.30613529 | P161: 59.51063021 | Q161: 34.39579084 | R161: 14.4958022 | S161: 51.45697532 | T161: 56.38981451 | U161: 48.56540991 | V161: 64.99715064 | W161: 48.61060893
B162: Composting toilet | C162: 0.4228371451 | D162: 0.5260947662 | E162: 0.9977579678 | F162: 1.036252594 | G162: 1.597250744 | H162: 1.171016463 | I162: 0.3561706661 | J162: 1.800880602 | K162: 1.450902277 | L162: 0.6894692581 | M162: 0.430470298 | N162: 0.349001568 | O162: 0.4640006832 | P162: 0.5476069329 | Q162: 2.038458979 | R162: 0.4023175319 | S162: 0 | T162: 0 | U162: 4.085950362 | V162: 0.1030605883 | W162: 0.5135364759
B163: Bucket toilet | C163: 0 | D163: 0 | E163: 0.08061615253 | F163: 0.9331778078 | G163: 0.3971727296 | H163: 0 | I163: 0.3206417913 | J163: 1.706736271 | K163: 0.4815132235 | L163: 0.3872846534 | M163: 0 | N163: 0 | O163: 0 | P163: 0.1490191594 | Q163: 0 | R163: 1.105588014 | S163: 0 | T163: 0 | U163: 0.08459775153 | V163: 0 | W163: 0
B164: Hanging toilet/latrine | C164: 1.377103477 | D164: 0.8815240451 | E164: 1.642667825 | F164: 4.335595357 | G164: 3.826059947 | H164: 3.563399875 | I164: 2.490463262 | J164: 6.813181723 | K164: 6.145152905 | L164: 1.618543225 | M164: 1.246348661 | N164: 1.403707603 | O164: 0.8526612114 | P164: 0.4155733824 | Q164: 0.8776397117 | R164: 7.055100462 | S164: 0.3784652678 | T164: 0.1115001428 | U164: 1.153251639 | V164: 2.945217276 | W164: 2.274976846
B165: OTHER | C165: 0 | D165: 0 | E165: 0.187281527 | F165: 0.9283337327 | G165: 1.665956582 | H165: 0.2513304408 | I165: 1.645438213 | J165: 0.3704867699 | K165: 0.839568938 | L165: 2.810277423 | M165: 0 | N165: 0 | O165: 0 | P165: 0 | Q165: 0.1343540645 | R165: 2.165307822 | S165: 0 | T165: 0.2464233319 | U165: 0.09606637846 | V165: 0 | W165: 0
A208: =A1026 -> Liberia
A209: =A1034 -> 2009
A210: Access to hygiene facilities
A211: by wealth quintile and sub-national region
A212: Notes:
A213: WHO/UNICEF JMP customised wealth index excludes water,
A214: sanitation and hygiene assets.
A215: Survey used for analysis: | B215: =A1025 -> MIS09
A220: Access to handwashing | C220: NATIONAL wealth index quintile | H220: URBAN wealth index quintile | M220: RURAL wealth index quintile | R220: SUB-REGIONS: | BA220: Raw numbers of respondents: | BB220: Access to handwashing | BC220: NATIONAL wealth index quintile | BH220: URBAN wealth index quintile | BM220: RURAL wealth index quintile | BR220: SUB-REGIONS:
A221: Weighted percentage (used in graphs) | C221: Poorest | D221: Poor | E221: Middle | F221: Rich | G221: Richest | H221: Poorest | I221: Poor | J221: Middle | K221: Rich | L221: Richest | M221: Poorest | N221: Poor | O221: Middle | P221: Rich | Q221: Richest | R221: Monrovia | S221: North Central | T221: North Western | U221: South Central | V221: South Eastern A | W221: South Eastern B | BA221: Hygiene data, raw numbers (weighted) | BC221: Poorest | BD221: Poor | BE221: Middle | BF221: Rich | BG221: Richest | BH221: Poorest | BI221: Poor | BJ221: Middle | BK221: Rich | BL221: Richest | BM221: Poorest | BN221: Poor | BO221: Middle | BP221: Rich | BQ221: Richest | BR221: Monrovia | BS221: North Central | BT221: North Western | BU221: South Central | BV221: South Eastern A | BW221: South Eastern B
A222: Hygiene ladder | B222: Basic | C222: N/A | D222: N/A | E222: N/A | F222: N/A | G222: N/A | H222: N/A | I222: N/A | J222: N/A | K222: N/A | L222: N/A | M222: N/A | N222: N/A | O222: N/A | P222: N/A | Q222: N/A | R222: N/A | S222: N/A | T222: N/A | U222: N/A | V222: N/A | W222: N/A | BA222: Hygiene ladder | BB222: Basic | BC222: N/A | BD222: N/A | BE222: N/A | BF222: N/A | BG222: N/A | BH222: N/A | BI222: N/A | BJ222: N/A | BK222: N/A | BL222: N/A | BM222: N/A | BN222: N/A | BO222: N/A | BP222: N/A | BQ222: N/A | BR222: N/A | BS222: N/A | BT222: N/A | BU222: N/A | BV222: N/A | BW222: N/A
B223: Limited | C223: N/A | D223: N/A | E223: N/A | F223: N/A | G223: N/A | H223: N/A | I223: N/A | J223: N/A | K223: N/A | L223: N/A | M223: N/A | N223: N/A | O223: N/A | P223: N/A | Q223: N/A | R223: N/A | S223: N/A | T223: N/A | U223: N/A | V223: N/A | W223: N/A | BB223: Limited | BC223: N/A | BD223: N/A | BE223: N/A | BF223: N/A | BG223: N/A | BH223: N/A | BI223: N/A | BJ223: N/A | BK223: N/A | BL223: N/A | BM223: N/A | BN223: N/A | BO223: N/A | BP223: N/A | BQ223: N/A | BR223: N/A | BS223: N/A | BT223: N/A | BU223: N/A | BV223: N/A | BW223: N/A
B224: No facility | C224: N/A | D224: N/A | E224: N/A | F224: N/A | G224: N/A | H224: N/A | I224: N/A | J224: N/A | K224: N/A | L224: N/A | M224: N/A | N224: N/A | O224: N/A | P224: N/A | Q224: N/A | R224: N/A | S224: N/A | T224: N/A | U224: N/A | V224: N/A | W224: N/A | BB224: No facility | BC224: N/A | BD224: N/A | BE224: N/A | BF224: N/A | BG224: N/A | BH224: N/A | BI224: N/A | BJ224: N/A | BK224: N/A | BL224: N/A | BM224: N/A | BN224: N/A | BO224: N/A | BP224: N/A | BQ224: N/A | BR224: N/A | BS224: N/A | BT224: N/A | BU224: N/A | BV224: N/A | BW224: N/A
BA225: Observed handwashing place | BB225: Fixed | BC225: N/A | BD225: N/A | BE225: N/A | BF225: N/A | BG225: N/A | BH225: N/A | BI225: N/A | BJ225: N/A | BK225: N/A | BL225: N/A | BM225: N/A | BN225: N/A | BO225: N/A | BP225: N/A | BQ225: N/A | BR225: N/A | BS225: N/A | BT225: N/A | BU225: N/A | BV225: N/A | BW225: N/A
BB226: Mobile | BC226: N/A | BD226: N/A | BE226: N/A | BF226: N/A | BG226: N/A | BH226: N/A | BI226: N/A | BJ226: N/A | BK226: N/A | BL226: N/A | BM226: N/A | BN226: N/A | BO226: N/A | BP226: N/A | BQ226: N/A | BR226: N/A | BS226: N/A | BT226: N/A | BU226: N/A | BV226: N/A | BW226: N/A
BA227: Water / Soap | BB227: Water and soap | BC227: N/A | BD227: N/A | BE227: N/A | BF227: N/A | BG227: N/A | BH227: N/A | BI227: N/A | BJ227: N/A | BK227: N/A | BL227: N/A | BM227: N/A | BN227: N/A | BO227: N/A | BP227: N/A | BQ227: N/A | BR227: N/A | BS227: N/A | BT227: N/A | BU227: N/A | BV227: N/A | BW227: N/A
BB228: Water only | BC228: N/A | BD228: N/A | BE228: N/A | BF228: N/A | BG228: N/A | BH228: N/A | BI228: N/A | BJ228: N/A | BK228: N/A | BL228: N/A | BM228: N/A | BN228: N/A | BO228: N/A | BP228: N/A | BQ228: N/A | BR228: N/A | BS228: N/A | BT228: N/A | BU228: N/A | BV228: N/A | BW228: N/A
BB229: Soap only | BC229: N/A | BD229: N/A | BE229: N/A | BF229: N/A | BG229: N/A | BH229: N/A | BI229: N/A | BJ229: N/A | BK229: N/A | BL229: N/A | BM229: N/A | BN229: N/A | BO229: N/A | BP229: N/A | BQ229: N/A | BR229: N/A | BS229: N/A | BT229: N/A | BU229: N/A | BV229: N/A | BW229: N/A
BB230: Neither | BC230: N/A | BD230: N/A | BE230: N/A | BF230: N/A | BG230: N/A | BH230: N/A | BI230: N/A | BJ230: N/A | BK230: N/A | BL230: N/A | BM230: N/A | BN230: N/A | BO230: N/A | BP230: N/A | BQ230: N/A | BR230: N/A | BS230: N/A | BT230: N/A | BU230: N/A | BV230: N/A | BW230: N/A
BA259: Raw numbers of respondents: | BB259: Menstrual health and hygiene | BC259: NATIONAL wealth index quintile | BH259: URBAN wealth index quintile | BM259: RURAL wealth index quintile | BR259: SUB-REGIONS:
BA260: MHH data, raw numbers (weighted) | BC260: Poorest | BD260: Poor | BE260: Middle | BF260: Rich | BG260: Richest | BH260: Poorest | BI260: Poor | BJ260: Middle | BK260: Rich | BL260: Richest | BM260: Poorest | BN260: Poor | BO260: Middle | BP260: Rich | BQ260: Richest | BR260: Monrovia | BS260: North Central | BT260: North Western | BU260: South Central | BV260: South Eastern A | BW260: South Eastern B
BA261: Private place to wash and change | BB261: Yes | BC261: N/A | BD261: N/A | BE261: N/A | BF261: N/A | BG261: N/A | BH261: N/A | BI261: N/A | BJ261: N/A | BK261: N/A | BL261: N/A | BM261: N/A | BN261: N/A | BO261: N/A | BP261: N/A | BQ261: N/A | BR261: N/A | BS261: N/A | BT261: N/A | BU261: N/A | BV261: N/A | BW261: N/A
BB262: No | BC262: N/A | BD262: N/A | BE262: N/A | BF262: N/A | BG262: N/A | BH262: N/A | BI262: N/A | BJ262: N/A | BK262: N/A | BL262: N/A | BM262: N/A | BN262: N/A | BO262: N/A | BP262: N/A | BQ262: N/A | BR262: N/A | BS262: N/A | BT262: N/A | BU262: N/A | BV262: N/A | BW262: N/A
BB263: DK/not sure/missing | BC263: N/A | BD263: N/A | BE263: N/A | BF263: N/A | BG263: N/A | BH263: N/A | BI263: N/A | BJ263: N/A | BK263: N/A | BL263: N/A | BM263: N/A | BN263: N/A | BO263: N/A | BP263: N/A | BQ263: N/A | BR263: N/A | BS263: N/A | BT263: N/A | BU263: N/A | BV263: N/A | BW263: N/A
BA264: Use of menstrual materials | BB264: Materials reusable | BC264: N/A | BD264: N/A | BE264: N/A | BF264: N/A | BG264: N/A | BH264: N/A | BI264: N/A | BJ264: N/A | BK264: N/A | BL264: N/A | BM264: N/A | BN264: N/A | BO264: N/A | BP264: N/A | BQ264: N/A | BR264: N/A | BS264: N/A | BT264: N/A | BU264: N/A | BV264: N/A | BW264: N/A
BB265: Materials not reusable | BC265: N/A | BD265: N/A | BE265: N/A | BF265: N/A | BG265: N/A | BH265: N/A | BI265: N/A | BJ265: N/A | BK265: N/A | BL265: N/A | BM265: N/A | BN265: N/A | BO265: N/A | BP265: N/A | BQ265: N/A | BR265: N/A | BS265: N/A | BT265: N/A | BU265: N/A | BV265: N/A | BW265: N/A
BB266: No materials used | BC266: N/A | BD266: N/A | BE266: N/A | BF266: N/A | BG266: N/A | BH266: N/A | BI266: N/A | BJ266: N/A | BK266: N/A | BL266: N/A | BM266: N/A | BN266: N/A | BO266: N/A | BP266: N/A | BQ266: N/A | BR266: N/A | BS266: N/A | BT266: N/A | BU266: N/A | BV266: N/A | BW266: N/A
BB267: DK/not sure/missing | BC267: N/A | BD267: N/A | BE267: N/A | BF267: N/A | BG267: N/A | BH267: N/A | BI267: N/A | BJ267: N/A | BK267: N/A | BL267: N/A | BM267: N/A | BN267: N/A | BO267: N/A | BP267: N/A | BQ267: N/A | BR267: N/A | BS267: N/A | BT267: N/A | BU267: N/A | BV267: N/A | BW267: N/A
BA268: Use of menstrual materials with private place to wash and change | BB268: Materials reusable | BC268: N/A | BD268: N/A | BE268: N/A | BF268: N/A | BG268: N/A | BH268: N/A | BI268: N/A | BJ268: N/A | BK268: N/A | BL268: N/A | BM268: N/A | BN268: N/A | BO268: N/A | BP268: N/A | BQ268: N/A | BR268: N/A | BS268: N/A | BT268: N/A | BU268: N/A | BV268: N/A | BW268: N/A
BB269: Materials not reusable | BC269: N/A | BD269: N/A | BE269: N/A | BF269: N/A | BG269: N/A | BH269: N/A | BI269: N/A | BJ269: N/A | BK269: N/A | BL269: N/A | BM269: N/A | BN269: N/A | BO269: N/A | BP269: N/A | BQ269: N/A | BR269: N/A | BS269: N/A | BT269: N/A | BU269: N/A | BV269: N/A | BW269: N/A
BB270: No materials used | BC270: N/A | BD270: N/A | BE270: N/A | BF270: N/A | BG270: N/A | BH270: N/A | BI270: N/A | BJ270: N/A | BK270: N/A | BL270: N/A | BM270: N/A | BN270: N/A | BO270: N/A | BP270: N/A | BQ270: N/A | BR270: N/A | BS270: N/A | BT270: N/A | BU270: N/A | BV270: N/A | BW270: N/A
BA271: Awareness of menstruation before menarche | BB271: Yes | BC271: N/A | BD271: N/A | BE271: N/A | BF271: N/A | BG271: N/A | BH271: N/A | BI271: N/A | BJ271: N/A | BK271: N/A | BL271: N/A | BM271: N/A | BN271: N/A | BO271: N/A | BP271: N/A | BQ271: N/A | BR271: N/A | BS271: N/A | BT271: N/A | BU271: N/A | BV271: N/A | BW271: N/A
BB272: No | BC272: N/A | BD272: N/A | BE272: N/A | BF272: N/A | BG272: N/A | BH272: N/A | BI272: N/A | BJ272: N/A | BK272: N/A | BL272: N/A | BM272: N/A | BN272: N/A | BO272: N/A | BP272: N/A | BQ272: N/A | BR272: N/A | BS272: N/A | BT272: N/A | BU272: N/A | BV272: N/A | BW272: N/A
BB273: DK/not sure/missing | BC273: N/A | BD273: N/A | BE273: N/A | BF273: N/A | BG273: N/A | BH273: N/A | BI273: N/A | BJ273: N/A | BK273: N/A | BL273: N/A | BM273: N/A | BN273: N/A | BO273: N/A | BP273: N/A | BQ273: N/A | BR273: N/A | BS273: N/A | BT273: N/A | BU273: N/A | BV273: N/A | BW273: N/A
BA274: Participation in (all) activities during menstruation | BB274: Yes | BC274: N/A | BD274: N/A | BE274: N/A | BF274: N/A | BG274: N/A | BH274: N/A | BI274: N/A | BJ274: N/A | BK274: N/A | BL274: N/A | BM274: N/A | BN274: N/A | BO274: N/A | BP274: N/A | BQ274: N/A | BR274: N/A | BS274: N/A | BT274: N/A | BU274: N/A | BV274: N/A | BW274: N/A
BB275: No | BC275: N/A | BD275: N/A | BE275: N/A | BF275: N/A | BG275: N/A | BH275: N/A | BI275: N/A | BJ275: N/A | BK275: N/A | BL275: N/A | BM275: N/A | BN275: N/A | BO275: N/A | BP275: N/A | BQ275: N/A | BR275: N/A | BS275: N/A | BT275: N/A | BU275: N/A | BV275: N/A | BW275: N/A
BB276: DK/not sure/missing/no such activity | BC276: N/A | BD276: N/A | BE276: N/A | BF276: N/A | BG276: N/A | BH276: N/A | BI276: N/A | BJ276: N/A | BK276: N/A | BL276: N/A | BM276: N/A | BN276: N/A | BO276: N/A | BP276: N/A | BQ276: N/A | BR276: N/A | BS276: N/A | BT276: N/A | BU276: N/A | BV276: N/A | BW276: N/A
BA277: Participation in specific activities during menstruation | BB277: Did not go to school (amongst those usually attending school) | BC277: N/A | BD277: N/A | BE277: N/A | BF277: N/A | BG277: N/A | BH277: N/A | BI277: N/A | BJ277: N/A | BK277: N/A | BL277: N/A | BM277: N/A | BN277: N/A | BO277: N/A | BP277: N/A | BQ277: N/A | BR277: N/A | BS277: N/A | BT277: N/A | BU277: N/A | BV277: N/A | BW277: N/A
BB278: Did not go to work (amongst those who usually work) | BC278: N/A | BD278: N/A | BE278: N/A | BF278: N/A | BG278: N/A | BH278: N/A | BI278: N/A | BJ278: N/A | BK278: N/A | BL278: N/A | BM278: N/A | BN278: N/A | BO278: N/A | BP278: N/A | BQ278: N/A | BR278: N/A | BS278: N/A | BT278: N/A | BU278: N/A | BV278: N/A | BW278: N/A
BB279: Did not participate in social activities | BC279: N/A | BD279: N/A | BE279: N/A | BF279: N/A | BG279: N/A | BH279: N/A | BI279: N/A | BJ279: N/A | BK279: N/A | BL279: N/A | BM279: N/A | BN279: N/A | BO279: N/A | BP279: N/A | BQ279: N/A | BR279: N/A | BS279: N/A | BT279: N/A | BU279: N/A | BV279: N/A | BW279: N/A
BB280: Did not cook food | BC280: N/A | BD280: N/A | BE280: N/A | BF280: N/A | BG280: N/A | BH280: N/A | BI280: N/A | BJ280: N/A | BK280: N/A | BL280: N/A | BM280: N/A | BN280: N/A | BO280: N/A | BP280: N/A | BQ280: N/A | BR280: N/A | BS280: N/A | BT280: N/A | BU280: N/A | BV280: N/A | BW280: N/A
BB281: Did not eat with others | BC281: N/A | BD281: N/A | BE281: N/A | BF281: N/A | BG281: N/A | BH281: N/A | BI281: N/A | BJ281: N/A | BK281: N/A | BL281: N/A | BM281: N/A | BN281: N/A | BO281: N/A | BP281: N/A | BQ281: N/A | BR281: N/A | BS281: N/A | BT281: N/A | BU281: N/A | BV281: N/A | BW281: N/A
BB282: Did not bathe in regular place | BC282: N/A | BD282: N/A | BE282: N/A | BF282: N/A | BG282: N/A | BH282: N/A | BI282: N/A | BJ282: N/A | BK282: N/A | BL282: N/A | BM282: N/A | BN282: N/A | BO282: N/A | BP282: N/A | BQ282: N/A | BR282: N/A | BS282: N/A | BT282: N/A | BU282: N/A | BV282: N/A | BW282: N/A
BB283: Did not participate in other activities | BC283: N/A | BD283: N/A | BE283: N/A | BF283: N/A | BG283: N/A | BH283: N/A | BI283: N/A | BJ283: N/A | BK283: N/A | BL283: N/A | BM283: N/A | BN283: N/A | BO283: N/A | BP283: N/A | BQ283: N/A | BR283: N/A | BS283: N/A | BT283: N/A | BU283: N/A | BV283: N/A | BW283: N/A
BB284: DK/not sure/missing/no such activity | BC284: N/A | BD284: N/A | BE284: N/A | BF284: N/A | BG284: N/A | BH284: N/A | BI284: N/A | BJ284: N/A | BK284: N/A | BL284: N/A | BM284: N/A | BN284: N/A | BO284: N/A | BP284: N/A | BQ284: N/A | BR284: N/A | BS284: N/A | BT284: N/A | BU284: N/A | BV284: N/A | BW284: N/A
BA339: Raw numbers of respondents: | BB339: Basic water, sanitation and hygiene | BC339: NATIONAL wealth index quintile | BH339: URBAN wealth index quintile | BM339: RURAL wealth index quintile | BR339: SUB-REGIONS:
BA340: WatSan data, raw numbers (weighted) | BC340: Poorest | BD340: Poor | BE340: Middle | BF340: Rich | BG340: Richest | BH340: Poorest | BI340: Poor | BJ340: Middle | BK340: Rich | BL340: Richest | BM340: Poorest | BN340: Poor | BO340: Middle | BP340: Rich | BQ340: Richest | BR340: Monrovia | BS340: North Central | BT340: North Western | BU340: South Central | BV340: South Eastern A | BW340: South Eastern B
BA341: Use of Basic Water Sanitation and Hygiene | BB341: Yes | BC341: N/A | BD341: N/A | BE341: N/A | BF341: N/A | BG341: N/A | BH341: N/A | BI341: N/A | BJ341: N/A | BK341: N/A | BL341: N/A | BM341: N/A | BN341: N/A | BO341: N/A | BP341: N/A | BQ341: N/A | BR341: N/A | BS341: N/A | BT341: N/A | BU341: N/A | BV341: N/A | BW341: N/A
BB342: No | BC342: N/A | BD342: N/A | BE342: N/A | BF342: N/A | BG342: N/A | BH342: N/A | BI342: N/A | BJ342: N/A | BK342: N/A | BL342: N/A | BM342: N/A | BN342: N/A | BO342: N/A | BP342: N/A | BQ342: N/A | BR342: N/A | BS342: N/A | BT342: N/A | BU342: N/A | BV342: N/A | BW342: N/A
BA343: Use of Basic Water and Sanitation | BB343: Yes | BC343: N/A | BD343: N/A | BE343: N/A | BF343: N/A | BG343: N/A | BH343: N/A | BI343: N/A | BJ343: N/A | BK343: N/A | BL343: N/A | BM343: N/A | BN343: N/A | BO343: N/A | BP343: N/A | BQ343: N/A | BR343: N/A | BS343: N/A | BT343: N/A | BU343: N/A | BV343: N/A | BW343: N/A
BB344: No | BC344: N/A | BD344: N/A | BE344: N/A | BF344: N/A | BG344: N/A | BH344: N/A | BI344: N/A | BJ344: N/A | BK344: N/A | BL344: N/A | BM344: N/A | BN344: N/A | BO344: N/A | BP344: N/A | BQ344: N/A | BR344: N/A | BS344: N/A | BT344: N/A | BU344: N/A | BV344: N/A | BW344: N/A
BA345: Use of Basic Water and Hygiene | BB345: Yes | BC345: N/A | BD345: N/A | BE345: N/A | BF345: N/A | BG345: N/A | BH345: N/A | BI345: N/A | BJ345: N/A | BK345: N/A | BL345: N/A | BM345: N/A | BN345: N/A | BO345: N/A | BP345: N/A | BQ345: N/A | BR345: N/A | BS345: N/A | BT345: N/A | BU345: N/A | BV345: N/A | BW345: N/A
BB346: No | BC346: N/A | BD346: N/A | BE346: N/A | BF346: N/A | BG346: N/A | BH346: N/A | BI346: N/A | BJ346: N/A | BK346: N/A | BL346: N/A | BM346: N/A | BN346: N/A | BO346: N/A | BP346: N/A | BQ346: N/A | BR346: N/A | BS346: N/A | BT346: N/A | BU346: N/A | BV346: N/A | BW346: N/A
BA347: Use of Basic Sanitation and Hygiene | BB347: Yes | BC347: N/A | BD347: N/A | BE347: N/A | BF347: N/A | BG347: N/A | BH347: N/A | BI347: N/A | BJ347: N/A | BK347: N/A | BL347: N/A | BM347: N/A | BN347: N/A | BO347: N/A | BP347: N/A | BQ347: N/A | BR347: N/A | BS347: N/A | BT347: N/A | BU347: N/A | BV347: N/A | BW347: N/A
BB348: No | BC348: N/A | BD348: N/A | BE348: N/A | BF348: N/A | BG348: N/A | BH348: N/A | BI348: N/A | BJ348: N/A | BK348: N/A | BL348: N/A | BM348: N/A | BN348: N/A | BO348: N/A | BP348: N/A | BQ348: N/A | BR348: N/A | BS348: N/A | BT348: N/A | BU348: N/A | BV348: N/A | BW348: N/A
BA349: Use of Basic Water | BB349: Yes | BC349: N/A | BD349: N/A | BE349: N/A | BF349: N/A | BG349: N/A | BH349: N/A | BI349: N/A | BJ349: N/A | BK349: N/A | BL349: N/A | BM349: N/A | BN349: N/A | BO349: N/A | BP349: N/A | BQ349: N/A | BR349: N/A | BS349: N/A | BT349: N/A | BU349: N/A | BV349: N/A | BW349: N/A
BB350: No | BC350: N/A | BD350: N/A | BE350: N/A | BF350: N/A | BG350: N/A | BH350: N/A | BI350: N/A | BJ350: N/A | BK350: N/A | BL350: N/A | BM350: N/A | BN350: N/A | BO350: N/A | BP350: N/A | BQ350: N/A | BR350: N/A | BS350: N/A | BT350: N/A | BU350: N/A | BV350: N/A | BW350: N/A
BA351: Use of Basic Sanitation | BB351: Yes | BC351: N/A | BD351: N/A | BE351: N/A | BF351: N/A | BG351: N/A | BH351: N/A | BI351: N/A | BJ351: N/A | BK351: N/A | BL351: N/A | BM351: N/A | BN351: N/A | BO351: N/A | BP351: N/A | BQ351: N/A | BR351: N/A | BS351: N/A | BT351: N/A | BU351: N/A | BV351: N/A | BW351: N/A
BB352: No | BC352: N/A | BD352: N/A | BE352: N/A | BF352: N/A | BG352: N/A | BH352: N/A | BI352: N/A | BJ352: N/A | BK352: N/A | BL352: N/A | BM352: N/A | BN352: N/A | BO352: N/A | BP352: N/A | BQ352: N/A | BR352: N/A | BS352: N/A | BT352: N/A | BU352: N/A | BV352: N/A | BW352: N/A
BA353: Access to Basic Hygiene | BB353: Yes | BC353: N/A | BD353: N/A | BE353: N/A | BF353: N/A | BG353: N/A | BH353: N/A | BI353: N/A | BJ353: N/A | BK353: N/A | BL353: N/A | BM353: N/A | BN353: N/A | BO353: N/A | BP353: N/A | BQ353: N/A | BR353: N/A | BS353: N/A | BT353: N/A | BU353: N/A | BV353: N/A | BW353: N/A
BB354: No | BC354: N/A | BD354: N/A | BE354: N/A | BF354: N/A | BG354: N/A | BH354: N/A | BI354: N/A | BJ354: N/A | BK354: N/A | BL354: N/A | BM354: N/A | BN354: N/A | BO354: N/A | BP354: N/A | BQ354: N/A | BR354: N/A | BS354: N/A | BT354: N/A | BU354: N/A | BV354: N/A | BW354: N/A
C399: INITIAL (national) Wealth Index | H399: URBAN Wealth Index | M399: RURAL Wealth Index
C400: Component Matrix | H400: Component Matrix | M400: Component Matrix
E401: Component | J401: Component | O401: Component
B402: Note: The INITIAL (national) Wealth Index is based on the first component of the Principal Component Analysis (PCA) which has been obtained at national level. The final national-level (NATIONAL) Wealth Index is based on the URBAN and RURAL specific wealth indexes. Regression procedures are used to establish the relationships between the two sets of scores (urban and rural) and the initial (national) wealth factors. This allows best use of the available information for each area and a better precision of the FINAL (NATIONAL) Wealth Index. For dependency reasons, all WASH variables (contained in the generic MICS and DHS scripts) have been excluded from the sets of asset variables used in the PCAs. The PCA can extracts as many components as there are asset variables in the input. Only the first of the components is used to represent the Wealth Index. The scores represent the weights of the asset variables on the Wealth Index (correlations between the variables and the component). The communalities are the proportion of each variable's variance that can be explained by the component. Proportion of explained variance is the part of the model's total variance that is explained by the component. For more information on the procedure used: The DHS Wealth Index, DHS Comparative Reports No. 6, Shea Oscar Rutstein, Kiersten Johnson, ORC Macro International Inc., 2004. The DHS Wealth Index: Approaches for Rural and Urban Areas, Shea O. Rutstein, ORC Macro International Inc., 2008. MICS Methodological Paper No. 4, Review of options for reporting water, sanitation and hygiene coverage by wealth quintile, UNICEF, 2016. | E402: 1 | J402: 1 | O402: 1
C403: floor1 | E403: -0.816045515 | H403: floor1 | J403: -0.7577983268 | M403: floor1 | O403: -0.7554457903
C404: wall1 | E404: -0.8086677644 | H404: wall1 | J404: -0.7400447024 | M404: floor10 | O404: 0.7240101149
C405: fuel8 | E405: -0.766007316 | H405: fuel8 | J405: -0.6985102921 | M405: wall1 | O405: -0.7058861335
C406: fuel7 | E406: 0.7653473148 | H406: wall10 | J406: 0.6976837144 | M406: wall10 | O406: 0.6776840116
C407: wall10 | E407: 0.7478833284 | H407: fuel7 | J407: 0.6869682823 | M407: roof1 | O407: -0.6312270285
C408: roof1 | E408: -0.6959354788 | H408: roof1 | J408: -0.6242564764 | M408: roof8 | O408: 0.5661742032
C409: floor10 | E409: 0.6860815314 | H409: Generator | J409: 0.5600306675 | M409: Has television | O409: 0.5072646639
C410: Has a mobile telephone | E410: 0.6444011347 | H410: Has television | J410: 0.5470274373 | M410: Has refrigerator | O410: 0.4669278444
C411: roof8 | E411: 0.6271847707 | H411: Cupboard | J411: 0.5377984914 | M411: Has a mobile telephone | O411: 0.4225756695
C412: Generator | E412: 0.5519182227 | H412: floor10 | J412: 0.5361580443 | M412: Has electricity | O412: 0.413554529
C413: Has television | E413: 0.5440548047 | H413: roof8 | J413: 0.5222590201 | M413: fuel7 | O413: 0.4128023218
C414: Cupboard | E414: 0.529286269 | H414: Has a mobile telephone | J414: 0.5186612176 | M414: fuel8 | O414: -0.3868832847
C415: Mattress (not made of straw or grass) | E415: 0.5251430634 | H415: Mattress (not made of straw or grass) | J415: 0.4679423612 | M415: Generator | O415: 0.3555562174
... 196 more rows

Sheet MIS11
A2: =A1026 -> Liberia
A3: =A1034 -> 2011
A4: Use of drinking water sources
A5: by wealth quintile and sub-national region
A6: Notes:
A7: WHO/UNICEF JMP customised wealth index excludes water,
A8: sanitation and hygiene assets.
A9: Survey used for analysis: | B9: =A1025 -> MIS11
A10: =B1028 -> 
A11: =B1027 -> 
A14: Use of drinking water sources | C14: NATIONAL wealth index quintile | H14: URBAN wealth index quintile | M14: RURAL wealth index quintile | R14: SUB-REGIONS: | BA14: Raw numbers of respondents: | BB14: Use of drinking water sources | BC14: NATIONAL wealth index quintile | BH14: URBAN wealth index quintile | BM14: RURAL wealth index quintile | BR14: SUB-REGIONS:
A15: Weighted percentage (used in graphs) | C15: Poorest | D15: Poor | E15: Middle | F15: Rich | G15: Richest | H15: Poorest | I15: Poor | J15: Middle | K15: Rich | L15: Richest | M15: Poorest | N15: Poor | O15: Middle | P15: Rich | Q15: Richest | R15: Monrovia | S15: North Central | T15: North Western | U15: South Central | V15: South Eastern A | W15: South Eastern B | BA15: Water data, raw numbers (weighted) | BC15: Poorest | BD15: Poor | BE15: Middle | BF15: Rich | BG15: Richest | BH15: Poorest | BI15: Poor | BJ15: Middle | BK15: Rich | BL15: Richest | BM15: Poorest | BN15: Poor | BO15: Middle | BP15: Rich | BQ15: Richest | BR15: Monrovia | BS15: North Central | BT15: North Western | BU15: South Central | BV15: South Eastern A | BW15: South Eastern B
A16: Water | B16: Improved | C16: 49.2 | D16: 69.7 | E16: 85.7 | F16: 83.6 | G16: 87.5 | H16: 85.3 | I16: 84.1 | J16: 81 | K16: 87.3 | L16: 85.4 | M16: 44.2 | N16: 49.8 | O16: 62.4 | P16: 78.4 | Q16: 95.5 | R16: 85.8 | S16: 75.7 | T16: 69.7 | U16: 68.9 | V16: 65.3 | W16: 62.1 | BA16: Water | BB16: Improved | BC16: N/A | BD16: N/A | BE16: N/A | BF16: N/A | BG16: N/A | BH16: N/A | BI16: N/A | BJ16: N/A | BK16: N/A | BL16: N/A | BM16: N/A | BN16: N/A | BO16: N/A | BP16: N/A | BQ16: N/A | BR16: N/A | BS16: N/A | BT16: N/A | BU16: N/A | BV16: N/A | BW16: N/A
B17: Not Improved | C17: 50.8 | D17: 30.3 | E17: 14.3 | F17: 16.4 | G17: 12.5 | H17: 14.7 | I17: 15.9 | J17: 19 | K17: 12.7 | L17: 14.6 | M17: 55.8 | N17: 50.2 | O17: 37.6 | P17: 21.6 | Q17: 4.5 | R17: 14.2 | S17: 24.3 | T17: 30.3 | U17: 31.1 | V17: 34.7 | W17: 37.9 | BB17: Not Improved | BC17: N/A | BD17: N/A | BE17: N/A | BF17: N/A | BG17: N/A | BH17: N/A | BI17: N/A | BJ17: N/A | BK17: N/A | BL17: N/A | BM17: N/A | BN17: N/A | BO17: N/A | BP17: N/A | BQ17: N/A | BR17: N/A | BS17: N/A | BT17: N/A | BU17: N/A | BV17: N/A | BW17: N/A
A18: Water ladder | B18: Basic | C18: 46.7 | D18: 67.6 | E18: 79.2 | F18: 76.9 | G18: 81 | H18: 74.7 | I18: 76.4 | J18: 72.3 | K18: 81.2 | L18: 79.3 | M18: 42.7 | N18: 46.9 | O18: 61 | P18: 76 | Q18: 93.6 | R18: 75.9 | S18: 74 | T18: 66.9 | U18: 66.8 | V18: 59.9 | W18: 55.8 | BA18: Water ladder | BB18: Basic | BC18: N/A | BD18: N/A | BE18: N/A | BF18: N/A | BG18: N/A | BH18: N/A | BI18: N/A | BJ18: N/A | BK18: N/A | BL18: N/A | BM18: N/A | BN18: N/A | BO18: N/A | BP18: N/A | BQ18: N/A | BR18: N/A | BS18: N/A | BT18: N/A | BU18: N/A | BV18: N/A | BW18: N/A
B19: Limited | C19: 2.5 | D19: 2.1 | E19: 6.6 | F19: 6.7 | G19: 6.4 | H19: 10.5 | I19: 7.7 | J19: 8.8 | K19: 6.1 | L19: 6.1 | M19: 1.5 | N19: 2.9 | O19: 1.4 | P19: 2.3 | Q19: 1.9 | R19: 9.9 | S19: 1.7 | T19: 2.8 | U19: 2 | V19: 5.4 | W19: 6.3 | BB19: Limited | BC19: N/A | BD19: N/A | BE19: N/A | BF19: N/A | BG19: N/A | BH19: N/A | BI19: N/A | BJ19: N/A | BK19: N/A | BL19: N/A | BM19: N/A | BN19: N/A | BO19: N/A | BP19: N/A | BQ19: N/A | BR19: N/A | BS19: N/A | BT19: N/A | BU19: N/A | BV19: N/A | BW19: N/A
B20: Unimproved | C20: 12.3 | D20: 11 | E20: 12.8 | F20: 15.8 | G20: 12.1 | H20: 14.2 | I20: 15.9 | J20: 18.8 | K20: 12.3 | L20: 14.4 | M20: 10.3 | N20: 14.6 | O20: 13.4 | P20: 12.4 | Q20: 2.1 | R20: 14.2 | S20: 12.2 | T20: 10.7 | U20: 15.6 | V20: 10.9 | W20: 5.4 | BB20: Unimproved | BC20: N/A | BD20: N/A | BE20: N/A | BF20: N/A | BG20: N/A | BH20: N/A | BI20: N/A | BJ20: N/A | BK20: N/A | BL20: N/A | BM20: N/A | BN20: N/A | BO20: N/A | BP20: N/A | BQ20: N/A | BR20: N/A | BS20: N/A | BT20: N/A | BU20: N/A | BV20: N/A | BW20: N/A
B21: Surface water | C21: 38.6 | D21: 19.2 | E21: 1.5 | F21: 0.5 | G21: 0.4 | H21: 0.5 | I21: 0 | J21: 0.1 | K21: 0.4 | L21: 0.2 | M21: 45.5 | N21: 35.6 | O21: 24.2 | P21: 9.3 | Q21: 2.4 | R21: 0 | S21: 12 | T21: 19.5 | U21: 15.5 | V21: 23.8 | W21: 32.4 | BB21: Surface water | BC21: N/A | BD21: N/A | BE21: N/A | BF21: N/A | BG21: N/A | BH21: N/A | BI21: N/A | BJ21: N/A | BK21: N/A | BL21: N/A | BM21: N/A | BN21: N/A | BO21: N/A | BP21: N/A | BQ21: N/A | BR21: N/A | BS21: N/A | BT21: N/A | BU21: N/A | BV21: N/A | BW21: N/A
A22: Improved water point at more than 30 minutes | B22: Yes | C22: 5.1 | D22: 3.1 | E22: 7.6 | F22: 8.1 | G22: 7.4 | H22: 12.4 | I22: 9.1 | J22: 10.8 | K22: 7 | L22: 7.2 | M22: 3.4 | N22: 5.8 | O22: 2.2 | P22: 3 | Q22: 2 | R22: 11.6 | S22: 2.3 | T22: 4 | U22: 3 | V22: 8.3 | W22: 10.2 | BA22: Improved water point at more than 30 minutes | BB22: Yes | BC22: N/A | BD22: N/A | BE22: N/A | BF22: N/A | BG22: N/A | BH22: N/A | BI22: N/A | BJ22: N/A | BK22: N/A | BL22: N/A | BM22: N/A | BN22: N/A | BO22: N/A | BP22: N/A | BQ22: N/A | BR22: N/A | BS22: N/A | BT22: N/A | BU22: N/A | BV22: N/A | BW22: N/A
B23: No | C23: 94.9 | D23: 96.9 | E23: 92.4 | F23: 91.9 | G23: 92.6 | H23: 87.6 | I23: 90.9 | J23: 89.2 | K23: 93 | L23: 92.8 | M23: 96.6 | N23: 94.2 | O23: 97.8 | P23: 97 | Q23: 98 | R23: 88.4 | S23: 97.7 | T23: 96 | U23: 97 | V23: 91.7 | W23: 89.8 | BB23: No | BC23: N/A | BD23: N/A | BE23: N/A | BF23: N/A | BG23: N/A | BH23: N/A | BI23: N/A | BJ23: N/A | BK23: N/A | BL23: N/A | BM23: N/A | BN23: N/A | BO23: N/A | BP23: N/A | BQ23: N/A | BR23: N/A | BS23: N/A | BT23: N/A | BU23: N/A | BV23: N/A | BW23: N/A
A24: Manually calculated ratios | B24: Improved wells
B25: Improved springs
B26: Other
C27: NATIONAL wealth index quintile | H27: URBAN wealth index quintile | M27: RURAL wealth index quintile | R27: SUB-REGIONS: | BA27: Raw numbers of respondents: | BB27: Use of drinking water sources | BC27: NATIONAL wealth index quintile | BH27: URBAN wealth index quintile | BM27: RURAL wealth index quintile | BR27: SUB-REGIONS:
A28: Percentage based on weighted population | C28: Poorest | D28: Poor | E28: Middle | F28: Rich | G28: Richest | H28: Poorest | I28: Poor | J28: Middle | K28: Rich | L28: Richest | M28: Poorest | N28: Poor | O28: Middle | P28: Rich | Q28: Richest | R28: Monrovia | S28: North Central | T28: North Western | U28: South Central | V28: South Eastern A | W28: South Eastern B | BA28: Water data, raw numbers (weighted) | BC28: Poorest | BD28: Poor | BE28: Middle | BF28: Rich | BG28: Richest | BH28: Poorest | BI28: Poor | BJ28: Middle | BK28: Rich | BL28: Richest | BM28: Poorest | BN28: Poor | BO28: Middle | BP28: Rich | BQ28: Richest | BR28: Monrovia | BS28: North Central | BT28: North Western | BU28: South Central | BV28: South Eastern A | BW28: South Eastern B
A29: Piped water | B29: Yes | C29: 0 | D29: 0.7 | E29: 2.6 | F29: 18 | G29: 17.4 | H29: 1.8 | I29: 12.4 | J29: 19.7 | K29: 19 | L29: 19.7 | M29: 0 | N29: 0 | O29: 0.4 | P29: 0 | Q29: 5.4 | R29: 24.2 | S29: 0.1 | T29: 0.1 | U29: 2.9 | V29: 0 | W29: 0 | BA29: Piped water | BB29: Yes | BC29: N/A | BD29: N/A | BE29: N/A | BF29: N/A | BG29: N/A | BH29: N/A | BI29: N/A | BJ29: N/A | BK29: N/A | BL29: N/A | BM29: N/A | BN29: N/A | BO29: N/A | BP29: N/A | BQ29: N/A | BR29: N/A | BS29: N/A | BT29: N/A | BU29: N/A | BV29: N/A | BW29: N/A
B30: No | C30: 100 | D30: 99.3 | E30: 97.4 | F30: 82 | G30: 82.6 | H30: 98.2 | I30: 87.6 | J30: 80.3 | K30: 81 | L30: 80.3 | M30: 100 | N30: 100 | O30: 99.6 | P30: 100 | Q30: 94.6 | R30: 75.8 | S30: 99.9 | T30: 99.9 | U30: 97.1 | V30: 100 | W30: 100 | BB30: No | BC30: N/A | BD30: N/A | BE30: N/A | BF30: N/A | BG30: N/A | BH30: N/A | BI30: N/A | BJ30: N/A | BK30: N/A | BL30: N/A | BM30: N/A | BN30: N/A | BO30: N/A | BP30: N/A | BQ30: N/A | BR30: N/A | BS30: N/A | BT30: N/A | BU30: N/A | BV30: N/A | BW30: N/A
A31: Piped water on premises | B31: Yes | C31: 0 | D31: 0 | E31: 0.4 | F31: 3.8 | G31: 7.1 | H31: 0 | I31: 1.3 | J31: 2.6 | K31: 1.4 | L31: 11.9 | M31: 0 | N31: 0 | O31: 0 | P31: 0 | Q31: 5.4 | R31: 5.8 | S31: 0 | T31: 0 | U31: 2.9 | V31: 0 | W31: 0 | BA31: Piped water on premises | BB31: Yes | BC31: N/A | BD31: N/A | BE31: N/A | BF31: N/A | BG31: N/A | BH31: N/A | BI31: N/A | BJ31: N/A | BK31: N/A | BL31: N/A | BM31: N/A | BN31: N/A | BO31: N/A | BP31: N/A | BQ31: N/A | BR31: N/A | BS31: N/A | BT31: N/A | BU31: N/A | BV31: N/A | BW31: N/A
B32: No | C32: 100 | D32: 100 | E32: 99.6 | F32: 96.2 | G32: 92.9 | H32: 100 | I32: 98.7 | J32: 97.4 | K32: 98.6 | L32: 88.1 | M32: 100 | N32: 100 | O32: 100 | P32: 100 | Q32: 94.6 | R32: 94.2 | S32: 100 | T32: 100 | U32: 97.1 | V32: 100 | W32: 100 | BB32: No | BC32: N/A | BD32: N/A | BE32: N/A | BF32: N/A | BG32: N/A | BH32: N/A | BI32: N/A | BJ32: N/A | BK32: N/A | BL32: N/A | BM32: N/A | BN32: N/A | BO32: N/A | BP32: N/A | BQ32: N/A | BR32: N/A | BS32: N/A | BT32: N/A | BU32: N/A | BV32: N/A | BW32: N/A
A33: Piped water into dwelling | B33: Yes | C33: N/A | D33: N/A | E33: N/A | F33: N/A | G33: N/A | H33: N/A | I33: N/A | J33: N/A | K33: N/A | L33: N/A | M33: N/A | N33: N/A | O33: N/A | P33: N/A | Q33: N/A | R33: N/A | S33: N/A | T33: N/A | U33: N/A | V33: N/A | W33: N/A | BA33: Piped water into dwelling | BB33: Yes | BC33: N/A | BD33: N/A | BE33: N/A | BF33: N/A | BG33: N/A | BH33: N/A | BI33: N/A | BJ33: N/A | BK33: N/A | BL33: N/A | BM33: N/A | BN33: N/A | BO33: N/A | BP33: N/A | BQ33: N/A | BR33: N/A | BS33: N/A | BT33: N/A | BU33: N/A | BV33: N/A | BW33: N/A
B34: No | C34: N/A | D34: N/A | E34: N/A | F34: N/A | G34: N/A | H34: N/A | I34: N/A | J34: N/A | K34: N/A | L34: N/A | M34: N/A | N34: N/A | O34: N/A | P34: N/A | Q34: N/A | R34: N/A | S34: N/A | T34: N/A | U34: N/A | V34: N/A | W34: N/A | BB34: No | BC34: N/A | BD34: N/A | BE34: N/A | BF34: N/A | BG34: N/A | BH34: N/A | BI34: N/A | BJ34: N/A | BK34: N/A | BL34: N/A | BM34: N/A | BN34: N/A | BO34: N/A | BP34: N/A | BQ34: N/A | BR34: N/A | BS34: N/A | BT34: N/A | BU34: N/A | BV34: N/A | BW34: N/A
A35: Water source on premises | B35: Yes | C35: 2.9 | D35: 4.2 | E35: 12.6 | F35: 14.6 | G35: 19.5 | H35: 11.1 | I35: 15.5 | J35: 15.8 | K35: 13.8 | L35: 25.5 | M35: 2.2 | N35: 3.1 | O35: 2.1 | P35: 6.2 | Q35: 13.2 | R35: 19.3 | S35: 3.7 | T35: 5.3 | U35: 15.7 | V35: 4.8 | W35: 2.6 | BA35: Water source on premises | BB35: Yes | BC35: N/A | BD35: N/A | BE35: N/A | BF35: N/A | BG35: N/A | BH35: N/A | BI35: N/A | BJ35: N/A | BK35: N/A | BL35: N/A | BM35: N/A | BN35: N/A | BO35: N/A | BP35: N/A | BQ35: N/A | BR35: N/A | BS35: N/A | BT35: N/A | BU35: N/A | BV35: N/A | BW35: N/A
B36: No | C36: 97.1 | D36: 95.8 | E36: 87.4 | F36: 85.4 | G36: 80.5 | H36: 88.9 | I36: 84.5 | J36: 84.2 | K36: 86.2 | L36: 74.5 | M36: 97.8 | N36: 96.9 | O36: 97.9 | P36: 93.8 | Q36: 86.8 | R36: 80.7 | S36: 96.3 | T36: 94.7 | U36: 84.3 | V36: 95.2 | W36: 97.4 | BB36: No | BC36: N/A | BD36: N/A | BE36: N/A | BF36: N/A | BG36: N/A | BH36: N/A | BI36: N/A | BJ36: N/A | BK36: N/A | BL36: N/A | BM36: N/A | BN36: N/A | BO36: N/A | BP36: N/A | BQ36: N/A | BR36: N/A | BS36: N/A | BT36: N/A | BU36: N/A | BV36: N/A | BW36: N/A
A37: Improved Water source on premises | B37: Yes | C37: 2.2 | D37: 3.7 | E37: 10.8 | F37: 11.1 | G37: 16.2 | H37: 8.7 | I37: 11.9 | J37: 12.6 | K37: 9.5 | L37: 22.4 | M37: 2.1 | N37: 1.8 | O37: 2.1 | P37: 4.8 | Q37: 12.6 | R37: 16.2 | S37: 3.1 | T37: 5.2 | U37: 11.7 | V37: 4.4 | W37: 1.8 | BA37: Improved water source on premises | BB37: Yes | BC37: N/A | BD37: N/A | BE37: N/A | BF37: N/A | BG37: N/A | BH37: N/A | BI37: N/A | BJ37: N/A | BK37: N/A | BL37: N/A | BM37: N/A | BN37: N/A | BO37: N/A | BP37: N/A | BQ37: N/A | BR37: N/A | BS37: N/A | BT37: N/A | BU37: N/A | BV37: N/A | BW37: N/A
B38: No | C38: 97.8 | D38: 96.3 | E38: 89.2 | F38: 88.9 | G38: 83.8 | H38: 91.3 | I38: 88.1 | J38: 87.4 | K38: 90.5 | L38: 77.6 | M38: 97.9 | N38: 98.2 | O38: 97.9 | P38: 95.2 | Q38: 87.4 | R38: 83.8 | S38: 96.9 | T38: 94.8 | U38: 88.3 | V38: 95.6 | W38: 98.2 | BB38: No | BC38: N/A | BD38: N/A | BE38: N/A | BF38: N/A | BG38: N/A | BH38: N/A | BI38: N/A | BJ38: N/A | BK38: N/A | BL38: N/A | BM38: N/A | BN38: N/A | BO38: N/A | BP38: N/A | BQ38: N/A | BR38: N/A | BS38: N/A | BT38: N/A | BU38: N/A | BV38: N/A | BW38: N/A
A39: Piped water on premises available when needed | B39: Yes | C39: N/A | D39: N/A | E39: N/A | F39: N/A | G39: N/A | H39: N/A | I39: N/A | J39: N/A | K39: N/A | L39: N/A | M39: N/A | N39: N/A | O39: N/A | P39: N/A | Q39: N/A | R39: N/A | S39: N/A | T39: N/A | U39: N/A | V39: N/A | W39: N/A | BA39: Piped water on premises available when needed | BB39: Yes | BC39: N/A | BD39: N/A | BE39: N/A | BF39: N/A | BG39: N/A | BH39: N/A | BI39: N/A | BJ39: N/A | BK39: N/A | BL39: N/A | BM39: N/A | BN39: N/A | BO39: N/A | BP39: N/A | BQ39: N/A | BR39: N/A | BS39: N/A | BT39: N/A | BU39: N/A | BV39: N/A | BW39: N/A
B40: No | C40: N/A | D40: N/A | E40: N/A | F40: N/A | G40: N/A | H40: N/A | I40: N/A | J40: N/A | K40: N/A | L40: N/A | M40: N/A | N40: N/A | O40: N/A | P40: N/A | Q40: N/A | R40: N/A | S40: N/A | T40: N/A | U40: N/A | V40: N/A | W40: N/A | BB40: No | BC40: N/A | BD40: N/A | BE40: N/A | BF40: N/A | BG40: N/A | BH40: N/A | BI40: N/A | BJ40: N/A | BK40: N/A | BL40: N/A | BM40: N/A | BN40: N/A | BO40: N/A | BP40: N/A | BQ40: N/A | BR40: N/A | BS40: N/A | BT40: N/A | BU40: N/A | BV40: N/A | BW40: N/A
A41: Water point at more than 30 minutes | B41: Yes | C41: 4 | D41: 3.1 | E41: 7.1 | F41: 7 | G41: 6.7 | H41: 11.8 | I41: 7.7 | J41: 9.3 | K41: 6.1 | L41: 6.7 | M41: 3.1 | N41: 4.3 | O41: 2.1 | P41: 3.2 | Q41: 1.9 | R41: 10.1 | S41: 1.8 | T41: 4.4 | U41: 3.6 | V41: 6.3 | W41: 8.1 | BA41: Water point at more than 30 minutes | BB41: Yes | BC41: N/A | BD41: N/A | BE41: N/A | BF41: N/A | BG41: N/A | BH41: N/A | BI41: N/A | BJ41: N/A | BK41: N/A | BL41: N/A | BM41: N/A | BN41: N/A | BO41: N/A | BP41: N/A | BQ41: N/A | BR41: N/A | BS41: N/A | BT41: N/A | BU41: N/A | BV41: N/A | BW41: N/A
B42: No | C42: 96 | D42: 96.9 | E42: 92.9 | F42: 93 | G42: 93.3 | H42: 88.2 | I42: 92.3 | J42: 90.7 | K42: 93.9 | L42: 93.3 | M42: 96.9 | N42: 95.7 | O42: 97.9 | P42: 96.8 | Q42: 98.1 | R42: 89.9 | S42: 98.2 | T42: 95.6 | U42: 96.4 | V42: 93.7 | W42: 91.9 | BB42: No | BC42: N/A | BD42: N/A | BE42: N/A | BF42: N/A | BG42: N/A | BH42: N/A | BI42: N/A | BJ42: N/A | BK42: N/A | BL42: N/A | BM42: N/A | BN42: N/A | BO42: N/A | BP42: N/A | BQ42: N/A | BR42: N/A | BS42: N/A | BT42: N/A | BU42: N/A | BV42: N/A | BW42: N/A
A43: Water source available when needed | B43: Yes | C43: N/A | D43: N/A | E43: N/A | F43: N/A | G43: N/A | H43: N/A | I43: N/A | J43: N/A | K43: N/A | L43: N/A | M43: N/A | N43: N/A | O43: N/A | P43: N/A | Q43: N/A | R43: N/A | S43: N/A | T43: N/A | U43: N/A | V43: N/A | W43: N/A | BA43: Water source available when needed | BB43: Yes | BC43: N/A | BD43: N/A | BE43: N/A | BF43: N/A | BG43: N/A | BH43: N/A | BI43: N/A | BJ43: N/A | BK43: N/A | BL43: N/A | BM43: N/A | BN43: N/A | BO43: N/A | BP43: N/A | BQ43: N/A | BR43: N/A | BS43: N/A | BT43: N/A | BU43: N/A | BV43: N/A | BW43: N/A
B44: No | C44: N/A | D44: N/A | E44: N/A | F44: N/A | G44: N/A | H44: N/A | I44: N/A | J44: N/A | K44: N/A | L44: N/A | M44: N/A | N44: N/A | O44: N/A | P44: N/A | Q44: N/A | R44: N/A | S44: N/A | T44: N/A | U44: N/A | V44: N/A | W44: N/A | BB44: No | BC44: N/A | BD44: N/A | BE44: N/A | BF44: N/A | BG44: N/A | BH44: N/A | BI44: N/A | BJ44: N/A | BK44: N/A | BL44: N/A | BM44: N/A | BN44: N/A | BO44: N/A | BP44: N/A | BQ44: N/A | BR44: N/A | BS44: N/A | BT44: N/A | BU44: N/A | BV44: N/A | BW44: N/A
A45: Improved water source available when needed | B45: Yes | C45: N/A | D45: N/A | E45: N/A | F45: N/A | G45: N/A | H45: N/A | I45: N/A | J45: N/A | K45: N/A | L45: N/A | M45: N/A | N45: N/A | O45: N/A | P45: N/A | Q45: N/A | R45: N/A | S45: N/A | T45: N/A | U45: N/A | V45: N/A | W45: N/A | BA45: Improved water source available when needed | BB45: Yes | BC45: N/A | BD45: N/A | BE45: N/A | BF45: N/A | BG45: N/A | BH45: N/A | BI45: N/A | BJ45: N/A | BK45: N/A | BL45: N/A | BM45: N/A | BN45: N/A | BO45: N/A | BP45: N/A | BQ45: N/A | BR45: N/A | BS45: N/A | BT45: N/A | BU45: N/A | BV45: N/A | BW45: N/A
B46: No | C46: N/A | D46: N/A | E46: N/A | F46: N/A | G46: N/A | H46: N/A | I46: N/A | J46: N/A | K46: N/A | L46: N/A | M46: N/A | N46: N/A | O46: N/A | P46: N/A | Q46: N/A | R46: N/A | S46: N/A | T46: N/A | U46: N/A | V46: N/A | W46: N/A | BB46: No | BC46: N/A | BD46: N/A | BE46: N/A | BF46: N/A | BG46: N/A | BH46: N/A | BI46: N/A | BJ46: N/A | BK46: N/A | BL46: N/A | BM46: N/A | BN46: N/A | BO46: N/A | BP46: N/A | BQ46: N/A | BR46: N/A | BS46: N/A | BT46: N/A | BU46: N/A | BV46: N/A | BW46: N/A
A47: Microbiological quality at point of collection | B47: Not contaminated (No E. coli in 100 mL) | C47: N/A | D47: N/A | E47: N/A | F47: N/A | G47: N/A | H47: N/A | I47: N/A | J47: N/A | K47: N/A | L47: N/A | M47: N/A | N47: N/A | O47: N/A | P47: N/A | Q47: N/A | R47: N/A | S47: N/A | T47: N/A | U47: N/A | V47: N/A | W47: N/A | BA47: Microbiological quality at point of collection | BB47: Not contaminated (No E. coli in 100 mL) | BC47: N/A | BD47: N/A | BE47: N/A | BF47: N/A | BG47: N/A | BH47: N/A | BI47: N/A | BJ47: N/A | BK47: N/A | BL47: N/A | BM47: N/A | BN47: N/A | BO47: N/A | BP47: N/A | BQ47: N/A | BR47: N/A | BS47: N/A | BT47: N/A | BU47: N/A | BV47: N/A | BW47: N/A
B48: Contaminated (E. coli detected in 100 mL) | C48: N/A | D48: N/A | E48: N/A | F48: N/A | G48: N/A | H48: N/A | I48: N/A | J48: N/A | K48: N/A | L48: N/A | M48: N/A | N48: N/A | O48: N/A | P48: N/A | Q48: N/A | R48: N/A | S48: N/A | T48: N/A | U48: N/A | V48: N/A | W48: N/A | BB48: Contaminated (E. coli detected in 100 mL) | BC48: N/A | BD48: N/A | BE48: N/A | BF48: N/A | BG48: N/A | BH48: N/A | BI48: N/A | BJ48: N/A | BK48: N/A | BL48: N/A | BM48: N/A | BN48: N/A | BO48: N/A | BP48: N/A | BQ48: N/A | BR48: N/A | BS48: N/A | BT48: N/A | BU48: N/A | BV48: N/A | BW48: N/A
B49: Highly contaminated (>100 CFU/100 mL) | C49: N/A | D49: N/A | E49: N/A | F49: N/A | G49: N/A | H49: N/A | I49: N/A | J49: N/A | K49: N/A | L49: N/A | M49: N/A | N49: N/A | O49: N/A | P49: N/A | Q49: N/A | R49: N/A | S49: N/A | T49: N/A | U49: N/A | V49: N/A | W49: N/A | BB49: Highly contaminated (>100 CFU/100 mL) | BC49: N/A | BD49: N/A | BE49: N/A | BF49: N/A | BG49: N/A | BH49: N/A | BI49: N/A | BJ49: N/A | BK49: N/A | BL49: N/A | BM49: N/A | BN49: N/A | BO49: N/A | BP49: N/A | BQ49: N/A | BR49: N/A | BS49: N/A | BT49: N/A | BU49: N/A | BV49: N/A | BW49: N/A
A50: Microbiological quality of improved water sources at point of collection | B50: Not contaminated (No E. coli in 100 mL) | C50: N/A | D50: N/A | E50: N/A | F50: N/A | G50: N/A | H50: N/A | I50: N/A | J50: N/A | K50: N/A | L50: N/A | M50: N/A | N50: N/A | O50: N/A | P50: N/A | Q50: N/A | R50: N/A | S50: N/A | T50: N/A | U50: N/A | V50: N/A | W50: N/A | BA50: Microbiological quality of improved water sources at point of collection | BB50: Not contaminated (No E. coli in 100 mL) | BC50: N/A | BD50: N/A | BE50: N/A | BF50: N/A | BG50: N/A | BH50: N/A | BI50: N/A | BJ50: N/A | BK50: N/A | BL50: N/A | BM50: N/A | BN50: N/A | BO50: N/A | BP50: N/A | BQ50: N/A | BR50: N/A | BS50: N/A | BT50: N/A | BU50: N/A | BV50: N/A | BW50: N/A
B51: Contaminated (E. coli detected in 100 mL) | C51: N/A | D51: N/A | E51: N/A | F51: N/A | G51: N/A | H51: N/A | I51: N/A | J51: N/A | K51: N/A | L51: N/A | M51: N/A | N51: N/A | O51: N/A | P51: N/A | Q51: N/A | R51: N/A | S51: N/A | T51: N/A | U51: N/A | V51: N/A | W51: N/A | BB51: Contaminated (E. coli detected in 100 mL) | BC51: N/A | BD51: N/A | BE51: N/A | BF51: N/A | BG51: N/A | BH51: N/A | BI51: N/A | BJ51: N/A | BK51: N/A | BL51: N/A | BM51: N/A | BN51: N/A | BO51: N/A | BP51: N/A | BQ51: N/A | BR51: N/A | BS51: N/A | BT51: N/A | BU51: N/A | BV51: N/A | BW51: N/A
B52: Highly contaminated (>100 CFU/100 mL) | C52: N/A | D52: N/A | E52: N/A | F52: N/A | G52: N/A | H52: N/A | I52: N/A | J52: N/A | K52: N/A | L52: N/A | M52: N/A | N52: N/A | O52: N/A | P52: N/A | Q52: N/A | R52: N/A | S52: N/A | T52: N/A | U52: N/A | V52: N/A | W52: N/A | BB52: Highly contaminated (>100 CFU/100 mL) | BC52: N/A | BD52: N/A | BE52: N/A | BF52: N/A | BG52: N/A | BH52: N/A | BI52: N/A | BJ52: N/A | BK52: N/A | BL52: N/A | BM52: N/A | BN52: N/A | BO52: N/A | BP52: N/A | BQ52: N/A | BR52: N/A | BS52: N/A | BT52: N/A | BU52: N/A | BV52: N/A | BW52: N/A
A53: Microbiological quality of piped on premises at point of collection | B53: Not contaminated (No E. coli in 100 mL) | C53: N/A | D53: N/A | E53: N/A | F53: N/A | G53: N/A | H53: N/A | I53: N/A | J53: N/A | K53: N/A | L53: N/A | M53: N/A | N53: N/A | O53: N/A | P53: N/A | Q53: N/A | R53: N/A | S53: N/A | T53: N/A | U53: N/A | V53: N/A | W53: N/A | BA53: Microbiological quality of piped on premises at point of collection | BB53: Not contaminated (No E. coli in 100 mL) | BC53: N/A | BD53: N/A | BE53: N/A | BF53: N/A | BG53: N/A | BH53: N/A | BI53: N/A | BJ53: N/A | BK53: N/A | BL53: N/A | BM53: N/A | BN53: N/A | BO53: N/A | BP53: N/A | BQ53: N/A | BR53: N/A | BS53: N/A | BT53: N/A | BU53: N/A | BV53: N/A | BW53: N/A
B54: Contaminated (E. coli detected in 100 mL) | C54: N/A | D54: N/A | E54: N/A | F54: N/A | G54: N/A | H54: N/A | I54: N/A | J54: N/A | K54: N/A | L54: N/A | M54: N/A | N54: N/A | O54: N/A | P54: N/A | Q54: N/A | R54: N/A | S54: N/A | T54: N/A | U54: N/A | V54: N/A | W54: N/A | BB54: Contaminated (E. coli detected in 100 mL) | BC54: N/A | BD54: N/A | BE54: N/A | BF54: N/A | BG54: N/A | BH54: N/A | BI54: N/A | BJ54: N/A | BK54: N/A | BL54: N/A | BM54: N/A | BN54: N/A | BO54: N/A | BP54: N/A | BQ54: N/A | BR54: N/A | BS54: N/A | BT54: N/A | BU54: N/A | BV54: N/A | BW54: N/A
B55: Highly contaminated (>100 CFU/100 mL) | C55: N/A | D55: N/A | E55: N/A | F55: N/A | G55: N/A | H55: N/A | I55: N/A | J55: N/A | K55: N/A | L55: N/A | M55: N/A | N55: N/A | O55: N/A | P55: N/A | Q55: N/A | R55: N/A | S55: N/A | T55: N/A | U55: N/A | V55: N/A | W55: N/A | BB55: Highly contaminated (>100 CFU/100 mL) | BC55: N/A | BD55: N/A | BE55: N/A | BF55: N/A | BG55: N/A | BH55: N/A | BI55: N/A | BJ55: N/A | BK55: N/A | BL55: N/A | BM55: N/A | BN55: N/A | BO55: N/A | BP55: N/A | BQ55: N/A | BR55: N/A | BS55: N/A | BT55: N/A | BU55: N/A | BV55: N/A | BW55: N/A
C56: NATIONAL wealth index quintile | H56: URBAN wealth index quintile | M56: RURAL wealth index quintile | R56: SUB-REGIONS: | BA56: Raw numbers of respondents: | BB56: Use of drinking water sources | BC56: NATIONAL wealth index quintile | BH56: URBAN wealth index quintile | BM56: RURAL wealth index quintile | BR56: SUB-REGIONS:
A57: Percentage based on weighted population | C57: Poorest | D57: Poor | E57: Middle | F57: Rich | G57: Richest | H57: Poorest | I57: Poor | J57: Middle | K57: Rich | L57: Richest | M57: Poorest | N57: Poor | O57: Middle | P57: Rich | Q57: Richest | R57: Monrovia | S57: North Central | T57: North Western | U57: South Central | V57: South Eastern A | W57: South Eastern B | BA57: Water data, raw numbers (weighted) | BC57: Poorest | BD57: Poor | BE57: Middle | BF57: Rich | BG57: Richest | BH57: Poorest | BI57: Poor | BJ57: Middle | BK57: Rich | BL57: Richest | BM57: Poorest | BN57: Poor | BO57: Middle | BP57: Rich | BQ57: Richest | BR57: Monrovia | BS57: North Central | BT57: North Western | BU57: South Central | BV57: South Eastern A | BW57: South Eastern B
A58: Source of drinking water | B58: Piped into dwelling | C58: 0 | D58: 0 | E58: 0.1469623157 | F58: 0.1473036082 | G58: 3.184626129 | H58: 0 | I58: 0.2990456898 | J58: 0.300116531 | K58: 0.9402797231 | L58: 5.537459202 | M58: 0 | N58: 0 | O58: 0 | P58: 0 | Q58: 0 | R58: 2.361833437 | S58: 0 | T58: 0 | U58: 0 | V58: 0 | W58: 0
B59: Piped to yard/plot | C59: 0 | D59: 0 | E59: 0.2572296907 | F59: 3.647119719 | G59: 3.881430683 | H59: 0 | I59: 1.043940014 | J59: 2.311914703 | K59: 0.4587785206 | L59: 6.389402661 | M59: 0 | N59: 0 | O59: 0 | P59: 0 | Q59: 5.440452179 | R59: 3.403772832 | S59: 0 | T59: 0 | U59: 2.871479469 | V59: 0 | W59: 0
B60: Public tap/standpipe | C60: 0 | D60: 0.6592078662 | E60: 2.175818841 | F60: 14.25611451 | G60: 10.33024204 | H60: 1.829178004 | I60: 11.08350064 | J60: 17.0963714 | K60: 17.59398781 | L60: 7.804838917 | M60: 0 | N60: 0 | O60: 0.3569664294 | P60: 0 | Q60: 0 | R60: 18.46590255 | S60: 0.1255238228 | T60: 0.09236796167 | U60: 0 | V60: 0 | W60: 0
B61: Tube well or borehole | C61: 0 | D61: 0.7948310205 | E61: 0.6294615554 | F61: 0.8846271101 | G61: 0.7385147546 | H61: 1.524368044 | I61: 0.3604955425 | J61: 1.802340233 | K61: 0.470738884 | L61: 1.030948066 | M61: 0 | N61: 0.1633730537 | O61: 0.8345154532 | P61: 0 | Q61: 0 | R61: 1.319478955 | S61: 0.3137533459 | T61: 0.264295116 | U61: 0.5729980762 | V61: 0 | W61: 0
B62: Protected well, hand pump | C62: 48.95777502 | D62: 68.01751458 | E62: 80.36606057 | F62: 60.52326009 | G62: 62.17993402 | H62: 80.87493858 | I62: 65.94485121 | J62: 53.17300938 | K62: 63.21562588 | L62: 54.41994747 | M62: 44.05616935 | N62: 49.37347921 | O62: 60.84904618 | P62: 78.37272196 | Q62: 90.05919915 | R62: 51.10150627 | S62: 75.19724979 | T62: 69.25842929 | U62: 65.31208428 | V62: 64.80066308 | W62: 62.05519497
B63: Unprotected well | C63: 5.9141801 | D63: 6.983265889 | E63: 7.88515476 | F63: 11.65991567 | G63: 5.311790759 | H63: 10.35410785 | I63: 13.52774486 | J63: 12.96039405 | K63: 7.438494676 | L63: 5.014428784 | M63: 4.841906901 | N63: 7.65762638 | O63: 8.211993297 | P63: 4.418682294 | Q63: 1.502409871 | R63: 6.251713476 | S63: 10.74384269 | T63: 4.321877965 | U63: 9.528166274 | V63: 3.636110639 | W63: 2.156423866
B64: Protected spring | C64: 0.2165107703 | D64: 0.1688526193 | E64: 0 | F64: 0 | G64: 0 | H64: 0 | I64: 0 | J64: 0 | K64: 0 | L64: 0 | M64: 0.146763115 | N64: 0.275122698 | O64: 0.3358374893 | P64: 0 | Q64: 0 | R64: 0 | S64: 0.1180940336 | T64: 0 | U64: 0 | V64: 0.5460972093 | W64: 0
B65: Unprotected spring | C65: 6.340643954 | D65: 4.017873683 | E65: 3.469563994 | F65: 0.2419135762 | G65: 0.01528683309 | H65: 1.063141633 | I65: 0.01553061773 | J65: 0.4461162902 | K65: 0.06208373335 | L65: 0 | M65: 5.442843185 | N65: 6.965284724 | O65: 5.225186533 | P65: 7.941110899 | Q65: 0.552761829 | R65: 0 | S65: 1.466729246 | T65: 6.184338416 | U65: 5.784993129 | V65: 7.18650359 | W65: 3.286918681
B66: River/dam/lake/ponds/stream/canal/irrigation channel | C66: 38.56384539 | D66: 19.24131814 | E66: 1.465345317 | F66: 0.5467429242 | G66: 0.4338976967 | H66: 0.5006949639 | I66: 0 | J66: 0.1402760765 | K66: 0.3864924657 | L66: 0.2021718763 | M66: 45.51231745 | N66: 35.56511393 | O66: 24.18645461 | P66: 9.267484847 | Q66: 2.445176968 | R66: 0 | S66: 12.03480707 | T66: 19.53916241 | U66: 15.52294284 | V66: 23.78890817 | W66: 32.44796239
B67: Rainwater | C67: 0 | D67: 0.05856810267 | E67: 0.2952500534 | F67: 0.2523560522 | G67: 0.5547015326 | H67: 0.7224711649 | I67: 0.5123159618 | J67: 0 | K67: 0.7167950973 | L67: 0.4104086761 | M67: 0 | N67: 0 | O67: 0 | P67: 0 | Q67: 0 | R67: 0.7886315481 | S67: 0 | T67: 0 | U67: 0 | V67: 0 | W67: 0
B68: Tanker truck | C68: 0 | D68: 0 | E68: 0.7304372746 | F68: 1.963177121 | G68: 0.2612493717 | H68: 0.1063908256 | I68: 1.968349011 | J68: 3.089845904 | K68: 0.8488003359 | L68: 0 | M68: 0 | N68: 0 | O68: 0 | P68: 0 | Q68: 0 | R68: 2.00558291 | S68: 0 | T68: 0 | U68: 0 | V68: 0 | W68: 0
B69: Cart with small tank | C69: 0 | D69: 0 | E69: 1.029059319 | F69: 0.627838593 | G69: 1.892571478 | H69: 0.1824701618 | I69: 1.911892323 | J69: 1.27915903 | K69: 1.572159666 | L69: 2.275447507 | M69: 0 | N69: 0 | O69: 0 | P69: 0 | Q69: 0 | R69: 2.410334216 | S69: 0 | T69: 0 | U69: 0 | V69: 0 | W69: 0
B70: Bottled water | C70: 0 | D70: 0.05856810267 | E70: 0.1175054141 | F70: 1.403350188 | G70: 4.449976784 | H70: 0.1204118608 | I70: 0.9776926994 | J70: 2.075783767 | K70: 1.52692592 | L70: 7.566275258 | M70: 0 | N70: 0 | O70: 0 | P70: 0 | Q70: 0 | R70: 3.937662021 | S70: 0 | T70: 0.1219534148 | U70: 0.168290692 | V70: 0 | W70: 0.05350009782
B71: Other | C71: 0.007044766811 | D71: 0 | E71: 1.432150899 | F71: 3.846280835 | G71: 6.765777909 | H71: 2.721826912 | I71: 2.354641434 | J71: 5.324672634 | K71: 4.768837295 | L71: 9.348671578 | M71: 0 | N71: 0 | O71: 0 | P71: 0 | Q71: 0 | R71: 7.953581786 | S71: 0 | T71: 0.2175754248 | U71: 0.2390452353 | V71: 0.04171731016 | W71: 0
A108: =A1026 -> Liberia
A109: =A1034 -> 2011
A110: Use of sanitation facilities
A111: by wealth quintile and sub-national region
A112: Notes:
A113: WHO/UNICEF JMP customised wealth index excludes water,
A114: sanitation and hygiene assets.
A115: Survey used for analysis: | B115: =A1025 -> MIS11
A116: =B1030 -> 
A117: =B1029 -> 
A120: Use of sanitation facilities | C120: NATIONAL wealth index quintile | H120: URBAN wealth index quintile | M120: RURAL wealth index quintile | R120: SUB-REGIONS: | BA120: Raw numbers of respondents: | BB120: Use of sanitation facilities | BC120: NATIONAL wealth index quintile | BH120: URBAN wealth index quintile | BM120: RURAL wealth index quintile | BR120: SUB-REGIONS:
A121: Weighted percentage (used in graphs) | C121: Poorest | D121: Poor | E121: Middle | F121: Rich | G121: Richest | H121: Poorest | I121: Poor | J121: Middle | K121: Rich | L121: Richest | M121: Poorest | N121: Poor | O121: Middle | P121: Rich | Q121: Richest | R121: Monrovia | S121: North Central | T121: North Western | U121: South Central | V121: South Eastern A | W121: South Eastern B | BA121: Sanitation data, raw numbers (weighted) | BC121: Poorest | BD121: Poor | BE121: Middle | BF121: Rich | BG121: Richest | BH121: Poorest | BI121: Poor | BJ121: Middle | BK121: Rich | BL121: Richest | BM121: Poorest | BN121: Poor | BO121: Middle | BP121: Rich | BQ121: Richest | BR121: Monrovia | BS121: North Central | BT121: North Western | BU121: South Central | BV121: South Eastern A | BW121: South Eastern B
A122: Sanitation | B122: Improved | C122: 10.45970802 | D122: 11.38775867 | E122: 28.72366413 | F122: 46.74936913 | G122: 71.10559249 | H122: 21.26025875 | I122: 44.04909267 | J122: 52.96700231 | K122: 62.3449676 | L122: 85.47335233 | M122: 12.33875004 | N122: 7.878740665 | O122: 11.52457104 | P122: 15.85243506 | Q122: 26.35562013 | R122: 60.81992058 | S122: 19.64660106 | T122: 16.68534821 | U122: 31.85344104 | V122: 20.65163605 | W122: 15.21168877 | BA122: Sanitation | BB122: Improved | BC122: 395.719006 | BD122: 438.405527 | BE122: 1096.374522 | BF122: 1781.552949 | BG122: 2710.144803 | BH122: 398.260212 | BI122: 826.274788 | BJ122: 991.45848 | BK122: 1170.199301 | BL122: 1601.141126 | BM122: 239.571555 | BN122: 152.973961 | BO122: 222.98791 | BP122: 308.016401 | BQ122: 511.313073 | BR122: 3414.577402 | BS122: 1081.326865 | BT122: 255.398942 | BU122: 1171.714451 | BV122: 309.804204 | BW122: 189.374943
